Workbook

Sheet Validation (hidden)
A1: =IF(MYP!#REF!=NoSaveAfterMacro,TRUE,FALSE) ->  | B1: After running the "Prepare Workbook for External Distribution" macro, data cannot be saved to Vena. Save to box and continue working there.
A2: =ISREF(INDIRECT("'MYP'"&"!A1")) -> TRUE | B2: One or more template sheets have been deleted from the workbook. Save to box and continue working there.
A3: =ISREF(INDIRECT("'MYP-Multisite'"&"!A1")) -> TRUE | B3: One or more template sheets have been deleted from the workbook. Save to box and continue working there.
A4: =ISREF(INDIRECT("'Cash Flow'"&"!A1")) -> TRUE | B4: One or more template sheets have been deleted from the workbook. Save to box and continue working there.
A5: =ISREF(INDIRECT("'Payroll'"&"!A1")) -> TRUE | B5: One or more template sheets have been deleted from the workbook. Save to box and continue working there.
A6: =ISREF(INDIRECT("'Rates'"&"!A1")) -> TRUE | B6: One or more template sheets have been deleted from the workbook. Save to box and continue working there.
A7: =ISREF(INDIRECT("'Graphs'"&"!A1")) -> TRUE | B7: One or more template sheets have been deleted from the workbook. Save to box and continue working there.

Sheet MYP
A1: East Bay Innovation Academy
A2: Multi-year Projection
A3: As of May FY2023
C5: Start-up Year | D5: Year 1 | E5: Year 2 | F5: Year 3 | G5: Year 4 | H5: Year 5 | I5: Year 6 | J5: Assumptions
D6: 2022-23 | E6: 2023-24 | F6: 2024-25 | G6: 2025-26 | H6: 2026-27 | I6: 2027-28
A10: SUMMARY
A11: Revenue
B12: LCFF Entitlement | C12: =+C108 -> 0 | D12: =+D108 -> 5563169 | E12: 6384109 | F12: 7076707 | G12: 7345017 | H12: 7579428 | I12: 7777709.992
B13: Federal Revenue | C13: =+C127 -> 0 | D13: =+D127 -> 609529.43 | E13: 282339.6 | F13: 252700.84 | G13: 259390.8544 | H13: 261858.1115 | I13: 263737.2137
B14: Other State Revenues | C14: =+C154 -> 0 | D14: =+D154 -> 1552216.493 | E14: 1601038.605 | F14: 1180763.807 | G14: 1134343.389 | H14: 1125445.605 | I14: 1125680.493
B15: Local Revenues | C15: =+C237 -> 0 | D15: =+D237 -> 504828.53 | E15: 505881.02 | F15: 505964.348 | G15: 505996.4107 | H15: 506019.4389 | I15: 506042.9277
B16: Fundraising and Grants | C16: =+C257 -> 0 | D16: =+D257 -> 80000 | E16: 80000 | F16: 80000 | G16: 80000 | H16: 80000 | I16: 80000
B17: Total Revenue | C17: =SUM(C12:C16) -> 0 | D17: =SUM(D12:D16) -> 8309743.453 | E17: 8853368.225 | F17: 9096135.995 | G17: 9324747.654 | H17: 9552751.155 | I17: 9753170.627
A19: Expenses
B20: Compensation and Benefits | C20: =C314+C379+C393 -> 0 | D20: 5462362.773 | E20: 6375721.15 | F20: 6476016.695 | G20: 6692622.134 | H20: 6917507.668 | I20: 7150646.676
B21: Books and Supplies | C21: =C456 -> 0 | D21: =D456 -> 344295 | E21: 370800.9 | F21: 393986.628 | G21: 404303.4976 | H21: 412389.5675 | I21: 420637.3589
B22: Services and Other Operating Expenditures | C22: =C584 -> 0 | D22: =D584 -> 2438298.57 | E22: 2029534.198 | F22: 2085631.362 | G22: 2142866.514 | H22: 2113167.764 | I22: 2153926.893
B23: Depreciation | C23: =C587 -> 0 | D23: =D601 -> 0 | E23: 0 | F23: 0 | G23: 0 | H23: 0 | I23: 0
B24: Other Outflows | C24: =C618+C601 -> 0 | D24: =D618 -> 0 | E24: 0 | F24: 0 | G24: 0 | H24: 0 | I24: 0
B25: Total Expenses | C25: =SUM(C20:C24) -> 0 | D25: =SUM(D20:D24) -> 8244956.343 | E25: 8776056.249 | F25: 8955634.685 | G25: 9239792.145 | H25: 9443065 | I25: 9725210.927
A27: Operating Income | C27: =C17-C25 -> 0 | D27: =D17-D25 -> 64787.10946 | E27: 77311.97597 | F27: 140501.3103 | G27: 84955.50926 | H27: 109686.1555 | I27: 27959.69919
A29: Fund Balance
B30: Beginning Balance (Unaudited) | C30: 0 | D30: 2029603 | E30: =D35 -> 2094390.109 | F30: =E35 -> 2171702.085 | G30: 2312203.396 | H30: 2397158.905 | I30: 2506845.061
B31: Audit Adjustment
B32: Beginning Balance (Audited) | C32: =SUM(C30:C31) -> 0 | D32: =SUM(D30:D31) -> 2029603 | E32: 2094390.109 | F32: 2171702.085 | G32: 2312203.396 | H32: 2397158.905 | I32: 2506845.061
B33: Operating Income | C33: =+C27 -> 0 | D33: =+D27 -> 64787.10946 | E33: 77311.97597 | F33: 140501.3103 | G33: 84955.50926 | H33: 109686.1555 | I33: 27959.69919
A35: Ending Fund Balance | C35: =C32+C33 -> 0 | D35: =D32+D33 -> 2094390.109 | E35: 2171702.085 | F35: 2312203.396 | G35: 2397158.905 | H35: 2506845.061 | I35: 2534804.76
A37: Total Revenue Per ADA | D37: =IFERROR(D17/D$78,"") -> 16592.9382 | E37: 16731.30157 | F37: 16228.61016 | G37: 16496.67873 | H37: 16900.04627 | I37: 17254.61411
A38: Total Expenses Per ADA | D38: =IFERROR(D25/D$78,"") -> 16463.57097 | E38: 16585.19559 | F38: 15977.93878 | G38: 16346.3815 | H38: 16705.99735 | I38: 17205.14981
A39: Operating Income Per ADA | D39: =IFERROR(D27/D$78,"") -> 129.3672313 | E39: 146.1059737 | F39: 250.6713833 | G39: 150.29723 | H39: 194.0489262 | I39: 49.46430639
A40: Fund Balance as a % of Expenses | C40: =IFERROR(C35/C25,"") ->  | D40: 0.254020764 | E40: 0.2474576306 | F40: 0.2581842021 | G40: 0.259438618 | H40: 0.2654694276 | I40: 0.2606426512
A42: Key Assumptions
A44: Enrollment Breakdown
B45: TK | D45: 0 | E45: 0 | F45: 0 | G45: 0 | H45: 0 | I45: 0
B46: K | D46: 0 | E46: 0 | F46: 0 | G46: 0 | H46: 0 | I46: 0
B47: 1 | D47: 0 | E47: 0 | F47: 0 | G47: 0 | H47: 0 | I47: 0
B48: 2 | D48: 0 | E48: 0 | F48: 0 | G48: 0 | H48: 0 | I48: 0
B49: 3 | D49: 0 | E49: 0 | F49: 0 | G49: 0 | H49: 0 | I49: 0
B50: 4 | D50: 0 | E50: 0 | F50: 0 | G50: 0 | H50: 0 | I50: 0
B51: 5 | D51: 0 | E51: 0 | F51: 0 | G51: 0 | H51: 0 | I51: 0
B52: 6 | D52: 76.78 | E52: 100 | F52: 100 | G52: 100 | H52: 100 | I52: 100
B53: 7 | D53: 109.97 | E53: 85 | F53: 100 | G53: 100 | H53: 100 | I53: 100
B54: 8 | D54: 104 | E54: 110 | F54: 85 | G54: 100 | H54: 100 | I54: 100
B55: 9 | D55: 76.67 | E55: 90 | F55: 95 | G55: 85 | H55: 85 | I55: 85
B56: 10 | D56: 60.98 | E56: 75 | F56: 85 | G56: 85 | H56: 85 | I56: 85
B57: 11 | D57: 35.63 | E57: 62 | F57: 70 | G57: 70 | H57: 70 | I57: 70
B58: 12 | D58: 63.41 | E58: 35 | F58: 55 | G58: 55 | H58: 55 | I58: 55
A59: Enrollment Summary
B60: K-3 | D60: =SUM(D45:D49) -> 0 | E60: 0 | F60: 0 | G60: 0 | H60: 0 | I60: 0
B61: 4-6 | D61: =SUM(D50:D52) -> 76.78 | E61: 100 | F61: 100 | G61: 100 | H61: 100 | I61: 100
B62: 7-8 | D62: =SUM(D53:D54) -> 213.97 | E62: 195 | F62: 185 | G62: 200 | H62: 200 | I62: 200
B63: 9-12 | D63: =SUM(D55:D58) -> 236.69 | E63: 262 | F63: 305 | G63: 295 | H63: 295 | I63: 295
B64: Total Enrolled | D64: =SUM(D60:D63) -> 527.44 | E64: 557 | F64: 590 | G64: 595 | H64: 595 | I64: 595
A66: ADA %
B67: K-3 | C67: =IFERROR(C74/C60,"") ->  | D67: =IFERROR(D74/D60,"") -> 
B68: 4-6 | C68: =IFERROR(C75/C61,"") ->  | D68: 0.9624902318 | E68: 0.95 | F68: 0.95 | G68: 0.95 | H68: 0.95 | I68: 0.95
B69: 7-8 | C69: =IFERROR(C76/C62,"") ->  | D69: 0.9641538533 | E69: 0.95 | F69: 0.95 | G69: 0.95 | H69: 0.95 | I69: 0.95
B70: 9-12 | C70: =IFERROR(C77/C63,"") ->  | D70: 0.9320207867 | E70: 0.95 | F70: 0.95 | G70: 0.95 | H70: 0.95 | I70: 0.95
B71: Average ADA % | C71: =IFERROR(C78/C64,"") ->  | D71: 0.9494918853 | E71: 0.95 | F71: 0.95 | G71: 0.95 | H71: 0.95 | I71: 0.95
A73: ADA
B74: K-3 | D74: 0 | E74: 0 | F74: 0 | G74: 0 | H74: 0 | I74: 0
B75: 4-6 | D75: 73.9 | E75: 95 | F75: 95 | G75: 95 | H75: 95 | I75: 95
B76: 7-8 | D76: 206.3 | E76: 185.25 | F76: 175.75 | G76: 190 | H76: 190 | I76: 190
B77: 9-12 | D77: 220.6 | E77: 248.9 | F77: 289.75 | G77: 280.25 | H77: 280.25 | I77: 280.25
B78: Total ADA | D78: 500.8 | E78: 529.15 | F78: 560.5 | G78: 565.25 | H78: 565.25 | I78: 565.25
A80: Demographic Information
B81: CALPADS Enrollment (for unduplicated % calc) | D81: 527.44 | E81: 557 | F81: 590 | G81: 595 | H81: 595 | I81: 595
B82: # Unduplicated (CALPADS) | D82: 190 | E82: 201 | F82: 213 | G82: 215 | H82: 215 | I82: 215
B83: # Free & Reduced Lunch (CALPADS) | D83: 195 | E83: 206 | F83: 218 | G83: 220 | H83: 220 | I83: 220
B84: # ELL (CALPADS) | D84: 48 | E84: 51 | F84: 54 | G84: 54 | H84: 54 | I84: 54
B85: New Students | D85: 0 | E85: 29.56 | F85: 33 | G85: 5 | H85: 0 | I85: 0
A87: School Information
B88: FTE's | D88: 56.13682796 | E88: 59.275 | F88: 59.275 | G88: 59.275 | H88: 59.275 | I88: 59.275
B89: Teachers | D89: 34.13064516 | E89: 36 | F89: 36 | G89: 36 | H89: 36 | I89: 36
B90: Certificated Pay Increases | E90: 0.05 | F90: 0.03 | G90: 0.03 | H90: 0.03 | I90: 0.03
B91: Classified Pay Increases | E91: 0.03 | F91: 0.03 | G91: 0.03 | H91: 0.03 | I91: 0.03
B92: # of school days | D92: 0 | E92: 0 | F92: 0 | G92: 0 | H92: 0 | I92: 0
B93: Default Expense Inflation Rate | E93: 0.02 | F93: 0.02 | G93: 0.02 | H93: 0.02 | I93: 0.02
A96: REVENUE
A98: LCFF Entitlement
A100: 8000 | B100: Revenue
A101: 8010 | B101: Principal Apportionment
A102: 8011 | B102: Charter Schools General Purpose Entitlement - State Aid | D102: 3920449.848 | E102: 4008754.65 | F102: 4560622.5 | G102: 4807609.75 | H102: 5042020.75 | I102: 5240302.742
A103: 8012 | B103: Education Protection Account Entitlement | D103: 100160 | E103: 105830 | F103: 112100 | G103: 113050 | H103: 113050 | I103: 113050
A104: 8018 | B104: Advance Apportionment (clearing acct-shld be zero at yr end
A105: 8019 | B105: State Aid - Prior Years | D105: 0 | E105: 0 | F105: 0 | G105: 0 | H105: 0 | I105: 0
A106: 8096 | B106: Charter Schools in Lieu of Property Taxes | D106: 1542559.152 | E106: 2269524.35 | F106: 2403984.5 | G106: 2424357.25 | H106: 2424357.25 | I106: 2424357.25
B108: SUBTOTAL - LCFF Entitlement | C108: =SUM(C99:C107) -> 0 | D108: 5563169 | E108: 6384109 | F108: 7076707 | G108: 7345017 | H108: 7579428 | I108: 7777709.992
A110: Federal Revenue
A112: 8100 | B112: Federal Revenue
A113: 8181 | B113: Special Education - Entitlement | D113: 82654.03 | E113: 65930 | F113: 69625 | G113: 73750 | H113: 74375 | I113: 74375
A114: 8182 | B114: Special Education Reimbursement | D114: 0 | E114: 0 | F114: 0 | G114: 0 | H114: 0 | I114: 0
A115: 8220 | B115: Child Nutrition Programs | D115: 78682.4 | E115: 82881.6 | F115: 89547.84 | G115: 92112.8544 | H115: 93955.11149 | I115: 95834.21372
A116: 8290 | B116: No Child Left Behind | D116: 0 | E116: 0 | F116: 0 | G116: 0 | H116: 0 | I116: 0
A117: 8291 | B117: Title I | D117: 70411 | E117: 70411 | F117: 70411 | G117: 70411 | H117: 70411 | I117: 70411
A118: 8292 | B118: Title II | D118: 13117 | E118: 13117 | F118: 13117 | G118: 13117 | H118: 13117 | I118: 13117
A119: 8293 | B119: Title III | D119: 0 | E119: 0 | F119: 0 | G119: 0 | H119: 0 | I119: 0
A120: 8294 | B120: Title IV | D120: 10000 | E120: 10000 | F120: 10000 | G120: 10000 | H120: 10000 | I120: 10000
A121: 8295 | B121: Title V | D121: 0 | E121: 0 | F121: 0 | G121: 0 | H121: 0 | I121: 0
A122: 8296 | B122: Other Federal Revenue | D122: 0 | E122: 0 | F122: 0 | G122: 0 | H122: 0 | I122: 0
A123: 8297 | B123: PY Federal - Not Accrued | D123: 7278 | E123: 0 | F123: 0 | G123: 0 | H123: 0 | I123: 0
A124: 8298 | B124: Implementation Grant | D124: 0 | E124: 0 | F124: 0 | G124: 0 | H124: 0 | I124: 0
A125: 8299 | B125: All Other Federal Revenue | C125: 0 | D125: 347387 | E125: 40000 | F125: 0 | G125: 0 | H125: 0 | I125: 0
B127: SUBTOTAL - Federal Revenue | C127: =SUM(C111:C126) -> 0 | D127: 609529.43 | E127: 282339.6 | F127: 252700.84 | G127: 259390.8544 | H127: 261858.1115 | I127: 263737.2137
A129: Other State Revenue
A131: 8300 | B131: Other State Revenues
A132: 8311 | B132: Other State Apportionments - Current Year | D132: 0 | E132: 0 | F132: 0 | G132: 0 | H132: 0 | I132: 0
A133: 8319 | B133: Other State Apportionments - Prior Years | D133: 19 | E133: 0 | F133: 0 | G133: 0 | H133: 0 | I133: 0
A134: 8380 | B134: Special Ed | D134: 0 | E134: 0 | F134: 0 | G134: 0 | H134: 0 | I134: 0
A135: 8381 | B135: Special Education - Entitlement (State | D135: 490032 | E135: 469179.3139 | F135: 496976.293 | G135: 501187.9565 | H135: 501187.9565 | I135: 501187.9565
A136: 8382 | B136: Special Education Reimbursement (State | C136: 0 | D136: 44451.4 | E136: 30690.7 | F136: 32509 | G136: 32784.5 | H136: 32784.5 | I136: 32784.5
A137: 8434 | B137: Class Size Reduction, Grades K-3
A138: 8480 | B138: Charter Schools Categorical Block (DO NOT USE; USE 8592
A139: 8520 | B139: Child Nutrition - State | D139: 9835.3 | E139: 10360.2 | F139: 11193.48 | G139: 11514.1068 | H139: 11744.38894 | I139: 11979.27671
A140: 8545 | B140: School Facilities Apportionments | D140: 234278.973 | E140: 253536.7046 | F140: 263526.0507 | G140: 270373.95 | H140: 275781.429 | I140: 275781.429
A141: 8550 | B141: Mandated Cost Reimbursements | D141: 16695.28 | E141: 17732.472 | F141: 20053.4835 | G141: 22931.575 | H141: 23396.03 | I141: 23396.03
A142: 8560 | B142: State Lottery Revenue | D142: 123966.5396 | E142: 130984.2141 | F142: 138744.4997 | G142: 139920.3006 | H142: 139920.3006 | I142: 139920.3006
A143: 8590 | B143: All Other State Revenue | D143: 569522 | E143: 625139 | F143: 154345 | G143: 92215 | H143: 77215 | I143: 77215
A144: 8591 | B144: Supplemental Hourly Revenue
A145: 8592 | B145: Categorical Block Grant
A146: 8593 | B146: Other State Revenue 3 | C146: 0 | D146: 63416 | E146: 63416 | F146: 63416 | G146: 63416 | H146: 63416 | I146: 63416
A147: 8594 | B147: Other State Revenue 4 | D147: 0 | E147: 0 | F147: 0 | G147: 0 | H147: 0 | I147: 0
A148: 8595 | B148: Other State Revenue 5 | D148: 0 | E148: 0 | F148: 0 | G148: 0 | H148: 0 | I148: 0
A149: 8596 | B149: Other State Revenue 6 | D149: 0 | E149: 0 | F149: 0 | G149: 0 | H149: 0 | I149: 0
A150: 8597 | B150: Other State Revenue 7 | D150: 0 | E150: 0 | F150: 0 | G150: 0 | H150: 0 | I150: 0
A151: 8598 | B151: Other State Revenue 8 | D151: 0 | E151: 0 | F151: 0 | G151: 0 | H151: 0 | I151: 0
A152: 8599 | B152: Other State Revenue 9 | D152: 0 | E152: 0 | F152: 0 | G152: 0 | H152: 0 | I152: 0
B154: SUBTOTAL - Other State Revenue | C154: =SUM(C130:C153) -> 0 | D154: 1552216.493 | E154: 1601038.605 | F154: 1180763.807 | G154: 1134343.389 | H154: 1125445.605 | I154: 1125680.493
A156: Local Revenue
A158: 8600 | B158: Other Local Revenue
A159: 8631 | B159: Sales | D159: 0 | E159: 0 | F159: 0 | G159: 0 | H159: 0 | I159: 0
A160: 8632 | B160: Sale of Publications | D160: 0 | E160: 0 | F160: 0 | G160: 0 | H160: 0 | I160: 0
A161: 8634 | B161: Food Service Sales | D161: 983.53 | E161: 1036.02 | F161: 1119.348 | G161: 1151.41068 | H161: 1174.438894 | I161: 1197.927671
A162: 8636 | B162: Uniforms | D162: 0 | E162: 0 | F162: 0 | G162: 0 | H162: 0 | I162: 0
A163: 8638 | B163: Merchandise Sales | D163: 0 | E163: 0 | F163: 0 | G163: 0 | H163: 0 | I163: 0
A164: 8639 | B164: All Other Sales | D164: 0 | E164: 0 | F164: 0 | G164: 0 | H164: 0 | I164: 0
A165: 8650 | B165: Leases and Rentals | D165: 0 | E165: 0 | F165: 0 | G165: 0 | H165: 0 | I165: 0
A166: 8660 | B166: Interest | D166: 5 | E166: 5 | F166: 5 | G166: 5 | H166: 5 | I166: 5
A167: 8661 | B167: Interest - Temporarily Restricted | D167: 0 | E167: 0 | F167: 0 | G167: 0 | H167: 0 | I167: 0
A168: 8662 | B168: Net Increase (Decrease | D168: 0 | E168: 0 | F168: 0 | G168: 0 | H168: 0 | I168: 0
A169: 8670 | B169: Fees and Contracts | D169: 0 | E169: 0 | F169: 0 | G169: 0 | H169: 0 | I169: 0
A170: 8671 | B170: Adult Education Fees | D170: 0 | E170: 0 | F170: 0 | G170: 0 | H170: 0 | I170: 0
A171: 8672 | B171: Pre School Revenue | D171: 0 | E171: 0 | F171: 0 | G171: 0 | H171: 0 | I171: 0
A172: 8673 | B172: Child Development Parent Fees | D172: 0 | E172: 0 | F172: 0 | G172: 0 | H172: 0 | I172: 0
A173: 8675 | B173: Transportation Fees from Individuals | D173: 0 | E173: 0 | F173: 0 | G173: 0 | H173: 0 | I173: 0
A174: 8676 | B174: After School Program Revenue | D174: 42840 | E174: 42840 | F174: 42840 | G174: 42840 | H174: 42840 | I174: 42840
A175: 8678 | B175: Parking Fees | D175: 0 | E175: 0 | F175: 0 | G175: 0 | H175: 0 | I175: 0
A176: 8681 | B176: Fees & Contracts 1 | D176: 0 | E176: 0 | F176: 0 | G176: 0 | H176: 0 | I176: 0
A177: 8682 | B177: Fees & Contracts 2 | D177: 0 | E177: 0 | F177: 0 | G177: 0 | H177: 0 | I177: 0
A178: 8683 | B178: Fees & Contracts 3 | D178: 0 | E178: 0 | F178: 0 | G178: 0 | H178: 0 | I178: 0
A179: 8684 | B179: Fees & Contracts 4 | D179: 0 | E179: 0 | F179: 0 | G179: 0 | H179: 0 | I179: 0
A180: 8685 | B180: Fees & Contracts 5 | D180: 0 | E180: 0 | F180: 0 | G180: 0 | H180: 0 | I180: 0
A181: 8686 | B181: Fees & Contracts 6 | D181: 0 | E181: 0 | F181: 0 | G181: 0 | H181: 0 | I181: 0
A182: 8687 | B182: Fees & Contracts 7 | D182: 0 | E182: 0 | F182: 0 | G182: 0 | H182: 0 | I182: 0
A183: 8688 | B183: Fees & Contracts 8 | D183: 0 | E183: 0 | F183: 0 | G183: 0 | H183: 0 | I183: 0
A184: 8689 | B184: All Other Fees and Contracts | D184: 0 | E184: 0 | F184: 0 | G184: 0 | H184: 0 | I184: 0
A185: 8690 | B185: Other Local Revenue | D185: 18000 | E185: 18000 | F185: 18000 | G185: 18000 | H185: 18000 | I185: 18000
A186: 8693 | B186: Field Trips | D186: 0 | E186: 0 | F186: 0 | G186: 0 | H186: 0 | I186: 0
A187: 8697 | B187: Pass through revenue from local sources | D187: 0 | E187: 0 | F187: 0 | G187: 0 | H187: 0 | I187: 0
A188: 8699 | B188: All Other Local Revenue | D188: 0 | E188: 0 | F188: 0 | G188: 0 | H188: 0 | I188: 0
A189: 8701 | B189: Oakland Measure N | D189: 350000 | E189: 350000 | F189: 350000 | G189: 350000 | H189: 350000 | I189: 350000
A190: 8702 | B190: Revenue Program 2 | D190: 0 | E190: 0 | F190: 0 | G190: 0 | H190: 0 | I190: 0
A191: 8703 | B191: Oakland Measure G1 | D191: 63000 | E191: 64000 | F191: 64000 | G191: 64000 | H191: 64000 | I191: 64000
A192: 8704 | B192: Student Activities | D192: 30000 | E192: 30000 | F192: 30000 | G192: 30000 | H192: 30000 | I192: 30000
A193: 8705 | B193: Revenue Program 5 | D193: 0 | E193: 0 | F193: 0 | G193: 0 | H193: 0 | I193: 0
A194: 8706 | B194: Revenue Program 6 | D194: 0 | E194: 0 | F194: 0 | G194: 0 | H194: 0 | I194: 0
A195: 8707 | B195: Revenue Program 7 | D195: 0 | E195: 0 | F195: 0 | G195: 0 | H195: 0 | I195: 0
A196: 8708 | B196: Revenue Program 8 | D196: 0 | E196: 0 | F196: 0 | G196: 0 | H196: 0 | I196: 0
A197: 8709 | B197: Revenue Program 9 | D197: 0 | E197: 0 | F197: 0 | G197: 0 | H197: 0 | I197: 0
A198: 8711 | B198: Revenue Program 11 | D198: 0 | E198: 0 | F198: 0 | G198: 0 | H198: 0 | I198: 0
A199: 8712 | B199: Revenue Program 12 | D199: 0 | E199: 0 | F199: 0 | G199: 0 | H199: 0 | I199: 0
A200: 8713 | B200: Revenue Program 13 | D200: 0 | E200: 0 | F200: 0 | G200: 0 | H200: 0 | I200: 0
A201: 8714 | B201: Revenue Program 14 | D201: 0 | E201: 0 | F201: 0 | G201: 0 | H201: 0 | I201: 0
A202: 8715 | B202: Revenue Program 15 | D202: 0 | E202: 0 | F202: 0 | G202: 0 | H202: 0 | I202: 0
A203: 8716 | B203: Revenue Program 16 | D203: 0 | E203: 0 | F203: 0 | G203: 0 | H203: 0 | I203: 0
A204: 8717 | B204: Revenue Program 17 | D204: 0 | E204: 0 | F204: 0 | G204: 0 | H204: 0 | I204: 0
A205: 8718 | B205: Revenue Program 18 | D205: 0 | E205: 0 | F205: 0 | G205: 0 | H205: 0 | I205: 0
A206: 8719 | B206: Revenue Program 19 | D206: 0 | E206: 0 | F206: 0 | G206: 0 | H206: 0 | I206: 0
A207: 8720 | B207: Revenue Program 20 | D207: 0 | E207: 0 | F207: 0 | G207: 0 | H207: 0 | I207: 0
A208: 8721 | B208: CMO Fees Revenue | D208: 0 | E208: 0 | F208: 0 | G208: 0 | H208: 0 | I208: 0
A209: 8722 | B209: Revenue Program 22 | D209: 0 | E209: 0 | F209: 0 | G209: 0 | H209: 0 | I209: 0
A210: 8723 | B210: Revenue Program 23 | D210: 0 | E210: 0 | F210: 0 | G210: 0 | H210: 0 | I210: 0
A211: 8724 | B211: Revenue Program 24 | D211: 0 | E211: 0 | F211: 0 | G211: 0 | H211: 0 | I211: 0
A212: 8725 | B212: Revenue Program 25 | D212: 0 | E212: 0 | F212: 0 | G212: 0 | H212: 0 | I212: 0
A213: 8726 | B213: Revenue Program 26 | D213: 0 | E213: 0 | F213: 0 | G213: 0 | H213: 0 | I213: 0
A214: 8727 | B214: Revenue Program 27 | D214: 0 | E214: 0 | F214: 0 | G214: 0 | H214: 0 | I214: 0
A215: 8728 | B215: Revenue Program 28 | D215: 0 | E215: 0 | F215: 0 | G215: 0 | H215: 0 | I215: 0
A216: 8729 | B216: Revenue Program 29 | D216: 0 | E216: 0 | F216: 0 | G216: 0 | H216: 0 | I216: 0
A217: 8730 | B217: Revenue Program 30 | D217: 0 | E217: 0 | F217: 0 | G217: 0 | H217: 0 | I217: 0
A218: 8731 | B218: Revenue Program 31 | D218: 0 | E218: 0 | F218: 0 | G218: 0 | H218: 0 | I218: 0
A219: 8732 | B219: Revenue Program 32 | D219: 0 | E219: 0 | F219: 0 | G219: 0 | H219: 0 | I219: 0
A220: 8733 | B220: Revenue Program 33 | D220: 0 | E220: 0 | F220: 0 | G220: 0 | H220: 0 | I220: 0
A221: 8734 | B221: Revenue Program 34 | D221: 0 | E221: 0 | F221: 0 | G221: 0 | H221: 0 | I221: 0
A222: 8735 | B222: Revenue Program 35 | D222: 0 | E222: 0 | F222: 0 | G222: 0 | H222: 0 | I222: 0
A223: 8736 | B223: Revenue Program 36 | D223: 0 | E223: 0 | F223: 0 | G223: 0 | H223: 0 | I223: 0
A224: 8737 | B224: Revenue Program 37 | D224: 0 | E224: 0 | F224: 0 | G224: 0 | H224: 0 | I224: 0
A225: 8738 | B225: Revenue Program 38 | D225: 0 | E225: 0 | F225: 0 | G225: 0 | H225: 0 | I225: 0
A226: 8739 | B226: Revenue Program 39 | D226: 0 | E226: 0 | F226: 0 | G226: 0 | H226: 0 | I226: 0
A227: 8740 | B227: Revenue Program 40 | D227: 0 | E227: 0 | F227: 0 | G227: 0 | H227: 0 | I227: 0
A228: 8741 | B228: Revenue Program 41 | D228: 0 | E228: 0 | F228: 0 | G228: 0 | H228: 0 | I228: 0
... 364 more rows

Sheet MYP-Multisite (hidden)
A1: East Bay Innovation Academy
A2: Multi-year Projection
A3: As of May FY2023
D5: Year 1 | I5: Year 1 | N5: Year 1 | S5: Year 2 | X5: Year 2 | AC5: Year 2 | AH5: Year 3 | AM5: Year 4 | AR5: Year 5 | AW5: Year 6
D6: 2022-23 | I6: 2022-23 | N6: 2022-23 | S6: 2023-24 | X6: 2023-24 | AC6: 2023-24 | AH6: 2024-25 | AM6: 2025-26 | AR6: 2026-27 | AW6: 2027-28
D7: Approved Budget v1 | I7: May Forecast | N7: Comparison: May Forecast vs Approved Budget v1 | S7: Approved Budget v1 | X7: May Forecast | AC7: Comparison: May Forecast vs Approved Budget v1 | AH7: Forecast | AM7: Forecast | AR7: Forecast | AW7: Forecast
E8: East Bay Innovation Academy | G8: Total | J8: East Bay Innovation Academy | L8: Total | O8: East Bay Innovation Academy | Q8: Total | T8: East Bay Innovation Academy | V8: Total | Y8: East Bay Innovation Academy | AA8: Total | AD8: East Bay Innovation Academy | AF8: Total | AI8: East Bay Innovation Academy | AK8: Total | AN8: East Bay Innovation Academy | AP8: Total | AS8: East Bay Innovation Academy | AU8: Total | AX8: East Bay Innovation Academy | AZ8: Total
A10: SUMMARY
A11: Revenue
B12: LCFF Entitlement | D12: =+D107 -> 0 | E12: =+E107 -> 5408860.666 | G12: =SUM(D12:F12) -> 5408860.666 | I12: 0 | J12: =+J107 -> 5563169 | L12: =SUM(I12:K12) -> 5563169 | N12: =INDEX($I12:$K12,1,MATCH(N$8,$I$8:$K$8,0))-INDEX($D12:$F12,1,MATCH(N$8,$D$8:$F$8,0)) -> 0 | O12: 154308.3344 | Q12: =SUM(N12:P12) -> 154308.3344 | S12: =+S107 -> 0 | T12: 6040940 | V12: =SUM(S12:U12) -> 6040940 | X12: =+X107 -> 0 | Y12: 6384109 | AA12: =SUM(X12:Z12) -> 6384109 | AC12: =INDEX($X12:$Z12,1,MATCH(AC$8,$X$8:$Z$8,0))-INDEX($S12:$U12,1,MATCH(AC$8,$S$8:$U$8,0)) -> 0 | AD12: 343169 | AF12: =SUM(AC12:AE12) -> 343169 | AH12: =+AH107 -> 0 | AI12: 7076707 | AK12: =SUM(AH12:AJ12) -> 7076707 | AM12: =+AM107 -> 0 | AN12: 7345017 | AP12: =SUM(AM12:AO12) -> 7345017 | AR12: =+AR107 -> 0 | AS12: 7579428 | AU12: =SUM(AR12:AT12) -> 7579428 | AW12: =+AW107 -> 0 | AX12: 7777709.992 | AZ12: =SUM(AW12:AY12) -> 7777709.992
B13: Federal Revenue | D13: =+D126 -> 0 | E13: =+E126 -> 583737.5 | G13: 583737.5 | I13: 0 | J13: =+J126 -> 609529.43 | L13: 609529.43 | N13: 0 | O13: 25791.93 | Q13: 25791.93 | S13: =+S126 -> 0 | T13: 166455.75 | V13: 166455.75 | X13: =+X126 -> 0 | Y13: 282339.6 | AA13: 282339.6 | AC13: 0 | AD13: 115883.85 | AF13: 115883.85 | AH13: =+AH126 -> 0 | AI13: 252700.84 | AK13: 252700.84 | AM13: =+AM126 -> 0 | AN13: 259390.8544 | AP13: 259390.8544 | AR13: =+AR126 -> 0 | AS13: 261858.1115 | AU13: 261858.1115 | AW13: =+AW126 -> 0 | AX13: 263737.2137 | AZ13: 263737.2137
B14: Other State Revenues | D14: =+D153 -> 0 | E14: =+E153 -> 1569565.721 | G14: 1569565.721 | I14: 0 | J14: =+J153 -> 1552216.493 | L14: 1552216.493 | N14: 0 | O14: -17349.22855 | Q14: -17349.22855 | S14: =+S153 -> 0 | T14: 959783.2502 | V14: 959783.2502 | X14: =+X153 -> 0 | Y14: 1601038.605 | AA14: 1601038.605 | AC14: 0 | AD14: 641255.3544 | AF14: 641255.3544 | AH14: =+AH153 -> 0 | AI14: 1180763.807 | AK14: 1180763.807 | AM14: =+AM153 -> 0 | AN14: 1134343.389 | AP14: 1134343.389 | AR14: =+AR153 -> 0 | AS14: 1125445.605 | AU14: 1125445.605 | AW14: =+AW153 -> 0 | AX14: 1125680.493 | AZ14: 1125680.493
B15: Local Revenues | D15: =+D236 -> 0 | E15: =+E236 -> 504748.5 | G15: 504748.5 | I15: 0 | J15: =+J236 -> 504828.53 | L15: 504828.53 | N15: 0 | O15: 80.03 | Q15: 80.03 | S15: =+S236 -> 0 | T15: 505149.45 | V15: 505149.45 | X15: =+X236 -> 0 | Y15: 505881.02 | AA15: 505881.02 | AC15: 0 | AD15: 731.57 | AF15: 731.57 | AH15: =+AH236 -> 0 | AI15: 505964.348 | AK15: 505964.348 | AM15: =+AM236 -> 0 | AN15: 505996.4107 | AP15: 505996.4107 | AR15: =+AR236 -> 0 | AS15: 506019.4389 | AU15: 506019.4389 | AW15: =+AW236 -> 0 | AX15: 506042.9277 | AZ15: 506042.9277
B16: Fundraising and Grants | D16: =+D256 -> 0 | E16: =+E256 -> 170000 | G16: 170000 | I16: 0 | J16: =+J256 -> 80000 | L16: 80000 | N16: 0 | O16: -90000 | Q16: -90000 | S16: =+S256 -> 0 | T16: 170000 | V16: 170000 | X16: =+X256 -> 0 | Y16: 80000 | AA16: 80000 | AC16: 0 | AD16: -90000 | AF16: -90000 | AH16: =+AH256 -> 0 | AI16: 80000 | AK16: 80000 | AM16: =+AM256 -> 0 | AN16: 80000 | AP16: 80000 | AR16: =+AR256 -> 0 | AS16: 80000 | AU16: 80000 | AW16: =+AW256 -> 0 | AX16: 80000 | AZ16: 80000
B17: Total Revenue | D17: =SUM(D12:D16) -> 0 | E17: =SUM(E12:E16) -> 8236912.387 | G17: 8236912.387 | I17: 0 | J17: =SUM(J12:J16) -> 8309743.453 | L17: 8309743.453 | N17: 0 | O17: 72831.06585 | Q17: 72831.06585 | S17: =SUM(S12:S16) -> 0 | T17: 7842328.45 | V17: 7842328.45 | X17: =SUM(X12:X16) -> 0 | Y17: 8853368.225 | AA17: 8853368.225 | AC17: 0 | AD17: 1011039.774 | AF17: 1011039.774 | AH17: =SUM(AH12:AH16) -> 0 | AI17: 9096135.995 | AK17: 9096135.995 | AM17: =SUM(AM12:AM16) -> 0 | AN17: 9324747.654 | AP17: 9324747.654 | AR17: =SUM(AR12:AR16) -> 0 | AS17: 9552751.155 | AU17: 9552751.155 | AW17: =SUM(AW12:AW16) -> 0 | AX17: 9753170.627 | AZ17: 9753170.627
A19: Expenses
B20: Compensation and Benefits | D20: =D313+D378+D391 -> 0 | E20: =E313+E378+E391 -> 5650904.236 | G20: =SUM(D20:F20) -> 5650904.236 | I20: =I313+I378+I391 -> 0 | J20: =J313+J378+J391 -> 5462362.773 | L20: =SUM(I20:K20) -> 5462362.773 | N20: =INDEX($D20:$F20,1,MATCH(N$8,$D$8:$F$8,0))-INDEX($I20:$K20,1,MATCH(N$8,$I$8:$K$8,0)) -> 0 | O20: 188541.4632 | Q20: =SUM(N20:P20) -> 188541.4632 | S20: =S313+S378+S391 -> 0 | T20: =T313+T378+T391 -> 5890183.526 | V20: =SUM(S20:U20) -> 5890183.526 | X20: =X313+X378+X391 -> 0 | Y20: =Y313+Y378+Y391 -> 6375721.15 | AA20: =SUM(X20:Z20) -> 6375721.15 | AC20: =INDEX($S20:$U20,1,MATCH(AC$8,$S$8:$U$8,0))-INDEX($X20:$Z20,1,MATCH(AC$8,$X$8:$Z$8,0)) -> 0 | AD20: -485537.6242 | AF20: =SUM(AC20:AE20) -> -485537.6242 | AH20: =AH313+AH378+AH391 -> 0 | AI20: =AI313+AI378+AI391 -> 6476016.695 | AK20: =SUM(AH20:AJ20) -> 6476016.695 | AM20: =AM313+AM378+AM391 -> 0 | AN20: =AN313+AN378+AN391 -> 6692622.134 | AP20: =SUM(AM20:AO20) -> 6692622.134 | AR20: =AR313+AR378+AR391 -> 0 | AS20: =AS313+AS378+AS391 -> 6917507.668 | AU20: =SUM(AR20:AT20) -> 6917507.668 | AW20: =AW313+AW378+AW391 -> 0 | AX20: =AX313+AX378+AX391 -> 7150646.676 | AZ20: =SUM(AW20:AY20) -> 7150646.676
B21: Books and Supplies | D21: =D454 -> 0 | E21: =E454 -> 434895 | G21: 434895 | I21: 0 | J21: =J454 -> 344295 | L21: 344295 | N21: 0 | O21: 90600 | Q21: 90600 | S21: =S454 -> 0 | T21: 375678.9 | V21: 375678.9 | X21: =X454 -> 0 | Y21: 370800.9 | AA21: 370800.9 | AC21: 0 | AD21: 4878 | AF21: 4878 | AH21: =AH454 -> 0 | AI21: 393986.628 | AK21: 393986.628 | AM21: =AM454 -> 0 | AN21: 404303.4976 | AP21: 404303.4976 | AR21: =AR454 -> 0 | AS21: 412389.5675 | AU21: 412389.5675 | AW21: =AW454 -> 0 | AX21: 420637.3589 | AZ21: 420637.3589
B22: Services and Other Operating Expenditures | D22: =D582 -> 0 | E22: =E582 -> 2149834.367 | G22: 2149834.367 | I22: 0 | J22: =J582 -> 2438298.57 | L22: 2438298.57 | N22: 0 | O22: -288464.2032 | Q22: -288464.2032 | S22: =S582 -> 0 | T22: 1755131.923 | V22: 1755131.923 | X22: =X582 -> 0 | Y22: 2029534.198 | AA22: 2029534.198 | AC22: 0 | AD22: -274402.2753 | AF22: -274402.2753 | AH22: =AH582 -> 0 | AI22: 2085631.362 | AK22: 2085631.362 | AM22: =AM582 -> 0 | AN22: 2142866.514 | AP22: 2142866.514 | AR22: =AR582 -> 0 | AS22: 2113167.764 | AU22: 2113167.764 | AW22: =AW582 -> 0 | AX22: 2153926.893 | AZ22: 2153926.893
B23: Depreciation | D23: =D599 -> 0 | E23: =E599 -> 0 | G23: 0 | I23: 0 | J23: =J599 -> 0 | L23: 0 | N23: 0 | O23: 0 | Q23: 0 | S23: =S599 -> 0 | T23: 0 | V23: 0 | X23: =X599 -> 0 | Y23: 0 | AA23: 0 | AC23: 0 | AD23: 0 | AF23: 0 | AH23: =AH599 -> 0 | AI23: 0 | AK23: 0 | AM23: =AM599 -> 0 | AN23: 0 | AP23: 0 | AR23: =AR599 -> 0 | AS23: 0 | AU23: 0 | AW23: =AW599 -> 0 | AX23: 0 | AZ23: 0
B24: Other Outflows | D24: =D616 -> 0 | E24: =E616 -> 0 | G24: 0 | I24: 0 | J24: =J616 -> 0 | L24: 0 | N24: 0 | O24: 0 | Q24: 0 | S24: =S616 -> 0 | T24: 0 | V24: 0 | X24: =X616 -> 0 | Y24: 0 | AA24: 0 | AC24: 0 | AD24: 0 | AF24: 0 | AH24: =AH616 -> 0 | AI24: 0 | AK24: 0 | AM24: =AM616 -> 0 | AN24: 0 | AP24: 0 | AR24: =AR616 -> 0 | AS24: 0 | AU24: 0 | AW24: =AW616 -> 0 | AX24: 0 | AZ24: 0
B25: Total Expenses | D25: =SUM(D20:D24) -> 0 | E25: =SUM(E20:E24) -> 8235633.603 | G25: 8235633.603 | I25: =SUM(I20:I24) -> 0 | J25: =SUM(J20:J24) -> 8244956.343 | L25: 8244956.343 | N25: 0 | O25: -9322.740004 | Q25: -9322.740004 | S25: =SUM(S20:S24) -> 0 | T25: =SUM(T20:T24) -> 8020994.349 | V25: 8020994.349 | X25: =SUM(X20:X24) -> 0 | Y25: 8776056.249 | AA25: 8776056.249 | AC25: 0 | AD25: -755061.8995 | AF25: -755061.8995 | AH25: =SUM(AH20:AH24) -> 0 | AI25: 8955634.685 | AK25: 8955634.685 | AM25: =SUM(AM20:AM24) -> 0 | AN25: 9239792.145 | AP25: 9239792.145 | AR25: =SUM(AR20:AR24) -> 0 | AS25: 9443065 | AU25: 9443065 | AW25: =SUM(AW20:AW24) -> 0 | AX25: 9725210.927 | AZ25: 9725210.927
A27: Operating Income | D27: =D17-D25 -> 0 | E27: =E17-E25 -> 1278.783612 | G27: =SUM(D27:F27) -> 1278.783612 | I27: =I17-I25 -> 0 | J27: =J17-J25 -> 64787.10946 | L27: =SUM(I27:K27) -> 64787.10946 | N27: =INDEX($I27:$K27,1,MATCH(N$8,$I$8:$K$8,0))-INDEX($D27:$F27,1,MATCH(N$8,$D$8:$F$8,0)) -> 0 | O27: =INDEX($I27:$K27,1,MATCH(O$8,$I$8:$K$8,0))-INDEX($D27:$F27,1,MATCH(O$8,$D$8:$F$8,0)) -> 63508.32584 | Q27: =SUM(N27:P27) -> 63508.32584 | S27: =S17-S25 -> 0 | T27: =T17-T25 -> -178665.899 | V27: =SUM(S27:U27) -> -178665.899 | X27: =X17-X25 -> 0 | Y27: =Y17-Y25 -> 77311.97597 | AA27: =SUM(X27:Z27) -> 77311.97597 | AC27: =INDEX($X27:$Z27,1,MATCH(AC$8,$X$8:$Z$8,0))-INDEX($S27:$U27,1,MATCH(AC$8,$S$8:$U$8,0)) -> 0 | AD27: =INDEX($X27:$Z27,1,MATCH(AD$8,$X$8:$Z$8,0))-INDEX($S27:$U27,1,MATCH(AD$8,$S$8:$U$8,0)) -> 255977.875 | AF27: =SUM(AC27:AE27) -> 255977.875 | AH27: =AH17-AH25 -> 0 | AI27: =AI17-AI25 -> 140501.3103 | AK27: =SUM(AH27:AJ27) -> 140501.3103 | AM27: =AM17-AM25 -> 0 | AN27: =AN17-AN25 -> 84955.50926 | AP27: =SUM(AM27:AO27) -> 84955.50926 | AR27: =AR17-AR25 -> 0 | AS27: =AS17-AS25 -> 109686.1555 | AU27: =SUM(AR27:AT27) -> 109686.1555 | AW27: =AW17-AW25 -> 0 | AX27: =AX17-AX25 -> 27959.69919 | AZ27: =SUM(AW27:AY27) -> 27959.69919
A29: Fund Balance
B30: Beginning Balance (Unaudited) | E30: 1123565 | G30: =SUM(D30:F30) -> 1123565 | J30: 2029603 | L30: =SUM(I30:K30) -> 2029603 | N30: =INDEX($I30:$K30,1,MATCH(N$8,$I$8:$K$8,0))-INDEX($D30:$F30,1,MATCH(N$8,$D$8:$F$8,0)) -> 0 | O30: 906038 | Q30: =SUM(N30:P30) -> 906038 | T30: 1124843.784 | V30: =SUM(S30:U30) -> 1124843.784 | X30: =INDEX($I35:$K35,1,MATCH(X$8,$I$8:$K$8,0)) -> 0 | Y30: =INDEX($I35:$K35,1,MATCH(Y$8,$I$8:$K$8,0)) -> 2094390.109 | AA30: =SUM(X30:Z30) -> 2094390.109 | AC30: =INDEX($X30:$Z30,1,MATCH(AC$8,$X$8:$Z$8,0))-INDEX($S30:$U30,1,MATCH(AC$8,$S$8:$U$8,0)) -> 0 | AD30: 969546.3258 | AF30: =SUM(AC30:AE30) -> 969546.3258 | AH30: =INDEX($X35:$Z35,1,MATCH(AH$8,$X$8:$Z$8,0)) -> 0 | AI30: =INDEX($X35:$Z35,1,MATCH(AI$8,$X$8:$Z$8,0)) -> 2171702.085 | AK30: =SUM(AH30:AJ30) -> 2171702.085 | AM30: =INDEX($AH35:$AJ35,1,MATCH(AM$8,$AH$8:$AJ$8,0)) -> 0 | AN30: =INDEX($AH35:$AJ35,1,MATCH(AN$8,$AH$8:$AJ$8,0)) -> 2312203.396 | AP30: =SUM(AM30:AO30) -> 2312203.396 | AR30: =INDEX($AM35:$AO35,1,MATCH(AR$8,$AM$8:$AO$8,0)) -> 0 | AS30: =INDEX($AM35:$AO35,1,MATCH(AS$8,$AM$8:$AO$8,0)) -> 2397158.905 | AU30: =SUM(AR30:AT30) -> 2397158.905 | AW30: =INDEX($AR35:$AT35,1,MATCH(AW$8,$AR$8:$AT$8,0)) -> 0 | AX30: =INDEX($AR35:$AT35,1,MATCH(AX$8,$AR$8:$AT$8,0)) -> 2506845.061 | AZ30: =SUM(AW30:AY30) -> 2506845.061
B31: Audit Adjustment | G31: =SUM(D31:F31) -> 0 | L31: =SUM(I31:K31) -> 0 | N31: 0 | O31: 0 | Q31: =SUM(N31:P31) -> 0 | V31: =SUM(S31:U31) -> 0 | AA31: =SUM(X31:Z31) -> 0 | AC31: 0 | AD31: 0 | AF31: =SUM(AC31:AE31) -> 0 | AK31: =SUM(AH31:AJ31) -> 0 | AP31: =SUM(AM31:AO31) -> 0 | AU31: =SUM(AR31:AT31) -> 0 | AZ31: =SUM(AW31:AY31) -> 0
B32: Beginning Balance (Audited) | D32: =SUM(D30:D31) -> 0 | E32: =SUM(E30:E31) -> 1123565 | G32: =SUM(D32:F32) -> 1123565 | I32: =SUM(I30:I31) -> 0 | J32: 2029603 | L32: =SUM(I32:K32) -> 2029603 | N32: 0 | O32: 906038 | Q32: =SUM(N32:P32) -> 906038 | S32: =SUM(S30:S31) -> 0 | T32: =SUM(T30:T31) -> 1124843.784 | V32: =SUM(S32:U32) -> 1124843.784 | X32: =SUM(X30:X31) -> 0 | Y32: 2094390.109 | AA32: =SUM(X32:Z32) -> 2094390.109 | AC32: 0 | AD32: 969546.3258 | AF32: =SUM(AC32:AE32) -> 969546.3258 | AH32: =SUM(AH30:AH31) -> 0 | AI32: 2171702.085 | AK32: =SUM(AH32:AJ32) -> 2171702.085 | AM32: =SUM(AM30:AM31) -> 0 | AN32: 2312203.396 | AP32: =SUM(AM32:AO32) -> 2312203.396 | AR32: =SUM(AR30:AR31) -> 0 | AS32: 2397158.905 | AU32: =SUM(AR32:AT32) -> 2397158.905 | AW32: =SUM(AW30:AW31) -> 0 | AX32: 2506845.061 | AZ32: =SUM(AW32:AY32) -> 2506845.061
B33: Operating Income | D33: =D27 -> 0 | E33: =E27 -> 1278.783612 | G33: =SUM(D33:F33) -> 1278.783612 | I33: =+I27 -> 0 | J33: =+J27 -> 64787.10946 | L33: =SUM(I33:K33) -> 64787.10946 | N33: 0 | O33: 63508.32584 | Q33: =SUM(N33:P33) -> 63508.32584 | S33: =S27 -> 0 | T33: =T27 -> -178665.899 | V33: =SUM(S33:U33) -> -178665.899 | X33: =+X27 -> 0 | Y33: =+Y27 -> 77311.97597 | AA33: =SUM(X33:Z33) -> 77311.97597 | AC33: 0 | AD33: 255977.875 | AF33: =SUM(AC33:AE33) -> 255977.875 | AH33: =+AH27 -> 0 | AI33: =+AI27 -> 140501.3103 | AK33: =SUM(AH33:AJ33) -> 140501.3103 | AM33: =+AM27 -> 0 | AN33: =+AN27 -> 84955.50926 | AP33: =SUM(AM33:AO33) -> 84955.50926 | AR33: =+AR27 -> 0 | AS33: =+AS27 -> 109686.1555 | AU33: =SUM(AR33:AT33) -> 109686.1555 | AW33: =+AW27 -> 0 | AX33: =+AX27 -> 27959.69919 | AZ33: =SUM(AW33:AY33) -> 27959.69919
A35: Ending Fund Balance | D35: =D32+D33 -> 0 | E35: =E32+E33 -> 1124843.784 | G35: =SUM(D35:F35) -> 1124843.784 | I35: =I32+I33 -> 0 | J35: =J32+J33 -> 2094390.109 | L35: =SUM(I35:K35) -> 2094390.109 | N35: =INDEX($I35:$K35,1,MATCH(N$8,$I$8:$K$8,0))-INDEX($D35:$F35,1,MATCH(N$8,$D$8:$F$8,0)) -> 0 | O35: =INDEX($I35:$K35,1,MATCH(O$8,$I$8:$K$8,0))-INDEX($D35:$F35,1,MATCH(O$8,$D$8:$F$8,0)) -> 969546.3258 | Q35: =SUM(N35:P35) -> 969546.3258 | S35: =S32+S33 -> 0 | T35: =T32+T33 -> 946177.8846 | V35: =SUM(S35:U35) -> 946177.8846 | X35: =X32+X33 -> 0 | Y35: =Y32+Y33 -> 2171702.085 | AA35: =SUM(X35:Z35) -> 2171702.085 | AC35: =INDEX($X35:$Z35,1,MATCH(AC$8,$X$8:$Z$8,0))-INDEX($S35:$U35,1,MATCH(AC$8,$S$8:$U$8,0)) -> 0 | AD35: =INDEX($X35:$Z35,1,MATCH(AD$8,$X$8:$Z$8,0))-INDEX($S35:$U35,1,MATCH(AD$8,$S$8:$U$8,0)) -> 1225524.201 | AF35: =SUM(AC35:AE35) -> 1225524.201 | AH35: =AH32+AH33 -> 0 | AI35: =AI32+AI33 -> 2312203.396 | AK35: =SUM(AH35:AJ35) -> 2312203.396 | AM35: =AM32+AM33 -> 0 | AN35: =AN32+AN33 -> 2397158.905 | AP35: =SUM(AM35:AO35) -> 2397158.905 | AR35: =AR32+AR33 -> 0 | AS35: =AS32+AS33 -> 2506845.061 | AU35: =SUM(AR35:AT35) -> 2506845.061 | AW35: =AW32+AW33 -> 0 | AX35: =AX32+AX33 -> 2534804.76 | AZ35: =SUM(AW35:AY35) -> 2534804.76
A37: Total Revenue Per ADA | D37: =IFERROR(D17/D$78,"") ->  | E37: =IFERROR(E17/E$78,"") -> 15889.10568 | G37: =IFERROR(G17/G$78,"") -> 15889.10568 | I37: =IFERROR(I17/I$78,"") ->  | J37: =IFERROR(J17/J$78,"") -> 16592.9382 | L37: =IFERROR(L17/L$78,"") -> 16592.9382 | N37: =IFERROR(INDEX($I37:$K37,1,MATCH(N$8,$I$8:$K$8,0))-INDEX($D37:$F37,1,MATCH(N$8,$D$8:$F$8,0)),"") ->  | O37: =IFERROR(INDEX($I37:$K37,1,MATCH(O$8,$I$8:$K$8,0))-INDEX($D37:$F37,1,MATCH(O$8,$D$8:$F$8,0)),"") -> 703.8325198 | Q37: =SUM(N37:P37) -> 703.8325198 | S37: =IFERROR(S17/S$78,"") ->  | T37: =IFERROR(T17/T$78,"") -> 15127.9484 | V37: =IFERROR(V17/V$78,"") -> 15127.9484 | X37: =IFERROR(X17/X$78,"") ->  | Y37: =IFERROR(Y17/Y$78,"") -> 16731.30157 | AA37: =IFERROR(AA17/AA$78,"") -> 16731.30157 | AC37: =IFERROR(INDEX($X37:$Z37,1,MATCH(AC$8,$X$8:$Z$8,0))-INDEX($S37:$U37,1,MATCH(AC$8,$S$8:$U$8,0)),"") ->  | AD37: =IFERROR(INDEX($X37:$Z37,1,MATCH(AD$8,$X$8:$Z$8,0))-INDEX($S37:$U37,1,MATCH(AD$8,$S$8:$U$8,0)),"") -> 1603.353169 | AF37: =SUM(AC37:AE37) -> 1603.353169 | AH37: =IFERROR(AH17/AH$78,"") ->  | AI37: =IFERROR(AI17/AI$78,"") -> 16228.61016 | AK37: =IFERROR(AK17/AK$78,"") -> 16228.61016 | AM37: =IFERROR(AM17/AM$78,"") ->  | AN37: =IFERROR(AN17/AN$78,"") -> 16496.67873 | AP37: =IFERROR(AP17/AP$78,"") -> 16496.67873 | AR37: =IFERROR(AR17/AR$78,"") ->  | AS37: =IFERROR(AS17/AS$78,"") -> 16900.04627 | AU37: =IFERROR(AU17/AU$78,"") -> 16900.04627 | AW37: =IFERROR(AW17/AW$78,"") ->  | AX37: =IFERROR(AX17/AX$78,"") -> 17254.61411 | AZ37: =IFERROR(AZ17/AZ$78,"") -> 17254.61411
A38: Total Expenses Per ADA | D38: =IFERROR(D25/D$78,"") ->  | E38: =IFERROR(E25/E$78,"") -> 15886.63889 | G38: =IFERROR(G25/G$78,"") -> 15886.63889 | I38: =IFERROR(I25/I$78,"") ->  | J38: =IFERROR(J25/J$78,"") -> 16463.57097 | L38: =IFERROR(L25/L$78,"") -> 16463.57097 | N38: =IFERROR(INDEX($D38:$F38,1,MATCH(N$8,$D$8:$F$8,0))-INDEX($I38:$K38,1,MATCH(N$8,$I$8:$K$8,0)),"") ->  | O38: =IFERROR(INDEX($D38:$F38,1,MATCH(O$8,$D$8:$F$8,0))-INDEX($I38:$K38,1,MATCH(O$8,$I$8:$K$8,0)),"") -> -576.9320778 | Q38: =SUM(N38:P38) -> -576.9320778 | S38: =IFERROR(S25/S$78,"") ->  | T38: =IFERROR(T25/T$78,"") -> 15472.59712 | V38: =IFERROR(V25/V$78,"") -> 15472.59712 | X38: =IFERROR(X25/X$78,"") ->  | Y38: =IFERROR(Y25/Y$78,"") -> 16585.19559 | AA38: =IFERROR(AA25/AA$78,"") -> 16585.19559 | AC38: =IFERROR(INDEX($S38:$U38,1,MATCH(AC$8,$S$8:$U$8,0))-INDEX($X38:$Z38,1,MATCH(AC$8,$X$8:$Z$8,0)),"") ->  | AD38: =IFERROR(INDEX($S38:$U38,1,MATCH(AD$8,$S$8:$U$8,0))-INDEX($X38:$Z38,1,MATCH(AD$8,$X$8:$Z$8,0)),"") -> -1112.59847 | AF38: =SUM(AC38:AE38) -> -1112.59847 | AH38: =IFERROR(AH25/AH$78,"") ->  | AI38: =IFERROR(AI25/AI$78,"") -> 15977.93878 | AK38: =IFERROR(AK25/AK$78,"") -> 15977.93878 | AM38: =IFERROR(AM25/AM$78,"") ->  | AN38: =IFERROR(AN25/AN$78,"") -> 16346.3815 | AP38: =IFERROR(AP25/AP$78,"") -> 16346.3815 | AR38: =IFERROR(AR25/AR$78,"") ->  | AS38: =IFERROR(AS25/AS$78,"") -> 16705.99735 | AU38: =IFERROR(AU25/AU$78,"") -> 16705.99735 | AW38: =IFERROR(AW25/AW$78,"") ->  | AX38: =IFERROR(AX25/AX$78,"") -> 17205.14981 | AZ38: =IFERROR(AZ25/AZ$78,"") -> 17205.14981
A39: Operating Income Per ADA | D39: =IFERROR(D27/D$78,"") ->  | E39: =IFERROR(E27/E$78,"") -> 2.466789375 | G39: =IFERROR(G27/G$78,"") -> 2.466789375 | I39: =IFERROR(I27/I$78,"") ->  | J39: =IFERROR(J27/J$78,"") -> 129.3672313 | L39: =IFERROR(L27/L$78,"") -> 129.3672313 | N39: =IFERROR(INDEX($I39:$K39,1,MATCH(N$8,$I$8:$K$8,0))-INDEX($D39:$F39,1,MATCH(N$8,$D$8:$F$8,0)),"") ->  | O39: =IFERROR(INDEX($I39:$K39,1,MATCH(O$8,$I$8:$K$8,0))-INDEX($D39:$F39,1,MATCH(O$8,$D$8:$F$8,0)),"") -> 126.900442 | Q39: =SUM(N39:P39) -> 126.900442 | S39: =IFERROR(S27/S$78,"") ->  | T39: =IFERROR(T27/T$78,"") -> -344.6487249 | V39: =IFERROR(V27/V$78,"") -> -344.6487249 | X39: =IFERROR(X27/X$78,"") ->  | Y39: =IFERROR(Y27/Y$78,"") -> 146.1059737 | AA39: =IFERROR(AA27/AA$78,"") -> 146.1059737 | AC39: =IFERROR(INDEX($X39:$Z39,1,MATCH(AC$8,$X$8:$Z$8,0))-INDEX($S39:$U39,1,MATCH(AC$8,$S$8:$U$8,0)),"") ->  | AD39: =IFERROR(INDEX($X39:$Z39,1,MATCH(AD$8,$X$8:$Z$8,0))-INDEX($S39:$U39,1,MATCH(AD$8,$S$8:$U$8,0)),"") -> 490.7546986 | AF39: =SUM(AC39:AE39) -> 490.7546986 | AH39: =IFERROR(AH27/AH$78,"") ->  | AI39: =IFERROR(AI27/AI$78,"") -> 250.6713833 | AK39: =IFERROR(AK27/AK$78,"") -> 250.6713833 | AM39: =IFERROR(AM27/AM$78,"") ->  | AN39: =IFERROR(AN27/AN$78,"") -> 150.29723 | AP39: =IFERROR(AP27/AP$78,"") -> 150.29723 | AR39: =IFERROR(AR27/AR$78,"") ->  | AS39: =IFERROR(AS27/AS$78,"") -> 194.0489262 | AU39: =IFERROR(AU27/AU$78,"") -> 194.0489262 | AW39: =IFERROR(AW27/AW$78,"") ->  | AX39: =IFERROR(AX27/AX$78,"") -> 49.46430639 | AZ39: =IFERROR(AZ27/AZ$78,"") -> 49.46430639
A40: Fund Balance as a % of Expenses | D40: =IFERROR(D35/D25,"") ->  | E40: =IFERROR(E35/E25,"") -> 0.1365825433 | G40: =IFERROR(G35/G25,"") -> 0.1365825433 | I40: =IFERROR(I35/I25,"") ->  | J40: =IFERROR(J35/J25,"") -> 0.254020764 | L40: =IFERROR(L35/L25,"") -> 0.254020764 | N40: =IFERROR(INDEX($I40:$K40,1,MATCH(N$8,$I$8:$K$8,0))-INDEX($D40:$F40,1,MATCH(N$8,$D$8:$F$8,0)),"") ->  | O40: =IFERROR(INDEX($I40:$K40,1,MATCH(O$8,$I$8:$K$8,0))-INDEX($D40:$F40,1,MATCH(O$8,$D$8:$F$8,0)),"") -> 0.1174382207 | Q40: =SUM(N40:P40) -> 0.1174382207 | S40: =IFERROR(S35/S25,"") ->  | T40: =IFERROR(T35/T25,"") -> 0.1179626669 | V40: =IFERROR(V35/V25,"") -> 0.1179626669 | X40: =IFERROR(X35/X25,"") ->  | Y40: =IFERROR(Y35/Y25,"") -> 0.2474576306 | AA40: =IFERROR(AA35/AA25,"") -> 0.2474576306 | AC40: =IFERROR(INDEX($X40:$Z40,1,MATCH(AC$8,$X$8:$Z$8,0))-INDEX($S40:$U40,1,MATCH(AC$8,$S$8:$U$8,0)),"") ->  | AD40: =IFERROR(INDEX($X40:$Z40,1,MATCH(AD$8,$X$8:$Z$8,0))-INDEX($S40:$U40,1,MATCH(AD$8,$S$8:$U$8,0)),"") -> 0.1294949637 | AF40: =SUM(AC40:AE40) -> 0.1294949637 | AH40: =IFERROR(AH35/AH25,"") ->  | AI40: =IFERROR(AI35/AI25,"") -> 0.2581842021 | AK40: =IFERROR(AK35/AK25,"") -> 0.2581842021 | AM40: =IFERROR(AM35/AM25,"") ->  | AN40: =IFERROR(AN35/AN25,"") -> 0.259438618 | AP40: =IFERROR(AP35/AP25,"") -> 0.259438618 | AR40: =IFERROR(AR35/AR25,"") ->  | AS40: =IFERROR(AS35/AS25,"") -> 0.2654694276 | AU40: =IFERROR(AU35/AU25,"") -> 0.2654694276 | AW40: =IFERROR(AW35/AW25,"") ->  | AX40: =IFERROR(AX35/AX25,"") -> 0.2606426512 | AZ40: =IFERROR(AZ35/AZ25,"") -> 0.2606426512
A42: Key Assumptions
A44: Enrollment Breakdown
B45: TK | E45: 0 | G45: =SUM(D45:F45) -> 0 | J45: 0 | L45: =SUM(I45:K45) -> 0 | N45: =INDEX($I45:$K45,1,MATCH(N$8,$I$8:$K$8,0))-INDEX($D45:$F45,1,MATCH(N$8,$D$8:$F$8,0)) -> 0 | O45: 0 | Q45: =SUM(N45:P45) -> 0 | T45: 0 | V45: =SUM(S45:U45) -> 0 | Y45: 0 | AA45: =SUM(X45:Z45) -> 0 | AC45: =INDEX($X45:$Z45,1,MATCH(AC$8,$X$8:$Z$8,0))-INDEX($S45:$U45,1,MATCH(AC$8,$S$8:$U$8,0)) -> 0 | AD45: 0 | AF45: =SUM(AC45:AE45) -> 0 | AI45: 0 | AK45: =SUM(AH45:AJ45) -> 0 | AN45: 0 | AP45: =SUM(AM45:AO45) -> 0 | AS45: 0 | AU45: =SUM(AR45:AT45) -> 0 | AX45: 0 | AZ45: =SUM(AW45:AY45) -> 0
B46: K | E46: 0 | G46: 0 | J46: 0 | L46: 0 | N46: 0 | O46: 0 | Q46: 0 | T46: 0 | V46: 0 | Y46: 0 | AA46: 0 | AC46: 0 | AD46: 0 | AF46: 0 | AI46: 0 | AK46: 0 | AN46: 0 | AP46: 0 | AS46: 0 | AU46: 0 | AX46: 0 | AZ46: 0
B47: 1 | E47: 0 | G47: 0 | J47: 0 | L47: 0 | N47: 0 | O47: 0 | Q47: 0 | T47: 0 | V47: 0 | Y47: 0 | AA47: 0 | AC47: 0 | AD47: 0 | AF47: 0 | AI47: 0 | AK47: 0 | AN47: 0 | AP47: 0 | AS47: 0 | AU47: 0 | AX47: 0 | AZ47: 0
B48: 2 | E48: 0 | G48: 0 | J48: 0 | L48: 0 | N48: 0 | O48: 0 | Q48: 0 | T48: 0 | V48: 0 | Y48: 0 | AA48: 0 | AC48: 0 | AD48: 0 | AF48: 0 | AI48: 0 | AK48: 0 | AN48: 0 | AP48: 0 | AS48: 0 | AU48: 0 | AX48: 0 | AZ48: 0
B49: 3 | E49: 0 | G49: 0 | J49: 0 | L49: 0 | N49: 0 | O49: 0 | Q49: 0 | T49: 0 | V49: 0 | Y49: 0 | AA49: 0 | AC49: 0 | AD49: 0 | AF49: 0 | AI49: 0 | AK49: 0 | AN49: 0 | AP49: 0 | AS49: 0 | AU49: 0 | AX49: 0 | AZ49: 0
B50: 4 | E50: 0 | G50: 0 | J50: 0 | L50: 0 | N50: 0 | O50: 0 | Q50: 0 | T50: 0 | V50: 0 | Y50: 0 | AA50: 0 | AC50: 0 | AD50: 0 | AF50: 0 | AI50: 0 | AK50: 0 | AN50: 0 | AP50: 0 | AS50: 0 | AU50: 0 | AX50: 0 | AZ50: 0
B51: 5 | E51: 0 | G51: 0 | J51: 0 | L51: 0 | N51: 0 | O51: 0 | Q51: 0 | T51: 0 | V51: 0 | Y51: 0 | AA51: 0 | AC51: 0 | AD51: 0 | AF51: 0 | AI51: 0 | AK51: 0 | AN51: 0 | AP51: 0 | AS51: 0 | AU51: 0 | AX51: 0 | AZ51: 0
B52: 6 | E52: 90 | G52: 90 | J52: 76.78 | L52: 76.78 | N52: 0 | O52: -13.22 | Q52: -13.22 | T52: 90 | V52: 90 | Y52: 100 | AA52: 100 | AC52: 0 | AD52: 10 | AF52: 10 | AI52: 100 | AK52: 100 | AN52: 100 | AP52: 100 | AS52: 100 | AU52: 100 | AX52: 100 | AZ52: 100
B53: 7 | E53: 110 | G53: 110 | J53: 109.97 | L53: 109.97 | N53: 0 | O53: -0.03 | Q53: -0.03 | T53: 110 | V53: 110 | Y53: 85 | AA53: 85 | AC53: 0 | AD53: -25 | AF53: -25 | AI53: 100 | AK53: 100 | AN53: 100 | AP53: 100 | AS53: 100 | AU53: 100 | AX53: 100 | AZ53: 100
B54: 8 | E54: 110 | G54: 110 | J54: 104 | L54: 104 | N54: 0 | O54: -6 | Q54: -6 | T54: 110 | V54: 110 | Y54: 110 | AA54: 110 | AC54: 0 | AD54: 0 | AF54: 0 | AI54: 85 | AK54: 85 | AN54: 100 | AP54: 100 | AS54: 100 | AU54: 100 | AX54: 100 | AZ54: 100
B55: 9 | E55: 80 | G55: 80 | J55: 76.67 | L55: 76.67 | N55: 0 | O55: -3.33 | Q55: -3.33 | T55: 80 | V55: 80 | Y55: 90 | AA55: 90 | AC55: 0 | AD55: 10 | AF55: 10 | AI55: 95 | AK55: 95 | AN55: 85 | AP55: 85 | AS55: 85 | AU55: 85 | AX55: 85 | AZ55: 85
B56: 10 | E56: 60 | G56: 60 | J56: 60.98 | L56: 60.98 | N56: 0 | O56: 0.98 | Q56: 0.98 | T56: 60 | V56: 60 | Y56: 75 | AA56: 75 | AC56: 0 | AD56: 15 | AF56: 15 | AI56: 85 | AK56: 85 | AN56: 85 | AP56: 85 | AS56: 85 | AU56: 85 | AX56: 85 | AZ56: 85
B57: 11 | E57: 35 | G57: 35 | J57: 35.63 | L57: 35.63 | N57: 0 | O57: 0.63 | Q57: 0.63 | T57: 35 | V57: 35 | Y57: 62 | AA57: 62 | AC57: 0 | AD57: 27 | AF57: 27 | AI57: 70 | AK57: 70 | AN57: 70 | AP57: 70 | AS57: 70 | AU57: 70 | AX57: 70 | AZ57: 70
B58: 12 | E58: 65 | G58: 65 | J58: 63.41 | L58: 63.41 | N58: 0 | O58: -1.59 | Q58: -1.59 | T58: 65 | V58: 65 | Y58: 35 | AA58: 35 | AC58: 0 | AD58: -30 | AF58: -30 | AI58: 55 | AK58: 55 | AN58: 55 | AP58: 55 | AS58: 55 | AU58: 55 | AX58: 55 | AZ58: 55
A59: Enrollment Summary
B60: K-3 | D60: =SUM(D45:D49) -> 0 | E60: =SUM(E45:E49) -> 0 | G60: =SUM(D60:F60) -> 0 | I60: =SUM(I45:I49) -> 0 | J60: =SUM(J45:J49) -> 0 | L60: =SUM(I60:K60) -> 0 | N60: =INDEX($I60:$K60,1,MATCH(N$8,$I$8:$K$8,0))-INDEX($D60:$F60,1,MATCH(N$8,$D$8:$F$8,0)) -> 0 | O60: 0 | Q60: =SUM(N60:P60) -> 0 | S60: =SUM(S45:S49) -> 0 | T60: =SUM(T45:T49) -> 0 | V60: =SUM(S60:U60) -> 0 | X60: =SUM(X45:X49) -> 0 | Y60: =SUM(Y45:Y49) -> 0 | AA60: =SUM(X60:Z60) -> 0 | AC60: =INDEX($X60:$Z60,1,MATCH(AC$8,$X$8:$Z$8,0))-INDEX($S60:$U60,1,MATCH(AC$8,$S$8:$U$8,0)) -> 0 | AD60: 0 | AF60: =SUM(AC60:AE60) -> 0 | AH60: =SUM(AH45:AH49) -> 0 | AI60: =SUM(AI45:AI49) -> 0 | AK60: =SUM(AH60:AJ60) -> 0 | AM60: =SUM(AM45:AM49) -> 0 | AN60: =SUM(AN45:AN49) -> 0 | AP60: =SUM(AM60:AO60) -> 0 | AR60: =SUM(AR45:AR49) -> 0 | AS60: =SUM(AS45:AS49) -> 0 | AU60: =SUM(AR60:AT60) -> 0 | AW60: =SUM(AW45:AW49) -> 0 | AX60: =SUM(AX45:AX49) -> 0 | AZ60: =SUM(AW60:AY60) -> 0
B61: 4-6 | D61: =SUM(D50:D52) -> 0 | E61: =SUM(E50:E52) -> 90 | G61: =SUM(D61:F61) -> 90 | I61: =SUM(I50:I52) -> 0 | J61: =SUM(J50:J52) -> 76.78 | L61: =SUM(I61:K61) -> 76.78 | N61: 0 | O61: -13.22 | Q61: =SUM(N61:P61) -> -13.22 | S61: =SUM(S50:S52) -> 0 | T61: =SUM(T50:T52) -> 90 | V61: =SUM(S61:U61) -> 90 | X61: =SUM(X50:X52) -> 0 | Y61: =SUM(Y50:Y52) -> 100 | AA61: =SUM(X61:Z61) -> 100 | AC61: 0 | AD61: 10 | AF61: =SUM(AC61:AE61) -> 10 | AH61: =SUM(AH50:AH52) -> 0 | AI61: =SUM(AI50:AI52) -> 100 | AK61: =SUM(AH61:AJ61) -> 100 | AM61: =SUM(AM50:AM52) -> 0 | AN61: =SUM(AN50:AN52) -> 100 | AP61: =SUM(AM61:AO61) -> 100 | AR61: =SUM(AR50:AR52) -> 0 | AS61: =SUM(AS50:AS52) -> 100 | AU61: =SUM(AR61:AT61) -> 100 | AW61: =SUM(AW50:AW52) -> 0 | AX61: =SUM(AX50:AX52) -> 100 | AZ61: =SUM(AW61:AY61) -> 100
B62: 7-8 | D62: =SUM(D53:D54) -> 0 | E62: =SUM(E53:E54) -> 220 | G62: =SUM(D62:F62) -> 220 | I62: =SUM(I53:I54) -> 0 | J62: =SUM(J53:J54) -> 213.97 | L62: =SUM(I62:K62) -> 213.97 | N62: 0 | O62: -6.03 | Q62: =SUM(N62:P62) -> -6.03 | S62: =SUM(S53:S54) -> 0 | T62: =SUM(T53:T54) -> 220 | V62: =SUM(S62:U62) -> 220 | X62: =SUM(X53:X54) -> 0 | Y62: =SUM(Y53:Y54) -> 195 | AA62: =SUM(X62:Z62) -> 195 | AC62: 0 | AD62: -25 | AF62: =SUM(AC62:AE62) -> -25 | AH62: =SUM(AH53:AH54) -> 0 | AI62: =SUM(AI53:AI54) -> 185 | AK62: =SUM(AH62:AJ62) -> 185 | AM62: =SUM(AM53:AM54) -> 0 | AN62: =SUM(AN53:AN54) -> 200 | AP62: =SUM(AM62:AO62) -> 200 | AR62: =SUM(AR53:AR54) -> 0 | AS62: =SUM(AS53:AS54) -> 200 | AU62: =SUM(AR62:AT62) -> 200 | AW62: =SUM(AW53:AW54) -> 0 | AX62: =SUM(AX53:AX54) -> 200 | AZ62: =SUM(AW62:AY62) -> 200
B63: 9-12 | D63: =SUM(D55:D58) -> 0 | E63: =SUM(E55:E58) -> 240 | G63: =SUM(D63:F63) -> 240 | I63: =SUM(I55:I58) -> 0 | J63: =SUM(J55:J58) -> 236.69 | L63: =SUM(I63:K63) -> 236.69 | N63: 0 | O63: -3.31 | Q63: =SUM(N63:P63) -> -3.31 | S63: =SUM(S55:S58) -> 0 | T63: =SUM(T55:T58) -> 240 | V63: =SUM(S63:U63) -> 240 | X63: =SUM(X55:X58) -> 0 | Y63: =SUM(Y55:Y58) -> 262 | AA63: =SUM(X63:Z63) -> 262 | AC63: 0 | AD63: 22 | AF63: =SUM(AC63:AE63) -> 22 | AH63: =SUM(AH55:AH58) -> 0 | AI63: =SUM(AI55:AI58) -> 305 | AK63: =SUM(AH63:AJ63) -> 305 | AM63: =SUM(AM55:AM58) -> 0 | AN63: =SUM(AN55:AN58) -> 295 | AP63: =SUM(AM63:AO63) -> 295 | AR63: =SUM(AR55:AR58) -> 0 | AS63: =SUM(AS55:AS58) -> 295 | AU63: =SUM(AR63:AT63) -> 295 | AW63: =SUM(AW55:AW58) -> 0 | AX63: =SUM(AX55:AX58) -> 295 | AZ63: =SUM(AW63:AY63) -> 295
B64: Total Enrolled | D64: =SUM(D60:D63) -> 0 | E64: =SUM(E60:E63) -> 550 | G64: =SUM(D64:F64) -> 550 | I64: =SUM(I60:I63) -> 0 | J64: =SUM(J60:J63) -> 527.44 | L64: =SUM(I64:K64) -> 527.44 | N64: 0 | O64: -22.56 | Q64: =SUM(N64:P64) -> -22.56 | S64: =SUM(S60:S63) -> 0 | T64: =SUM(T60:T63) -> 550 | V64: =SUM(S64:U64) -> 550 | X64: =SUM(X60:X63) -> 0 | Y64: =SUM(Y60:Y63) -> 557 | AA64: =SUM(X64:Z64) -> 557 | AC64: 0 | AD64: 7 | AF64: =SUM(AC64:AE64) -> 7 | AH64: =SUM(AH60:AH63) -> 0 | AI64: =SUM(AI60:AI63) -> 590 | AK64: =SUM(AH64:AJ64) -> 590 | AM64: =SUM(AM60:AM63) -> 0 | AN64: =SUM(AN60:AN63) -> 595 | AP64: =SUM(AM64:AO64) -> 595 | AR64: =SUM(AR60:AR63) -> 0 | AS64: =SUM(AS60:AS63) -> 595 | AU64: =SUM(AR64:AT64) -> 595 | AW64: =SUM(AW60:AW63) -> 0 | AX64: =SUM(AX60:AX63) -> 595 | AZ64: =SUM(AW64:AY64) -> 595
A66: ADA %
B67: K-3 | D67: =IFERROR(D74/D60,"") ->  | G67: =IFERROR(G74/G60,"") ->  | I67: =IFERROR(I74/I60,"") ->  | L67: =IFERROR(L74/L60,"") ->  | N67: =IFERROR(N74/N60,"") ->  | Q67: =IFERROR(Q74/Q60,"") ->  | S67: =IFERROR(S74/S60,"") ->  | V67: =IFERROR(V74/V60,"") ->  | X67: =IFERROR(X74/X60,"") ->  | AA67: =IFERROR(AA74/AA60,"") ->  | AC67: =IFERROR(AC74/AC60,"") ->  | AF67: =IFERROR(AF74/AF60,"") ->  | AH67: =IFERROR(AH74/AH60,"") ->  | AK67: =IFERROR(AK74/AK60,"") ->  | AM67: =IFERROR(AM74/AM60,"") ->  | AP67: =IFERROR(AP74/AP60,"") ->  | AR67: =IFERROR(AR74/AR60,"") ->  | AU67: =IFERROR(AU74/AU60,"") ->  | AW67: =IFERROR(AW74/AW60,"") ->  | AZ67: =IFERROR(AZ74/AZ60,"") -> 
B68: 4-6 | E68: 0.96 | G68: 0.96 | J68: 0.9624902318 | L68: 0.9624902318 | O68: 0.9455370651 | Q68: 0.9455370651 | S68: =IFERROR(S75/S61,"") ->  | T68: 0.96 | V68: 0.96 | Y68: 0.95 | AA68: 0.95 | AC68: =IFERROR(AC75/AC61,"") ->  | AD68: 0.86 | AF68: 0.86 | AI68: 0.95 | AK68: 0.95 | AN68: 0.95 | AP68: 0.95 | AR68: =IFERROR(AR75/AR61,"") ->  | AS68: 0.95 | AU68: 0.95 | AW68: =IFERROR(AW75/AW61,"") ->  | AX68: 0.95 | AZ68: 0.95
B69: 7-8 | E69: 0.96 | G69: 0.96 | J69: 0.9641538533 | L69: 0.9641538533 | O69: 0.8126036484 | Q69: 0.8126036484 | S69: =IFERROR(S76/S62,"") ->  | T69: 0.96 | V69: 0.96 | Y69: 0.95 | AA69: 0.95 | AC69: =IFERROR(AC76/AC62,"") ->  | AD69: 1.038 | AF69: 1.038 | AI69: 0.95 | AK69: 0.95 | AN69: 0.95 | AP69: 0.95 | AR69: =IFERROR(AR76/AR62,"") ->  | AS69: 0.95 | AU69: 0.95 | AW69: =IFERROR(AW76/AW62,"") ->  | AX69: 0.95 | AZ69: 0.95
B70: 9-12 | E70: 0.92 | G70: 0.92 | J70: 0.9320207867 | L70: 0.9320207867 | O70: 0.06042296073 | Q70: 0.06042296073 | S70: =IFERROR(S77/S63,"") ->  | T70: 0.92 | V70: 0.92 | Y70: 0.95 | AA70: 0.95 | AC70: =IFERROR(AC77/AC63,"") ->  | AD70: 1.277272727 | AF70: 1.277272727 | AI70: 0.95 | AK70: 0.95 | AN70: 0.95 | AP70: 0.95 | AR70: =IFERROR(AR77/AR63,"") ->  | AS70: 0.95 | AU70: 0.95 | AW70: =IFERROR(AW77/AW63,"") ->  | AX70: 0.95 | AZ70: 0.95
B71: Average ADA % | D71: =IFERROR(D78/D64,"") ->  | E71: =IFERROR(E78/E64,"") -> 0.9425454545 | G71: =IFERROR(G78/G64,"") -> 0.9425454545 | I71: =IFERROR(I78/I64,"") ->  | J71: =IFERROR(J78/J64,"") -> 0.9494918853 | L71: =IFERROR(L78/L64,"") -> 0.9494918853 | N71: =IFERROR(N78/N64,"") ->  | O71: =IFERROR(O78/O64,"") -> 0.780141844 | Q71: =IFERROR(Q78/Q64,"") -> 0.780141844 | S71: =IFERROR(S78/S64,"") ->  | T71: =IFERROR(T78/T64,"") -> 0.9425454545 | V71: =IFERROR(V78/V64,"") -> 0.9425454545 | X71: =IFERROR(X78/X64,"") ->  | Y71: =IFERROR(Y78/Y64,"") -> 0.95 | AA71: =IFERROR(AA78/AA64,"") -> 0.95 | AC71: =IFERROR(AC78/AC64,"") ->  | AD71: =IFERROR(AD78/AD64,"") -> 1.535714286 | AF71: =IFERROR(AF78/AF64,"") -> 1.535714286 | AH71: =IFERROR(AH78/AH64,"") ->  | AI71: =IFERROR(AI78/AI64,"") -> 0.95 | AK71: =IFERROR(AK78/AK64,"") -> 0.95 | AM71: =IFERROR(AM78/AM64,"") ->  | AN71: =IFERROR(AN78/AN64,"") -> 0.95 | AP71: =IFERROR(AP78/AP64,"") -> 0.95 | AR71: =IFERROR(AR78/AR64,"") ->  | AS71: =IFERROR(AS78/AS64,"") -> 0.95 | AU71: =IFERROR(AU78/AU64,"") -> 0.95 | AW71: =IFERROR(AW78/AW64,"") ->  | AX71: =IFERROR(AX78/AX64,"") -> 0.95 | AZ71: =IFERROR(AZ78/AZ64,"") -> 0.95
A73: ADA
B74: K-3 | E74: 0 | G74: =SUM(D74:F74) -> 0 | J74: 0 | L74: =SUM(I74:K74) -> 0 | N74: =INDEX($I74:$K74,1,MATCH(N$8,$I$8:$K$8,0))-INDEX($D74:$F74,1,MATCH(N$8,$D$8:$F$8,0)) -> 0 | O74: 0 | Q74: =SUM(N74:P74) -> 0 | T74: 0 | V74: =SUM(S74:U74) -> 0 | Y74: 0 | AA74: =SUM(X74:Z74) -> 0 | AC74: =INDEX($X74:$Z74,1,MATCH(AC$8,$X$8:$Z$8,0))-INDEX($S74:$U74,1,MATCH(AC$8,$S$8:$U$8,0)) -> 0 | AD74: 0 | AF74: =SUM(AC74:AE74) -> 0 | AI74: 0 | AK74: =SUM(AH74:AJ74) -> 0 | AN74: 0 | AP74: =SUM(AM74:AO74) -> 0 | AS74: 0 | AU74: =SUM(AR74:AT74) -> 0 | AX74: 0 | AZ74: =SUM(AW74:AY74) -> 0
B75: 4-6 | E75: 86.4 | G75: =SUM(D75:F75) -> 86.4 | J75: 73.9 | L75: =SUM(I75:K75) -> 73.9 | N75: 0 | O75: -12.5 | Q75: =SUM(N75:P75) -> -12.5 | T75: 86.4 | V75: =SUM(S75:U75) -> 86.4 | Y75: 95 | AA75: =SUM(X75:Z75) -> 95 | AC75: 0 | AD75: 8.6 | AF75: =SUM(AC75:AE75) -> 8.6 | AI75: 95 | AK75: =SUM(AH75:AJ75) -> 95 | AN75: 95 | AP75: =SUM(AM75:AO75) -> 95 | AS75: 95 | AU75: =SUM(AR75:AT75) -> 95 | AX75: 95 | AZ75: =SUM(AW75:AY75) -> 95
B76: 7-8 | E76: 211.2 | G76: =SUM(D76:F76) -> 211.2 | J76: 206.3 | L76: =SUM(I76:K76) -> 206.3 | N76: 0 | O76: -4.9 | Q76: =SUM(N76:P76) -> -4.9 | T76: 211.2 | V76: =SUM(S76:U76) -> 211.2 | Y76: 185.25 | AA76: =SUM(X76:Z76) -> 185.25 | AC76: 0 | AD76: -25.95 | AF76: =SUM(AC76:AE76) -> -25.95 | AI76: 175.75 | AK76: =SUM(AH76:AJ76) -> 175.75 | AN76: 190 | AP76: =SUM(AM76:AO76) -> 190 | AS76: 190 | AU76: =SUM(AR76:AT76) -> 190 | AX76: 190 | AZ76: =SUM(AW76:AY76) -> 190
B77: 9-12 | E77: 220.8 | G77: =SUM(D77:F77) -> 220.8 | J77: 220.6 | L77: =SUM(I77:K77) -> 220.6 | N77: 0 | O77: -0.2 | Q77: =SUM(N77:P77) -> -0.2 | T77: 220.8 | V77: =SUM(S77:U77) -> 220.8 | Y77: 248.9 | AA77: =SUM(X77:Z77) -> 248.9 | AC77: 0 | AD77: 28.1 | AF77: =SUM(AC77:AE77) -> 28.1 | AI77: 289.75 | AK77: =SUM(AH77:AJ77) -> 289.75 | AN77: 280.25 | AP77: =SUM(AM77:AO77) -> 280.25 | AS77: 280.25 | AU77: =SUM(AR77:AT77) -> 280.25 | AX77: 280.25 | AZ77: =SUM(AW77:AY77) -> 280.25
B78: Total ADA | E78: 518.4 | G78: =SUM(D78:F78) -> 518.4 | J78: 500.8 | L78: =SUM(I78:K78) -> 500.8 | N78: 0 | O78: -17.6 | Q78: =SUM(N78:P78) -> -17.6 | T78: 518.4 | V78: =SUM(S78:U78) -> 518.4 | Y78: 529.15 | AA78: =SUM(X78:Z78) -> 529.15 | AC78: 0 | AD78: 10.75 | AF78: =SUM(AC78:AE78) -> 10.75 | AI78: 560.5 | AK78: =SUM(AH78:AJ78) -> 560.5 | AN78: 565.25 | AP78: =SUM(AM78:AO78) -> 565.25 | AS78: 565.25 | AU78: =SUM(AR78:AT78) -> 565.25 | AX78: 565.25 | AZ78: =SUM(AW78:AY78) -> 565.25
A80: Demographic Information
B81: CALPADS Enrollment (for unduplicated % calc) | E81: 550 | G81: =SUM(D81:F81) -> 550 | J81: 527.44 | L81: =SUM(I81:K81) -> 527.44 | N81: =INDEX($I81:$K81,1,MATCH(N$8,$I$8:$K$8,0))-INDEX($D81:$F81,1,MATCH(N$8,$D$8:$F$8,0)) -> 0 | O81: -22.56 | Q81: =SUM(N81:P81) -> -22.56 | T81: 550 | V81: =SUM(S81:U81) -> 550 | Y81: 557 | AA81: =SUM(X81:Z81) -> 557 | AC81: =INDEX($X81:$Z81,1,MATCH(AC$8,$X$8:$Z$8,0))-INDEX($S81:$U81,1,MATCH(AC$8,$S$8:$U$8,0)) -> 0 | AD81: 7 | AF81: =SUM(AC81:AE81) -> 7 | AI81: 590 | AK81: =SUM(AH81:AJ81) -> 590 | AN81: 595 | AP81: =SUM(AM81:AO81) -> 595 | AS81: 595 | AU81: =SUM(AR81:AT81) -> 595 | AX81: 595 | AZ81: =SUM(AW81:AY81) -> 595
B82: # Unduplicated (CALPADS) | E82: 212 | G82: =SUM(D82:F82) -> 212 | J82: 190 | L82: =SUM(I82:K82) -> 190 | N82: 0 | O82: -22 | Q82: =SUM(N82:P82) -> -22 | T82: 212 | V82: =SUM(S82:U82) -> 212 | Y82: 201 | AA82: =SUM(X82:Z82) -> 201 | AC82: 0 | AD82: -11 | AF82: =SUM(AC82:AE82) -> -11 | AI82: 213 | AK82: =SUM(AH82:AJ82) -> 213 | AN82: 215 | AP82: =SUM(AM82:AO82) -> 215 | AS82: 215 | AU82: =SUM(AR82:AT82) -> 215 | AX82: 215 | AZ82: =SUM(AW82:AY82) -> 215
B83: # Free & Reduced Lunch (CALPADS) | E83: 195 | G83: =SUM(D83:F83) -> 195 | J83: 195 | L83: =SUM(I83:K83) -> 195 | N83: 0 | O83: 0 | Q83: =SUM(N83:P83) -> 0 | T83: 195 | V83: =SUM(S83:U83) -> 195 | Y83: 206 | AA83: =SUM(X83:Z83) -> 206 | AC83: 0 | AD83: 11 | AF83: =SUM(AC83:AE83) -> 11 | AI83: 218 | AK83: =SUM(AH83:AJ83) -> 218 | AN83: 220 | AP83: =SUM(AM83:AO83) -> 220 | AS83: 220 | AU83: =SUM(AR83:AT83) -> 220 | AX83: 220 | AZ83: =SUM(AW83:AY83) -> 220
B84: # ELL (CALPADS) | E84: 48 | G84: =SUM(D84:F84) -> 48 | J84: 48 | L84: =SUM(I84:K84) -> 48 | N84: 0 | O84: 0 | Q84: =SUM(N84:P84) -> 0 | T84: 48 | V84: =SUM(S84:U84) -> 48 | Y84: 51 | AA84: =SUM(X84:Z84) -> 51 | AC84: 0 | AD84: 3 | AF84: =SUM(AC84:AE84) -> 3 | AI84: 54 | AK84: =SUM(AH84:AJ84) -> 54 | AN84: 54 | AP84: =SUM(AM84:AO84) -> 54 | AS84: 54 | AU84: =SUM(AR84:AT84) -> 54 | AX84: 54 | AZ84: =SUM(AW84:AY84) -> 54
B85: New Students | E85: 0 | G85: =SUM(D85:F85) -> 0 | J85: 0 | L85: =SUM(I85:K85) -> 0 | N85: 0 | O85: 0 | Q85: =SUM(N85:P85) -> 0 | T85: 0 | V85: =SUM(S85:U85) -> 0 | Y85: 29.56 | AA85: =SUM(X85:Z85) -> 29.56 | AC85: 0 | AD85: 29.56 | AF85: =SUM(AC85:AE85) -> 29.56 | AI85: 33 | AK85: =SUM(AH85:AJ85) -> 33 | AN85: 5 | AP85: =SUM(AM85:AO85) -> 5 | AS85: 0 | AU85: =SUM(AR85:AT85) -> 0 | AX85: 0 | AZ85: =SUM(AW85:AY85) -> 0
A87: School Information
B88: FTE's | E88: 56 | G88: =SUM(D88:F88) -> 56 | J88: 56.13682796 | L88: =SUM(I88:K88) -> 56.13682796 | N88: =INDEX($I88:$K88,1,MATCH(N$8,$I$8:$K$8,0))-INDEX($D88:$F88,1,MATCH(N$8,$D$8:$F$8,0)) -> 0 | O88: =INDEX($I88:$K88,1,MATCH(O$8,$I$8:$K$8,0))-INDEX($D88:$F88,1,MATCH(O$8,$D$8:$F$8,0)) -> 0.136827957 | Q88: =SUM(N88:P88) -> 0.136827957 | T88: 56 | V88: =SUM(S88:U88) -> 56 | Y88: 59.275 | AA88: =SUM(X88:Z88) -> 59.275 | AC88: =INDEX($X88:$Z88,1,MATCH(AC$8,$X$8:$Z$8,0))-INDEX($S88:$U88,1,MATCH(AC$8,$S$8:$U$8,0)) -> 0 | AD88: =INDEX($X88:$Z88,1,MATCH(AD$8,$X$8:$Z$8,0))-INDEX($S88:$U88,1,MATCH(AD$8,$S$8:$U$8,0)) -> 3.275 | AF88: =SUM(AC88:AE88) -> 3.275 | AI88: 59.275 | AK88: =SUM(AH88:AJ88) -> 59.275 | AN88: 59.275 | AP88: =SUM(AM88:AO88) -> 59.275 | AS88: 59.275 | AU88: =SUM(AR88:AT88) -> 59.275 | AX88: 59.275 | AZ88: =SUM(AW88:AY88) -> 59.275
B89: Teachers | E89: 36 | G89: =SUM(D89:F89) -> 36 | J89: 34.13064516 | L89: =SUM(I89:K89) -> 34.13064516 | N89: =INDEX($I89:$K89,1,MATCH(N$8,$I$8:$K$8,0))-INDEX($D89:$F89,1,MATCH(N$8,$D$8:$F$8,0)) -> 0 | O89: =INDEX($I89:$K89,1,MATCH(O$8,$I$8:$K$8,0))-INDEX($D89:$F89,1,MATCH(O$8,$D$8:$F$8,0)) -> -1.869354839 | Q89: =SUM(N89:P89) -> -1.869354839 | T89: 36 | V89: =SUM(S89:U89) -> 36 | Y89: 36 | AA89: =SUM(X89:Z89) -> 36 | AC89: =INDEX($X89:$Z89,1,MATCH(AC$8,$X$8:$Z$8,0))-INDEX($S89:$U89,1,MATCH(AC$8,$S$8:$U$8,0)) -> 0 | AD89: =INDEX($X89:$Z89,1,MATCH(AD$8,$X$8:$Z$8,0))-INDEX($S89:$U89,1,MATCH(AD$8,$S$8:$U$8,0)) -> 0 | AF89: =SUM(AC89:AE89) -> 0 | AI89: 36 | AK89: =SUM(AH89:AJ89) -> 36 | AN89: 36 | AP89: =SUM(AM89:AO89) -> 36 | AS89: 36 | AU89: =SUM(AR89:AT89) -> 36 | AX89: 36 | AZ89: =SUM(AW89:AY89) -> 36
B90: Certificated Pay Increases | T90: 0.04 | Y90: 0.05 | AI90: 0.03 | AN90: 0.03 | AS90: 0.03 | AX90: 0.03
B91: Classified Pay Increases | T91: 0.04 | Y91: 0.03 | AI91: 0.03 | AN91: 0.03 | AS91: 0.03 | AX91: 0.03
B92: # of school days | E92: 0 | J92: 0 | N92: =INDEX($I92:$K92,1,MATCH(N$8,$I$8:$K$8,0))-INDEX($D92:$F92,1,MATCH(N$8,$D$8:$F$8,0)) -> 0 | O92: =INDEX($I92:$K92,1,MATCH(O$8,$I$8:$K$8,0))-INDEX($D92:$F92,1,MATCH(O$8,$D$8:$F$8,0)) -> 0 | T92: 0 | Y92: 0 | AC92: =INDEX($X92:$Z92,1,MATCH(AC$8,$X$8:$Z$8,0))-INDEX($S92:$U92,1,MATCH(AC$8,$S$8:$U$8,0)) -> 0 | AD92: =INDEX($X92:$Z92,1,MATCH(AD$8,$X$8:$Z$8,0))-INDEX($S92:$U92,1,MATCH(AD$8,$S$8:$U$8,0)) -> 0 | AI92: 0 | AN92: 0 | AS92: 0 | AX92: 0
B93: Default Expense Inflation Rate | N93: =INDEX($I93:$K93,1,MATCH(N$8,$I$8:$K$8,0))-INDEX($D93:$F93,1,MATCH(N$8,$D$8:$F$8,0)) -> 0 | O93: =INDEX($I93:$K93,1,MATCH(O$8,$I$8:$K$8,0))-INDEX($D93:$F93,1,MATCH(O$8,$D$8:$F$8,0)) -> 0 | Y93: 0.02 | AC93: =INDEX($X93:$Z93,1,MATCH(AC$8,$X$8:$Z$8,0))-INDEX($S93:$U93,1,MATCH(AC$8,$S$8:$U$8,0)) -> 0 | AD93: =INDEX($X93:$Z93,1,MATCH(AD$8,$X$8:$Z$8,0))-INDEX($S93:$U93,1,MATCH(AD$8,$S$8:$U$8,0)) -> 0.02 | AI93: 0.02 | AN93: 0.02 | AS93: 0.02 | AX93: 0.02
A95: REVENUE
A97: LCFF Entitlement
G98: =SUM(D98:F98) -> 0 | L98: =SUM(I98:K98) -> 0 | N98: =INDEX($I98:$K98,1,MATCH(N$8,$I$8:$K$8,0))-INDEX($D98:$F98,1,MATCH(N$8,$D$8:$F$8,0)) -> 0 | O98: 0 | Q98: =SUM(N98:P98) -> 0 | V98: =SUM(S98:U98) -> 0 | AA98: =SUM(X98:Z98) -> 0 | AC98: =INDEX($X98:$Z98,1,MATCH(AC$8,$X$8:$Z$8,0))-INDEX($S98:$U98,1,MATCH(AC$8,$S$8:$U$8,0)) -> 0 | AD98: 0 | AF98: =SUM(AC98:AE98) -> 0 | AK98: =SUM(AH98:AJ98) -> 0 | AP98: =SUM(AM98:AO98) -> 0 | AU98: =SUM(AR98:AT98) -> 0 | AZ98: =SUM(AW98:AY98) -> 0
A99: 8000 | B99: Revenue | G99: 0 | L99: 0 | N99: 0 | O99: 0 | Q99: 0 | V99: 0 | AA99: 0 | AC99: 0 | AD99: 0 | AF99: 0 | AK99: 0 | AP99: 0 | AU99: 0 | AZ99: 0
A100: 8010 | B100: Principal Apportionment | G100: 0 | L100: 0 | N100: 0 | O100: 0 | Q100: 0 | V100: 0 | AA100: 0 | AC100: 0 | AD100: 0 | AF100: 0 | AK100: 0 | AP100: 0 | AU100: 0 | AZ100: 0
A101: 8011 | B101: Charter Schools General Purpose Entitlement - State Aid | E101: 3708410.17 | G101: 3708410.17 | J101: 3920449.848 | L101: 3920449.848 | N101: 0 | O101: 212039.6784 | Q101: 212039.6784 | T101: 3392434 | V101: 3392434 | Y101: 4008754.65 | AA101: 4008754.65 | AC101: 0 | AD101: 616320.65 | AF101: 616320.65 | AI101: 4560622.5 | AK101: 4560622.5 | AN101: 4807609.75 | AP101: 4807609.75 | AS101: 5042020.75 | AU101: 5042020.75 | AX101: 5240302.742 | AZ101: 5240302.742
A102: 8012 | B102: Education Protection Account Entitlement | E102: 103680 | G102: 103680 | J102: 100160 | L102: 100160 | N102: 0 | O102: -3520 | Q102: -3520 | T102: 425088.4 | V102: 425088.4 | Y102: 105830 | AA102: 105830 | AC102: 0 | AD102: -319258.4 | AF102: -319258.4 | AI102: 112100 | AK102: 112100 | AN102: 113050 | AP102: 113050 | AS102: 113050 | AU102: 113050 | AX102: 113050 | AZ102: 113050
A103: 8018 | B103: Advance Apportionment (clearing acct-shld be zero at yr end | G103: 0 | L103: 0 | N103: 0 | O103: 0 | Q103: 0 | V103: 0 | AA103: 0 | AC103: 0 | AD103: 0 | AF103: 0 | AK103: 0 | AP103: 0 | AU103: 0 | AZ103: 0
A104: 8019 | B104: State Aid - Prior Years | E104: 0 | G104: 0 | J104: 0 | L104: 0 | N104: 0 | O104: 0 | Q104: 0 | T104: 0 | V104: 0 | Y104: 0 | AA104: 0 | AC104: 0 | AD104: 0 | AF104: 0 | AI104: 0 | AK104: 0 | AN104: 0 | AP104: 0 | AS104: 0 | AU104: 0 | AX104: 0 | AZ104: 0
A105: 8096 | B105: Charter Schools in Lieu of Property Taxes | E105: 1596770.496 | G105: 1596770.496 | J105: 1542559.152 | L105: 1542559.152 | N105: 0 | O105: -54211.344 | Q105: -54211.344 | T105: 2223417.6 | V105: 2223417.6 | Y105: 2269524.35 | AA105: 2269524.35 | AC105: 0 | AD105: 46106.75 | AF105: 46106.75 | AI105: 2403984.5 | AK105: 2403984.5 | AN105: 2424357.25 | AP105: 2424357.25 | AS105: 2424357.25 | AU105: 2424357.25 | AX105: 2424357.25 | AZ105: 2424357.25
B107: SUBTOTAL - LCFF Entitlement | D107: =SUM(D98:D106) -> 0 | E107: =SUM(E98:E106) -> 5408860.666 | G107: =SUM(D107:F107) -> 5408860.666 | I107: =SUM(I98:I106) -> 0 | J107: =SUM(J98:J106) -> 5563169 | L107: =SUM(I107:K107) -> 5563169 | N107: =INDEX($I107:$K107,1,MATCH(N$8,$I$8:$K$8,0))-INDEX($D107:$F107,1,MATCH(N$8,$D$8:$F$8,0)) -> 0 | O107: =INDEX($I107:$K107,1,MATCH(O$8,$I$8:$K$8,0))-INDEX($D107:$F107,1,MATCH(O$8,$D$8:$F$8,0)) -> 154308.3344 | Q107: =SUM(N107:P107) -> 154308.3344 | S107: =SUM(S98:S106) -> 0 | T107: =SUM(T98:T106) -> 6040940 | V107: =SUM(S107:U107) -> 6040940 | X107: =SUM(X98:X106) -> 0 | Y107: =SUM(Y98:Y106) -> 6384109 | AA107: =SUM(X107:Z107) -> 6384109 | AC107: =INDEX($X107:$Z107,1,MATCH(AC$8,$X$8:$Z$8,0))-INDEX($S107:$U107,1,MATCH(AC$8,$S$8:$U$8,0)) -> 0 | AD107: =INDEX($X107:$Z107,1,MATCH(AD$8,$X$8:$Z$8,0))-INDEX($S107:$U107,1,MATCH(AD$8,$S$8:$U$8,0)) -> 343169 | AF107: =SUM(AC107:AE107) -> 343169 | AH107: =SUM(AH98:AH106) -> 0 | AI107: =SUM(AI98:AI106) -> 7076707 | AK107: =SUM(AH107:AJ107) -> 7076707 | AM107: =SUM(AM98:AM106) -> 0 | AN107: =SUM(AN98:AN106) -> 7345017 | AP107: =SUM(AM107:AO107) -> 7345017 | AR107: =SUM(AR98:AR106) -> 0 | AS107: =SUM(AS98:AS106) -> 7579428 | AU107: =SUM(AR107:AT107) -> 7579428 | AW107: =SUM(AW98:AW106) -> 0 | AX107: =SUM(AX98:AX106) -> 7777709.992 | AZ107: =SUM(AW107:AY107) -> 7777709.992
A109: Federal Revenue
G110: =SUM(D110:F110) -> 0 | L110: =SUM(I110:K110) -> 0 | N110: =INDEX($I110:$K110,1,MATCH(N$8,$I$8:$K$8,0))-INDEX($D110:$F110,1,MATCH(N$8,$D$8:$F$8,0)) -> 0 | O110: 0 | Q110: =SUM(N110:P110) -> 0 | V110: =SUM(S110:U110) -> 0 | AA110: =SUM(X110:Z110) -> 0 | AC110: =INDEX($X110:$Z110,1,MATCH(AC$8,$X$8:$Z$8,0))-INDEX($S110:$U110,1,MATCH(AC$8,$S$8:$U$8,0)) -> 0 | AD110: 0 | AF110: =SUM(AC110:AE110) -> 0 | AK110: =SUM(AH110:AJ110) -> 0 | AP110: =SUM(AM110:AO110) -> 0 | AU110: =SUM(AR110:AT110) -> 0 | AZ110: =SUM(AW110:AY110) -> 0
A111: 8100 | B111: Federal Revenue | G111: 0 | L111: 0 | N111: 0 | O111: 0 | Q111: 0 | V111: 0 | AA111: 0 | AC111: 0 | AD111: 0 | AF111: 0 | AK111: 0 | AP111: 0 | AU111: 0 | AZ111: 0
A112: 8181 | B112: Special Education - Entitlement | E112: 70375 | G112: 70375 | J112: 82654.03 | L112: 82654.03 | N112: 0 | O112: 12279.03 | Q112: 12279.03 | T112: 68750 | V112: 68750 | Y112: 65930 | AA112: 65930 | AC112: 0 | AD112: -2820 | AF112: -2820 | AI112: 69625 | AK112: 69625 | AN112: 73750 | AP112: 73750 | AS112: 74375 | AU112: 74375 | AX112: 74375 | AZ112: 74375
A113: 8182 | B113: Special Education Reimbursement | E113: 0 | G113: 0 | J113: 0 | L113: 0 | N113: 0 | O113: 0 | Q113: 0 | T113: 0 | V113: 0 | Y113: 0 | AA113: 0 | AC113: 0 | AD113: 0 | AF113: 0 | AI113: 0 | AK113: 0 | AN113: 0 | AP113: 0 | AS113: 0 | AU113: 0 | AX113: 0 | AZ113: 0
A114: 8220 | B114: Child Nutrition Programs | E114: 33412.5 | G114: 33412.5 | J114: 78682.4 | L114: 78682.4 | N114: 0 | O114: 45269.9 | Q114: 45269.9 | T114: 34080.75 | V114: 34080.75 | Y114: 82881.6 | AA114: 82881.6 | AC114: 0 | AD114: 48800.85 | AF114: 48800.85 | AI114: 89547.84 | AK114: 89547.84 | AN114: 92112.8544 | AP114: 92112.8544 | AS114: 93955.11149 | AU114: 93955.11149 | AX114: 95834.21372 | AZ114: 95834.21372
A115: 8290 | B115: No Child Left Behind | E115: 0 | G115: 0 | J115: 0 | L115: 0 | N115: 0 | O115: 0 | Q115: 0 | T115: 0 | V115: 0 | Y115: 0 | AA115: 0 | AC115: 0 | AD115: 0 | AF115: 0 | AI115: 0 | AK115: 0 | AN115: 0 | AP115: 0 | AS115: 0 | AU115: 0 | AX115: 0 | AZ115: 0
A116: 8291 | B116: Title I | E116: 41000 | G116: 41000 | J116: 70411 | L116: 70411 | N116: 0 | O116: 29411 | Q116: 29411 | T116: 39975 | V116: 39975 | Y116: 70411 | AA116: 70411 | AC116: 0 | AD116: 30436 | AF116: 30436 | AI116: 70411 | AK116: 70411 | AN116: 70411 | AP116: 70411 | AS116: 70411 | AU116: 70411 | AX116: 70411 | AZ116: 70411
A117: 8292 | B117: Title II | E117: 14000 | G117: 14000 | J117: 13117 | L117: 13117 | N117: 0 | O117: -883 | Q117: -883 | T117: 13650 | V117: 13650 | Y117: 13117 | AA117: 13117 | AC117: 0 | AD117: -533 | AF117: -533 | AI117: 13117 | AK117: 13117 | AN117: 13117 | AP117: 13117 | AS117: 13117 | AU117: 13117 | AX117: 13117 | AZ117: 13117
A118: 8293 | B118: Title III | E118: 0 | G118: 0 | J118: 0 | L118: 0 | N118: 0 | O118: 0 | Q118: 0 | T118: 0 | V118: 0 | Y118: 0 | AA118: 0 | AC118: 0 | AD118: 0 | AF118: 0 | AI118: 0 | AK118: 0 | AN118: 0 | AP118: 0 | AS118: 0 | AU118: 0 | AX118: 0 | AZ118: 0
A119: 8294 | B119: Title IV | E119: 10000 | G119: 10000 | J119: 10000 | L119: 10000 | N119: 0 | O119: 0 | Q119: 0 | T119: 10000 | V119: 10000 | Y119: 10000 | AA119: 10000 | AC119: 0 | AD119: 0 | AF119: 0 | AI119: 10000 | AK119: 10000 | AN119: 10000 | AP119: 10000 | AS119: 10000 | AU119: 10000 | AX119: 10000 | AZ119: 10000
A120: 8295 | B120: Title V | E120: 0 | G120: 0 | J120: 0 | L120: 0 | N120: 0 | O120: 0 | Q120: 0 | T120: 0 | V120: 0 | Y120: 0 | AA120: 0 | AC120: 0 | AD120: 0 | AF120: 0 | AI120: 0 | AK120: 0 | AN120: 0 | AP120: 0 | AS120: 0 | AU120: 0 | AX120: 0 | AZ120: 0
A121: 8296 | B121: Other Federal Revenue | E121: 0 | G121: 0 | J121: 0 | L121: 0 | N121: 0 | O121: 0 | Q121: 0 | T121: 0 | V121: 0 | Y121: 0 | AA121: 0 | AC121: 0 | AD121: 0 | AF121: 0 | AI121: 0 | AK121: 0 | AN121: 0 | AP121: 0 | AS121: 0 | AU121: 0 | AX121: 0 | AZ121: 0
A122: 8297 | B122: PY Federal - Not Accrued | E122: 0 | G122: 0 | J122: 7278 | L122: 7278 | N122: 0 | O122: 7278 | Q122: 7278 | T122: 0 | V122: 0 | Y122: 0 | AA122: 0 | AC122: 0 | AD122: 0 | AF122: 0 | AI122: 0 | AK122: 0 | AN122: 0 | AP122: 0 | AS122: 0 | AU122: 0 | AX122: 0 | AZ122: 0
A123: 8298 | B123: Implementation Grant | E123: 0 | G123: 0 | J123: 0 | L123: 0 | N123: 0 | O123: 0 | Q123: 0 | T123: 0 | V123: 0 | Y123: 0 | AA123: 0 | AC123: 0 | AD123: 0 | AF123: 0 | AI123: 0 | AK123: 0 | AN123: 0 | AP123: 0 | AS123: 0 | AU123: 0 | AX123: 0 | AZ123: 0
A124: 8299 | B124: All Other Federal Revenue | E124: 414950 | G124: 414950 | J124: 347387 | L124: 347387 | N124: 0 | O124: -67563 | Q124: -67563 | T124: 0 | V124: 0 | Y124: 40000 | AA124: 40000 | AC124: 0 | AD124: 40000 | AF124: 40000 | AI124: 0 | AK124: 0 | AN124: 0 | AP124: 0 | AS124: 0 | AU124: 0 | AX124: 0 | AZ124: 0
B126: SUBTOTAL - Federal Revenue | D126: =SUM(D110:D125) -> 0 | E126: =SUM(E110:E125) -> 583737.5 | G126: =SUM(D126:F126) -> 583737.5 | I126: =SUM(I110:I125) -> 0 | J126: =SUM(J110:J125) -> 609529.43 | L126: =SUM(I126:K126) -> 609529.43 | N126: =INDEX($I126:$K126,1,MATCH(N$8,$I$8:$K$8,0))-INDEX($D126:$F126,1,MATCH(N$8,$D$8:$F$8,0)) -> 0 | O126: =INDEX($I126:$K126,1,MATCH(O$8,$I$8:$K$8,0))-INDEX($D126:$F126,1,MATCH(O$8,$D$8:$F$8,0)) -> 25791.93 | Q126: =SUM(N126:P126) -> 25791.93 | S126: =SUM(S110:S125) -> 0 | T126: =SUM(T110:T125) -> 166455.75 | V126: =SUM(S126:U126) -> 166455.75 | X126: =SUM(X110:X125) -> 0 | Y126: =SUM(Y110:Y125) -> 282339.6 | AA126: =SUM(X126:Z126) -> 282339.6 | AC126: =INDEX($X126:$Z126,1,MATCH(AC$8,$X$8:$Z$8,0))-INDEX($S126:$U126,1,MATCH(AC$8,$S$8:$U$8,0)) -> 0 | AD126: =INDEX($X126:$Z126,1,MATCH(AD$8,$X$8:$Z$8,0))-INDEX($S126:$U126,1,MATCH(AD$8,$S$8:$U$8,0)) -> 115883.85 | AF126: =SUM(AC126:AE126) -> 115883.85 | AH126: =SUM(AH110:AH125) -> 0 | AI126: =SUM(AI110:AI125) -> 252700.84 | AK126: =SUM(AH126:AJ126) -> 252700.84 | AM126: =SUM(AM110:AM125) -> 0 | AN126: =SUM(AN110:AN125) -> 259390.8544 | AP126: =SUM(AM126:AO126) -> 259390.8544 | AR126: =SUM(AR110:AR125) -> 0 | AS126: =SUM(AS110:AS125) -> 261858.1115 | AU126: =SUM(AR126:AT126) -> 261858.1115 | AW126: =SUM(AW110:AW125) -> 0 | AX126: =SUM(AX110:AX125) -> 263737.2137 | AZ126: =SUM(AW126:AY126) -> 263737.2137
A128: Other State Revenue
G129: =SUM(D129:F129) -> 0 | L129: =SUM(I129:K129) -> 0 | N129: =INDEX($I129:$K129,1,MATCH(N$8,$I$8:$K$8,0))-INDEX($D129:$F129,1,MATCH(N$8,$D$8:$F$8,0)) -> 0 | O129: 0 | Q129: =SUM(N129:P129) -> 0 | V129: =SUM(S129:U129) -> 0 | AA129: =SUM(X129:Z129) -> 0 | AC129: =INDEX($X129:$Z129,1,MATCH(AC$8,$X$8:$Z$8,0))-INDEX($S129:$U129,1,MATCH(AC$8,$S$8:$U$8,0)) -> 0 | AD129: 0 | AF129: =SUM(AC129:AE129) -> 0 | AK129: =SUM(AH129:AJ129) -> 0 | AP129: =SUM(AM129:AO129) -> 0 | AU129: =SUM(AR129:AT129) -> 0 | AZ129: =SUM(AW129:AY129) -> 0
A130: 8300 | B130: Other State Revenues | G130: 0 | L130: 0 | N130: 0 | O130: 0 | Q130: 0 | V130: 0 | AA130: 0 | AC130: 0 | AD130: 0 | AF130: 0 | AK130: 0 | AP130: 0 | AU130: 0 | AZ130: 0
A131: 8311 | B131: Other State Apportionments - Current Year | E131: 0 | G131: 0 | J131: 0 | L131: 0 | N131: 0 | O131: 0 | Q131: 0 | T131: 0 | V131: 0 | Y131: 0 | AA131: 0 | AC131: 0 | AD131: 0 | AF131: 0 | AI131: 0 | AK131: 0 | AN131: 0 | AP131: 0 | AS131: 0 | AU131: 0 | AX131: 0 | AZ131: 0
A132: 8319 | B132: Other State Apportionments - Prior Years | E132: 0 | G132: 0 | J132: 19 | L132: 19 | N132: 0 | O132: 19 | Q132: 19 | T132: 0 | V132: 0 | Y132: 0 | AA132: 0 | AC132: 0 | AD132: 0 | AF132: 0 | AI132: 0 | AK132: 0 | AN132: 0 | AP132: 0 | AS132: 0 | AU132: 0 | AX132: 0 | AZ132: 0
A133: 8380 | B133: Special Ed | E133: 0 | G133: 0 | J133: 0 | L133: 0 | N133: 0 | O133: 0 | Q133: 0 | T133: 0 | V133: 0 | Y133: 0 | AA133: 0 | AC133: 0 | AD133: 0 | AF133: 0 | AI133: 0 | AK133: 0 | AN133: 0 | AP133: 0 | AS133: 0 | AU133: 0 | AX133: 0 | AZ133: 0
A134: 8381 | B134: Special Education - Entitlement (State | E134: 425088 | G134: 425088 | J134: 490032 | L134: 490032 | N134: 0 | O134: 64944 | Q134: 64944 | T134: 425088 | V134: 425088 | Y134: 469179.3139 | AA134: 469179.3139 | AC134: 0 | AD134: 44091.3139 | AF134: 44091.3139 | AI134: 496976.293 | AK134: 496976.293 | AN134: 501187.9565 | AP134: 501187.9565 | AS134: 501187.9565 | AU134: 501187.9565 | AX134: 501187.9565 | AZ134: 501187.9565
A135: 8382 | B135: Special Education Reimbursement (State | E135: 125040 | G135: 125040 | J135: 44451.4 | L135: 44451.4 | N135: 0 | O135: -80588.6 | Q135: -80588.6 | T135: 125040 | V135: 125040 | Y135: 30690.7 | AA135: 30690.7 | AC135: 0 | AD135: -94349.3 | AF135: -94349.3 | AI135: 32509 | AK135: 32509 | AN135: 32784.5 | AP135: 32784.5 | AS135: 32784.5 | AU135: 32784.5 | AX135: 32784.5 | AZ135: 32784.5
A136: 8434 | B136: Class Size Reduction, Grades K-3 | G136: 0 | L136: 0 | N136: 0 | O136: 0 | Q136: 0 | V136: 0 | AA136: 0 | AC136: 0 | AD136: 0 | AF136: 0 | AK136: 0 | AP136: 0 | AU136: 0 | AZ136: 0
A137: 8480 | B137: Charter Schools Categorical Block (DO NOT USE; USE 8592 | G137: 0 | L137: 0 | N137: 0 | O137: 0 | Q137: 0 | V137: 0 | AA137: 0 | AC137: 0 | AD137: 0 | AF137: 0 | AK137: 0 | AP137: 0 | AU137: 0 | AZ137: 0
A138: 8520 | B138: Child Nutrition - State | E138: 3341.25 | G138: 3341.25 | J138: 9835.3 | L138: 9835.3 | N138: 0 | O138: 6494.05 | Q138: 6494.05 | T138: 3408.075 | V138: 3408.075 | Y138: 10360.2 | AA138: 10360.2 | AC138: 0 | AD138: 6952.125 | AF138: 6952.125 | AI138: 11193.48 | AK138: 11193.48 | AN138: 11514.1068 | AP138: 11514.1068 | AS138: 11744.38894 | AU138: 11744.38894 | AX138: 11979.27671 | AZ138: 11979.27671
A139: 8545 | B139: School Facilities Apportionments | E139: 260310 | G139: 260310 | J139: 234278.973 | L139: 234278.973 | N139: 0 | O139: -26031.027 | Q139: -26031.027 | T139: 260310 | V139: 260310 | Y139: 253536.7046 | AA139: 253536.7046 | AC139: 0 | AD139: -6773.295419 | AF139: -6773.295419 | AI139: 263526.0507 | AK139: 263526.0507 | AN139: 270373.95 | AP139: 270373.95 | AS139: 275781.429 | AU139: 275781.429 | AX139: 275781.429 | AZ139: 275781.429
A140: 8550 | B140: Mandated Cost Reimbursements | E140: 16695.28 | G140: 16695.28 | J140: 16695.28 | L140: 16695.28 | N140: 0 | O140: 0 | Q140: 0 | T140: 17613.984 | V140: 17613.984 | Y140: 17732.472 | AA140: 17732.472 | AC140: 0 | AD140: 118.488 | AF140: 118.488 | AI140: 20053.4835 | AK140: 20053.4835 | AN140: 22931.575 | AP140: 22931.575 | AS140: 23396.03 | AU140: 23396.03 | AX140: 23396.03 | AZ140: 23396.03
A141: 8560 | B141: State Lottery Revenue | E141: 128323.1912 | G141: 128323.1912 | J141: 123966.5396 | L141: 123966.5396 | N141: 0 | O141: -4356.651552 | Q141: -4356.651552 | T141: 128323.1912 | V141: 128323.1912 | Y141: 130984.2141 | AA141: 130984.2141 | AC141: 0 | AD141: 2661.022965 | AF141: 2661.022965 | AI141: 138744.4997 | AK141: 138744.4997 | AN141: 139920.3006 | AP141: 139920.3006 | AS141: 139920.3006 | AU141: 139920.3006 | AX141: 139920.3006 | AZ141: 139920.3006
A142: 8590 | B142: All Other State Revenue | E142: 610768 | G142: 610768 | J142: 569522 | L142: 569522 | N142: 0 | O142: -41246 | Q142: -41246 | T142: 0 | V142: 0 | Y142: 625139 | AA142: 625139 | AC142: 0 | AD142: 625139 | AF142: 625139 | AI142: 154345 | AK142: 154345 | AN142: 92215 | AP142: 92215 | AS142: 77215 | AU142: 77215 | AX142: 77215 | AZ142: 77215
A143: 8591 | B143: Supplemental Hourly Revenue | G143: 0 | L143: 0 | N143: 0 | O143: 0 | Q143: 0 | V143: 0 | AA143: 0 | AC143: 0 | AD143: 0 | AF143: 0 | AK143: 0 | AP143: 0 | AU143: 0 | AZ143: 0
A144: 8592 | B144: Categorical Block Grant | G144: 0 | L144: 0 | N144: 0 | O144: 0 | Q144: 0 | V144: 0 | AA144: 0 | AC144: 0 | AD144: 0 | AF144: 0 | AK144: 0 | AP144: 0 | AU144: 0 | AZ144: 0
A145: 8593 | B145: Other State Revenue 3 | E145: 0 | G145: 0 | J145: 63416 | L145: 63416 | N145: 0 | O145: 63416 | Q145: 63416 | T145: 0 | V145: 0 | Y145: 63416 | AA145: 63416 | AC145: 0 | AD145: 63416 | AF145: 63416 | AI145: 63416 | AK145: 63416 | AN145: 63416 | AP145: 63416 | AS145: 63416 | AU145: 63416 | AX145: 63416 | AZ145: 63416
A146: 8594 | B146: Other State Revenue 4 | E146: 0 | G146: 0 | J146: 0 | L146: 0 | N146: 0 | O146: 0 | Q146: 0 | T146: 0 | V146: 0 | Y146: 0 | AA146: 0 | AC146: 0 | AD146: 0 | AF146: 0 | AI146: 0 | AK146: 0 | AN146: 0 | AP146: 0 | AS146: 0 | AU146: 0 | AX146: 0 | AZ146: 0
A147: 8595 | B147: Other State Revenue 5 | E147: 0 | G147: 0 | J147: 0 | L147: 0 | N147: 0 | O147: 0 | Q147: 0 | T147: 0 | V147: 0 | Y147: 0 | AA147: 0 | AC147: 0 | AD147: 0 | AF147: 0 | AI147: 0 | AK147: 0 | AN147: 0 | AP147: 0 | AS147: 0 | AU147: 0 | AX147: 0 | AZ147: 0
A148: 8596 | B148: Other State Revenue 6 | E148: 0 | G148: 0 | J148: 0 | L148: 0 | N148: 0 | O148: 0 | Q148: 0 | T148: 0 | V148: 0 | Y148: 0 | AA148: 0 | AC148: 0 | AD148: 0 | AF148: 0 | AI148: 0 | AK148: 0 | AN148: 0 | AP148: 0 | AS148: 0 | AU148: 0 | AX148: 0 | AZ148: 0
A149: 8597 | B149: Other State Revenue 7 | E149: 0 | G149: 0 | J149: 0 | L149: 0 | N149: 0 | O149: 0 | Q149: 0 | T149: 0 | V149: 0 | Y149: 0 | AA149: 0 | AC149: 0 | AD149: 0 | AF149: 0 | AI149: 0 | AK149: 0 | AN149: 0 | AP149: 0 | AS149: 0 | AU149: 0 | AX149: 0 | AZ149: 0
A150: 8598 | B150: Other State Revenue 8 | E150: 0 | G150: 0 | J150: 0 | L150: 0 | N150: 0 | O150: 0 | Q150: 0 | T150: 0 | V150: 0 | Y150: 0 | AA150: 0 | AC150: 0 | AD150: 0 | AF150: 0 | AI150: 0 | AK150: 0 | AN150: 0 | AP150: 0 | AS150: 0 | AU150: 0 | AX150: 0 | AZ150: 0
A151: 8599 | B151: Other State Revenue 9 | E151: 0 | G151: 0 | J151: 0 | L151: 0 | N151: 0 | O151: 0 | Q151: 0 | T151: 0 | V151: 0 | Y151: 0 | AA151: 0 | AC151: 0 | AD151: 0 | AF151: 0 | AI151: 0 | AK151: 0 | AN151: 0 | AP151: 0 | AS151: 0 | AU151: 0 | AX151: 0 | AZ151: 0
B153: SUBTOTAL - Other State Revenue | D153: =SUM(D129:D152) -> 0 | E153: =SUM(E129:E152) -> 1569565.721 | G153: =SUM(D153:F153) -> 1569565.721 | I153: =SUM(I129:I152) -> 0 | J153: =SUM(J129:J152) -> 1552216.493 | L153: =SUM(I153:K153) -> 1552216.493 | N153: =INDEX($I153:$K153,1,MATCH(N$8,$I$8:$K$8,0))-INDEX($D153:$F153,1,MATCH(N$8,$D$8:$F$8,0)) -> 0 | O153: =INDEX($I153:$K153,1,MATCH(O$8,$I$8:$K$8,0))-INDEX($D153:$F153,1,MATCH(O$8,$D$8:$F$8,0)) -> -17349.22855 | Q153: =SUM(N153:P153) -> -17349.22855 | S153: =SUM(S129:S152) -> 0 | T153: =SUM(T129:T152) -> 959783.2502 | V153: =SUM(S153:U153) -> 959783.2502 | X153: =SUM(X129:X152) -> 0 | Y153: =SUM(Y129:Y152) -> 1601038.605 | AA153: =SUM(X153:Z153) -> 1601038.605 | AC153: =INDEX($X153:$Z153,1,MATCH(AC$8,$X$8:$Z$8,0))-INDEX($S153:$U153,1,MATCH(AC$8,$S$8:$U$8,0)) -> 0 | AD153: =INDEX($X153:$Z153,1,MATCH(AD$8,$X$8:$Z$8,0))-INDEX($S153:$U153,1,MATCH(AD$8,$S$8:$U$8,0)) -> 641255.3544 | AF153: =SUM(AC153:AE153) -> 641255.3544 | AH153: =SUM(AH129:AH152) -> 0 | AI153: =SUM(AI129:AI152) -> 1180763.807 | AK153: =SUM(AH153:AJ153) -> 1180763.807 | AM153: =SUM(AM129:AM152) -> 0 | AN153: =SUM(AN129:AN152) -> 1134343.389 | AP153: =SUM(AM153:AO153) -> 1134343.389 | AR153: =SUM(AR129:AR152) -> 0 | AS153: =SUM(AS129:AS152) -> 1125445.605 | AU153: =SUM(AR153:AT153) -> 1125445.605 | AW153: =SUM(AW129:AW152) -> 0 | AX153: =SUM(AX129:AX152) -> 1125680.493 | AZ153: =SUM(AW153:AY153) -> 1125680.493
A155: Local Revenue
G156: =SUM(D156:F156) -> 0 | L156: =SUM(I156:K156) -> 0 | N156: =INDEX($I156:$K156,1,MATCH(N$8,$I$8:$K$8,0))-INDEX($D156:$F156,1,MATCH(N$8,$D$8:$F$8,0)) -> 0 | O156: 0 | Q156: =SUM(N156:P156) -> 0 | V156: =SUM(S156:U156) -> 0 | AA156: =SUM(X156:Z156) -> 0 | AC156: =INDEX($X156:$Z156,1,MATCH(AC$8,$X$8:$Z$8,0))-INDEX($S156:$U156,1,MATCH(AC$8,$S$8:$U$8,0)) -> 0 | AD156: 0 | AF156: =SUM(AC156:AE156) -> 0 | AK156: =SUM(AH156:AJ156) -> 0 | AP156: =SUM(AM156:AO156) -> 0 | AU156: =SUM(AR156:AT156) -> 0 | AZ156: =SUM(AW156:AY156) -> 0
A157: 8600 | B157: Other Local Revenue | G157: 0 | L157: 0 | N157: 0 | O157: 0 | Q157: 0 | V157: 0 | AA157: 0 | AC157: 0 | AD157: 0 | AF157: 0 | AK157: 0 | AP157: 0 | AU157: 0 | AZ157: 0
A158: 8631 | B158: Sales | E158: 0 | G158: 0 | J158: 0 | L158: 0 | N158: 0 | O158: 0 | Q158: 0 | T158: 0 | V158: 0 | Y158: 0 | AA158: 0 | AC158: 0 | AD158: 0 | AF158: 0 | AI158: 0 | AK158: 0 | AN158: 0 | AP158: 0 | AS158: 0 | AU158: 0 | AX158: 0 | AZ158: 0
A159: 8632 | B159: Sale of Publications | E159: 0 | G159: 0 | J159: 0 | L159: 0 | N159: 0 | O159: 0 | Q159: 0 | T159: 0 | V159: 0 | Y159: 0 | AA159: 0 | AC159: 0 | AD159: 0 | AF159: 0 | AI159: 0 | AK159: 0 | AN159: 0 | AP159: 0 | AS159: 0 | AU159: 0 | AX159: 0 | AZ159: 0
A160: 8634 | B160: Food Service Sales | E160: 20047.5 | G160: 20047.5 | J160: 983.53 | L160: 983.53 | N160: 0 | O160: -19063.97 | Q160: -19063.97 | T160: 20448.45 | V160: 20448.45 | Y160: 1036.02 | AA160: 1036.02 | AC160: 0 | AD160: -19412.43 | AF160: -19412.43 | AI160: 1119.348 | AK160: 1119.348 | AN160: 1151.41068 | AP160: 1151.41068 | AS160: 1174.438894 | AU160: 1174.438894 | AX160: 1197.927671 | AZ160: 1197.927671
A161: 8636 | B161: Uniforms | E161: 0 | G161: 0 | J161: 0 | L161: 0 | N161: 0 | O161: 0 | Q161: 0 | T161: 0 | V161: 0 | Y161: 0 | AA161: 0 | AC161: 0 | AD161: 0 | AF161: 0 | AI161: 0 | AK161: 0 | AN161: 0 | AP161: 0 | AS161: 0 | AU161: 0 | AX161: 0 | AZ161: 0
A162: 8638 | B162: Merchandise Sales | E162: 0 | G162: 0 | J162: 0 | L162: 0 | N162: 0 | O162: 0 | Q162: 0 | T162: 0 | V162: 0 | Y162: 0 | AA162: 0 | AC162: 0 | AD162: 0 | AF162: 0 | AI162: 0 | AK162: 0 | AN162: 0 | AP162: 0 | AS162: 0 | AU162: 0 | AX162: 0 | AZ162: 0
A163: 8639 | B163: All Other Sales | E163: 0 | G163: 0 | J163: 0 | L163: 0 | N163: 0 | O163: 0 | Q163: 0 | T163: 0 | V163: 0 | Y163: 0 | AA163: 0 | AC163: 0 | AD163: 0 | AF163: 0 | AI163: 0 | AK163: 0 | AN163: 0 | AP163: 0 | AS163: 0 | AU163: 0 | AX163: 0 | AZ163: 0
A164: 8650 | B164: Leases and Rentals | E164: 0 | G164: 0 | J164: 0 | L164: 0 | N164: 0 | O164: 0 | Q164: 0 | T164: 0 | V164: 0 | Y164: 0 | AA164: 0 | AC164: 0 | AD164: 0 | AF164: 0 | AI164: 0 | AK164: 0 | AN164: 0 | AP164: 0 | AS164: 0 | AU164: 0 | AX164: 0 | AZ164: 0
A165: 8660 | B165: Interest | E165: 1 | G165: 1 | J165: 5 | L165: 5 | N165: 0 | O165: 4 | Q165: 4 | T165: 1 | V165: 1 | Y165: 5 | AA165: 5 | AC165: 0 | AD165: 4 | AF165: 4 | AI165: 5 | AK165: 5 | AN165: 5 | AP165: 5 | AS165: 5 | AU165: 5 | AX165: 5 | AZ165: 5
A166: 8661 | B166: Interest - Temporarily Restricted | E166: 0 | G166: 0 | J166: 0 | L166: 0 | N166: 0 | O166: 0 | Q166: 0 | T166: 0 | V166: 0 | Y166: 0 | AA166: 0 | AC166: 0 | AD166: 0 | AF166: 0 | AI166: 0 | AK166: 0 | AN166: 0 | AP166: 0 | AS166: 0 | AU166: 0 | AX166: 0 | AZ166: 0
A167: 8662 | B167: Net Increase (Decrease | E167: 0 | G167: 0 | J167: 0 | L167: 0 | N167: 0 | O167: 0 | Q167: 0 | T167: 0 | V167: 0 | Y167: 0 | AA167: 0 | AC167: 0 | AD167: 0 | AF167: 0 | AI167: 0 | AK167: 0 | AN167: 0 | AP167: 0 | AS167: 0 | AU167: 0 | AX167: 0 | AZ167: 0
A168: 8670 | B168: Fees and Contracts | E168: 0 | G168: 0 | J168: 0 | L168: 0 | N168: 0 | O168: 0 | Q168: 0 | T168: 0 | V168: 0 | Y168: 0 | AA168: 0 | AC168: 0 | AD168: 0 | AF168: 0 | AI168: 0 | AK168: 0 | AN168: 0 | AP168: 0 | AS168: 0 | AU168: 0 | AX168: 0 | AZ168: 0
A169: 8671 | B169: Adult Education Fees | E169: 0 | G169: 0 | J169: 0 | L169: 0 | N169: 0 | O169: 0 | Q169: 0 | T169: 0 | V169: 0 | Y169: 0 | AA169: 0 | AC169: 0 | AD169: 0 | AF169: 0 | AI169: 0 | AK169: 0 | AN169: 0 | AP169: 0 | AS169: 0 | AU169: 0 | AX169: 0 | AZ169: 0
A170: 8672 | B170: Pre School Revenue | E170: 0 | G170: 0 | J170: 0 | L170: 0 | N170: 0 | O170: 0 | Q170: 0 | T170: 0 | V170: 0 | Y170: 0 | AA170: 0 | AC170: 0 | AD170: 0 | AF170: 0 | AI170: 0 | AK170: 0 | AN170: 0 | AP170: 0 | AS170: 0 | AU170: 0 | AX170: 0 | AZ170: 0
A171: 8673 | B171: Child Development Parent Fees | E171: 0 | G171: 0 | J171: 0 | L171: 0 | N171: 0 | O171: 0 | Q171: 0 | T171: 0 | V171: 0 | Y171: 0 | AA171: 0 | AC171: 0 | AD171: 0 | AF171: 0 | AI171: 0 | AK171: 0 | AN171: 0 | AP171: 0 | AS171: 0 | AU171: 0 | AX171: 0 | AZ171: 0
A172: 8675 | B172: Transportation Fees from Individuals | E172: 0 | G172: 0 | J172: 0 | L172: 0 | N172: 0 | O172: 0 | Q172: 0 | T172: 0 | V172: 0 | Y172: 0 | AA172: 0 | AC172: 0 | AD172: 0 | AF172: 0 | AI172: 0 | AK172: 0 | AN172: 0 | AP172: 0 | AS172: 0 | AU172: 0 | AX172: 0 | AZ172: 0
A173: 8676 | B173: After School Program Revenue | E173: 42840 | G173: 42840 | J173: 42840 | L173: 42840 | N173: 0 | O173: 0 | Q173: 0 | T173: 42840 | V173: 42840 | Y173: 42840 | AA173: 42840 | AC173: 0 | AD173: 0 | AF173: 0 | AI173: 42840 | AK173: 42840 | AN173: 42840 | AP173: 42840 | AS173: 42840 | AU173: 42840 | AX173: 42840 | AZ173: 42840
A174: 8678 | B174: Parking Fees | E174: 0 | G174: 0 | J174: 0 | L174: 0 | N174: 0 | O174: 0 | Q174: 0 | T174: 0 | V174: 0 | Y174: 0 | AA174: 0 | AC174: 0 | AD174: 0 | AF174: 0 | AI174: 0 | AK174: 0 | AN174: 0 | AP174: 0 | AS174: 0 | AU174: 0 | AX174: 0 | AZ174: 0
A175: 8681 | B175: Fees & Contracts 1 | E175: 0 | G175: 0 | J175: 0 | L175: 0 | N175: 0 | O175: 0 | Q175: 0 | T175: 0 | V175: 0 | Y175: 0 | AA175: 0 | AC175: 0 | AD175: 0 | AF175: 0 | AI175: 0 | AK175: 0 | AN175: 0 | AP175: 0 | AS175: 0 | AU175: 0 | AX175: 0 | AZ175: 0
A176: 8682 | B176: Fees & Contracts 2 | E176: 0 | G176: 0 | J176: 0 | L176: 0 | N176: =INDEX($I176:$K176,1,MATCH(N$8,$I$8:$K$8,0))-INDEX($D176:$F176,1,MATCH(N$8,$D$8:$F$8,0)) -> 0 | O176: 0 | Q176: 0 | T176: 0 | V176: 0 | Y176: 0 | AA176: 0 | AC176: =INDEX($X176:$Z176,1,MATCH(AC$8,$X$8:$Z$8,0))-INDEX($S176:$U176,1,MATCH(AC$8,$S$8:$U$8,0)) -> 0 | AD176: 0 | AF176: 0 | AI176: 0 | AK176: 0 | AN176: 0 | AP176: 0 | AS176: 0 | AU176: 0 | AX176: 0 | AZ176: 0
A177: 8683 | B177: Fees & Contracts 3 | E177: 0 | G177: 0 | J177: 0 | L177: 0 | N177: 0 | O177: 0 | Q177: 0 | T177: 0 | V177: 0 | Y177: 0 | AA177: 0 | AC177: 0 | AD177: 0 | AF177: 0 | AI177: 0 | AK177: 0 | AN177: 0 | AP177: 0 | AS177: 0 | AU177: 0 | AX177: 0 | AZ177: 0
A178: 8684 | B178: Fees & Contracts 4 | E178: 0 | G178: 0 | J178: 0 | L178: 0 | N178: 0 | O178: 0 | Q178: 0 | T178: 0 | V178: 0 | Y178: 0 | AA178: 0 | AC178: 0 | AD178: 0 | AF178: 0 | AI178: 0 | AK178: 0 | AN178: 0 | AP178: 0 | AS178: 0 | AU178: 0 | AX178: 0 | AZ178: 0
A179: 8685 | B179: Fees & Contracts 5 | E179: 0 | G179: 0 | J179: 0 | L179: 0 | N179: 0 | O179: 0 | Q179: 0 | T179: 0 | V179: 0 | Y179: 0 | AA179: 0 | AC179: 0 | AD179: 0 | AF179: 0 | AI179: 0 | AK179: 0 | AN179: 0 | AP179: 0 | AS179: 0 | AU179: 0 | AX179: 0 | AZ179: 0
A180: 8686 | B180: Fees & Contracts 6 | E180: 0 | G180: 0 | J180: 0 | L180: 0 | N180: 0 | O180: 0 | Q180: 0 | T180: 0 | V180: 0 | Y180: 0 | AA180: 0 | AC180: 0 | AD180: 0 | AF180: 0 | AI180: 0 | AK180: 0 | AN180: 0 | AP180: 0 | AS180: 0 | AU180: 0 | AX180: 0 | AZ180: 0
A181: 8687 | B181: Fees & Contracts 7 | E181: 0 | G181: 0 | J181: 0 | L181: 0 | N181: 0 | O181: 0 | Q181: 0 | T181: 0 | V181: 0 | Y181: 0 | AA181: 0 | AC181: 0 | AD181: 0 | AF181: 0 | AI181: 0 | AK181: 0 | AN181: 0 | AP181: 0 | AS181: 0 | AU181: 0 | AX181: 0 | AZ181: 0
A182: 8688 | B182: Fees & Contracts 8 | E182: 0 | G182: 0 | J182: 0 | L182: 0 | N182: 0 | O182: 0 | Q182: 0 | T182: 0 | V182: 0 | Y182: 0 | AA182: 0 | AC182: 0 | AD182: 0 | AF182: 0 | AI182: 0 | AK182: 0 | AN182: 0 | AP182: 0 | AS182: 0 | AU182: 0 | AX182: 0 | AZ182: 0
A183: 8689 | B183: All Other Fees and Contracts | E183: 0 | G183: 0 | J183: 0 | L183: 0 | N183: 0 | O183: 0 | Q183: 0 | T183: 0 | V183: 0 | Y183: 0 | AA183: 0 | AC183: 0 | AD183: 0 | AF183: 0 | AI183: 0 | AK183: 0 | AN183: 0 | AP183: 0 | AS183: 0 | AU183: 0 | AX183: 0 | AZ183: 0
A184: 8690 | B184: Other Local Revenue | E184: 16500 | G184: 16500 | J184: 18000 | L184: 18000 | N184: 0 | O184: 1500 | Q184: 1500 | T184: 16500 | V184: 16500 | Y184: 18000 | AA184: 18000 | AC184: 0 | AD184: 1500 | AF184: 1500 | AI184: 18000 | AK184: 18000 | AN184: 18000 | AP184: 18000 | AS184: 18000 | AU184: 18000 | AX184: 18000 | AZ184: 18000
A185: 8693 | B185: Field Trips | E185: 0 | G185: 0 | J185: 0 | L185: 0 | N185: 0 | O185: 0 | Q185: 0 | T185: 0 | V185: 0 | Y185: 0 | AA185: 0 | AC185: 0 | AD185: 0 | AF185: 0 | AI185: 0 | AK185: 0 | AN185: 0 | AP185: 0 | AS185: 0 | AU185: 0 | AX185: 0 | AZ185: 0
A186: 8697 | B186: Pass through revenue from local sources | E186: 0 | G186: 0 | J186: 0 | L186: 0 | N186: 0 | O186: 0 | Q186: 0 | T186: 0 | V186: 0 | Y186: 0 | AA186: 0 | AC186: 0 | AD186: 0 | AF186: 0 | AI186: 0 | AK186: 0 | AN186: 0 | AP186: 0 | AS186: 0 | AU186: 0 | AX186: 0 | AZ186: 0
A187: 8699 | B187: All Other Local Revenue | E187: 0 | G187: 0 | J187: 0 | L187: 0 | N187: 0 | O187: 0 | Q187: 0 | T187: 0 | V187: 0 | Y187: 0 | AA187: 0 | AC187: 0 | AD187: 0 | AF187: 0 | AI187: 0 | AK187: 0 | AN187: 0 | AP187: 0 | AS187: 0 | AU187: 0 | AX187: 0 | AZ187: 0
A188: 8701 | B188: Oakland Measure N | E188: 375360 | G188: =SUM(D188:F188) -> 375360 | J188: 350000 | L188: =SUM(I188:K188) -> 350000 | N188: 0 | O188: -25360 | Q188: =SUM(N188:P188) -> -25360 | T188: 375360 | V188: =SUM(S188:U188) -> 375360 | Y188: 350000 | AA188: =SUM(X188:Z188) -> 350000 | AC188: 0 | AD188: -25360 | AF188: =SUM(AC188:AE188) -> -25360 | AI188: 350000 | AK188: =SUM(AH188:AJ188) -> 350000 | AN188: 350000 | AP188: =SUM(AM188:AO188) -> 350000 | AS188: 350000 | AU188: =SUM(AR188:AT188) -> 350000 | AX188: 350000 | AZ188: =SUM(AW188:AY188) -> 350000
A189: 8702 | B189: Revenue Program 2 | E189: 0 | G189: 0 | J189: 0 | L189: 0 | N189: 0 | O189: 0 | Q189: 0 | T189: 0 | V189: 0 | Y189: 0 | AA189: 0 | AC189: 0 | AD189: 0 | AF189: 0 | AI189: 0 | AK189: 0 | AN189: 0 | AP189: 0 | AS189: 0 | AU189: 0 | AX189: 0 | AZ189: 0
A190: 8703 | B190: Oakland Measure G1 | E190: 50000 | G190: 50000 | J190: 63000 | L190: 63000 | N190: 0 | O190: 13000 | Q190: 13000 | T190: 50000 | V190: 50000 | Y190: 64000 | AA190: 64000 | AC190: 0 | AD190: 14000 | AF190: 14000 | AI190: 64000 | AK190: 64000 | AN190: 64000 | AP190: 64000 | AS190: 64000 | AU190: 64000 | AX190: 64000 | AZ190: 64000
A191: 8704 | B191: Student Activities | E191: 0 | G191: 0 | J191: 30000 | L191: 30000 | N191: 0 | O191: 30000 | Q191: 30000 | T191: 0 | V191: 0 | Y191: 30000 | AA191: 30000 | AC191: 0 | AD191: 30000 | AF191: 30000 | AI191: 30000 | AK191: 30000 | AN191: 30000 | AP191: 30000 | AS191: 30000 | AU191: 30000 | AX191: 30000 | AZ191: 30000
A192: 8705 | B192: Revenue Program 5 | E192: 0 | G192: 0 | J192: 0 | L192: 0 | N192: 0 | O192: 0 | Q192: 0 | T192: 0 | V192: 0 | Y192: 0 | AA192: 0 | AC192: 0 | AD192: 0 | AF192: 0 | AI192: 0 | AK192: 0 | AN192: 0 | AP192: 0 | AS192: 0 | AU192: 0 | AX192: 0 | AZ192: 0
A193: 8706 | B193: Revenue Program 6 | E193: 0 | G193: 0 | J193: 0 | L193: 0 | N193: 0 | O193: 0 | Q193: 0 | T193: 0 | V193: 0 | Y193: 0 | AA193: 0 | AC193: 0 | AD193: 0 | AF193: 0 | AI193: 0 | AK193: 0 | AN193: 0 | AP193: 0 | AS193: 0 | AU193: 0 | AX193: 0 | AZ193: 0
A194: 8707 | B194: Revenue Program 7 | E194: 0 | G194: 0 | J194: 0 | L194: 0 | N194: 0 | O194: 0 | Q194: 0 | T194: 0 | V194: 0 | Y194: 0 | AA194: 0 | AC194: 0 | AD194: 0 | AF194: 0 | AI194: 0 | AK194: 0 | AN194: 0 | AP194: 0 | AS194: 0 | AU194: 0 | AX194: 0 | AZ194: 0
A195: 8708 | B195: Revenue Program 8 | E195: 0 | G195: 0 | J195: 0 | L195: 0 | N195: 0 | O195: 0 | Q195: 0 | T195: 0 | V195: 0 | Y195: 0 | AA195: 0 | AC195: 0 | AD195: 0 | AF195: 0 | AI195: 0 | AK195: 0 | AN195: 0 | AP195: 0 | AS195: 0 | AU195: 0 | AX195: 0 | AZ195: 0
A196: 8709 | B196: Revenue Program 9 | E196: 0 | G196: 0 | J196: 0 | L196: 0 | N196: =INDEX($I196:$K196,1,MATCH(N$8,$I$8:$K$8,0))-INDEX($D196:$F196,1,MATCH(N$8,$D$8:$F$8,0)) -> 0 | O196: 0 | Q196: 0 | T196: 0 | V196: 0 | Y196: 0 | AA196: 0 | AC196: =INDEX($X196:$Z196,1,MATCH(AC$8,$X$8:$Z$8,0))-INDEX($S196:$U196,1,MATCH(AC$8,$S$8:$U$8,0)) -> 0 | AD196: 0 | AF196: 0 | AI196: 0 | AK196: 0 | AN196: 0 | AP196: 0 | AS196: 0 | AU196: 0 | AX196: 0 | AZ196: 0
A197: 8711 | B197: Revenue Program 11 | E197: 0 | G197: 0 | J197: 0 | L197: 0 | N197: 0 | O197: 0 | Q197: 0 | T197: 0 | V197: 0 | Y197: 0 | AA197: 0 | AC197: 0 | AD197: 0 | AF197: 0 | AI197: 0 | AK197: 0 | AN197: 0 | AP197: 0 | AS197: 0 | AU197: 0 | AX197: 0 | AZ197: 0
A198: 8712 | B198: Revenue Program 12 | E198: 0 | G198: 0 | J198: 0 | L198: 0 | N198: 0 | O198: 0 | Q198: 0 | T198: 0 | V198: 0 | Y198: 0 | AA198: 0 | AC198: 0 | AD198: 0 | AF198: 0 | AI198: 0 | AK198: 0 | AN198: 0 | AP198: 0 | AS198: 0 | AU198: 0 | AX198: 0 | AZ198: 0
A199: 8713 | B199: Revenue Program 13 | E199: 0 | G199: 0 | J199: 0 | L199: 0 | N199: 0 | O199: 0 | Q199: 0 | T199: 0 | V199: 0 | Y199: 0 | AA199: 0 | AC199: 0 | AD199: 0 | AF199: 0 | AI199: 0 | AK199: 0 | AN199: 0 | AP199: 0 | AS199: 0 | AU199: 0 | AX199: 0 | AZ199: 0
A200: 8714 | B200: Revenue Program 14 | E200: 0 | G200: 0 | J200: 0 | L200: 0 | N200: 0 | O200: 0 | Q200: 0 | T200: 0 | V200: 0 | Y200: 0 | AA200: 0 | AC200: 0 | AD200: 0 | AF200: 0 | AI200: 0 | AK200: 0 | AN200: 0 | AP200: 0 | AS200: 0 | AU200: 0 | AX200: 0 | AZ200: 0
A201: 8715 | B201: Revenue Program 15 | E201: 0 | G201: 0 | J201: 0 | L201: 0 | N201: 0 | O201: 0 | Q201: 0 | T201: 0 | V201: 0 | Y201: 0 | AA201: 0 | AC201: 0 | AD201: 0 | AF201: 0 | AI201: 0 | AK201: 0 | AN201: 0 | AP201: 0 | AS201: 0 | AU201: 0 | AX201: 0 | AZ201: 0
A202: 8716 | B202: Revenue Program 16 | E202: 0 | G202: 0 | J202: 0 | L202: 0 | N202: 0 | O202: 0 | Q202: 0 | T202: 0 | V202: 0 | Y202: 0 | AA202: 0 | AC202: 0 | AD202: 0 | AF202: 0 | AI202: 0 | AK202: 0 | AN202: 0 | AP202: 0 | AS202: 0 | AU202: 0 | AX202: 0 | AZ202: 0
A203: 8717 | B203: Revenue Program 17 | E203: 0 | G203: 0 | J203: 0 | L203: 0 | N203: 0 | O203: 0 | Q203: 0 | T203: 0 | V203: 0 | Y203: 0 | AA203: 0 | AC203: 0 | AD203: 0 | AF203: 0 | AI203: 0 | AK203: 0 | AN203: 0 | AP203: 0 | AS203: 0 | AU203: 0 | AX203: 0 | AZ203: 0
A204: 8718 | B204: Revenue Program 18 | E204: 0 | G204: 0 | J204: 0 | L204: 0 | N204: 0 | O204: 0 | Q204: 0 | T204: 0 | V204: 0 | Y204: 0 | AA204: 0 | AC204: 0 | AD204: 0 | AF204: 0 | AI204: 0 | AK204: 0 | AN204: 0 | AP204: 0 | AS204: 0 | AU204: 0 | AX204: 0 | AZ204: 0
A205: 8719 | B205: Revenue Program 19 | E205: 0 | G205: 0 | J205: 0 | L205: 0 | N205: 0 | O205: 0 | Q205: 0 | T205: 0 | V205: 0 | Y205: 0 | AA205: 0 | AC205: 0 | AD205: 0 | AF205: 0 | AI205: 0 | AK205: 0 | AN205: 0 | AP205: 0 | AS205: 0 | AU205: 0 | AX205: 0 | AZ205: 0
A206: 8720 | B206: Revenue Program 20 | E206: 0 | G206: 0 | J206: 0 | L206: 0 | N206: 0 | O206: 0 | Q206: 0 | T206: 0 | V206: 0 | Y206: 0 | AA206: 0 | AC206: 0 | AD206: 0 | AF206: 0 | AI206: 0 | AK206: 0 | AN206: 0 | AP206: 0 | AS206: 0 | AU206: 0 | AX206: 0 | AZ206: 0
A207: 8721 | B207: CMO Fees Revenue | E207: 0 | G207: 0 | J207: 0 | L207: 0 | N207: 0 | O207: 0 | Q207: 0 | T207: 0 | V207: 0 | Y207: 0 | AA207: 0 | AC207: 0 | AD207: 0 | AF207: 0 | AI207: 0 | AK207: 0 | AN207: 0 | AP207: 0 | AS207: 0 | AU207: 0 | AX207: 0 | AZ207: 0
A208: 8722 | B208: Revenue Program 22 | E208: 0 | G208: 0 | J208: 0 | L208: 0 | N208: 0 | O208: 0 | Q208: 0 | T208: 0 | V208: 0 | Y208: 0 | AA208: 0 | AC208: 0 | AD208: 0 | AF208: 0 | AI208: 0 | AK208: 0 | AN208: 0 | AP208: 0 | AS208: 0 | AU208: 0 | AX208: 0 | AZ208: 0
A209: 8723 | B209: Revenue Program 23 | E209: 0 | G209: 0 | J209: 0 | L209: 0 | N209: 0 | O209: 0 | Q209: 0 | T209: 0 | V209: 0 | Y209: 0 | AA209: 0 | AC209: 0 | AD209: 0 | AF209: 0 | AI209: 0 | AK209: 0 | AN209: 0 | AP209: 0 | AS209: 0 | AU209: 0 | AX209: 0 | AZ209: 0
A210: 8724 | B210: Revenue Program 24 | E210: 0 | G210: 0 | J210: 0 | L210: 0 | N210: 0 | O210: 0 | Q210: 0 | T210: 0 | V210: 0 | Y210: 0 | AA210: 0 | AC210: 0 | AD210: 0 | AF210: 0 | AI210: 0 | AK210: 0 | AN210: 0 | AP210: 0 | AS210: 0 | AU210: 0 | AX210: 0 | AZ210: 0
A211: 8725 | B211: Revenue Program 25 | E211: 0 | G211: 0 | J211: 0 | L211: 0 | N211: 0 | O211: 0 | Q211: 0 | T211: 0 | V211: 0 | Y211: 0 | AA211: 0 | AC211: 0 | AD211: 0 | AF211: 0 | AI211: 0 | AK211: 0 | AN211: 0 | AP211: 0 | AS211: 0 | AU211: 0 | AX211: 0 | AZ211: 0
A212: 8726 | B212: Revenue Program 26 | E212: 0 | G212: 0 | J212: 0 | L212: 0 | N212: 0 | O212: 0 | Q212: 0 | T212: 0 | V212: 0 | Y212: 0 | AA212: 0 | AC212: 0 | AD212: 0 | AF212: 0 | AI212: 0 | AK212: 0 | AN212: 0 | AP212: 0 | AS212: 0 | AU212: 0 | AX212: 0 | AZ212: 0
A213: 8727 | B213: Revenue Program 27 | E213: 0 | G213: 0 | J213: 0 | L213: 0 | N213: 0 | O213: 0 | Q213: 0 | T213: 0 | V213: 0 | Y213: 0 | AA213: 0 | AC213: 0 | AD213: 0 | AF213: 0 | AI213: 0 | AK213: 0 | AN213: 0 | AP213: 0 | AS213: 0 | AU213: 0 | AX213: 0 | AZ213: 0
A214: 8728 | B214: Revenue Program 28 | E214: 0 | G214: 0 | J214: 0 | L214: 0 | N214: 0 | O214: 0 | Q214: 0 | T214: 0 | V214: 0 | Y214: 0 | AA214: 0 | AC214: 0 | AD214: 0 | AF214: 0 | AI214: 0 | AK214: 0 | AN214: 0 | AP214: 0 | AS214: 0 | AU214: 0 | AX214: 0 | AZ214: 0
A215: 8729 | B215: Revenue Program 29 | E215: 0 | G215: 0 | J215: 0 | L215: 0 | N215: 0 | O215: 0 | Q215: 0 | T215: 0 | V215: 0 | Y215: 0 | AA215: 0 | AC215: 0 | AD215: 0 | AF215: 0 | AI215: 0 | AK215: 0 | AN215: 0 | AP215: 0 | AS215: 0 | AU215: 0 | AX215: 0 | AZ215: 0
A216: 8730 | B216: Revenue Program 30 | E216: 0 | G216: 0 | J216: 0 | L216: 0 | N216: =INDEX($I216:$K216,1,MATCH(N$8,$I$8:$K$8,0))-INDEX($D216:$F216,1,MATCH(N$8,$D$8:$F$8,0)) -> 0 | O216: 0 | Q216: 0 | T216: 0 | V216: 0 | Y216: 0 | AA216: 0 | AC216: =INDEX($X216:$Z216,1,MATCH(AC$8,$X$8:$Z$8,0))-INDEX($S216:$U216,1,MATCH(AC$8,$S$8:$U$8,0)) -> 0 | AD216: 0 | AF216: 0 | AI216: 0 | AK216: 0 | AN216: 0 | AP216: 0 | AS216: 0 | AU216: 0 | AX216: 0 | AZ216: 0
A217: 8731 | B217: Revenue Program 31 | E217: 0 | G217: 0 | J217: 0 | L217: 0 | N217: 0 | O217: 0 | Q217: 0 | T217: 0 | V217: 0 | Y217: 0 | AA217: 0 | AC217: 0 | AD217: 0 | AF217: 0 | AI217: 0 | AK217: 0 | AN217: 0 | AP217: 0 | AS217: 0 | AU217: 0 | AX217: 0 | AZ217: 0
A218: 8732 | B218: Revenue Program 32 | E218: 0 | G218: 0 | J218: 0 | L218: 0 | N218: 0 | O218: 0 | Q218: 0 | T218: 0 | V218: 0 | Y218: 0 | AA218: 0 | AC218: 0 | AD218: 0 | AF218: 0 | AI218: 0 | AK218: 0 | AN218: 0 | AP218: 0 | AS218: 0 | AU218: 0 | AX218: 0 | AZ218: 0
A219: 8733 | B219: Revenue Program 33 | E219: 0 | G219: 0 | J219: 0 | L219: 0 | N219: 0 | O219: 0 | Q219: 0 | T219: 0 | V219: 0 | Y219: 0 | AA219: 0 | AC219: 0 | AD219: 0 | AF219: 0 | AI219: 0 | AK219: 0 | AN219: 0 | AP219: 0 | AS219: 0 | AU219: 0 | AX219: 0 | AZ219: 0
A220: 8734 | B220: Revenue Program 34 | E220: 0 | G220: =SUM(D220:F220) -> 0 | J220: 0 | L220: =SUM(I220:K220) -> 0 | N220: 0 | O220: 0 | Q220: =SUM(N220:P220) -> 0 | T220: 0 | V220: =SUM(S220:U220) -> 0 | Y220: 0 | AA220: =SUM(X220:Z220) -> 0 | AC220: 0 | AD220: 0 | AF220: =SUM(AC220:AE220) -> 0 | AI220: 0 | AK220: =SUM(AH220:AJ220) -> 0 | AN220: 0 | AP220: =SUM(AM220:AO220) -> 0 | AS220: 0 | AU220: =SUM(AR220:AT220) -> 0 | AX220: 0 | AZ220: =SUM(AW220:AY220) -> 0
A221: 8735 | B221: Revenue Program 35 | E221: 0 | G221: 0 | J221: 0 | L221: 0 | N221: 0 | O221: 0 | Q221: 0 | T221: 0 | V221: 0 | Y221: 0 | AA221: 0 | AC221: 0 | AD221: 0 | AF221: 0 | AI221: 0 | AK221: 0 | AN221: 0 | AP221: 0 | AS221: 0 | AU221: 0 | AX221: 0 | AZ221: 0
... 377 more rows

Sheet Cash Flow (hidden)
A1: East Bay Innovation Academy
A2: Monthly Cash Forecast
A3: As of May FY2023
C5: 2022-23 | Q5: 2023-24 | AE5: 2024-25 | AS5: 2025-26 | BG5: 2026-27 | BU5: 2027-28
C6: Actuals & Forecast | Q6: Actuals & Forecast | AE6: Actuals & Forecast | AS6: Actuals & Forecast | BG6: Actuals & Forecast | BU6: Actuals & Forecast
C7: Jul | D7: Aug | E7: Sep | F7: Oct | G7: Nov | H7: Dec | I7: Jan | J7: Feb | K7: Mar | L7: Apr | M7: May | N7: Jun | O7: Forecast | P7: Remaining | Q7: Jul | R7: Aug | S7: Sep | T7: Oct | U7: Nov | V7: Dec | W7: Jan | X7: Feb | Y7: Mar | Z7: Apr | AA7: May | AB7: Jun | AC7: Forecast | AD7: Remaining | AE7: Jul | AF7: Aug | AG7: Sep | AH7: Oct | AI7: Nov | AJ7: Dec | AK7: Jan | AL7: Feb | AM7: Mar | AN7: Apr | AO7: May | AP7: Jun | AQ7: Forecast | AR7: Remaining | AS7: Jul | AT7: Aug | AU7: Sep | AV7: Oct | AW7: Nov | AX7: Dec | AY7: Jan | AZ7: Feb | BA7: Mar | BB7: Apr | BC7: May | BD7: Jun | BE7: Forecast | BF7: Remaining | BG7: Jul | BH7: Aug | BI7: Sep | BJ7: Oct | BK7: Nov | BL7: Dec | BM7: Jan | BN7: Feb | BO7: Mar | BP7: Apr | BQ7: May | BR7: Jun | BS7: Forecast | BT7: Remaining | BU7: Jul | BV7: Aug | BW7: Sep | BX7: Oct | BY7: Nov | BZ7: Dec | CA7: Jan | CB7: Feb | CC7: Mar | CD7: Apr | CE7: May | CF7: Jun | CG7: Forecast | CH7: Remaining
C8: Actuals | D8: Actuals | E8: Actuals | F8: Actuals | G8: Actuals | H8: Actuals | I8: Actuals | J8: Actuals | K8: Actuals | L8: Actuals | M8: Forecast | N8: Forecast | P8: Balance | Q8: Forecast | R8: Forecast | S8: Forecast | T8: Forecast | U8: Forecast | V8: Forecast | W8: Forecast | X8: Forecast | Y8: Forecast | Z8: Forecast | AA8: Forecast | AB8: Forecast | AD8: Balance | AE8: Forecast | AF8: Forecast | AG8: Forecast | AH8: Forecast | AI8: Forecast | AJ8: Forecast | AK8: Forecast | AL8: Forecast | AM8: Forecast | AN8: Forecast | AO8: Forecast | AP8: Forecast | AR8: Balance | AS8: Forecast | AT8: Forecast | AU8: Forecast | AV8: Forecast | AW8: Forecast | AX8: Forecast | AY8: Forecast | AZ8: Forecast | BA8: Forecast | BB8: Forecast | BC8: Forecast | BD8: Forecast | BF8: Balance | BG8: Forecast | BH8: Forecast | BI8: Forecast | BJ8: Forecast | BK8: Forecast | BL8: Forecast | BM8: Forecast | BN8: Forecast | BO8: Forecast | BP8: Forecast | BQ8: Forecast | BR8: Forecast | BT8: Balance | BU8: Forecast | BV8: Forecast | BW8: Forecast | BX8: Forecast | BY8: Forecast | BZ8: Forecast | CA8: Forecast | CB8: Forecast | CC8: Forecast | CD8: Forecast | CE8: Forecast | CF8: Forecast | CH8: Balance
A10: Beginning Cash | C10: 1363097.27 | D10: =C578 -> 964467.63 | E10: =D578 -> 704743.49 | F10: =E578 -> 695738.02 | G10: =F578 -> 608837.55 | H10: =G578 -> 813835.73 | I10: =H578 -> 675261.75 | J10: =I578 -> 970198.91 | K10: =J578 -> 622870.33 | L10: =K578 -> 876735.65 | M10: =L578 -> 1841700.3 | N10: =M578 -> 1861689.075 | Q10: =N578 -> 2089382.692 | R10: =Q578 -> 1125724.839 | S10: =R578 -> 1076923.084 | T10: =S578 -> 1106171.467 | U10: =T578 -> 1097599.831 | V10: =U578 -> 1081526.96 | W10: =V578 -> 1002419.531 | X10: =W578 -> 1007308.045 | Y10: =X578 -> 848689.9096 | Z10: =Y578 -> 1359669.73 | AA10: =Z578 -> 1448254.337 | AB10: =AA578 -> 1685513.165 | AE10: =AB578 -> 1804557.932 | AF10: =AE578 -> 1341988.203 | AG10: =AF578 -> 1128783.195 | AH10: =AG578 -> 1126667.239 | AI10: =AH578 -> 1095356.544 | AJ10: =AI578 -> 1055282.891 | AK10: =AJ578 -> 1022470.581 | AL10: =AK578 -> 998317.2435 | AM10: =AL578 -> 802764.8688 | AN10: =AM578 -> 1321318.638 | AO10: =AN578 -> 1401312.783 | AP10: =AO578 -> 1634222.122 | AS10: =AP578 -> 1729847.462 | AT10: =AS578 -> 1277848.284 | AU10: =AT578 -> 1090344.131 | AV10: =AU578 -> 1090127.708 | AW10: =AV578 -> 1078506.001 | AX10: =AW578 -> 1056979.984 | AY10: =AX578 -> 1045209.76 | AZ10: =AY578 -> 1041095.488 | BA10: =AZ578 -> 865487.6717 | BB10: =BA578 -> 1370424.478 | BC10: =BB578 -> 1432939.136 | BD10: =BC578 -> 1652429.741 | BG10: =BD578 -> 1729803.617 | BH10: =BG578 -> 1251496.578 | BI10: =BH578 -> 1052935.335 | BJ10: =BI578 -> 1042205.614 | BK10: =BJ578 -> 1029761.614 | BL10: =BK578 -> 1007266.58 | BM10: =BL578 -> 995014.7386 | BN10: =BM578 -> 990437.7116 | BO10: =BN578 -> 814028.9316 | BP10: =BO578 -> 1320382.843 | BQ10: =BP578 -> 1382578.957 | BR10: =BQ578 -> 1603203.948 | BU10: =BR578 -> 1678257.946 | BV10: =BU578 -> 1183504.97 | BW10: =BV578 -> 980053.2128 | BX10: =BW578 -> 954745.2716 | BY10: =BX578 -> 934794.0538 | BZ10: =BY578 -> 904642.1457 | CA10: =BZ578 -> 884491.221 | CB10: =CA578 -> 872776.2333 | CC10: =CB578 -> 688884.5452 | CD10: =CC578 -> 1154921.969 | CE10: =CD578 -> 1177964.348 | CF10: =CE578 -> 1359490.063
A12: REVENUE
A14: LCFF Entitlement
P15: =O15-SUM(C15:N15) -> 0 | AD15: =AC15-SUM(Q15:AB15) -> 0 | AR15: =AQ15-SUM(AE15:AP15) -> 0 | BF15: =BE15-SUM(AS15:BD15) -> 0 | BT15: =BS15-SUM(BG15:BR15) -> 0 | CH15: =CG15-SUM(BU15:CF15) -> 0
A16: 8000 | B16: Revenue | C16: 0 | D16: 0 | E16: 0 | F16: 0 | G16: 0 | H16: 0 | I16: 0 | J16: 0 | K16: 0 | L16: 0 | M16: 0 | N16: 0 | P16: =O16-SUM(C16:N16) -> 0 | AD16: =AC16-SUM(Q16:AB16) -> 0 | AR16: =AQ16-SUM(AE16:AP16) -> 0 | BF16: =BE16-SUM(AS16:BD16) -> 0 | BT16: =BS16-SUM(BG16:BR16) -> 0 | CH16: =CG16-SUM(BU16:CF16) -> 0
A17: 8010 | B17: Principal Apportionment | C17: 0 | D17: 0 | E17: 0 | F17: 0 | G17: 0 | H17: 0 | I17: 0 | J17: 0 | K17: 0 | L17: 0 | M17: 0 | N17: 0 | P17: 0 | AD17: 0 | AR17: 0 | BF17: 0 | BT17: 0 | CH17: 0
A18: 8011 | B18: Charter Schools General Purpose Entitlement - State Aid | C18: 0 | D18: 196636 | E18: 196636 | F18: 353946 | G18: 353946 | H18: 353946 | I18: 353946 | J18: 353946 | K18: 324432 | L18: 324432 | M18: 55386.49675 | N18: 223912.6516 | O18: 3920449.848 | P18: 829284.6996 | Q18: 0 | R18: 189857.2628 | S18: 189857.2628 | T18: 341743.073 | U18: 341743.073 | V18: 341743.073 | W18: 341743.073 | X18: 341743.073 | Y18: 366005.9819 | Z18: 366005.9819 | AA18: 366005.9819 | AB18: 366005.9819 | AC18: 4008754.65 | AD18: 456300.8319 | AE18: 0 | AF18: 210092.6195 | AG18: 210092.6195 | AH18: 378166.715 | AI18: 378166.715 | AJ18: 378166.715 | AK18: 378166.715 | AL18: 378166.715 | AM18: 410607.4872 | AN18: 410607.4872 | AO18: 410607.4872 | AP18: 410607.4872 | AQ18: 4560622.5 | AR18: 607173.7372 | AS18: 0 | AT18: 229431.4625 | AU18: 229431.4625 | AV18: 412976.6325 | AW18: 412976.6325 | AX18: 412976.6325 | AY18: 412976.6325 | AZ18: 412976.6325 | BA18: 412976.6325 | BB18: 412976.6325 | BC18: 412976.6325 | BD18: 412976.6325 | BE18: 4807609.75 | BF18: 631957.1325 | BG18: 0 | BH18: 240763.2125 | BI18: 240763.2125 | BJ18: 433373.7825 | BK18: 433373.7825 | BL18: 433373.7825 | BM18: 433373.7825 | BN18: 433373.7825 | BO18: 433373.7825 | BP18: 433373.7825 | BQ18: 433373.7825 | BR18: 433373.7825 | BS18: 5042020.75 | BT18: 660130.2825 | BU18: 0 | BV18: 248804.2899 | BW18: 248804.2899 | BX18: 447847.7218 | BY18: 447847.7218 | BZ18: 447847.7218 | CA18: 447847.7218 | CB18: 447847.7218 | CC18: 415683.4123 | CD18: 415683.4123 | CE18: 415683.4123 | CF18: 415683.4123 | CG18: 5240302.742 | CH18: 840721.9048
A19: 8012 | B19: Education Protection Account Entitlement | C19: 0 | D19: 0 | E19: 25496 | F19: 0 | G19: 0 | H19: 0 | I19: 25496 | J19: 0 | K19: 0 | L19: 24028 | M19: 100 | N19: 0 | O19: 100160 | P19: 25040 | Q19: 0 | R19: 0 | S19: 0 | T19: 25040 | U19: 0 | V19: 0 | W19: 25040 | X19: 0 | Y19: 0 | Z19: 27440 | AA19: 0 | AB19: 0 | AC19: 105830 | AD19: 28310 | AE19: 0 | AF19: 0 | AG19: 0 | AH19: 25840 | AI19: 0 | AJ19: 0 | AK19: 25840 | AL19: 0 | AM19: 0 | AN19: 28832.5 | AO19: 0 | AP19: 0 | AQ19: 112100 | AR19: 31587.5 | AS19: 0 | AT19: 0 | AU19: 0 | AV19: 26837.5 | AW19: 0 | AX19: 0 | AY19: 26837.5 | AZ19: 0 | BA19: 0 | BB19: 26837.5 | BC19: 0 | BD19: 0 | BE19: 113050 | BF19: 32537.5 | BG19: 0 | BH19: 0 | BI19: 0 | BJ19: 26837.5 | BK19: 0 | BL19: 0 | BM19: 26837.5 | BN19: 0 | BO19: 0 | BP19: 26837.5 | BQ19: 0 | BR19: 0 | BS19: 113050 | BT19: 32537.5 | BU19: 0 | BV19: 0 | BW19: 0 | BX19: 26837.5 | BY19: 0 | BZ19: 0 | CA19: 26837.5 | CB19: 0 | CC19: 0 | CD19: 26837.5 | CE19: 0 | CF19: 0 | CG19: 113050 | CH19: 32537.5
A20: 8018 | B20: Advance Apportionment (clearing acct-shld be zero at yr end | C20: 0 | D20: 0 | E20: 0 | F20: 0 | G20: 0 | H20: 0 | I20: 0 | J20: 0 | K20: 0 | L20: 0 | M20: 0 | N20: 0 | P20: 0 | AD20: 0 | AR20: 0 | BF20: 0 | BT20: 0 | CH20: 0
A21: 8019 | B21: State Aid - Prior Years | C21: 0 | D21: 0 | E21: 0 | F21: 0 | G21: 0 | H21: 0 | I21: 0 | J21: 0 | K21: 0 | L21: 0 | M21: 0 | N21: 0 | O21: 0 | P21: 0 | Q21: 0 | R21: 0 | S21: 0 | T21: 0 | U21: 0 | V21: 0 | W21: 0 | X21: 0 | Y21: 0 | Z21: 0 | AA21: 0 | AB21: 0 | AC21: 0 | AD21: 0 | AE21: 0 | AF21: 0 | AG21: 0 | AH21: 0 | AI21: 0 | AJ21: 0 | AK21: 0 | AL21: 0 | AM21: 0 | AN21: 0 | AO21: 0 | AP21: 0 | AQ21: 0 | AR21: 0 | AS21: 0 | AT21: 0 | AU21: 0 | AV21: 0 | AW21: 0 | AX21: 0 | AY21: 0 | AZ21: 0 | BA21: 0 | BB21: 0 | BC21: 0 | BD21: 0 | BE21: 0 | BF21: 0 | BG21: 0 | BH21: 0 | BI21: 0 | BJ21: 0 | BK21: 0 | BL21: 0 | BM21: 0 | BN21: 0 | BO21: 0 | BP21: 0 | BQ21: 0 | BR21: 0 | BS21: 0 | BT21: 0 | BU21: 0 | BV21: 0 | BW21: 0 | BX21: 0 | BY21: 0 | BZ21: 0 | CA21: 0 | CB21: 0 | CC21: 0 | CD21: 0 | CE21: 0 | CF21: 0 | CG21: 0 | CH21: 0
A22: 8096 | B22: Charter Schools in Lieu of Property Taxes | C22: 0 | D22: 0 | E22: 287288 | F22: 127684 | G22: 127684 | H22: 127684 | I22: 127684 | J22: 0 | K22: 408995 | L22: 140655 | M22: 200880.7706 | N22: -5995.618596 | O22: 1542559.152 | P22: 0 | Q22: 0 | R22: 0 | S22: 412813.8033 | T22: 183473.4401 | U22: 183473.4401 | V22: 183473.4401 | W22: 183473.4401 | X22: 0 | Y22: 587698.6907 | Z22: 202111.9069 | AA22: 288652.3451 | AB22: -8615.306298 | AC22: 2269524.35 | AD22: 52969.15 | AE22: 0 | AF22: 0 | AG22: 428749.6302 | AH22: 190556.0545 | AI22: 190556.0545 | AJ22: 190556.0545 | AK22: 190556.0545 | AL22: 0 | AM22: 610385.5887 | AN22: 209914.0209 | AO22: 299795.1746 | AP22: -8947.88246 | AQ22: 2403984.5 | AR22: 101863.75 | AS22: 0 | AT22: 0 | AU22: 428749.6302 | AV22: 190556.0545 | AW22: 190556.0545 | AX22: 190556.0545 | AY22: 190556.0545 | AZ22: 0 | BA22: 610385.5887 | BB22: 209914.0209 | BC22: 299795.1746 | BD22: -8947.88246 | BE22: 2424357.25 | BF22: 122236.5 | BG22: 0 | BH22: 0 | BI22: 428749.6302 | BJ22: 190556.0545 | BK22: 190556.0545 | BL22: 190556.0545 | BM22: 190556.0545 | BN22: 0 | BO22: 610385.5887 | BP22: 209914.0209 | BQ22: 299795.1746 | BR22: -8947.88246 | BS22: 2424357.25 | BT22: 122236.5 | BU22: 0 | BV22: 0 | BW22: 428749.6302 | BX22: 190556.0545 | BY22: 190556.0545 | BZ22: 190556.0545 | CA22: 190556.0545 | CB22: 0 | CC22: 610385.5887 | CD22: 209914.0209 | CE22: 299795.1746 | CF22: -8947.88246 | CG22: 2424357.25 | CH22: 122236.5
B24: LCFF Entitlement | C24: =SUM(C15:C23) -> 0 | D24: 196636 | E24: 509420 | F24: 481630 | G24: 481630 | H24: 481630 | I24: 507126 | J24: 353946 | K24: 733427 | L24: 489115 | M24: 256367.2673 | N24: 217917.033 | O24: 5563169 | P24: 854324.6996 | Q24: 0 | R24: 189857.2628 | S24: 602671.066 | T24: 550256.513 | U24: 525216.513 | V24: 525216.513 | W24: 550256.513 | X24: 341743.073 | Y24: 953704.6727 | Z24: 595557.8888 | AA24: 654658.327 | AB24: 357390.6756 | AC24: 6384109 | AD24: 537579.9819 | AE24: 0 | AF24: 210092.6195 | AG24: 638842.2497 | AH24: 594562.7695 | AI24: =SUM(AI15:AI23) -> 568722.7695 | AJ24: 568722.7695 | AK24: 594562.7695 | AL24: 378166.715 | AM24: 1020993.076 | AN24: 649354.0081 | AO24: 710402.6617 | AP24: 401659.6047 | AQ24: 7076707 | AR24: 740624.9872 | AS24: 0 | AT24: 229431.4625 | AU24: 658181.0927 | AV24: 630370.187 | AW24: 603532.687 | AX24: 603532.687 | AY24: 630370.187 | AZ24: 412976.6325 | BA24: 1023362.221 | BB24: 649728.1534 | BC24: 712771.8071 | BD24: 404028.75 | BE24: 7345017 | BF24: 786731.1325 | BG24: 0 | BH24: 240763.2125 | BI24: 669512.8427 | BJ24: 650767.337 | BK24: 623929.837 | BL24: 623929.837 | BM24: 650767.337 | BN24: 433373.7825 | BO24: =SUM(BO15:BO23) -> 1043759.371 | BP24: 670125.3034 | BQ24: 733168.9571 | BR24: 424425.9 | BS24: 7579428 | BT24: 814904.2825 | BU24: 0 | BV24: 248804.2899 | BW24: 677553.9201 | BX24: 665241.2763 | BY24: 638403.7763 | BZ24: 638403.7763 | CA24: 665241.2763 | CB24: 447847.7218 | CC24: 1026069.001 | CD24: 652434.9332 | CE24: 715478.5868 | CF24: 406735.5298 | CG24: 7777709.992 | CH24: 995495.9048
A26: Federal Revenue
P27: =O27-SUM(C27:N27) -> 0 | AD27: =AC27-SUM(Q27:AB27) -> 0 | AR27: =AQ27-SUM(AE27:AP27) -> 0 | BF27: =BE27-SUM(AS27:BD27) -> 0 | BT27: =BS27-SUM(BG27:BR27) -> 0 | CH27: =CG27-SUM(BU27:CF27) -> 0
A28: 8100 | B28: Federal Revenue | C28: 0 | D28: 0 | E28: 0 | F28: 0 | G28: 0 | H28: 0 | I28: 0 | J28: 0 | K28: 0 | L28: 0 | M28: 0 | N28: 0 | P28: =O28-SUM(C28:N28) -> 0 | AD28: =AC28-SUM(Q28:AB28) -> 0 | AR28: =AQ28-SUM(AE28:AP28) -> 0 | BF28: =BE28-SUM(AS28:BD28) -> 0 | BT28: =BS28-SUM(BG28:BR28) -> 0 | CH28: =CG28-SUM(BU28:CF28) -> 0
A29: 8181 | B29: Special Education - Entitlement | C29: 0 | D29: 0 | E29: 0 | F29: 0 | G29: 0 | H29: 0 | I29: 0 | J29: 0 | K29: 0 | L29: 0 | M29: 41327.015 | N29: 0 | O29: 82654.03 | P29: 41327.015 | Q29: 0 | R29: 0 | S29: 0 | T29: 0 | U29: 0 | V29: 0 | W29: 0 | X29: 0 | Y29: 0 | Z29: 32965 | AA29: 0 | AB29: 0 | AC29: 65930 | AD29: 32965 | AE29: 0 | AF29: 0 | AG29: 0 | AH29: 0 | AI29: 0 | AJ29: 0 | AK29: 0 | AL29: 0 | AM29: 0 | AN29: 34000 | AO29: 0 | AP29: 0 | AQ29: 69625 | AR29: 35625 | AS29: 0 | AT29: 0 | AU29: 0 | AV29: 0 | AW29: 0 | AX29: 0 | AY29: 0 | AZ29: 0 | BA29: 0 | BB29: 35312.5 | BC29: 0 | BD29: 0 | BE29: 73750 | BF29: 38437.5 | BG29: 0 | BH29: 0 | BI29: 0 | BJ29: 0 | BK29: 0 | BL29: 0 | BM29: 0 | BN29: 0 | BO29: 0 | BP29: 35312.5 | BQ29: 0 | BR29: 0 | BS29: 74375 | BT29: 39062.5 | BU29: 0 | BV29: 0 | BW29: 0 | BX29: 0 | BY29: 0 | BZ29: 0 | CA29: 0 | CB29: 0 | CC29: 0 | CD29: 35312.5 | CE29: 0 | CF29: 0 | CG29: 74375 | CH29: 39062.5
A30: 8182 | B30: Special Education Reimbursement | C30: 0 | D30: 0 | E30: 0 | F30: 0 | G30: 0 | H30: 0 | I30: 0 | J30: 0 | K30: 0 | L30: 0 | M30: 0 | N30: 0 | O30: 0 | P30: 0 | Q30: 0 | R30: 0 | S30: 0 | T30: 0 | U30: 0 | V30: 0 | W30: 0 | X30: 0 | Y30: 0 | Z30: 0 | AA30: 0 | AB30: 0 | AC30: 0 | AD30: 0 | AE30: 0 | AF30: 0 | AG30: 0 | AH30: 0 | AI30: 0 | AJ30: 0 | AK30: 0 | AL30: 0 | AM30: 0 | AN30: 0 | AO30: 0 | AP30: 0 | AQ30: 0 | AR30: 0 | AS30: 0 | AT30: 0 | AU30: 0 | AV30: 0 | AW30: 0 | AX30: 0 | AY30: 0 | AZ30: 0 | BA30: 0 | BB30: 0 | BC30: 0 | BD30: 0 | BE30: 0 | BF30: 0 | BG30: 0 | BH30: 0 | BI30: 0 | BJ30: 0 | BK30: 0 | BL30: 0 | BM30: 0 | BN30: 0 | BO30: 0 | BP30: 0 | BQ30: 0 | BR30: 0 | BS30: 0 | BT30: 0 | BU30: 0 | BV30: 0 | BW30: 0 | BX30: 0 | BY30: 0 | BZ30: 0 | CA30: 0 | CB30: 0 | CC30: 0 | CD30: 0 | CE30: 0 | CF30: 0 | CG30: 0 | CH30: 0
A31: 8220 | B31: Child Nutrition Programs | C31: 0 | D31: 0 | E31: 0 | F31: 0 | G31: 0 | H31: 0 | I31: 49148.03 | J31: 0 | K31: 0 | L31: 0 | M31: 9863.77 | N31: 6556.866667 | O31: 78682.4 | P31: 13113.73333 | Q31: 0 | R31: 0 | S31: 6666.666667 | T31: 6666.666667 | U31: 6666.666667 | V31: 6666.666667 | W31: 6666.666667 | X31: 6666.666667 | Y31: 6666.666667 | Z31: 6666.666667 | AA31: 6666.666667 | AB31: 6666.666667 | AC31: 82881.6 | AD31: 16214.93333 | AE31: 0 | AF31: 0 | AG31: 6800 | AH31: 6800 | AI31: 6800 | AJ31: 6800 | AK31: 6800 | AL31: 6800 | AM31: 6800 | AN31: 6800 | AO31: 6800 | AP31: 6800 | AQ31: 89547.84 | AR31: 21547.84 | AS31: 0 | AT31: 0 | AU31: 6936 | AV31: 6936 | AW31: 6936 | AX31: 6936 | AY31: 6936 | AZ31: 6936 | BA31: 6936 | BB31: 6936 | BC31: 6936 | BD31: 6936 | BE31: 92112.8544 | BF31: 22752.8544 | BG31: 0 | BH31: 0 | BI31: 7074.72 | BJ31: 7074.72 | BK31: 7074.72 | BL31: 7074.72 | BM31: 7074.72 | BN31: 7074.72 | BO31: 7074.72 | BP31: 7074.72 | BQ31: 7074.72 | BR31: 7074.72 | BS31: 93955.11149 | BT31: 23207.91149 | BU31: 0 | BV31: 0 | BW31: 7216.2144 | BX31: 7216.2144 | BY31: 7216.2144 | BZ31: 7216.2144 | CA31: 7216.2144 | CB31: 7216.2144 | CC31: 7216.2144 | CD31: 7216.2144 | CE31: 7216.2144 | CF31: 7216.2144 | CG31: 95834.21372 | CH31: 23672.06972
A32: 8290 | B32: No Child Left Behind | C32: 0 | D32: 0 | E32: 0 | F32: 0 | G32: 0 | H32: 0 | I32: 0 | J32: 0 | K32: 0 | L32: 0 | M32: 0 | N32: 0 | O32: 0 | P32: 0 | Q32: 0 | R32: 0 | S32: 0 | T32: 0 | U32: 0 | V32: 0 | W32: 0 | X32: 0 | Y32: 0 | Z32: 0 | AA32: 0 | AB32: 0 | AC32: 0 | AD32: 0 | AE32: 0 | AF32: 0 | AG32: 0 | AH32: 0 | AI32: 0 | AJ32: 0 | AK32: 0 | AL32: 0 | AM32: 0 | AN32: 0 | AO32: 0 | AP32: 0 | AQ32: 0 | AR32: 0 | AS32: 0 | AT32: 0 | AU32: 0 | AV32: 0 | AW32: 0 | AX32: 0 | AY32: 0 | AZ32: 0 | BA32: 0 | BB32: 0 | BC32: 0 | BD32: 0 | BE32: 0 | BF32: 0 | BG32: 0 | BH32: 0 | BI32: 0 | BJ32: 0 | BK32: 0 | BL32: 0 | BM32: 0 | BN32: 0 | BO32: 0 | BP32: 0 | BQ32: 0 | BR32: 0 | BS32: 0 | BT32: 0 | BU32: 0 | BV32: 0 | BW32: 0 | BX32: 0 | BY32: 0 | BZ32: 0 | CA32: 0 | CB32: 0 | CC32: 0 | CD32: 0 | CE32: 0 | CF32: 0 | CG32: 0 | CH32: 0
A33: 8291 | B33: Title I | C33: 0 | D33: 0 | E33: 0 | F33: 0 | G33: 0 | H33: 0 | I33: 33735 | J33: 0 | K33: 0 | L33: 0 | M33: 19073.25 | N33: 0 | O33: 70411 | P33: 17602.75 | Q33: 0 | R33: 0 | S33: 0 | T33: 0 | U33: 17602.75 | V33: 0 | W33: 0 | X33: 17602.75 | Y33: 0 | Z33: 0 | AA33: 17602.75 | AB33: 0 | AC33: 70411 | AD33: 17602.75 | AE33: 0 | AF33: 0 | AG33: 0 | AH33: 0 | AI33: 17602.75 | AJ33: 0 | AK33: 0 | AL33: 17602.75 | AM33: 0 | AN33: 0 | AO33: 17602.75 | AP33: 0 | AQ33: 70411 | AR33: 17602.75 | AS33: 0 | AT33: 0 | AU33: 0 | AV33: 0 | AW33: 17602.75 | AX33: 0 | AY33: 0 | AZ33: 17602.75 | BA33: 0 | BB33: 0 | BC33: 17602.75 | BD33: 0 | BE33: 70411 | BF33: 17602.75 | BG33: 0 | BH33: 0 | BI33: 0 | BJ33: 0 | BK33: 17602.75 | BL33: 0 | BM33: 0 | BN33: 17602.75 | BO33: 0 | BP33: 0 | BQ33: 17602.75 | BR33: 0 | BS33: 70411 | BT33: 17602.75 | BU33: 0 | BV33: 0 | BW33: 0 | BX33: 0 | BY33: 17602.75 | BZ33: 0 | CA33: 0 | CB33: 17602.75 | CC33: 0 | CD33: 0 | CE33: 17602.75 | CF33: 0 | CG33: 70411 | CH33: 17602.75
A34: 8292 | B34: Title II | C34: 0 | D34: 0 | E34: 0 | F34: 0 | G34: 0 | H34: 0 | I34: 3282 | J34: 6704 | K34: 0 | L34: 0 | M34: -148.25 | N34: 0 | O34: 13117 | P34: 3279.25 | Q34: 0 | R34: 0 | S34: 0 | T34: 0 | U34: 3279.25 | V34: 0 | W34: 0 | X34: 3279.25 | Y34: 0 | Z34: 0 | AA34: 3279.25 | AB34: 0 | AC34: 13117 | AD34: 3279.25 | AE34: 0 | AF34: 0 | AG34: 0 | AH34: 0 | AI34: 3279.25 | AJ34: 0 | AK34: 0 | AL34: 3279.25 | AM34: 0 | AN34: 0 | AO34: 3279.25 | AP34: 0 | AQ34: 13117 | AR34: 3279.25 | AS34: 0 | AT34: 0 | AU34: 0 | AV34: 0 | AW34: 3279.25 | AX34: 0 | AY34: 0 | AZ34: 3279.25 | BA34: 0 | BB34: 0 | BC34: 3279.25 | BD34: 0 | BE34: 13117 | BF34: 3279.25 | BG34: 0 | BH34: 0 | BI34: 0 | BJ34: 0 | BK34: 3279.25 | BL34: 0 | BM34: 0 | BN34: 3279.25 | BO34: 0 | BP34: 0 | BQ34: 3279.25 | BR34: 0 | BS34: 13117 | BT34: 3279.25 | BU34: 0 | BV34: 0 | BW34: 0 | BX34: 0 | BY34: 3279.25 | BZ34: 0 | CA34: 0 | CB34: 3279.25 | CC34: 0 | CD34: 0 | CE34: 3279.25 | CF34: 0 | CG34: 13117 | CH34: 3279.25
A35: 8293 | B35: Title III | C35: 0 | D35: 0 | E35: 0 | F35: 0 | G35: 0 | H35: 0 | I35: 0 | J35: 0 | K35: 0 | L35: 0 | M35: 0 | N35: 0 | O35: 0 | P35: 0 | Q35: 0 | R35: 0 | S35: 0 | T35: 0 | U35: 0 | V35: 0 | W35: 0 | X35: 0 | Y35: 0 | Z35: 0 | AA35: 0 | AB35: 0 | AC35: 0 | AD35: 0 | AE35: 0 | AF35: 0 | AG35: 0 | AH35: 0 | AI35: 0 | AJ35: 0 | AK35: 0 | AL35: 0 | AM35: 0 | AN35: 0 | AO35: 0 | AP35: 0 | AQ35: 0 | AR35: 0 | AS35: 0 | AT35: 0 | AU35: 0 | AV35: 0 | AW35: 0 | AX35: 0 | AY35: 0 | AZ35: 0 | BA35: 0 | BB35: 0 | BC35: 0 | BD35: 0 | BE35: 0 | BF35: 0 | BG35: 0 | BH35: 0 | BI35: 0 | BJ35: 0 | BK35: 0 | BL35: 0 | BM35: 0 | BN35: 0 | BO35: 0 | BP35: 0 | BQ35: 0 | BR35: 0 | BS35: 0 | BT35: 0 | BU35: 0 | BV35: 0 | BW35: 0 | BX35: 0 | BY35: 0 | BZ35: 0 | CA35: 0 | CB35: 0 | CC35: 0 | CD35: 0 | CE35: 0 | CF35: 0 | CG35: 0 | CH35: 0
A36: 8294 | B36: Title IV | C36: 0 | D36: 0 | E36: 0 | F36: 0 | G36: 0 | H36: 0 | I36: 10000 | J36: 0 | K36: 0 | L36: 0 | M36: -2500 | N36: 0 | O36: 10000 | P36: 2500 | Q36: 0 | R36: 0 | S36: 0 | T36: 0 | U36: 2500 | V36: 0 | W36: 0 | X36: 2500 | Y36: 0 | Z36: 0 | AA36: 2500 | AB36: 0 | AC36: 10000 | AD36: 2500 | AE36: 0 | AF36: 0 | AG36: 0 | AH36: 0 | AI36: 2500 | AJ36: 0 | AK36: 0 | AL36: 2500 | AM36: 0 | AN36: 0 | AO36: 2500 | AP36: 0 | AQ36: 10000 | AR36: 2500 | AS36: 0 | AT36: 0 | AU36: 0 | AV36: 0 | AW36: 2500 | AX36: 0 | AY36: 0 | AZ36: 2500 | BA36: 0 | BB36: 0 | BC36: 2500 | BD36: 0 | BE36: 10000 | BF36: 2500 | BG36: 0 | BH36: 0 | BI36: 0 | BJ36: 0 | BK36: 2500 | BL36: 0 | BM36: 0 | BN36: 2500 | BO36: 0 | BP36: 0 | BQ36: 2500 | BR36: 0 | BS36: 10000 | BT36: 2500 | BU36: 0 | BV36: 0 | BW36: 0 | BX36: 0 | BY36: 2500 | BZ36: 0 | CA36: 0 | CB36: 2500 | CC36: 0 | CD36: 0 | CE36: 2500 | CF36: 0 | CG36: 10000 | CH36: 2500
A37: 8295 | B37: Title V | C37: 0 | D37: 0 | E37: 0 | F37: 0 | G37: 0 | H37: 0 | I37: 0 | J37: 0 | K37: 0 | L37: 0 | M37: 0 | N37: 0 | O37: 0 | P37: 0 | Q37: 0 | R37: 0 | S37: 0 | T37: 0 | U37: 0 | V37: 0 | W37: 0 | X37: 0 | Y37: 0 | Z37: 0 | AA37: 0 | AB37: 0 | AC37: 0 | AD37: 0 | AE37: 0 | AF37: 0 | AG37: 0 | AH37: 0 | AI37: 0 | AJ37: 0 | AK37: 0 | AL37: 0 | AM37: 0 | AN37: 0 | AO37: 0 | AP37: 0 | AQ37: 0 | AR37: 0 | AS37: 0 | AT37: 0 | AU37: 0 | AV37: 0 | AW37: 0 | AX37: 0 | AY37: 0 | AZ37: 0 | BA37: 0 | BB37: 0 | BC37: 0 | BD37: 0 | BE37: 0 | BF37: 0 | BG37: 0 | BH37: 0 | BI37: 0 | BJ37: 0 | BK37: 0 | BL37: 0 | BM37: 0 | BN37: 0 | BO37: 0 | BP37: 0 | BQ37: 0 | BR37: 0 | BS37: 0 | BT37: 0 | BU37: 0 | BV37: 0 | BW37: 0 | BX37: 0 | BY37: 0 | BZ37: 0 | CA37: 0 | CB37: 0 | CC37: 0 | CD37: 0 | CE37: 0 | CF37: 0 | CG37: 0 | CH37: 0
A38: 8296 | B38: Other Federal Revenue | C38: 0 | D38: 0 | E38: 0 | F38: 0 | G38: 0 | H38: 0 | I38: 0 | J38: 0 | K38: 0 | L38: 0 | M38: 0 | N38: 0 | O38: 0 | P38: 0 | Q38: 0 | R38: 0 | S38: 0 | T38: 0 | U38: 0 | V38: 0 | W38: 0 | X38: 0 | Y38: 0 | Z38: 0 | AA38: 0 | AB38: 0 | AC38: 0 | AD38: 0 | AE38: 0 | AF38: 0 | AG38: 0 | AH38: 0 | AI38: 0 | AJ38: 0 | AK38: 0 | AL38: 0 | AM38: 0 | AN38: 0 | AO38: 0 | AP38: 0 | AQ38: 0 | AR38: 0 | AS38: 0 | AT38: 0 | AU38: 0 | AV38: 0 | AW38: 0 | AX38: 0 | AY38: 0 | AZ38: 0 | BA38: 0 | BB38: 0 | BC38: 0 | BD38: 0 | BE38: 0 | BF38: 0 | BG38: 0 | BH38: 0 | BI38: 0 | BJ38: 0 | BK38: 0 | BL38: 0 | BM38: 0 | BN38: 0 | BO38: 0 | BP38: 0 | BQ38: 0 | BR38: 0 | BS38: 0 | BT38: 0 | BU38: 0 | BV38: 0 | BW38: 0 | BX38: 0 | BY38: 0 | BZ38: 0 | CA38: 0 | CB38: 0 | CC38: 0 | CD38: 0 | CE38: 0 | CF38: 0 | CG38: 0 | CH38: 0
A39: 8297 | B39: PY Federal - Not Accrued | C39: 0 | D39: 0 | E39: 7278.49 | F39: 0 | G39: 0 | H39: 0 | I39: 0 | J39: 0 | K39: 0 | L39: 0 | M39: -606.99 | N39: 606.5 | O39: 7278 | P39: 0 | Q39: 0 | R39: 0 | S39: 0 | T39: 0 | U39: 0 | V39: 0 | W39: 0 | X39: 0 | Y39: 0 | Z39: 0 | AA39: 0 | AB39: 0 | AC39: 0 | AD39: 0 | AE39: 0 | AF39: 0 | AG39: 0 | AH39: 0 | AI39: 0 | AJ39: 0 | AK39: 0 | AL39: 0 | AM39: 0 | AN39: 0 | AO39: 0 | AP39: 0 | AQ39: 0 | AR39: 0 | AS39: 0 | AT39: 0 | AU39: 0 | AV39: 0 | AW39: 0 | AX39: 0 | AY39: 0 | AZ39: 0 | BA39: 0 | BB39: 0 | BC39: 0 | BD39: 0 | BE39: 0 | BF39: 0 | BG39: 0 | BH39: 0 | BI39: 0 | BJ39: 0 | BK39: 0 | BL39: 0 | BM39: 0 | BN39: 0 | BO39: 0 | BP39: 0 | BQ39: 0 | BR39: 0 | BS39: 0 | BT39: 0 | BU39: 0 | BV39: 0 | BW39: 0 | BX39: 0 | BY39: 0 | BZ39: 0 | CA39: 0 | CB39: 0 | CC39: 0 | CD39: 0 | CE39: 0 | CF39: 0 | CG39: 0 | CH39: 0
A40: 8298 | B40: Implementation Grant | C40: 0 | D40: 0 | E40: 0 | F40: 0 | G40: 0 | H40: 0 | I40: 0 | J40: 0 | K40: 0 | L40: 0 | M40: 0 | N40: 0 | O40: 0 | P40: 0 | Q40: 0 | R40: 0 | S40: 0 | T40: 0 | U40: 0 | V40: 0 | W40: 0 | X40: 0 | Y40: 0 | Z40: 0 | AA40: 0 | AB40: 0 | AC40: 0 | AD40: 0 | AE40: 0 | AF40: 0 | AG40: 0 | AH40: 0 | AI40: 0 | AJ40: 0 | AK40: 0 | AL40: 0 | AM40: 0 | AN40: 0 | AO40: 0 | AP40: 0 | AQ40: 0 | AR40: 0 | AS40: 0 | AT40: 0 | AU40: 0 | AV40: 0 | AW40: 0 | AX40: 0 | AY40: 0 | AZ40: 0 | BA40: 0 | BB40: 0 | BC40: 0 | BD40: 0 | BE40: 0 | BF40: 0 | BG40: 0 | BH40: 0 | BI40: 0 | BJ40: 0 | BK40: 0 | BL40: 0 | BM40: 0 | BN40: 0 | BO40: 0 | BP40: 0 | BQ40: 0 | BR40: 0 | BS40: 0 | BT40: 0 | BU40: 0 | BV40: 0 | BW40: 0 | BX40: 0 | BY40: 0 | BZ40: 0 | CA40: 0 | CB40: 0 | CC40: 0 | CD40: 0 | CE40: 0 | CF40: 0 | CG40: 0 | CH40: 0
A41: 8299 | B41: All Other Federal Revenue | C41: 0 | D41: 0 | E41: 0 | F41: 0 | G41: 26507 | H41: 0 | I41: 0 | J41: 17044 | K41: 45239 | L41: 72645 | M41: 128054.1667 | N41: 57897.83333 | O41: 347387 | P41: 0 | Q41: 0 | R41: 0 | S41: 0 | T41: 0 | U41: 0 | V41: 0 | W41: 6666.666667 | X41: 6666.666667 | Y41: 6666.666667 | Z41: 6666.666667 | AA41: 6666.666667 | AB41: 6666.666667 | AC41: 40000 | AD41: 0 | AE41: 0 | AF41: 0 | AG41: 0 | AH41: 0 | AI41: 0 | AJ41: 0 | AK41: 0 | AL41: 0 | AM41: 0 | AN41: 0 | AO41: 0 | AP41: 0 | AQ41: 0 | AR41: 0 | AS41: 0 | AT41: 0 | AU41: 0 | AV41: 0 | AW41: 0 | AX41: 0 | AY41: 0 | AZ41: 0 | BA41: 0 | BB41: 0 | BC41: 0 | BD41: 0 | BE41: 0 | BF41: 0 | BG41: 0 | BH41: 0 | BI41: 0 | BJ41: 0 | BK41: 0 | BL41: 0 | BM41: 0 | BN41: 0 | BO41: 0 | BP41: 0 | BQ41: 0 | BR41: 0 | BS41: 0 | BT41: 0 | BU41: 0 | BV41: 0 | BW41: 0 | BX41: 0 | BY41: 0 | BZ41: 0 | CA41: 0 | CB41: 0 | CC41: 0 | CD41: 0 | CE41: 0 | CF41: 0 | CG41: 0 | CH41: 0
B43: Federal Revenue | C43: =SUM(C27:C42) -> 0 | D43: 0 | E43: 7278.49 | F43: 0 | G43: 26507 | H43: 0 | I43: 96165.03 | J43: 23748 | K43: 45239 | L43: 72645 | M43: 195062.9617 | N43: 65061.2 | O43: 609529.43 | P43: 77822.74833 | Q43: =SUM(Q27:Q42) -> 0 | R43: 0 | S43: 6666.666667 | T43: 6666.666667 | U43: 30048.66667 | V43: 6666.666667 | W43: 13333.33333 | X43: 36715.33333 | Y43: 13333.33333 | Z43: 46298.33333 | AA43: 36715.33333 | AB43: 13333.33333 | AC43: 282339.6 | AD43: 72561.93333 | AE43: =SUM(AE27:AE42) -> 0 | AF43: 0 | AG43: 6800 | AH43: 6800 | AI43: 30182 | AJ43: 6800 | AK43: 6800 | AL43: 30182 | AM43: 6800 | AN43: 40800 | AO43: 30182 | AP43: 6800 | AQ43: 252700.84 | AR43: 80554.84 | AS43: =SUM(AS27:AS42) -> 0 | AT43: 0 | AU43: 6936 | AV43: 6936 | AW43: 30318 | AX43: 6936 | AY43: 6936 | AZ43: 30318 | BA43: 6936 | BB43: 42248.5 | BC43: 30318 | BD43: 6936 | BE43: 259390.8544 | BF43: 84572.3544 | BG43: =SUM(BG27:BG42) -> 0 | BH43: 0 | BI43: 7074.72 | BJ43: 7074.72 | BK43: 30456.72 | BL43: 7074.72 | BM43: 7074.72 | BN43: 30456.72 | BO43: 7074.72 | BP43: 42387.22 | BQ43: 30456.72 | BR43: 7074.72 | BS43: 261858.1115 | BT43: 85652.41149 | BU43: =SUM(BU27:BU42) -> 0 | BV43: 0 | BW43: 7216.2144 | BX43: 7216.2144 | BY43: 30598.2144 | BZ43: 7216.2144 | CA43: 7216.2144 | CB43: 30598.2144 | CC43: 7216.2144 | CD43: 42528.7144 | CE43: 30598.2144 | CF43: 7216.2144 | CG43: 263737.2137 | CH43: 86116.56972
A45: Other State Revenue
P46: =O46-SUM(C46:N46) -> 0 | AD46: =AC46-SUM(Q46:AB46) -> 0 | AR46: =AQ46-SUM(AE46:AP46) -> 0 | BF46: =BE46-SUM(AS46:BD46) -> 0 | BT46: =BS46-SUM(BG46:BR46) -> 0 | CH46: =CG46-SUM(BU46:CF46) -> 0
A47: 8300 | B47: Other State Revenues | C47: 0 | D47: 0 | E47: 0 | F47: 0 | G47: 0 | H47: 0 | I47: 0 | J47: 0 | K47: 0 | L47: 0 | M47: 0 | N47: 0 | P47: =O47-SUM(C47:N47) -> 0 | AD47: =AC47-SUM(Q47:AB47) -> 0 | AR47: =AQ47-SUM(AE47:AP47) -> 0 | BF47: =BE47-SUM(AS47:BD47) -> 0 | BT47: =BS47-SUM(BG47:BR47) -> 0 | CH47: =CG47-SUM(BU47:CF47) -> 0
A48: 8311 | B48: Other State Apportionments - Current Year | C48: 0 | D48: 0 | E48: 0 | F48: 0 | G48: 0 | H48: 0 | I48: 0 | J48: 0 | K48: 0 | L48: 0 | M48: 0 | N48: 0 | O48: 0 | P48: 0 | Q48: 0 | R48: 0 | S48: 0 | T48: 0 | U48: 0 | V48: 0 | W48: 0 | X48: 0 | Y48: 0 | Z48: 0 | AA48: 0 | AB48: 0 | AC48: 0 | AD48: 0 | AE48: 0 | AF48: 0 | AG48: 0 | AH48: 0 | AI48: 0 | AJ48: 0 | AK48: 0 | AL48: 0 | AM48: 0 | AN48: 0 | AO48: 0 | AP48: 0 | AQ48: 0 | AR48: 0 | AS48: 0 | AT48: 0 | AU48: 0 | AV48: 0 | AW48: 0 | AX48: 0 | AY48: 0 | AZ48: 0 | BA48: 0 | BB48: 0 | BC48: 0 | BD48: 0 | BE48: 0 | BF48: 0 | BG48: 0 | BH48: 0 | BI48: 0 | BJ48: 0 | BK48: 0 | BL48: 0 | BM48: 0 | BN48: 0 | BO48: 0 | BP48: 0 | BQ48: 0 | BR48: 0 | BS48: 0 | BT48: 0 | BU48: 0 | BV48: 0 | BW48: 0 | BX48: 0 | BY48: 0 | BZ48: 0 | CA48: 0 | CB48: 0 | CC48: 0 | CD48: 0 | CE48: 0 | CF48: 0 | CG48: 0 | CH48: 0
A49: 8319 | B49: Other State Apportionments - Prior Years | C49: 0 | D49: 0 | E49: 403.63 | F49: 0 | G49: 0 | H49: 0 | I49: 0 | J49: -385 | K49: 0 | L49: 0 | M49: 1.583333333 | N49: 1.583333333 | O49: 19 | P49: -2.796666667 | Q49: 0 | R49: 0 | S49: 0 | T49: 0 | U49: 0 | V49: 0 | W49: 0 | X49: 0 | Y49: 0 | Z49: 0 | AA49: 0 | AB49: 0 | AC49: 0 | AD49: 0 | AE49: 0 | AF49: 0 | AG49: 0 | AH49: 0 | AI49: 0 | AJ49: 0 | AK49: 0 | AL49: 0 | AM49: 0 | AN49: 0 | AO49: 0 | AP49: 0 | AQ49: 0 | AR49: 0 | AS49: 0 | AT49: 0 | AU49: 0 | AV49: 0 | AW49: 0 | AX49: 0 | AY49: 0 | AZ49: 0 | BA49: 0 | BB49: 0 | BC49: 0 | BD49: 0 | BE49: 0 | BF49: 0 | BG49: 0 | BH49: 0 | BI49: 0 | BJ49: 0 | BK49: 0 | BL49: 0 | BM49: 0 | BN49: 0 | BO49: 0 | BP49: 0 | BQ49: 0 | BR49: 0 | BS49: 0 | BT49: 0 | BU49: 0 | BV49: 0 | BW49: 0 | BX49: 0 | BY49: 0 | BZ49: 0 | CA49: 0 | CB49: 0 | CC49: 0 | CD49: 0 | CE49: 0 | CF49: 0 | CG49: 0 | CH49: 0
A50: 8380 | B50: Special Ed | C50: 0 | D50: 0 | E50: 0 | F50: 0 | G50: 0 | H50: 0 | I50: 0 | J50: 0 | K50: 0 | L50: 0 | M50: 0 | N50: 0 | O50: 0 | P50: 0 | Q50: 0 | R50: 0 | S50: 0 | T50: 0 | U50: 0 | V50: 0 | W50: 0 | X50: 0 | Y50: 0 | Z50: 0 | AA50: 0 | AB50: 0 | AC50: 0 | AD50: 0 | AE50: 0 | AF50: 0 | AG50: 0 | AH50: 0 | AI50: 0 | AJ50: 0 | AK50: 0 | AL50: 0 | AM50: 0 | AN50: 0 | AO50: 0 | AP50: 0 | AQ50: 0 | AR50: 0 | AS50: 0 | AT50: 0 | AU50: 0 | AV50: 0 | AW50: 0 | AX50: 0 | AY50: 0 | AZ50: 0 | BA50: 0 | BB50: 0 | BC50: 0 | BD50: 0 | BE50: 0 | BF50: 0 | BG50: 0 | BH50: 0 | BI50: 0 | BJ50: 0 | BK50: 0 | BL50: 0 | BM50: 0 | BN50: 0 | BO50: 0 | BP50: 0 | BQ50: 0 | BR50: 0 | BS50: 0 | BT50: 0 | BU50: 0 | BV50: 0 | BW50: 0 | BX50: 0 | BY50: 0 | BZ50: 0 | CA50: 0 | CB50: 0 | CC50: 0 | CD50: 0 | CE50: 0 | CF50: 0 | CG50: 0 | CH50: 0
A51: 8381 | B51: Special Education - Entitlement (State | C51: 20628 | D51: 20628 | E51: 37131 | F51: 36313 | G51: 36313 | H51: 39281 | I51: 36313 | J51: 0 | K51: 99832 | L51: 49842 | M51: 27924.915 | N51: 27924.915 | O51: 490032 | P51: 57901.17 | Q51: 0 | R51: 24501.6 | S51: 24501.6 | T51: 44102.88 | U51: 44102.88 | V51: 44102.88 | W51: 44102.88 | X51: 44102.88 | Y51: 37742.27776 | Z51: 37742.27776 | AA51: 37742.27776 | AB51: 37742.27776 | AC51: 469179.3139 | AD51: 48692.60286 | AE51: 0 | AF51: 22911.44944 | AG51: 22911.44944 | AH51: 41240.60899 | AI51: 41240.60899 | AJ51: 41240.60899 | AK51: 41240.60899 | AL51: 41240.60899 | AM51: 44778.40633 | AN51: 44778.40633 | AO51: 44778.40633 | AP51: 44778.40633 | AQ51: 496976.293 | AR51: 65836.72383 | AS51: 0 | AT51: 23795.89878 | AU51: 23795.89878 | AV51: 42832.61779 | AW51: 42832.61779 | AX51: 42832.61779 | AY51: 42832.61779 | AZ51: 42832.61779 | BA51: 42832.61779 | BB51: 42832.61779 | BC51: 42832.61779 | BD51: 42832.61779 | BE51: 501187.9565 | BF51: 68102.59879 | BG51: 0 | BH51: 23795.89878 | BI51: 23795.89878 | BJ51: 42832.61779 | BK51: 42832.61779 | BL51: 42832.61779 | BM51: 42832.61779 | BN51: 42832.61779 | BO51: 42832.61779 | BP51: 42832.61779 | BQ51: 42832.61779 | BR51: 42832.61779 | BS51: 501187.9565 | BT51: 68102.59879 | BU51: 0 | BV51: 23795.89878 | BW51: 23795.89878 | BX51: 42832.61779 | BY51: 42832.61779 | BZ51: 42832.61779 | CA51: 42832.61779 | CB51: 42832.61779 | CC51: 42832.61779 | CD51: 42832.61779 | CE51: 42832.61779 | CF51: 42832.61779 | CG51: 501187.9565 | CH51: 68102.59879
A52: 8382 | B52: Special Education Reimbursement (State | C52: 0 | D52: 2550 | E52: 2295 | F52: 2295 | G52: 2295 | H52: 2295 | I52: 2295 | J52: 0 | K52: 21657 | L52: 3126 | M52: -1765.166667 | N52: 3704.283333 | O52: 44451.4 | P52: 3704.283333 | Q52: 0 | R52: 2497.866667 | S52: 2497.866667 | T52: 2497.866667 | U52: 2497.866667 | V52: 2497.866667 | W52: 2497.866667 | X52: 2497.866667 | Y52: 2497.866667 | Z52: 2497.866667 | AA52: 2497.866667 | AB52: 2497.866667 | AC52: 30690.7 | AD52: 3214.166667 | AE52: 0 | AF52: 2594.291667 | AG52: 2594.291667 | AH52: 2594.291667 | AI52: 2594.291667 | AJ52: 2594.291667 | AK52: 2594.291667 | AL52: 2594.291667 | AM52: 2594.291667 | AN52: 2594.291667 | AO52: 2594.291667 | AP52: 2594.291667 | AQ52: 32509 | AR52: 3971.791667 | AS52: 0 | AT52: 2594.291667 | AU52: 2594.291667 | AV52: 2594.291667 | AW52: 2594.291667 | AX52: 2594.291667 | AY52: 2594.291667 | AZ52: 2594.291667 | BA52: 2594.291667 | BB52: 2594.291667 | BC52: 2594.291667 | BD52: 2594.291667 | BE52: 32784.5 | BF52: 4247.291667 | BG52: 0 | BH52: 2594.291667 | BI52: 2594.291667 | BJ52: 2594.291667 | BK52: 2594.291667 | BL52: 2594.291667 | BM52: 2594.291667 | BN52: 2594.291667 | BO52: 2594.291667 | BP52: 2594.291667 | BQ52: 2594.291667 | BR52: 2594.291667 | BS52: 32784.5 | BT52: 4247.291667 | BU52: 0 | BV52: 2594.291667 | BW52: 2594.291667 | BX52: 2594.291667 | BY52: 2594.291667 | BZ52: 2594.291667 | CA52: 2594.291667 | CB52: 2594.291667 | CC52: 2594.291667 | CD52: 2594.291667 | CE52: 2594.291667 | CF52: 2594.291667 | CG52: 32784.5 | CH52: 4247.291667
A53: 8434 | B53: Class Size Reduction, Grades K-3 | C53: 0 | D53: 0 | E53: 0 | F53: 0 | G53: 0 | H53: 0 | I53: 0 | J53: 0 | K53: 0 | L53: 0 | M53: 0 | N53: 0 | P53: 0 | AD53: 0 | AR53: 0 | BF53: 0 | BT53: 0 | CH53: 0
A54: 8480 | B54: Charter Schools Categorical Block (DO NOT USE; USE 8592 | C54: 0 | D54: 0 | E54: 0 | F54: 0 | G54: 0 | H54: 0 | I54: 0 | J54: 0 | K54: 0 | L54: 0 | M54: 0 | N54: 0 | P54: 0 | AD54: 0 | AR54: 0 | BF54: 0 | BT54: 0 | CH54: 0
A55: 8520 | B55: Child Nutrition - State | C55: 0 | D55: 0 | E55: 5053.1 | F55: 192.18 | G55: 0 | H55: 0 | I55: 0 | J55: 0 | K55: 0 | L55: 0 | M55: 2131.195 | N55: 819.6083333 | O55: 9835.3 | P55: 1639.216667 | Q55: 0 | R55: 0 | S55: 833.3333333 | T55: 833.3333333 | U55: 833.3333333 | V55: 833.3333333 | W55: 833.3333333 | X55: 833.3333333 | Y55: 833.3333333 | Z55: 833.3333333 | AA55: 833.3333333 | AB55: 833.3333333 | AC55: 10360.2 | AD55: 2026.866667 | AE55: 0 | AF55: 0 | AG55: 850 | AH55: 850 | AI55: 850 | AJ55: 850 | AK55: 850 | AL55: 850 | AM55: 850 | AN55: 850 | AO55: 850 | AP55: 850 | AQ55: 11193.48 | AR55: 2693.48 | AS55: 0 | AT55: 0 | AU55: 867 | AV55: 867 | AW55: 867 | AX55: 867 | AY55: 867 | AZ55: 867 | BA55: 867 | BB55: 867 | BC55: 867 | BD55: 867 | BE55: 11514.1068 | BF55: 2844.1068 | BG55: 0 | BH55: 0 | BI55: 884.34 | BJ55: 884.34 | BK55: 884.34 | BL55: 884.34 | BM55: 884.34 | BN55: 884.34 | BO55: 884.34 | BP55: 884.34 | BQ55: 884.34 | BR55: 884.34 | BS55: 11744.38894 | BT55: 2900.988936 | BU55: 0 | BV55: 0 | BW55: 902.0268 | BX55: 902.0268 | BY55: 902.0268 | BZ55: 902.0268 | CA55: 902.0268 | CB55: 902.0268 | CC55: 902.0268 | CD55: 902.0268 | CE55: 902.0268 | CF55: 902.0268 | CG55: 11979.27671 | CH55: 2959.008715
A56: 8545 | B56: School Facilities Apportionments | C56: 0 | D56: 0 | E56: 0 | F56: 0 | G56: 0 | H56: 0 | I56: 0 | J56: 0 | K56: 124525.35 | L56: 0 | M56: 60634.92441 | N56: 49118.69859 | O56: 234278.973 | P56: 0 | Q56: 0 | R56: 0 | S56: 0 | T56: 0 | U56: 0 | V56: 0 | W56: 0 | X56: 0 | Y56: 134649.261 | Z56: 0 | AA56: 65564.54376 | AB56: 53112.04879 | AC56: 253536.7046 | AD56: 210.8510757 | AE56: 0 | AF56: 0 | AG56: 0 | AH56: 0 | AI56: 0 | AJ56: 0 | AK56: 0 | AL56: 0 | AM56: 139415.8448 | AN56: 0 | AO56: 67885.52861 | AP56: 54992.21531 | AQ56: 263526.0507 | AR56: 1232.462022 | AS56: 0 | AT56: 0 | AU56: 0 | AV56: 0 | AW56: 0 | AX56: 0 | AY56: 0 | AZ56: 0 | BA56: 143710.7664 | BB56: 0 | BC56: 69976.84773 | BD56: 56686.3359 | BE56: 270373.95 | BF56: 0 | BG56: 0 | BH56: 0 | BI56: 0 | BJ56: 0 | BK56: 0 | BL56: 0 | BM56: 0 | BN56: 0 | BO56: 146584.9817 | BP56: 0 | BQ56: 71376.38469 | BR56: 57820.06261 | BS56: 275781.429 | BT56: 0 | BU56: 0 | BV56: 0 | BW56: 0 | BX56: 0 | BY56: 0 | BZ56: 0 | CA56: 0 | CB56: 0 | CC56: 146584.9817 | CD56: 0 | CE56: 71376.38469 | CF56: 57820.06261 | CG56: 275781.429 | CH56: 0
A57: 8550 | B57: Mandated Cost Reimbursements | C57: 0 | D57: 0 | E57: 0 | F57: 0 | G57: 0 | H57: 16695 | I57: 0 | J57: 0 | K57: 0 | L57: 0 | M57: 0.28 | N57: 0 | O57: 16695.28 | P57: 0 | Q57: 0 | R57: 0 | S57: 0 | T57: 0 | U57: 0 | V57: 17717.16105 | W57: 0 | X57: 0 | Y57: 0 | Z57: 0 | AA57: 0 | AB57: 0 | AC57: 17732.472 | AD57: 15.3109472 | AE57: 0 | AF57: 0 | AG57: 0 | AH57: 0 | AI57: 0 | AJ57: 19602.89755 | AK57: 0 | AL57: 0 | AM57: 0 | AN57: 0 | AO57: 0 | AP57: 0 | AQ57: 20053.4835 | AR57: 450.5859455 | AS57: 0 | AT57: 0 | AU57: 0 | AV57: 0 | AW57: 0 | AX57: 22322.53 | AY57: 0 | AZ57: 0 | BA57: 0 | BB57: 0 | BC57: 0 | BD57: 0 | BE57: 22931.575 | BF57: 609.045 | BG57: 0 | BH57: 0 | BI57: 0 | BJ57: 0 | BK57: 0 | BL57: 23043.485 | BM57: 0 | BN57: 0 | BO57: 0 | BP57: 0 | BQ57: 0 | BR57: 0 | BS57: 23396.03 | BT57: 352.545 | BU57: 0 | BV57: 0 | BW57: 0 | BX57: 0 | BY57: 0 | BZ57: 23043.485 | CA57: 0 | CB57: 0 | CC57: 0 | CD57: 0 | CE57: 0 | CF57: 0 | CG57: 23396.03 | CH57: 352.545
A58: 8560 | B58: State Lottery Revenue | C58: 0 | D58: 0 | E58: 0 | F58: 35164.92 | G58: 0 | H58: 0 | I58: 37176.88 | J58: 0 | K58: 0 | L58: 44107.01 | M58: 33144.8 | N58: 0 | O58: 123966.5396 | P58: -25627.07038 | Q58: 0 | R58: 0 | S58: 0 | T58: 0 | U58: 0 | V58: 0 | W58: 0 | X58: 30991.6349 | Y58: 0 | Z58: 0 | AA58: 30991.6349 | AB58: 0 | AC58: 130984.2141 | AD58: 69000.94433 | AE58: 0 | AF58: 0 | AG58: 0 | AH58: 0 | AI58: 0 | AJ58: 0 | AK58: 0 | AL58: 31981.78298 | AM58: 0 | AN58: 0 | AO58: 31981.78298 | AP58: 0 | AQ58: 138744.4997 | AR58: 74780.93374 | AS58: 0 | AT58: 0 | AU58: 0 | AV58: 0 | AW58: 0 | AX58: 0 | AY58: 0 | AZ58: 33216.37387 | BA58: 0 | BB58: 0 | BC58: 33216.37387 | BD58: 0 | BE58: 139920.3006 | BF58: 73487.55281 | BG58: 0 | BH58: 0 | BI58: 0 | BJ58: 0 | BK58: 0 | BL58: 0 | BM58: 0 | BN58: 33216.37387 | BO58: 0 | BP58: 0 | BQ58: 33216.37387 | BR58: 0 | BS58: 139920.3006 | BT58: 73487.55281 | BU58: 0 | BV58: 0 | BW58: 0 | BX58: 0 | BY58: 0 | BZ58: 0 | CA58: 0 | CB58: 33216.37387 | CC58: 0 | CD58: 0 | CE58: 33216.37387 | CF58: 0 | CG58: 139920.3006 | CH58: 73487.55281
A59: 8590 | B59: All Other State Revenue | C59: 0 | D59: 0 | E59: 0 | F59: 0 | G59: 0 | H59: 0 | I59: 0 | J59: 0 | K59: 0 | L59: 569522 | M59: -47460.16667 | N59: 47460.16667 | O59: 569522 | P59: 0 | Q59: 55011.58333 | R59: 55011.58333 | S59: 55011.58333 | T59: 55011.58333 | U59: 55011.58333 | V59: 55011.58333 | W59: 55011.58333 | X59: 55011.58333 | Y59: 55011.58333 | Z59: 55011.58333 | AA59: 55011.58333 | AB59: 55011.58333 | AC59: 625139 | AD59: -35000 | AE59: 10778.75 | AF59: 10778.75 | AG59: 10778.75 | AH59: 10778.75 | AI59: 10778.75 | AJ59: 10778.75 | AK59: 10778.75 | AL59: 10778.75 | AM59: 10778.75 | AN59: 10778.75 | AO59: 10778.75 | AP59: 10778.75 | AQ59: 154345 | AR59: 25000 | AS59: 6434.583333 | AT59: 6434.583333 | AU59: 6434.583333 | AV59: 6434.583333 | AW59: 6434.583333 | AX59: 6434.583333 | AY59: 6434.583333 | AZ59: 6434.583333 | BA59: 6434.583333 | BB59: 6434.583333 | BC59: 6434.583333 | BD59: 6434.583333 | BE59: 92215 | BF59: 15000 | BG59: 6434.583333 | BH59: 6434.583333 | BI59: 6434.583333 | BJ59: 6434.583333 | BK59: 6434.583333 | BL59: 6434.583333 | BM59: 6434.583333 | BN59: 6434.583333 | BO59: 6434.583333 | BP59: 6434.583333 | BQ59: 6434.583333 | BR59: 6434.583333 | BS59: 77215 | BT59: 0 | BU59: 6434.583333 | BV59: 6434.583333 | BW59: 6434.583333 | BX59: 6434.583333 | BY59: 6434.583333 | BZ59: 6434.583333 | CA59: 6434.583333 | CB59: 6434.583333 | CC59: 6434.583333 | CD59: 6434.583333 | CE59: 6434.583333 | CF59: 6434.583333 | CG59: 77215 | CH59: 0
A60: 8591 | B60: Supplemental Hourly Revenue | C60: 0 | D60: 0 | E60: 0 | F60: 0 | G60: 0 | H60: 0 | I60: 0 | J60: 0 | K60: 0 | L60: 0 | M60: 0 | N60: 0 | P60: 0 | Q60: 0 | R60: 0 | S60: 0 | T60: 0 | U60: 0 | V60: 0 | W60: 0 | X60: 0 | Y60: 0 | Z60: 0 | AA60: 0 | AB60: 0 | AD60: 0 | AE60: 0 | AF60: 0 | AG60: 0 | AH60: 0 | AI60: 0 | AJ60: 0 | AK60: 0 | AL60: 0 | AM60: 0 | AN60: 0 | AO60: 0 | AP60: 0 | AR60: 0 | AS60: 0 | AT60: 0 | AU60: 0 | AV60: 0 | AW60: 0 | AX60: 0 | AY60: 0 | AZ60: 0 | BA60: 0 | BB60: 0 | BC60: 0 | BD60: 0 | BF60: 0 | BG60: 0 | BH60: 0 | BI60: 0 | BJ60: 0 | BK60: 0 | BL60: 0 | BM60: 0 | BN60: 0 | BO60: 0 | BP60: 0 | BQ60: 0 | BR60: 0 | BT60: 0 | BU60: 0 | BV60: 0 | BW60: 0 | BX60: 0 | BY60: 0 | BZ60: 0 | CA60: 0 | CB60: 0 | CC60: 0 | CD60: 0 | CE60: 0 | CF60: 0 | CH60: 0
A61: 8592 | B61: Categorical Block Grant | C61: 0 | D61: 0 | E61: 0 | F61: 0 | G61: 0 | H61: 0 | I61: 0 | J61: 0 | K61: 0 | L61: 0 | M61: 0 | N61: 0 | P61: 0 | Q61: 0 | R61: 0 | S61: 0 | T61: 0 | U61: 0 | V61: 0 | W61: 0 | X61: 0 | Y61: 0 | Z61: 0 | AA61: 0 | AB61: 0 | AD61: 0 | AE61: 0 | AF61: 0 | AG61: 0 | AH61: 0 | AI61: 0 | AJ61: 0 | AK61: 0 | AL61: 0 | AM61: 0 | AN61: 0 | AO61: 0 | AP61: 0 | AR61: 0 | AS61: 0 | AT61: 0 | AU61: 0 | AV61: 0 | AW61: 0 | AX61: 0 | AY61: 0 | AZ61: 0 | BA61: 0 | BB61: 0 | BC61: 0 | BD61: 0 | BF61: 0 | BG61: 0 | BH61: 0 | BI61: 0 | BJ61: 0 | BK61: 0 | BL61: 0 | BM61: 0 | BN61: 0 | BO61: 0 | BP61: 0 | BQ61: 0 | BR61: 0 | BT61: 0 | BU61: 0 | BV61: 0 | BW61: 0 | BX61: 0 | BY61: 0 | BZ61: 0 | CA61: 0 | CB61: 0 | CC61: 0 | CD61: 0 | CE61: 0 | CF61: 0 | CH61: 0
A62: 8593 | B62: Other State Revenue 3 | C62: 0 | D62: 3171 | E62: 3171 | F62: 5707 | G62: 5707 | H62: 5707 | I62: 5707 | J62: 5707 | K62: 5712 | L62: 5712 | M62: 1261 | N62: 15854 | O62: 63416 | P62: 0 | Q62: 0 | R62: 0 | S62: 15854 | T62: 0 | U62: 0 | V62: 15854 | W62: 0 | X62: 0 | Y62: 15854 | Z62: 0 | AA62: 0 | AB62: 15854 | AC62: 63416 | AD62: 0 | AE62: 0 | AF62: 0 | AG62: 15854 | AH62: 0 | AI62: 0 | AJ62: 15854 | AK62: 0 | AL62: 0 | AM62: 15854 | AN62: 0 | AO62: 0 | AP62: 15854 | AQ62: 63416 | AR62: 0 | AS62: 0 | AT62: 0 | AU62: 15854 | AV62: 0 | AW62: 0 | AX62: 15854 | AY62: 0 | AZ62: 0 | BA62: 15854 | BB62: 0 | BC62: 0 | BD62: 15854 | BE62: 63416 | BF62: 0 | BG62: 0 | BH62: 0 | BI62: 15854 | BJ62: 0 | BK62: 0 | BL62: 15854 | BM62: 0 | BN62: 0 | BO62: 15854 | BP62: 0 | BQ62: 0 | BR62: 15854 | BS62: 63416 | BT62: 0 | BU62: 0 | BV62: 0 | BW62: 15854 | BX62: 0 | BY62: 0 | BZ62: 15854 | CA62: 0 | CB62: 0 | CC62: 15854 | CD62: 0 | CE62: 0 | CF62: 15854 | CG62: 63416 | CH62: 0
A63: 8594 | B63: Other State Revenue 4 | C63: 0 | D63: 0 | E63: 0 | F63: 0 | G63: 0 | H63: 0 | I63: 0 | J63: 0 | K63: 0 | L63: 0 | M63: 0 | N63: 0 | O63: 0 | P63: 0 | Q63: 0 | R63: 0 | S63: 0 | T63: 0 | U63: 0 | V63: 0 | W63: 0 | X63: 0 | Y63: 0 | Z63: 0 | AA63: 0 | AB63: 0 | AC63: 0 | AD63: 0 | AE63: 0 | AF63: 0 | AG63: 0 | AH63: 0 | AI63: 0 | AJ63: 0 | AK63: 0 | AL63: 0 | AM63: 0 | AN63: 0 | AO63: 0 | AP63: 0 | AQ63: 0 | AR63: 0 | AS63: 0 | AT63: 0 | AU63: 0 | AV63: 0 | AW63: 0 | AX63: 0 | AY63: 0 | AZ63: 0 | BA63: 0 | BB63: 0 | BC63: 0 | BD63: 0 | BE63: 0 | BF63: 0 | BG63: 0 | BH63: 0 | BI63: 0 | BJ63: 0 | BK63: 0 | BL63: 0 | BM63: 0 | BN63: 0 | BO63: 0 | BP63: 0 | BQ63: 0 | BR63: 0 | BS63: 0 | BT63: 0 | BU63: 0 | BV63: 0 | BW63: 0 | BX63: 0 | BY63: 0 | BZ63: 0 | CA63: 0 | CB63: 0 | CC63: 0 | CD63: 0 | CE63: 0 | CF63: 0 | CG63: 0 | CH63: 0
A64: 8595 | B64: Other State Revenue 5 | C64: 0 | D64: 0 | E64: 0 | F64: 0 | G64: 0 | H64: 0 | I64: 0 | J64: 0 | K64: 0 | L64: 0 | M64: 0 | N64: 0 | O64: 0 | P64: 0 | Q64: 0 | R64: 0 | S64: 0 | T64: 0 | U64: 0 | V64: 0 | W64: 0 | X64: 0 | Y64: 0 | Z64: 0 | AA64: 0 | AB64: 0 | AC64: 0 | AD64: 0 | AE64: 0 | AF64: 0 | AG64: 0 | AH64: 0 | AI64: 0 | AJ64: 0 | AK64: 0 | AL64: 0 | AM64: 0 | AN64: 0 | AO64: 0 | AP64: 0 | AQ64: 0 | AR64: 0 | AS64: 0 | AT64: 0 | AU64: 0 | AV64: 0 | AW64: 0 | AX64: 0 | AY64: 0 | AZ64: 0 | BA64: 0 | BB64: 0 | BC64: 0 | BD64: 0 | BE64: 0 | BF64: 0 | BG64: 0 | BH64: 0 | BI64: 0 | BJ64: 0 | BK64: 0 | BL64: 0 | BM64: 0 | BN64: 0 | BO64: 0 | BP64: 0 | BQ64: 0 | BR64: 0 | BS64: 0 | BT64: 0 | BU64: 0 | BV64: 0 | BW64: 0 | BX64: 0 | BY64: 0 | BZ64: 0 | CA64: 0 | CB64: 0 | CC64: 0 | CD64: 0 | CE64: 0 | CF64: 0 | CG64: 0 | CH64: 0
A65: 8596 | B65: Other State Revenue 6 | C65: 0 | D65: 0 | E65: 0 | F65: 0 | G65: 0 | H65: 0 | I65: 0 | J65: 0 | K65: 0 | L65: 0 | M65: 0 | N65: 0 | O65: 0 | P65: 0 | Q65: 0 | R65: 0 | S65: 0 | T65: 0 | U65: 0 | V65: 0 | W65: 0 | X65: 0 | Y65: 0 | Z65: 0 | AA65: 0 | AB65: 0 | AC65: 0 | AD65: 0 | AE65: 0 | AF65: 0 | AG65: 0 | AH65: 0 | AI65: 0 | AJ65: 0 | AK65: 0 | AL65: 0 | AM65: 0 | AN65: 0 | AO65: 0 | AP65: 0 | AQ65: 0 | AR65: 0 | AS65: 0 | AT65: 0 | AU65: 0 | AV65: 0 | AW65: 0 | AX65: 0 | AY65: 0 | AZ65: 0 | BA65: 0 | BB65: 0 | BC65: 0 | BD65: 0 | BE65: 0 | BF65: 0 | BG65: 0 | BH65: 0 | BI65: 0 | BJ65: 0 | BK65: 0 | BL65: 0 | BM65: 0 | BN65: 0 | BO65: 0 | BP65: 0 | BQ65: 0 | BR65: 0 | BS65: 0 | BT65: 0 | BU65: 0 | BV65: 0 | BW65: 0 | BX65: 0 | BY65: 0 | BZ65: 0 | CA65: 0 | CB65: 0 | CC65: 0 | CD65: 0 | CE65: 0 | CF65: 0 | CG65: 0 | CH65: 0
A66: 8597 | B66: Other State Revenue 7 | C66: 0 | D66: 0 | E66: 0 | F66: 0 | G66: 0 | H66: 0 | I66: 0 | J66: 0 | K66: 0 | L66: 0 | M66: 0 | N66: 0 | O66: 0 | P66: 0 | Q66: 0 | R66: 0 | S66: 0 | T66: 0 | U66: 0 | V66: 0 | W66: 0 | X66: 0 | Y66: 0 | Z66: 0 | AA66: 0 | AB66: 0 | AC66: 0 | AD66: 0 | AE66: 0 | AF66: 0 | AG66: 0 | AH66: 0 | AI66: 0 | AJ66: 0 | AK66: 0 | AL66: 0 | AM66: 0 | AN66: 0 | AO66: 0 | AP66: 0 | AQ66: 0 | AR66: 0 | AS66: 0 | AT66: 0 | AU66: 0 | AV66: 0 | AW66: 0 | AX66: 0 | AY66: 0 | AZ66: 0 | BA66: 0 | BB66: 0 | BC66: 0 | BD66: 0 | BE66: 0 | BF66: 0 | BG66: 0 | BH66: 0 | BI66: 0 | BJ66: 0 | BK66: 0 | BL66: 0 | BM66: 0 | BN66: 0 | BO66: 0 | BP66: 0 | BQ66: 0 | BR66: 0 | BS66: 0 | BT66: 0 | BU66: 0 | BV66: 0 | BW66: 0 | BX66: 0 | BY66: 0 | BZ66: 0 | CA66: 0 | CB66: 0 | CC66: 0 | CD66: 0 | CE66: 0 | CF66: 0 | CG66: 0 | CH66: 0
A67: 8598 | B67: Other State Revenue 8 | C67: 0 | D67: 0 | E67: 0 | F67: 0 | G67: 0 | H67: 0 | I67: 0 | J67: 0 | K67: 0 | L67: 0 | M67: 0 | N67: 0 | O67: 0 | P67: 0 | Q67: 0 | R67: 0 | S67: 0 | T67: 0 | U67: 0 | V67: 0 | W67: 0 | X67: 0 | Y67: 0 | Z67: 0 | AA67: 0 | AB67: 0 | AC67: 0 | AD67: 0 | AE67: 0 | AF67: 0 | AG67: 0 | AH67: 0 | AI67: 0 | AJ67: 0 | AK67: 0 | AL67: 0 | AM67: 0 | AN67: 0 | AO67: 0 | AP67: 0 | AQ67: 0 | AR67: 0 | AS67: 0 | AT67: 0 | AU67: 0 | AV67: 0 | AW67: 0 | AX67: 0 | AY67: 0 | AZ67: 0 | BA67: 0 | BB67: 0 | BC67: 0 | BD67: 0 | BE67: 0 | BF67: 0 | BG67: 0 | BH67: 0 | BI67: 0 | BJ67: 0 | BK67: 0 | BL67: 0 | BM67: 0 | BN67: 0 | BO67: 0 | BP67: 0 | BQ67: 0 | BR67: 0 | BS67: 0 | BT67: 0 | BU67: 0 | BV67: 0 | BW67: 0 | BX67: 0 | BY67: 0 | BZ67: 0 | CA67: 0 | CB67: 0 | CC67: 0 | CD67: 0 | CE67: 0 | CF67: 0 | CG67: 0 | CH67: 0
A68: 8599 | B68: Other State Revenue 9 | C68: 0 | D68: 0 | E68: 0 | F68: 0 | G68: 0 | H68: 0 | I68: 0 | J68: 0 | K68: 0 | L68: 0 | M68: 0 | N68: 0 | O68: 0 | P68: 0 | Q68: 0 | R68: 0 | S68: 0 | T68: 0 | U68: 0 | V68: 0 | W68: 0 | X68: 0 | Y68: 0 | Z68: 0 | AA68: 0 | AB68: 0 | AC68: 0 | AD68: 0 | AE68: 0 | AF68: 0 | AG68: 0 | AH68: 0 | AI68: 0 | AJ68: 0 | AK68: 0 | AL68: 0 | AM68: 0 | AN68: 0 | AO68: 0 | AP68: 0 | AQ68: 0 | AR68: 0 | AS68: 0 | AT68: 0 | AU68: 0 | AV68: 0 | AW68: 0 | AX68: 0 | AY68: 0 | AZ68: 0 | BA68: 0 | BB68: 0 | BC68: 0 | BD68: 0 | BE68: 0 | BF68: 0 | BG68: 0 | BH68: 0 | BI68: 0 | BJ68: 0 | BK68: 0 | BL68: 0 | BM68: 0 | BN68: 0 | BO68: 0 | BP68: 0 | BQ68: 0 | BR68: 0 | BS68: 0 | BT68: 0 | BU68: 0 | BV68: 0 | BW68: 0 | BX68: 0 | BY68: 0 | BZ68: 0 | CA68: 0 | CB68: 0 | CC68: 0 | CD68: 0 | CE68: 0 | CF68: 0 | CG68: 0 | CH68: 0
B70: Other State Revenue | C70: =SUM(C46:C69) -> 20628 | D70: 26349 | E70: 48053.73 | F70: 79672.1 | G70: 44315 | H70: 63978 | I70: 81491.88 | J70: 5322 | K70: 251726.35 | L70: 672309.01 | M70: 75873.36441 | N70: 144883.2553 | O70: 1552216.493 | P70: 37614.80295 | Q70: =SUM(Q46:Q69) -> 55011.58333 | R70: 82011.05 | S70: 98698.38333 | T70: 102445.6633 | U70: 102445.6633 | V70: 136016.8244 | W70: 102445.6633 | X70: 133437.2982 | Y70: 246588.322 | Z70: 96085.06109 | AA70: 192641.2398 | AB70: 165051.1099 | AC70: 1601038.605 | AD70: 88160.74254 | AE70: =SUM(AE46:AE69) -> 10778.75 | AF70: 36284.49111 | AG70: 52988.49111 | AH70: 55463.65066 | AI70: 55463.65066 | AJ70: 90920.54821 | AK70: 55463.65066 | AL70: 87445.43364 | AM70: 214271.2928 | AN70: 59001.448 | AO70: 158868.7596 | AP70: 129847.6633 | AQ70: 1180763.807 | AR70: 173965.9772 | AS70: =SUM(AS46:AS69) -> 6434.583333 | AT70: 32824.77378 | AU70: 49545.77378 | AV70: 52728.49279 | AW70: 52728.49279 | AX70: 90905.02279 | AY70: 52728.49279 | AZ70: 85944.86667 | BA70: 212293.2592 | BB70: 52728.49279 | BC70: 155921.7144 | BD70: 125268.8287 | BE70: 1134343.389 | BF70: 164290.5951 | BG70: =SUM(BG46:BG69) -> 6434.583333 | BH70: 32824.77378 | BI70: 49563.11378 | BJ70: 52745.83279 | BK70: 52745.83279 | BL70: 91643.31779 | BM70: 52745.83279 | BN70: 85962.20667 | BO70: 215184.8145 | BP70: 52745.83279 | BQ70: 157338.5914 | BR70: 126419.8954 | BS70: 1125445.605 | BT70: 149090.9772 | BU70: =SUM(BU46:BU69) -> 6434.583333 | BV70: 32824.77378 | BW70: 49580.80058 | BX70: 52763.51959 | BY70: 52763.51959 | BZ70: 91661.00459 | CA70: 52763.51959 | CB70: 85979.89347 | CC70: 215202.5013 | CD70: 52763.51959 | CE70: 157356.2782 | CF70: 126437.5822 | CG70: 1125680.493 | CH70: 149148.997
A72: Other Local Revenue
P73: =O73-SUM(C73:N73) -> 0 | AD73: =AC73-SUM(Q73:AB73) -> 0 | AR73: =AQ73-SUM(AE73:AP73) -> 0 | BF73: =BE73-SUM(AS73:BD73) -> 0 | BT73: =BS73-SUM(BG73:BR73) -> 0 | CH73: =CG73-SUM(BU73:CF73) -> 0
A74: 8600 | B74: Other Local Revenue | C74: 0 | D74: 0 | E74: 0 | F74: 0 | G74: 0 | H74: 0 | I74: 0 | J74: 0 | K74: 0 | L74: 0 | M74: 0 | N74: 0 | P74: =O74-SUM(C74:N74) -> 0 | AD74: =AC74-SUM(Q74:AB74) -> 0 | AR74: =AQ74-SUM(AE74:AP74) -> 0 | BF74: =BE74-SUM(AS74:BD74) -> 0 | BT74: =BS74-SUM(BG74:BR74) -> 0 | CH74: =CG74-SUM(BU74:CF74) -> 0
A75: 8631 | B75: Sales | C75: 0 | D75: 0 | E75: 0 | F75: 0 | G75: 0 | H75: 0 | I75: 0 | J75: 0 | K75: 0 | L75: 0 | M75: 0 | N75: 0 | O75: 0 | P75: 0 | Q75: 0 | R75: 0 | S75: 0 | T75: 0 | U75: 0 | V75: 0 | W75: 0 | X75: 0 | Y75: 0 | Z75: 0 | AA75: 0 | AB75: 0 | AC75: 0 | AD75: 0 | AE75: 0 | AF75: 0 | AG75: 0 | AH75: 0 | AI75: 0 | AJ75: 0 | AK75: 0 | AL75: 0 | AM75: 0 | AN75: 0 | AO75: 0 | AP75: 0 | AQ75: 0 | AR75: 0 | AS75: 0 | AT75: 0 | AU75: 0 | AV75: 0 | AW75: 0 | AX75: 0 | AY75: 0 | AZ75: 0 | BA75: 0 | BB75: 0 | BC75: 0 | BD75: 0 | BE75: 0 | BF75: 0 | BG75: 0 | BH75: 0 | BI75: 0 | BJ75: 0 | BK75: 0 | BL75: 0 | BM75: 0 | BN75: 0 | BO75: 0 | BP75: 0 | BQ75: 0 | BR75: 0 | BS75: 0 | BT75: 0 | BU75: 0 | BV75: 0 | BW75: 0 | BX75: 0 | BY75: 0 | BZ75: 0 | CA75: 0 | CB75: 0 | CC75: 0 | CD75: 0 | CE75: 0 | CF75: 0 | CG75: 0 | CH75: 0
A76: 8632 | B76: Sale of Publications | C76: 0 | D76: 0 | E76: 0 | F76: 0 | G76: 0 | H76: 0 | I76: 0 | J76: 0 | K76: 0 | L76: 0 | M76: 0 | N76: 0 | O76: 0 | P76: 0 | Q76: 0 | R76: 0 | S76: 0 | T76: 0 | U76: 0 | V76: 0 | W76: 0 | X76: 0 | Y76: 0 | Z76: 0 | AA76: 0 | AB76: 0 | AC76: 0 | AD76: 0 | AE76: 0 | AF76: 0 | AG76: 0 | AH76: 0 | AI76: 0 | AJ76: 0 | AK76: 0 | AL76: 0 | AM76: 0 | AN76: 0 | AO76: 0 | AP76: 0 | AQ76: 0 | AR76: 0 | AS76: 0 | AT76: 0 | AU76: 0 | AV76: 0 | AW76: 0 | AX76: 0 | AY76: 0 | AZ76: 0 | BA76: 0 | BB76: 0 | BC76: 0 | BD76: 0 | BE76: 0 | BF76: 0 | BG76: 0 | BH76: 0 | BI76: 0 | BJ76: 0 | BK76: 0 | BL76: 0 | BM76: 0 | BN76: 0 | BO76: 0 | BP76: 0 | BQ76: 0 | BR76: 0 | BS76: 0 | BT76: 0 | BU76: 0 | BV76: 0 | BW76: 0 | BX76: 0 | BY76: 0 | BZ76: 0 | CA76: 0 | CB76: 0 | CC76: 0 | CD76: 0 | CE76: 0 | CF76: 0 | CG76: 0 | CH76: 0
A77: 8634 | B77: Food Service Sales | C77: 0 | D77: 0 | E77: 96 | F77: 0 | G77: 0 | H77: 0 | I77: 0 | J77: 0 | K77: 0 | L77: 0 | M77: 789.177 | N77: 98.353 | O77: 983.53 | P77: 0 | Q77: 0 | R77: 0 | S77: 100 | T77: 100 | U77: 100 | V77: 100 | W77: 100 | X77: 100 | Y77: 100 | Z77: 100 | AA77: 100 | AB77: 100 | AC77: 1036.02 | AD77: 36.02 | AE77: 0 | AF77: 0 | AG77: 102 | AH77: 102 | AI77: 102 | AJ77: 102 | AK77: 102 | AL77: 102 | AM77: 102 | AN77: 102 | AO77: 102 | AP77: 102 | AQ77: 1119.348 | AR77: 99.348 | AS77: 0 | AT77: 0 | AU77: 104.04 | AV77: 104.04 | AW77: 104.04 | AX77: 104.04 | AY77: 104.04 | AZ77: 104.04 | BA77: 104.04 | BB77: 104.04 | BC77: 104.04 | BD77: 104.04 | BE77: 1151.41068 | BF77: 111.01068 | BG77: 0 | BH77: 0 | BI77: 106.1208 | BJ77: 106.1208 | BK77: 106.1208 | BL77: 106.1208 | BM77: 106.1208 | BN77: 106.1208 | BO77: 106.1208 | BP77: 106.1208 | BQ77: 106.1208 | BR77: 106.1208 | BS77: 1174.438894 | BT77: 113.2308936 | BU77: 0 | BV77: 0 | BW77: 108.243216 | BX77: 108.243216 | BY77: 108.243216 | BZ77: 108.243216 | CA77: 108.243216 | CB77: 108.243216 | CC77: 108.243216 | CD77: 108.243216 | CE77: 108.243216 | CF77: 108.243216 | CG77: 1197.927671 | CH77: 115.4955115
A78: 8636 | B78: Uniforms | C78: 0 | D78: 0 | E78: 0 | F78: 0 | G78: 0 | H78: 0 | I78: 0 | J78: 0 | K78: 0 | L78: 0 | M78: 0 | N78: 0 | O78: 0 | P78: 0 | Q78: 0 | R78: 0 | S78: 0 | T78: 0 | U78: 0 | V78: 0 | W78: 0 | X78: 0 | Y78: 0 | Z78: 0 | AA78: 0 | AB78: 0 | AC78: 0 | AD78: 0 | AE78: 0 | AF78: 0 | AG78: 0 | AH78: 0 | AI78: 0 | AJ78: 0 | AK78: 0 | AL78: 0 | AM78: 0 | AN78: 0 | AO78: 0 | AP78: 0 | AQ78: 0 | AR78: 0 | AS78: 0 | AT78: 0 | AU78: 0 | AV78: 0 | AW78: 0 | AX78: 0 | AY78: 0 | AZ78: 0 | BA78: 0 | BB78: 0 | BC78: 0 | BD78: 0 | BE78: 0 | BF78: 0 | BG78: 0 | BH78: 0 | BI78: 0 | BJ78: 0 | BK78: 0 | BL78: 0 | BM78: 0 | BN78: 0 | BO78: 0 | BP78: 0 | BQ78: 0 | BR78: 0 | BS78: 0 | BT78: 0 | BU78: 0 | BV78: 0 | BW78: 0 | BX78: 0 | BY78: 0 | BZ78: 0 | CA78: 0 | CB78: 0 | CC78: 0 | CD78: 0 | CE78: 0 | CF78: 0 | CG78: 0 | CH78: 0
A79: 8638 | B79: Merchandise Sales | C79: 0 | D79: 0 | E79: 0 | F79: 0 | G79: 0 | H79: 0 | I79: 0 | J79: 0 | K79: 0 | L79: 0 | M79: 0 | N79: 0 | O79: 0 | P79: 0 | Q79: 0 | R79: 0 | S79: 0 | T79: 0 | U79: 0 | V79: 0 | W79: 0 | X79: 0 | Y79: 0 | Z79: 0 | AA79: 0 | AB79: 0 | AC79: 0 | AD79: 0 | AE79: 0 | AF79: 0 | AG79: 0 | AH79: 0 | AI79: 0 | AJ79: 0 | AK79: 0 | AL79: 0 | AM79: 0 | AN79: 0 | AO79: 0 | AP79: 0 | AQ79: 0 | AR79: 0 | AS79: 0 | AT79: 0 | AU79: 0 | AV79: 0 | AW79: 0 | AX79: 0 | AY79: 0 | AZ79: 0 | BA79: 0 | BB79: 0 | BC79: 0 | BD79: 0 | BE79: 0 | BF79: 0 | BG79: 0 | BH79: 0 | BI79: 0 | BJ79: 0 | BK79: 0 | BL79: 0 | BM79: 0 | BN79: 0 | BO79: 0 | BP79: 0 | BQ79: 0 | BR79: 0 | BS79: 0 | BT79: 0 | BU79: 0 | BV79: 0 | BW79: 0 | BX79: 0 | BY79: 0 | BZ79: 0 | CA79: 0 | CB79: 0 | CC79: 0 | CD79: 0 | CE79: 0 | CF79: 0 | CG79: 0 | CH79: 0
A80: 8639 | B80: All Other Sales | C80: 0 | D80: 0 | E80: 0 | F80: 0 | G80: 0 | H80: 0 | I80: 0 | J80: 0 | K80: 0 | L80: 0 | M80: 0 | N80: 0 | O80: 0 | P80: 0 | Q80: 0 | R80: 0 | S80: 0 | T80: 0 | U80: 0 | V80: 0 | W80: 0 | X80: 0 | Y80: 0 | Z80: 0 | AA80: 0 | AB80: 0 | AC80: 0 | AD80: 0 | AE80: 0 | AF80: 0 | AG80: 0 | AH80: 0 | AI80: 0 | AJ80: 0 | AK80: 0 | AL80: 0 | AM80: 0 | AN80: 0 | AO80: 0 | AP80: 0 | AQ80: 0 | AR80: 0 | AS80: 0 | AT80: 0 | AU80: 0 | AV80: 0 | AW80: 0 | AX80: 0 | AY80: 0 | AZ80: 0 | BA80: 0 | BB80: 0 | BC80: 0 | BD80: 0 | BE80: 0 | BF80: 0 | BG80: 0 | BH80: 0 | BI80: 0 | BJ80: 0 | BK80: 0 | BL80: 0 | BM80: 0 | BN80: 0 | BO80: 0 | BP80: 0 | BQ80: 0 | BR80: 0 | BS80: 0 | BT80: 0 | BU80: 0 | BV80: 0 | BW80: 0 | BX80: 0 | BY80: 0 | BZ80: 0 | CA80: 0 | CB80: 0 | CC80: 0 | CD80: 0 | CE80: 0 | CF80: 0 | CG80: 0 | CH80: 0
A81: 8650 | B81: Leases and Rentals | C81: 0 | D81: 0 | E81: 0 | F81: 0 | G81: 0 | H81: 0 | I81: 0 | J81: 0 | K81: 0 | L81: 0 | M81: 0 | N81: 0 | O81: 0 | P81: 0 | Q81: 0 | R81: 0 | S81: 0 | T81: 0 | U81: 0 | V81: 0 | W81: 0 | X81: 0 | Y81: 0 | Z81: 0 | AA81: 0 | AB81: 0 | AC81: 0 | AD81: 0 | AE81: 0 | AF81: 0 | AG81: 0 | AH81: 0 | AI81: 0 | AJ81: 0 | AK81: 0 | AL81: 0 | AM81: 0 | AN81: 0 | AO81: 0 | AP81: 0 | AQ81: 0 | AR81: 0 | AS81: 0 | AT81: 0 | AU81: 0 | AV81: 0 | AW81: 0 | AX81: 0 | AY81: 0 | AZ81: 0 | BA81: 0 | BB81: 0 | BC81: 0 | BD81: 0 | BE81: 0 | BF81: 0 | BG81: 0 | BH81: 0 | BI81: 0 | BJ81: 0 | BK81: 0 | BL81: 0 | BM81: 0 | BN81: 0 | BO81: 0 | BP81: 0 | BQ81: 0 | BR81: 0 | BS81: 0 | BT81: 0 | BU81: 0 | BV81: 0 | BW81: 0 | BX81: 0 | BY81: 0 | BZ81: 0 | CA81: 0 | CB81: 0 | CC81: 0 | CD81: 0 | CE81: 0 | CF81: 0 | CG81: 0 | CH81: 0
A82: 8660 | B82: Interest | C82: 0.04 | D82: 0.05 | E82: 0.05 | F82: 0.05 | G82: 0.31 | H82: 0.73 | I82: 0.73 | J82: 0.66 | K82: 0.73 | L82: 0.71 | M82: 0.44 | N82: 0.5 | O82: 5 | P82: 0 | Q82: 0 | R82: 0 | S82: 0.5 | T82: 0.5 | U82: 0.5 | V82: 0.5 | W82: 0.5 | X82: 0.5 | Y82: 0.5 | Z82: 0.5 | AA82: 0.5 | AB82: 0.5 | AC82: 5 | AD82: 0 | AE82: 0 | AF82: 0 | AG82: 0.5 | AH82: 0.5 | AI82: 0.5 | AJ82: 0.5 | AK82: 0.5 | AL82: 0.5 | AM82: 0.5 | AN82: 0.5 | AO82: 0.5 | AP82: 0.5 | AQ82: 5 | AR82: 0 | AS82: 0 | AT82: 0 | AU82: 0.5 | AV82: 0.5 | AW82: 0.5 | AX82: 0.5 | AY82: 0.5 | AZ82: 0.5 | BA82: 0.5 | BB82: 0.5 | BC82: 0.5 | BD82: 0.5 | BE82: 5 | BF82: 0 | BG82: 0 | BH82: 0 | BI82: 0.5 | BJ82: 0.5 | BK82: 0.5 | BL82: 0.5 | BM82: 0.5 | BN82: 0.5 | BO82: 0.5 | BP82: 0.5 | BQ82: 0.5 | BR82: 0.5 | BS82: 5 | BT82: 0 | BU82: 0 | BV82: 0 | BW82: 0.5 | BX82: 0.5 | BY82: 0.5 | BZ82: 0.5 | CA82: 0.5 | CB82: 0.5 | CC82: 0.5 | CD82: 0.5 | CE82: 0.5 | CF82: 0.5 | CG82: 5 | CH82: 0
A83: 8661 | B83: Interest - Temporarily Restricted | C83: 0 | D83: 0 | E83: 0 | F83: 0 | G83: 0 | H83: 0 | I83: 0 | J83: 0 | K83: 0 | L83: 0 | M83: 0 | N83: 0 | O83: 0 | P83: 0 | Q83: 0 | R83: 0 | S83: 0 | T83: 0 | U83: 0 | V83: 0 | W83: 0 | X83: 0 | Y83: 0 | Z83: 0 | AA83: 0 | AB83: 0 | AC83: 0 | AD83: 0 | AE83: 0 | AF83: 0 | AG83: 0 | AH83: 0 | AI83: 0 | AJ83: 0 | AK83: 0 | AL83: 0 | AM83: 0 | AN83: 0 | AO83: 0 | AP83: 0 | AQ83: 0 | AR83: 0 | AS83: 0 | AT83: 0 | AU83: 0 | AV83: 0 | AW83: 0 | AX83: 0 | AY83: 0 | AZ83: 0 | BA83: 0 | BB83: 0 | BC83: 0 | BD83: 0 | BE83: 0 | BF83: 0 | BG83: 0 | BH83: 0 | BI83: 0 | BJ83: 0 | BK83: 0 | BL83: 0 | BM83: 0 | BN83: 0 | BO83: 0 | BP83: 0 | BQ83: 0 | BR83: 0 | BS83: 0 | BT83: 0 | BU83: 0 | BV83: 0 | BW83: 0 | BX83: 0 | BY83: 0 | BZ83: 0 | CA83: 0 | CB83: 0 | CC83: 0 | CD83: 0 | CE83: 0 | CF83: 0 | CG83: 0 | CH83: 0
A84: 8662 | B84: Net Increase (Decrease | C84: 0 | D84: 0 | E84: 0 | F84: 0 | G84: 0 | H84: 0 | I84: 0 | J84: 0 | K84: 0 | L84: 0 | M84: 0 | N84: 0 | O84: 0 | P84: 0 | Q84: 0 | R84: 0 | S84: 0 | T84: 0 | U84: 0 | V84: 0 | W84: 0 | X84: 0 | Y84: 0 | Z84: 0 | AA84: 0 | AB84: 0 | AC84: 0 | AD84: 0 | AE84: 0 | AF84: 0 | AG84: 0 | AH84: 0 | AI84: 0 | AJ84: 0 | AK84: 0 | AL84: 0 | AM84: 0 | AN84: 0 | AO84: 0 | AP84: 0 | AQ84: 0 | AR84: 0 | AS84: 0 | AT84: 0 | AU84: 0 | AV84: 0 | AW84: 0 | AX84: 0 | AY84: 0 | AZ84: 0 | BA84: 0 | BB84: 0 | BC84: 0 | BD84: 0 | BE84: 0 | BF84: 0 | BG84: 0 | BH84: 0 | BI84: 0 | BJ84: 0 | BK84: 0 | BL84: 0 | BM84: 0 | BN84: 0 | BO84: 0 | BP84: 0 | BQ84: 0 | BR84: 0 | BS84: 0 | BT84: 0 | BU84: 0 | BV84: 0 | BW84: 0 | BX84: 0 | BY84: 0 | BZ84: 0 | CA84: 0 | CB84: 0 | CC84: 0 | CD84: 0 | CE84: 0 | CF84: 0 | CG84: 0 | CH84: 0
A85: 8670 | B85: Fees and Contracts | C85: 0 | D85: 0 | E85: 0 | F85: 0 | G85: 0 | H85: 0 | I85: 0 | J85: 0 | K85: 0 | L85: 0 | M85: 0 | N85: 0 | O85: 0 | P85: 0 | Q85: 0 | R85: 0 | S85: 0 | T85: 0 | U85: 0 | V85: 0 | W85: 0 | X85: 0 | Y85: 0 | Z85: 0 | AA85: 0 | AB85: 0 | AC85: 0 | AD85: 0 | AE85: 0 | AF85: 0 | AG85: 0 | AH85: 0 | AI85: 0 | AJ85: 0 | AK85: 0 | AL85: 0 | AM85: 0 | AN85: 0 | AO85: 0 | AP85: 0 | AQ85: 0 | AR85: 0 | AS85: 0 | AT85: 0 | AU85: 0 | AV85: 0 | AW85: 0 | AX85: 0 | AY85: 0 | AZ85: 0 | BA85: 0 | BB85: 0 | BC85: 0 | BD85: 0 | BE85: 0 | BF85: 0 | BG85: 0 | BH85: 0 | BI85: 0 | BJ85: 0 | BK85: 0 | BL85: 0 | BM85: 0 | BN85: 0 | BO85: 0 | BP85: 0 | BQ85: 0 | BR85: 0 | BS85: 0 | BT85: 0 | BU85: 0 | BV85: 0 | BW85: 0 | BX85: 0 | BY85: 0 | BZ85: 0 | CA85: 0 | CB85: 0 | CC85: 0 | CD85: 0 | CE85: 0 | CF85: 0 | CG85: 0 | CH85: 0
A86: 8671 | B86: Adult Education Fees | C86: 0 | D86: 0 | E86: 0 | F86: 0 | G86: 0 | H86: 0 | I86: 0 | J86: 0 | K86: 0 | L86: 0 | M86: 0 | N86: 0 | O86: 0 | P86: 0 | Q86: 0 | R86: 0 | S86: 0 | T86: 0 | U86: 0 | V86: 0 | W86: 0 | X86: 0 | Y86: 0 | Z86: 0 | AA86: 0 | AB86: 0 | AC86: 0 | AD86: 0 | AE86: 0 | AF86: 0 | AG86: 0 | AH86: 0 | AI86: 0 | AJ86: 0 | AK86: 0 | AL86: 0 | AM86: 0 | AN86: 0 | AO86: 0 | AP86: 0 | AQ86: 0 | AR86: 0 | AS86: 0 | AT86: 0 | AU86: 0 | AV86: 0 | AW86: 0 | AX86: 0 | AY86: 0 | AZ86: 0 | BA86: 0 | BB86: 0 | BC86: 0 | BD86: 0 | BE86: 0 | BF86: 0 | BG86: 0 | BH86: 0 | BI86: 0 | BJ86: 0 | BK86: 0 | BL86: 0 | BM86: 0 | BN86: 0 | BO86: 0 | BP86: 0 | BQ86: 0 | BR86: 0 | BS86: 0 | BT86: 0 | BU86: 0 | BV86: 0 | BW86: 0 | BX86: 0 | BY86: 0 | BZ86: 0 | CA86: 0 | CB86: 0 | CC86: 0 | CD86: 0 | CE86: 0 | CF86: 0 | CG86: 0 | CH86: 0
A87: 8672 | B87: Pre School Revenue | C87: 0 | D87: 0 | E87: 0 | F87: 0 | G87: 0 | H87: 0 | I87: 0 | J87: 0 | K87: 0 | L87: 0 | M87: 0 | N87: 0 | O87: 0 | P87: 0 | Q87: 0 | R87: 0 | S87: 0 | T87: 0 | U87: 0 | V87: 0 | W87: 0 | X87: 0 | Y87: 0 | Z87: 0 | AA87: 0 | AB87: 0 | AC87: 0 | AD87: 0 | AE87: 0 | AF87: 0 | AG87: 0 | AH87: 0 | AI87: 0 | AJ87: 0 | AK87: 0 | AL87: 0 | AM87: 0 | AN87: 0 | AO87: 0 | AP87: 0 | AQ87: 0 | AR87: 0 | AS87: 0 | AT87: 0 | AU87: 0 | AV87: 0 | AW87: 0 | AX87: 0 | AY87: 0 | AZ87: 0 | BA87: 0 | BB87: 0 | BC87: 0 | BD87: 0 | BE87: 0 | BF87: 0 | BG87: 0 | BH87: 0 | BI87: 0 | BJ87: 0 | BK87: 0 | BL87: 0 | BM87: 0 | BN87: 0 | BO87: 0 | BP87: 0 | BQ87: 0 | BR87: 0 | BS87: 0 | BT87: 0 | BU87: 0 | BV87: 0 | BW87: 0 | BX87: 0 | BY87: 0 | BZ87: 0 | CA87: 0 | CB87: 0 | CC87: 0 | CD87: 0 | CE87: 0 | CF87: 0 | CG87: 0 | CH87: 0
A88: 8673 | B88: Child Development Parent Fees | C88: 0 | D88: 0 | E88: 0 | F88: 0 | G88: 0 | H88: 0 | I88: 0 | J88: 0 | K88: 0 | L88: 0 | M88: 0 | N88: 0 | O88: 0 | P88: 0 | Q88: 0 | R88: 0 | S88: 0 | T88: 0 | U88: 0 | V88: 0 | W88: 0 | X88: 0 | Y88: 0 | Z88: 0 | AA88: 0 | AB88: 0 | AC88: 0 | AD88: 0 | AE88: 0 | AF88: 0 | AG88: 0 | AH88: 0 | AI88: 0 | AJ88: 0 | AK88: 0 | AL88: 0 | AM88: 0 | AN88: 0 | AO88: 0 | AP88: 0 | AQ88: 0 | AR88: 0 | AS88: 0 | AT88: 0 | AU88: 0 | AV88: 0 | AW88: 0 | AX88: 0 | AY88: 0 | AZ88: 0 | BA88: 0 | BB88: 0 | BC88: 0 | BD88: 0 | BE88: 0 | BF88: 0 | BG88: 0 | BH88: 0 | BI88: 0 | BJ88: 0 | BK88: 0 | BL88: 0 | BM88: 0 | BN88: 0 | BO88: 0 | BP88: 0 | BQ88: 0 | BR88: 0 | BS88: 0 | BT88: 0 | BU88: 0 | BV88: 0 | BW88: 0 | BX88: 0 | BY88: 0 | BZ88: 0 | CA88: 0 | CB88: 0 | CC88: 0 | CD88: 0 | CE88: 0 | CF88: 0 | CG88: 0 | CH88: 0
A89: 8675 | B89: Transportation Fees from Individuals | C89: 0 | D89: 0 | E89: 0 | F89: 0 | G89: 0 | H89: 0 | I89: 0 | J89: 0 | K89: 0 | L89: 0 | M89: 0 | N89: 0 | O89: 0 | P89: 0 | Q89: 0 | R89: 0 | S89: 0 | T89: 0 | U89: 0 | V89: 0 | W89: 0 | X89: 0 | Y89: 0 | Z89: 0 | AA89: 0 | AB89: 0 | AC89: 0 | AD89: 0 | AE89: 0 | AF89: 0 | AG89: 0 | AH89: 0 | AI89: 0 | AJ89: 0 | AK89: 0 | AL89: 0 | AM89: 0 | AN89: 0 | AO89: 0 | AP89: 0 | AQ89: 0 | AR89: 0 | AS89: 0 | AT89: 0 | AU89: 0 | AV89: 0 | AW89: 0 | AX89: 0 | AY89: 0 | AZ89: 0 | BA89: 0 | BB89: 0 | BC89: 0 | BD89: 0 | BE89: 0 | BF89: 0 | BG89: 0 | BH89: 0 | BI89: 0 | BJ89: 0 | BK89: 0 | BL89: 0 | BM89: 0 | BN89: 0 | BO89: 0 | BP89: 0 | BQ89: 0 | BR89: 0 | BS89: 0 | BT89: 0 | BU89: 0 | BV89: 0 | BW89: 0 | BX89: 0 | BY89: 0 | BZ89: 0 | CA89: 0 | CB89: 0 | CC89: 0 | CD89: 0 | CE89: 0 | CF89: 0 | CG89: 0 | CH89: 0
A90: 8676 | B90: After School Program Revenue | C90: 0 | D90: 0 | E90: 0 | F90: 0 | G90: 0 | H90: 0 | I90: 0 | J90: 0 | K90: 6338.8 | L90: 0 | M90: 32217.2 | N90: 4284 | O90: 42840 | P90: 0 | Q90: 0 | R90: 0 | S90: 4284 | T90: 4284 | U90: 4284 | V90: 4284 | W90: 4284 | X90: 4284 | Y90: 4284 | Z90: 4284 | AA90: 4284 | AB90: 4284 | AC90: 42840 | AD90: 0 | AE90: 0 | AF90: 0 | AG90: 4284 | AH90: 4284 | AI90: 4284 | AJ90: 4284 | AK90: 4284 | AL90: 4284 | AM90: 4284 | AN90: 4284 | AO90: 4284 | AP90: 4284 | AQ90: 42840 | AR90: 0 | AS90: 0 | AT90: 0 | AU90: 4284 | AV90: 4284 | AW90: 4284 | AX90: 4284 | AY90: 4284 | AZ90: 4284 | BA90: 4284 | BB90: 4284 | BC90: 4284 | BD90: 4284 | BE90: 42840 | BF90: 0 | BG90: 0 | BH90: 0 | BI90: 4284 | BJ90: 4284 | BK90: 4284 | BL90: 4284 | BM90: 4284 | BN90: 4284 | BO90: 4284 | BP90: 4284 | BQ90: 4284 | BR90: 4284 | BS90: 42840 | BT90: 0 | BU90: 0 | BV90: 0 | BW90: 4284 | BX90: 4284 | BY90: 4284 | BZ90: 4284 | CA90: 4284 | CB90: 4284 | CC90: 4284 | CD90: 4284 | CE90: 4284 | CF90: 4284 | CG90: 42840 | CH90: 0
A91: 8678 | B91: Parking Fees | C91: 0 | D91: 0 | E91: 0 | F91: 0 | G91: 0 | H91: 0 | I91: 0 | J91: 0 | K91: 0 | L91: 0 | M91: 0 | N91: 0 | O91: 0 | P91: 0 | Q91: 0 | R91: 0 | S91: 0 | T91: 0 | U91: 0 | V91: 0 | W91: 0 | X91: 0 | Y91: 0 | Z91: 0 | AA91: 0 | AB91: 0 | AC91: 0 | AD91: 0 | AE91: 0 | AF91: 0 | AG91: 0 | AH91: 0 | AI91: 0 | AJ91: 0 | AK91: 0 | AL91: 0 | AM91: 0 | AN91: 0 | AO91: 0 | AP91: 0 | AQ91: 0 | AR91: 0 | AS91: 0 | AT91: 0 | AU91: 0 | AV91: 0 | AW91: 0 | AX91: 0 | AY91: 0 | AZ91: 0 | BA91: 0 | BB91: 0 | BC91: 0 | BD91: 0 | BE91: 0 | BF91: 0 | BG91: 0 | BH91: 0 | BI91: 0 | BJ91: 0 | BK91: 0 | BL91: 0 | BM91: 0 | BN91: 0 | BO91: 0 | BP91: 0 | BQ91: 0 | BR91: 0 | BS91: 0 | BT91: 0 | BU91: 0 | BV91: 0 | BW91: 0 | BX91: 0 | BY91: 0 | BZ91: 0 | CA91: 0 | CB91: 0 | CC91: 0 | CD91: 0 | CE91: 0 | CF91: 0 | CG91: 0 | CH91: 0
A92: 8681 | B92: Fees & Contracts 1 | C92: 0 | D92: 0 | E92: 0 | F92: 0 | G92: 0 | H92: 0 | I92: 0 | J92: 0 | K92: 0 | L92: 0 | M92: 0 | N92: 0 | O92: 0 | P92: 0 | Q92: 0 | R92: 0 | S92: 0 | T92: 0 | U92: 0 | V92: 0 | W92: 0 | X92: 0 | Y92: 0 | Z92: 0 | AA92: 0 | AB92: 0 | AC92: 0 | AD92: 0 | AE92: 0 | AF92: 0 | AG92: 0 | AH92: 0 | AI92: 0 | AJ92: 0 | AK92: 0 | AL92: 0 | AM92: 0 | AN92: 0 | AO92: 0 | AP92: 0 | AQ92: 0 | AR92: 0 | AS92: 0 | AT92: 0 | AU92: 0 | AV92: 0 | AW92: 0 | AX92: 0 | AY92: 0 | AZ92: 0 | BA92: 0 | BB92: 0 | BC92: 0 | BD92: 0 | BE92: 0 | BF92: 0 | BG92: 0 | BH92: 0 | BI92: 0 | BJ92: 0 | BK92: 0 | BL92: 0 | BM92: 0 | BN92: 0 | BO92: 0 | BP92: 0 | BQ92: 0 | BR92: 0 | BS92: 0 | BT92: 0 | BU92: 0 | BV92: 0 | BW92: 0 | BX92: 0 | BY92: 0 | BZ92: 0 | CA92: 0 | CB92: 0 | CC92: 0 | CD92: 0 | CE92: 0 | CF92: 0 | CG92: 0 | CH92: 0
A93: 8682 | B93: Fees & Contracts 2 | C93: 0 | D93: 0 | E93: 0 | F93: 0 | G93: 0 | H93: 0 | I93: 0 | J93: 0 | K93: 0 | L93: 0 | M93: 0 | N93: 0 | O93: 0 | P93: 0 | Q93: 0 | R93: 0 | S93: 0 | T93: 0 | U93: 0 | V93: 0 | W93: 0 | X93: 0 | Y93: 0 | Z93: 0 | AA93: 0 | AB93: 0 | AC93: 0 | AD93: 0 | AE93: 0 | AF93: 0 | AG93: 0 | AH93: 0 | AI93: 0 | AJ93: 0 | AK93: 0 | AL93: 0 | AM93: 0 | AN93: 0 | AO93: 0 | AP93: 0 | AQ93: 0 | AR93: 0 | AS93: 0 | AT93: 0 | AU93: 0 | AV93: 0 | AW93: 0 | AX93: 0 | AY93: 0 | AZ93: 0 | BA93: 0 | BB93: 0 | BC93: 0 | BD93: 0 | BE93: 0 | BF93: 0 | BG93: 0 | BH93: 0 | BI93: 0 | BJ93: 0 | BK93: 0 | BL93: 0 | BM93: 0 | BN93: 0 | BO93: 0 | BP93: 0 | BQ93: 0 | BR93: 0 | BS93: 0 | BT93: 0 | BU93: 0 | BV93: 0 | BW93: 0 | BX93: 0 | BY93: 0 | BZ93: 0 | CA93: 0 | CB93: 0 | CC93: 0 | CD93: 0 | CE93: 0 | CF93: 0 | CG93: 0 | CH93: 0
A94: 8683 | B94: Fees & Contracts 3 | C94: 0 | D94: 0 | E94: 0 | F94: 0 | G94: 0 | H94: 0 | I94: 0 | J94: 0 | K94: 0 | L94: 0 | M94: 0 | N94: 0 | O94: 0 | P94: 0 | Q94: 0 | R94: 0 | S94: 0 | T94: 0 | U94: 0 | V94: 0 | W94: 0 | X94: 0 | Y94: 0 | Z94: 0 | AA94: 0 | AB94: 0 | AC94: 0 | AD94: 0 | AE94: 0 | AF94: 0 | AG94: 0 | AH94: 0 | AI94: 0 | AJ94: 0 | AK94: 0 | AL94: 0 | AM94: 0 | AN94: 0 | AO94: 0 | AP94: 0 | AQ94: 0 | AR94: 0 | AS94: 0 | AT94: 0 | AU94: 0 | AV94: 0 | AW94: 0 | AX94: 0 | AY94: 0 | AZ94: 0 | BA94: 0 | BB94: 0 | BC94: 0 | BD94: 0 | BE94: 0 | BF94: 0 | BG94: 0 | BH94: 0 | BI94: 0 | BJ94: 0 | BK94: 0 | BL94: 0 | BM94: 0 | BN94: 0 | BO94: 0 | BP94: 0 | BQ94: 0 | BR94: 0 | BS94: 0 | BT94: 0 | BU94: 0 | BV94: 0 | BW94: 0 | BX94: 0 | BY94: 0 | BZ94: 0 | CA94: 0 | CB94: 0 | CC94: 0 | CD94: 0 | CE94: 0 | CF94: 0 | CG94: 0 | CH94: 0
A95: 8684 | B95: Fees & Contracts 4 | C95: 0 | D95: 0 | E95: 0 | F95: 0 | G95: 0 | H95: 0 | I95: 0 | J95: 0 | K95: 0 | L95: 0 | M95: 0 | N95: 0 | O95: 0 | P95: 0 | Q95: 0 | R95: 0 | S95: 0 | T95: 0 | U95: 0 | V95: 0 | W95: 0 | X95: 0 | Y95: 0 | Z95: 0 | AA95: 0 | AB95: 0 | AC95: 0 | AD95: 0 | AE95: 0 | AF95: 0 | AG95: 0 | AH95: 0 | AI95: 0 | AJ95: 0 | AK95: 0 | AL95: 0 | AM95: 0 | AN95: 0 | AO95: 0 | AP95: 0 | AQ95: 0 | AR95: 0 | AS95: 0 | AT95: 0 | AU95: 0 | AV95: 0 | AW95: 0 | AX95: 0 | AY95: 0 | AZ95: 0 | BA95: 0 | BB95: 0 | BC95: 0 | BD95: 0 | BE95: 0 | BF95: 0 | BG95: 0 | BH95: 0 | BI95: 0 | BJ95: 0 | BK95: 0 | BL95: 0 | BM95: 0 | BN95: 0 | BO95: 0 | BP95: 0 | BQ95: 0 | BR95: 0 | BS95: 0 | BT95: 0 | BU95: 0 | BV95: 0 | BW95: 0 | BX95: 0 | BY95: 0 | BZ95: 0 | CA95: 0 | CB95: 0 | CC95: 0 | CD95: 0 | CE95: 0 | CF95: 0 | CG95: 0 | CH95: 0
A96: 8685 | B96: Fees & Contracts 5 | C96: 0 | D96: 0 | E96: 0 | F96: 0 | G96: 0 | H96: 0 | I96: 0 | J96: 0 | K96: 0 | L96: 0 | M96: 0 | N96: 0 | O96: 0 | P96: 0 | Q96: 0 | R96: 0 | S96: 0 | T96: 0 | U96: 0 | V96: 0 | W96: 0 | X96: 0 | Y96: 0 | Z96: 0 | AA96: 0 | AB96: 0 | AC96: 0 | AD96: 0 | AE96: 0 | AF96: 0 | AG96: 0 | AH96: 0 | AI96: 0 | AJ96: 0 | AK96: 0 | AL96: 0 | AM96: 0 | AN96: 0 | AO96: 0 | AP96: 0 | AQ96: 0 | AR96: 0 | AS96: 0 | AT96: 0 | AU96: 0 | AV96: 0 | AW96: 0 | AX96: 0 | AY96: 0 | AZ96: 0 | BA96: 0 | BB96: 0 | BC96: 0 | BD96: 0 | BE96: 0 | BF96: 0 | BG96: 0 | BH96: 0 | BI96: 0 | BJ96: 0 | BK96: 0 | BL96: 0 | BM96: 0 | BN96: 0 | BO96: 0 | BP96: 0 | BQ96: 0 | BR96: 0 | BS96: 0 | BT96: 0 | BU96: 0 | BV96: 0 | BW96: 0 | BX96: 0 | BY96: 0 | BZ96: 0 | CA96: 0 | CB96: 0 | CC96: 0 | CD96: 0 | CE96: 0 | CF96: 0 | CG96: 0 | CH96: 0
A97: 8686 | B97: Fees & Contracts 6 | C97: 0 | D97: 0 | E97: 0 | F97: 0 | G97: 0 | H97: 0 | I97: 0 | J97: 0 | K97: 0 | L97: 0 | M97: 0 | N97: 0 | O97: 0 | P97: 0 | Q97: 0 | R97: 0 | S97: 0 | T97: 0 | U97: 0 | V97: 0 | W97: 0 | X97: 0 | Y97: 0 | Z97: 0 | AA97: 0 | AB97: 0 | AC97: 0 | AD97: 0 | AE97: 0 | AF97: 0 | AG97: 0 | AH97: 0 | AI97: 0 | AJ97: 0 | AK97: 0 | AL97: 0 | AM97: 0 | AN97: 0 | AO97: 0 | AP97: 0 | AQ97: 0 | AR97: 0 | AS97: 0 | AT97: 0 | AU97: 0 | AV97: 0 | AW97: 0 | AX97: 0 | AY97: 0 | AZ97: 0 | BA97: 0 | BB97: 0 | BC97: 0 | BD97: 0 | BE97: 0 | BF97: 0 | BG97: 0 | BH97: 0 | BI97: 0 | BJ97: 0 | BK97: 0 | BL97: 0 | BM97: 0 | BN97: 0 | BO97: 0 | BP97: 0 | BQ97: 0 | BR97: 0 | BS97: 0 | BT97: 0 | BU97: 0 | BV97: 0 | BW97: 0 | BX97: 0 | BY97: 0 | BZ97: 0 | CA97: 0 | CB97: 0 | CC97: 0 | CD97: 0 | CE97: 0 | CF97: 0 | CG97: 0 | CH97: 0
A98: 8687 | B98: Fees & Contracts 7 | C98: 0 | D98: 0 | E98: 0 | F98: 0 | G98: 0 | H98: 0 | I98: 0 | J98: 0 | K98: 0 | L98: 0 | M98: 0 | N98: 0 | O98: 0 | P98: 0 | Q98: 0 | R98: 0 | S98: 0 | T98: 0 | U98: 0 | V98: 0 | W98: 0 | X98: 0 | Y98: 0 | Z98: 0 | AA98: 0 | AB98: 0 | AC98: 0 | AD98: 0 | AE98: 0 | AF98: 0 | AG98: 0 | AH98: 0 | AI98: 0 | AJ98: 0 | AK98: 0 | AL98: 0 | AM98: 0 | AN98: 0 | AO98: 0 | AP98: 0 | AQ98: 0 | AR98: 0 | AS98: 0 | AT98: 0 | AU98: 0 | AV98: 0 | AW98: 0 | AX98: 0 | AY98: 0 | AZ98: 0 | BA98: 0 | BB98: 0 | BC98: 0 | BD98: 0 | BE98: 0 | BF98: 0 | BG98: 0 | BH98: 0 | BI98: 0 | BJ98: 0 | BK98: 0 | BL98: 0 | BM98: 0 | BN98: 0 | BO98: 0 | BP98: 0 | BQ98: 0 | BR98: 0 | BS98: 0 | BT98: 0 | BU98: 0 | BV98: 0 | BW98: 0 | BX98: 0 | BY98: 0 | BZ98: 0 | CA98: 0 | CB98: 0 | CC98: 0 | CD98: 0 | CE98: 0 | CF98: 0 | CG98: 0 | CH98: 0
A99: 8688 | B99: Fees & Contracts 8 | C99: 0 | D99: 0 | E99: 0 | F99: 0 | G99: 0 | H99: 0 | I99: 0 | J99: 0 | K99: 0 | L99: 0 | M99: 0 | N99: 0 | O99: 0 | P99: 0 | Q99: 0 | R99: 0 | S99: 0 | T99: 0 | U99: 0 | V99: 0 | W99: 0 | X99: 0 | Y99: 0 | Z99: 0 | AA99: 0 | AB99: 0 | AC99: 0 | AD99: 0 | AE99: 0 | AF99: 0 | AG99: 0 | AH99: 0 | AI99: 0 | AJ99: 0 | AK99: 0 | AL99: 0 | AM99: 0 | AN99: 0 | AO99: 0 | AP99: 0 | AQ99: 0 | AR99: 0 | AS99: 0 | AT99: 0 | AU99: 0 | AV99: 0 | AW99: 0 | AX99: 0 | AY99: 0 | AZ99: 0 | BA99: 0 | BB99: 0 | BC99: 0 | BD99: 0 | BE99: 0 | BF99: 0 | BG99: 0 | BH99: 0 | BI99: 0 | BJ99: 0 | BK99: 0 | BL99: 0 | BM99: 0 | BN99: 0 | BO99: 0 | BP99: 0 | BQ99: 0 | BR99: 0 | BS99: 0 | BT99: 0 | BU99: 0 | BV99: 0 | BW99: 0 | BX99: 0 | BY99: 0 | BZ99: 0 | CA99: 0 | CB99: 0 | CC99: 0 | CD99: 0 | CE99: 0 | CF99: 0 | CG99: 0 | CH99: 0
A100: 8689 | B100: All Other Fees and Contracts | C100: 0 | D100: 0 | E100: 0 | F100: 0 | G100: 0 | H100: 0 | I100: 0 | J100: 0 | K100: 0 | L100: 0 | M100: 0 | N100: 0 | O100: 0 | P100: 0 | Q100: 0 | R100: 0 | S100: 0 | T100: 0 | U100: 0 | V100: 0 | W100: 0 | X100: 0 | Y100: 0 | Z100: 0 | AA100: 0 | AB100: 0 | AC100: 0 | AD100: 0 | AE100: 0 | AF100: 0 | AG100: 0 | AH100: 0 | AI100: 0 | AJ100: 0 | AK100: 0 | AL100: 0 | AM100: 0 | AN100: 0 | AO100: 0 | AP100: 0 | AQ100: 0 | AR100: 0 | AS100: 0 | AT100: 0 | AU100: 0 | AV100: 0 | AW100: 0 | AX100: 0 | AY100: 0 | AZ100: 0 | BA100: 0 | BB100: 0 | BC100: 0 | BD100: 0 | BE100: 0 | BF100: 0 | BG100: 0 | BH100: 0 | BI100: 0 | BJ100: 0 | BK100: 0 | BL100: 0 | BM100: 0 | BN100: 0 | BO100: 0 | BP100: 0 | BQ100: 0 | BR100: 0 | BS100: 0 | BT100: 0 | BU100: 0 | BV100: 0 | BW100: 0 | BX100: 0 | BY100: 0 | BZ100: 0 | CA100: 0 | CB100: 0 | CC100: 0 | CD100: 0 | CE100: 0 | CF100: 0 | CG100: 0 | CH100: 0
A101: 8690 | B101: Other Local Revenue | C101: 40 | D101: 0 | E101: 1183.86 | F101: 40 | G101: 1539.65 | H101: 12078.77 | I101: 0 | J101: 0 | K101: 1720.47 | L101: 1047 | M101: -1449.75 | N101: 1800 | O101: 18000 | P101: 0 | Q101: 0 | R101: 0 | S101: 1800 | T101: 1800 | U101: 1800 | V101: 1800 | W101: 1800 | X101: 1800 | Y101: 1800 | Z101: 1800 | AA101: 1800 | AB101: 1800 | AC101: 18000 | AD101: 0 | AE101: 0 | AF101: 0 | AG101: 1800 | AH101: 1800 | AI101: 1800 | AJ101: 1800 | AK101: 1800 | AL101: 1800 | AM101: 1800 | AN101: 1800 | AO101: 1800 | AP101: 1800 | AQ101: 18000 | AR101: 0 | AS101: 0 | AT101: 0 | AU101: 1800 | AV101: 1800 | AW101: 1800 | AX101: 1800 | AY101: 1800 | AZ101: 1800 | BA101: 1800 | BB101: 1800 | BC101: 1800 | BD101: 1800 | BE101: 18000 | BF101: 0 | BG101: 0 | BH101: 0 | BI101: 1800 | BJ101: 1800 | BK101: 1800 | BL101: 1800 | BM101: 1800 | BN101: 1800 | BO101: 1800 | BP101: 1800 | BQ101: 1800 | BR101: 1800 | BS101: 18000 | BT101: 0 | BU101: 0 | BV101: 0 | BW101: 1800 | BX101: 1800 | BY101: 1800 | BZ101: 1800 | CA101: 1800 | CB101: 1800 | CC101: 1800 | CD101: 1800 | CE101: 1800 | CF101: 1800 | CG101: 18000 | CH101: 0
A102: 8693 | B102: Field Trips | C102: 0 | D102: 0 | E102: 0 | F102: 0 | G102: 0 | H102: 0 | I102: 0 | J102: 0 | K102: 0 | L102: 0 | M102: 0 | N102: 0 | O102: 0 | P102: 0 | Q102: 0 | R102: 0 | S102: 0 | T102: 0 | U102: 0 | V102: 0 | W102: 0 | X102: 0 | Y102: 0 | Z102: 0 | AA102: 0 | AB102: 0 | AC102: 0 | AD102: 0 | AE102: 0 | AF102: 0 | AG102: 0 | AH102: 0 | AI102: 0 | AJ102: 0 | AK102: 0 | AL102: 0 | AM102: 0 | AN102: 0 | AO102: 0 | AP102: 0 | AQ102: 0 | AR102: 0 | AS102: 0 | AT102: 0 | AU102: 0 | AV102: 0 | AW102: 0 | AX102: 0 | AY102: 0 | AZ102: 0 | BA102: 0 | BB102: 0 | BC102: 0 | BD102: 0 | BE102: 0 | BF102: 0 | BG102: 0 | BH102: 0 | BI102: 0 | BJ102: 0 | BK102: 0 | BL102: 0 | BM102: 0 | BN102: 0 | BO102: 0 | BP102: 0 | BQ102: 0 | BR102: 0 | BS102: 0 | BT102: 0 | BU102: 0 | BV102: 0 | BW102: 0 | BX102: 0 | BY102: 0 | BZ102: 0 | CA102: 0 | CB102: 0 | CC102: 0 | CD102: 0 | CE102: 0 | CF102: 0 | CG102: 0 | CH102: 0
A103: 8697 | B103: Pass through revenue from local sources | C103: 0 | D103: 0 | E103: 0 | F103: 0 | G103: 0 | H103: 0 | I103: 0 | J103: 0 | K103: 0 | L103: 0 | M103: 0 | N103: 0 | O103: 0 | P103: 0 | Q103: 0 | R103: 0 | S103: 0 | T103: 0 | U103: 0 | V103: 0 | W103: 0 | X103: 0 | Y103: 0 | Z103: 0 | AA103: 0 | AB103: 0 | AC103: 0 | AD103: 0 | AE103: 0 | AF103: 0 | AG103: 0 | AH103: 0 | AI103: 0 | AJ103: 0 | AK103: 0 | AL103: 0 | AM103: 0 | AN103: 0 | AO103: 0 | AP103: 0 | AQ103: 0 | AR103: 0 | AS103: 0 | AT103: 0 | AU103: 0 | AV103: 0 | AW103: 0 | AX103: 0 | AY103: 0 | AZ103: 0 | BA103: 0 | BB103: 0 | BC103: 0 | BD103: 0 | BE103: 0 | BF103: 0 | BG103: 0 | BH103: 0 | BI103: 0 | BJ103: 0 | BK103: 0 | BL103: 0 | BM103: 0 | BN103: 0 | BO103: 0 | BP103: 0 | BQ103: 0 | BR103: 0 | BS103: 0 | BT103: 0 | BU103: 0 | BV103: 0 | BW103: 0 | BX103: 0 | BY103: 0 | BZ103: 0 | CA103: 0 | CB103: 0 | CC103: 0 | CD103: 0 | CE103: 0 | CF103: 0 | CG103: 0 | CH103: 0
A104: 8699 | B104: All Other Local Revenue | C104: 0 | D104: 0 | E104: 0 | F104: 0 | G104: 0 | H104: 0 | I104: 0 | J104: 0 | K104: 0 | L104: 0 | M104: 0 | N104: 0 | O104: 0 | P104: 0 | Q104: 0 | R104: 0 | S104: 0 | T104: 0 | U104: 0 | V104: 0 | W104: 0 | X104: 0 | Y104: 0 | Z104: 0 | AA104: 0 | AB104: 0 | AC104: 0 | AD104: 0 | AE104: 0 | AF104: 0 | AG104: 0 | AH104: 0 | AI104: 0 | AJ104: 0 | AK104: 0 | AL104: 0 | AM104: 0 | AN104: 0 | AO104: 0 | AP104: 0 | AQ104: 0 | AR104: 0 | AS104: 0 | AT104: 0 | AU104: 0 | AV104: 0 | AW104: 0 | AX104: 0 | AY104: 0 | AZ104: 0 | BA104: 0 | BB104: 0 | BC104: 0 | BD104: 0 | BE104: 0 | BF104: 0 | BG104: 0 | BH104: 0 | BI104: 0 | BJ104: 0 | BK104: 0 | BL104: 0 | BM104: 0 | BN104: 0 | BO104: 0 | BP104: 0 | BQ104: 0 | BR104: 0 | BS104: 0 | BT104: 0 | BU104: 0 | BV104: 0 | BW104: 0 | BX104: 0 | BY104: 0 | BZ104: 0 | CA104: 0 | CB104: 0 | CC104: 0 | CD104: 0 | CE104: 0 | CF104: 0 | CG104: 0 | CH104: 0
A105: 8701 | B105: Oakland Measure N | C105: 0 | D105: 0 | E105: 0 | F105: 0 | G105: 0 | H105: 0 | I105: 0 | J105: 0 | K105: 0 | L105: 0 | M105: 0 | N105: 265115.4139 | O105: 350000 | P105: 84884.58613 | Q105: 0 | R105: 0 | S105: 0 | T105: 0 | U105: 0 | V105: 0 | W105: 0 | X105: 0 | Y105: 0 | Z105: 0 | AA105: 0 | AB105: 265115.4139 | AC105: 350000 | AD105: 84884.58613 | AE105: 0 | AF105: 0 | AG105: 0 | AH105: 0 | AI105: 0 | AJ105: 0 | AK105: 0 | AL105: 0 | AM105: 0 | AN105: 0 | AO105: 0 | AP105: 265115.4139 | AQ105: 350000 | AR105: 84884.58613 | AS105: 0 | AT105: 0 | AU105: 0 | AV105: 0 | AW105: 0 | AX105: 0 | AY105: 0 | AZ105: 0 | BA105: 0 | BB105: 0 | BC105: 0 | BD105: 265115.4139 | BE105: 350000 | BF105: 84884.58613 | BG105: 0 | BH105: 0 | BI105: 0 | BJ105: 0 | BK105: 0 | BL105: 0 | BM105: 0 | BN105: 0 | BO105: 0 | BP105: 0 | BQ105: 0 | BR105: 265115.4139 | BS105: 350000 | BT105: 84884.58613 | BU105: 0 | BV105: 0 | BW105: 0 | BX105: 0 | BY105: 0 | BZ105: 0 | CA105: 0 | CB105: 0 | CC105: 0 | CD105: 0 | CE105: 0 | CF105: 265115.4139 | CG105: 350000 | CH105: 84884.58613
A106: 8702 | B106: Revenue Program 2 | C106: 0 | D106: 0 | E106: 0 | F106: 0 | G106: 0 | H106: 0 | I106: 0 | J106: 0 | K106: 0 | L106: 0 | M106: 0 | N106: 0 | O106: 0 | P106: 0 | Q106: 0 | R106: 0 | S106: 0 | T106: 0 | U106: 0 | V106: 0 | W106: 0 | X106: 0 | Y106: 0 | Z106: 0 | AA106: 0 | AB106: 0 | AC106: 0 | AD106: 0 | AE106: 0 | AF106: 0 | AG106: 0 | AH106: 0 | AI106: 0 | AJ106: 0 | AK106: 0 | AL106: 0 | AM106: 0 | AN106: 0 | AO106: 0 | AP106: 0 | AQ106: 0 | AR106: 0 | AS106: 0 | AT106: 0 | AU106: 0 | AV106: 0 | AW106: 0 | AX106: 0 | AY106: 0 | AZ106: 0 | BA106: 0 | BB106: 0 | BC106: 0 | BD106: 0 | BE106: 0 | BF106: 0 | BG106: 0 | BH106: 0 | BI106: 0 | BJ106: 0 | BK106: 0 | BL106: 0 | BM106: 0 | BN106: 0 | BO106: 0 | BP106: 0 | BQ106: 0 | BR106: 0 | BS106: 0 | BT106: 0 | BU106: 0 | BV106: 0 | BW106: 0 | BX106: 0 | BY106: 0 | BZ106: 0 | CA106: 0 | CB106: 0 | CC106: 0 | CD106: 0 | CE106: 0 | CF106: 0 | CG106: 0 | CH106: 0
A107: 8703 | B107: Oakland Measure G1 | C107: 0 | D107: 0 | E107: 0 | F107: 0 | G107: 0 | H107: 0 | I107: 0 | J107: 0 | K107: 0 | L107: 0 | M107: 0 | N107: 63000 | O107: 63000 | P107: 0 | Q107: 0 | R107: 0 | S107: 0 | T107: 0 | U107: 0 | V107: 0 | W107: 0 | X107: 0 | Y107: 0 | Z107: 0 | AA107: 0 | AB107: 64000 | AC107: 64000 | AD107: 0 | AE107: 0 | AF107: 0 | AG107: 0 | AH107: 0 | AI107: 0 | AJ107: 0 | AK107: 0 | AL107: 0 | AM107: 0 | AN107: 0 | AO107: 0 | AP107: 64000 | AQ107: 64000 | AR107: 0 | AS107: 0 | AT107: 0 | AU107: 0 | AV107: 0 | AW107: 0 | AX107: 0 | AY107: 0 | AZ107: 0 | BA107: 0 | BB107: 0 | BC107: 0 | BD107: 64000 | BE107: 64000 | BF107: 0 | BG107: 0 | BH107: 0 | BI107: 0 | BJ107: 0 | BK107: 0 | BL107: 0 | BM107: 0 | BN107: 0 | BO107: 0 | BP107: 0 | BQ107: 0 | BR107: 64000 | BS107: 64000 | BT107: 0 | BU107: 0 | BV107: 0 | BW107: 0 | BX107: 0 | BY107: 0 | BZ107: 0 | CA107: 0 | CB107: 0 | CC107: 0 | CD107: 0 | CE107: 0 | CF107: 64000 | CG107: 64000 | CH107: 0
A108: 8704 | B108: Student Activities | C108: 0 | D108: 0 | E108: 0 | F108: 0 | G108: 0 | H108: 0 | I108: 0 | J108: 0 | K108: 3734.02 | L108: 9190.9 | M108: 14075.08 | N108: 3000 | O108: 30000 | P108: 0 | Q108: 0 | R108: 0 | S108: 3000 | T108: 3000 | U108: 3000 | V108: 3000 | W108: 3000 | X108: 3000 | Y108: 3000 | Z108: 3000 | AA108: 3000 | AB108: 3000 | AC108: 30000 | AD108: 0 | AE108: 0 | AF108: 0 | AG108: 3000 | AH108: 3000 | AI108: 3000 | AJ108: 3000 | AK108: 3000 | AL108: 3000 | AM108: 3000 | AN108: 3000 | AO108: 3000 | AP108: 3000 | AQ108: 30000 | AR108: 0 | AS108: 0 | AT108: 0 | AU108: 3000 | AV108: 3000 | AW108: 3000 | AX108: 3000 | AY108: 3000 | AZ108: 3000 | BA108: 3000 | BB108: 3000 | BC108: 3000 | BD108: 3000 | BE108: 30000 | BF108: 0 | BG108: 0 | BH108: 0 | BI108: 3000 | BJ108: 3000 | BK108: 3000 | BL108: 3000 | BM108: 3000 | BN108: 3000 | BO108: 3000 | BP108: 3000 | BQ108: 3000 | BR108: 3000 | BS108: 30000 | BT108: 0 | BU108: 0 | BV108: 0 | BW108: 3000 | BX108: 3000 | BY108: 3000 | BZ108: 3000 | CA108: 3000 | CB108: 3000 | CC108: 3000 | CD108: 3000 | CE108: 3000 | CF108: 3000 | CG108: 30000 | CH108: 0
A109: 8705 | B109: Revenue Program 5 | C109: 0 | D109: 0 | E109: 0 | F109: 0 | G109: 0 | H109: 0 | I109: 0 | J109: 0 | K109: 0 | L109: 0 | M109: 0 | N109: 0 | O109: 0 | P109: 0 | Q109: 0 | R109: 0 | S109: 0 | T109: 0 | U109: 0 | V109: 0 | W109: 0 | X109: 0 | Y109: 0 | Z109: 0 | AA109: 0 | AB109: 0 | AC109: 0 | AD109: 0 | AE109: 0 | AF109: 0 | AG109: 0 | AH109: 0 | AI109: 0 | AJ109: 0 | AK109: 0 | AL109: 0 | AM109: 0 | AN109: 0 | AO109: 0 | AP109: 0 | AQ109: 0 | AR109: 0 | AS109: 0 | AT109: 0 | AU109: 0 | AV109: 0 | AW109: 0 | AX109: 0 | AY109: 0 | AZ109: 0 | BA109: 0 | BB109: 0 | BC109: 0 | BD109: 0 | BE109: 0 | BF109: 0 | BG109: 0 | BH109: 0 | BI109: 0 | BJ109: 0 | BK109: 0 | BL109: 0 | BM109: 0 | BN109: 0 | BO109: 0 | BP109: 0 | BQ109: 0 | BR109: 0 | BS109: 0 | BT109: 0 | BU109: 0 | BV109: 0 | BW109: 0 | BX109: 0 | BY109: 0 | BZ109: 0 | CA109: 0 | CB109: 0 | CC109: 0 | CD109: 0 | CE109: 0 | CF109: 0 | CG109: 0 | CH109: 0
A110: 8706 | B110: Revenue Program 6 | C110: 0 | D110: 0 | E110: 0 | F110: 0 | G110: 0 | H110: 0 | I110: 0 | J110: 0 | K110: 0 | L110: 0 | M110: 0 | N110: 0 | O110: 0 | P110: 0 | Q110: 0 | R110: 0 | S110: 0 | T110: 0 | U110: 0 | V110: 0 | W110: 0 | X110: 0 | Y110: 0 | Z110: 0 | AA110: 0 | AB110: 0 | AC110: 0 | AD110: 0 | AE110: 0 | AF110: 0 | AG110: 0 | AH110: 0 | AI110: 0 | AJ110: 0 | AK110: 0 | AL110: 0 | AM110: 0 | AN110: 0 | AO110: 0 | AP110: 0 | AQ110: 0 | AR110: 0 | AS110: 0 | AT110: 0 | AU110: 0 | AV110: 0 | AW110: 0 | AX110: 0 | AY110: 0 | AZ110: 0 | BA110: 0 | BB110: 0 | BC110: 0 | BD110: 0 | BE110: 0 | BF110: 0 | BG110: 0 | BH110: 0 | BI110: 0 | BJ110: 0 | BK110: 0 | BL110: 0 | BM110: 0 | BN110: 0 | BO110: 0 | BP110: 0 | BQ110: 0 | BR110: 0 | BS110: 0 | BT110: 0 | BU110: 0 | BV110: 0 | BW110: 0 | BX110: 0 | BY110: 0 | BZ110: 0 | CA110: 0 | CB110: 0 | CC110: 0 | CD110: 0 | CE110: 0 | CF110: 0 | CG110: 0 | CH110: 0
A111: 8707 | B111: Revenue Program 7 | C111: 0 | D111: 0 | E111: 0 | F111: 0 | G111: 0 | H111: 0 | I111: 0 | J111: 0 | K111: 0 | L111: 0 | M111: 0 | N111: 0 | O111: 0 | P111: 0 | Q111: 0 | R111: 0 | S111: 0 | T111: 0 | U111: 0 | V111: 0 | W111: 0 | X111: 0 | Y111: 0 | Z111: 0 | AA111: 0 | AB111: 0 | AC111: 0 | AD111: 0 | AE111: 0 | AF111: 0 | AG111: 0 | AH111: 0 | AI111: 0 | AJ111: 0 | AK111: 0 | AL111: 0 | AM111: 0 | AN111: 0 | AO111: 0 | AP111: 0 | AQ111: 0 | AR111: 0 | AS111: 0 | AT111: 0 | AU111: 0 | AV111: 0 | AW111: 0 | AX111: 0 | AY111: 0 | AZ111: 0 | BA111: 0 | BB111: 0 | BC111: 0 | BD111: 0 | BE111: 0 | BF111: 0 | BG111: 0 | BH111: 0 | BI111: 0 | BJ111: 0 | BK111: 0 | BL111: 0 | BM111: 0 | BN111: 0 | BO111: 0 | BP111: 0 | BQ111: 0 | BR111: 0 | BS111: 0 | BT111: 0 | BU111: 0 | BV111: 0 | BW111: 0 | BX111: 0 | BY111: 0 | BZ111: 0 | CA111: 0 | CB111: 0 | CC111: 0 | CD111: 0 | CE111: 0 | CF111: 0 | CG111: 0 | CH111: 0
A112: 8708 | B112: Revenue Program 8 | C112: 0 | D112: 0 | E112: 0 | F112: 0 | G112: 0 | H112: 0 | I112: 0 | J112: 0 | K112: 0 | L112: 0 | M112: 0 | N112: 0 | O112: 0 | P112: 0 | Q112: 0 | R112: 0 | S112: 0 | T112: 0 | U112: 0 | V112: 0 | W112: 0 | X112: 0 | Y112: 0 | Z112: 0 | AA112: 0 | AB112: 0 | AC112: 0 | AD112: 0 | AE112: 0 | AF112: 0 | AG112: 0 | AH112: 0 | AI112: 0 | AJ112: 0 | AK112: 0 | AL112: 0 | AM112: 0 | AN112: 0 | AO112: 0 | AP112: 0 | AQ112: 0 | AR112: 0 | AS112: 0 | AT112: 0 | AU112: 0 | AV112: 0 | AW112: 0 | AX112: 0 | AY112: 0 | AZ112: 0 | BA112: 0 | BB112: 0 | BC112: 0 | BD112: 0 | BE112: 0 | BF112: 0 | BG112: 0 | BH112: 0 | BI112: 0 | BJ112: 0 | BK112: 0 | BL112: 0 | BM112: 0 | BN112: 0 | BO112: 0 | BP112: 0 | BQ112: 0 | BR112: 0 | BS112: 0 | BT112: 0 | BU112: 0 | BV112: 0 | BW112: 0 | BX112: 0 | BY112: 0 | BZ112: 0 | CA112: 0 | CB112: 0 | CC112: 0 | CD112: 0 | CE112: 0 | CF112: 0 | CG112: 0 | CH112: 0
A113: 8709 | B113: Revenue Program 9 | C113: 0 | D113: 0 | E113: 0 | F113: 0 | G113: 0 | H113: 0 | I113: 0 | J113: 0 | K113: 0 | L113: 0 | M113: 0 | N113: 0 | O113: 0 | P113: 0 | Q113: 0 | R113: 0 | S113: 0 | T113: 0 | U113: 0 | V113: 0 | W113: 0 | X113: 0 | Y113: 0 | Z113: 0 | AA113: 0 | AB113: 0 | AC113: 0 | AD113: 0 | AE113: 0 | AF113: 0 | AG113: 0 | AH113: 0 | AI113: 0 | AJ113: 0 | AK113: 0 | AL113: 0 | AM113: 0 | AN113: 0 | AO113: 0 | AP113: 0 | AQ113: 0 | AR113: 0 | AS113: 0 | AT113: 0 | AU113: 0 | AV113: 0 | AW113: 0 | AX113: 0 | AY113: 0 | AZ113: 0 | BA113: 0 | BB113: 0 | BC113: 0 | BD113: 0 | BE113: 0 | BF113: 0 | BG113: 0 | BH113: 0 | BI113: 0 | BJ113: 0 | BK113: 0 | BL113: 0 | BM113: 0 | BN113: 0 | BO113: 0 | BP113: 0 | BQ113: 0 | BR113: 0 | BS113: 0 | BT113: 0 | BU113: 0 | BV113: 0 | BW113: 0 | BX113: 0 | BY113: 0 | BZ113: 0 | CA113: 0 | CB113: 0 | CC113: 0 | CD113: 0 | CE113: 0 | CF113: 0 | CG113: 0 | CH113: 0
A114: 8711 | B114: Revenue Program 11 | C114: 0 | D114: 0 | E114: 0 | F114: 0 | G114: 0 | H114: 0 | I114: 0 | J114: 0 | K114: 0 | L114: 0 | M114: 0 | N114: 0 | O114: 0 | P114: 0 | Q114: 0 | R114: 0 | S114: 0 | T114: 0 | U114: 0 | V114: 0 | W114: 0 | X114: 0 | Y114: 0 | Z114: 0 | AA114: 0 | AB114: 0 | AC114: 0 | AD114: 0 | AE114: 0 | AF114: 0 | AG114: 0 | AH114: 0 | AI114: 0 | AJ114: 0 | AK114: 0 | AL114: 0 | AM114: 0 | AN114: 0 | AO114: 0 | AP114: 0 | AQ114: 0 | AR114: 0 | AS114: 0 | AT114: 0 | AU114: 0 | AV114: 0 | AW114: 0 | AX114: 0 | AY114: 0 | AZ114: 0 | BA114: 0 | BB114: 0 | BC114: 0 | BD114: 0 | BE114: 0 | BF114: 0 | BG114: 0 | BH114: 0 | BI114: 0 | BJ114: 0 | BK114: 0 | BL114: 0 | BM114: 0 | BN114: 0 | BO114: 0 | BP114: 0 | BQ114: 0 | BR114: 0 | BS114: 0 | BT114: 0 | BU114: 0 | BV114: 0 | BW114: 0 | BX114: 0 | BY114: 0 | BZ114: 0 | CA114: 0 | CB114: 0 | CC114: 0 | CD114: 0 | CE114: 0 | CF114: 0 | CG114: 0 | CH114: 0
A115: 8712 | B115: Revenue Program 12 | C115: 0 | D115: 0 | E115: 0 | F115: 0 | G115: 0 | H115: 0 | I115: 0 | J115: 0 | K115: 0 | L115: 0 | M115: 0 | N115: 0 | O115: 0 | P115: 0 | Q115: 0 | R115: 0 | S115: 0 | T115: 0 | U115: 0 | V115: 0 | W115: 0 | X115: 0 | Y115: 0 | Z115: 0 | AA115: 0 | AB115: 0 | AC115: 0 | AD115: 0 | AE115: 0 | AF115: 0 | AG115: 0 | AH115: 0 | AI115: 0 | AJ115: 0 | AK115: 0 | AL115: 0 | AM115: 0 | AN115: 0 | AO115: 0 | AP115: 0 | AQ115: 0 | AR115: 0 | AS115: 0 | AT115: 0 | AU115: 0 | AV115: 0 | AW115: 0 | AX115: 0 | AY115: 0 | AZ115: 0 | BA115: 0 | BB115: 0 | BC115: 0 | BD115: 0 | BE115: 0 | BF115: 0 | BG115: 0 | BH115: 0 | BI115: 0 | BJ115: 0 | BK115: 0 | BL115: 0 | BM115: 0 | BN115: 0 | BO115: 0 | BP115: 0 | BQ115: 0 | BR115: 0 | BS115: 0 | BT115: 0 | BU115: 0 | BV115: 0 | BW115: 0 | BX115: 0 | BY115: 0 | BZ115: 0 | CA115: 0 | CB115: 0 | CC115: 0 | CD115: 0 | CE115: 0 | CF115: 0 | CG115: 0 | CH115: 0
A116: 8713 | B116: Revenue Program 13 | C116: 0 | D116: 0 | E116: 0 | F116: 0 | G116: 0 | H116: 0 | I116: 0 | J116: 0 | K116: 0 | L116: 0 | M116: 0 | N116: 0 | O116: 0 | P116: 0 | Q116: 0 | R116: 0 | S116: 0 | T116: 0 | U116: 0 | V116: 0 | W116: 0 | X116: 0 | Y116: 0 | Z116: 0 | AA116: 0 | AB116: 0 | AC116: 0 | AD116: 0 | AE116: 0 | AF116: 0 | AG116: 0 | AH116: 0 | AI116: 0 | AJ116: 0 | AK116: 0 | AL116: 0 | AM116: 0 | AN116: 0 | AO116: 0 | AP116: 0 | AQ116: 0 | AR116: 0 | AS116: 0 | AT116: 0 | AU116: 0 | AV116: 0 | AW116: 0 | AX116: 0 | AY116: 0 | AZ116: 0 | BA116: 0 | BB116: 0 | BC116: 0 | BD116: 0 | BE116: 0 | BF116: 0 | BG116: 0 | BH116: 0 | BI116: 0 | BJ116: 0 | BK116: 0 | BL116: 0 | BM116: 0 | BN116: 0 | BO116: 0 | BP116: 0 | BQ116: 0 | BR116: 0 | BS116: 0 | BT116: 0 | BU116: 0 | BV116: 0 | BW116: 0 | BX116: 0 | BY116: 0 | BZ116: 0 | CA116: 0 | CB116: 0 | CC116: 0 | CD116: 0 | CE116: 0 | CF116: 0 | CG116: 0 | CH116: 0
A117: 8714 | B117: Revenue Program 14 | C117: 0 | D117: 0 | E117: 0 | F117: 0 | G117: 0 | H117: 0 | I117: 0 | J117: 0 | K117: 0 | L117: 0 | M117: 0 | N117: 0 | O117: 0 | P117: 0 | Q117: 0 | R117: 0 | S117: 0 | T117: 0 | U117: 0 | V117: 0 | W117: 0 | X117: 0 | Y117: 0 | Z117: 0 | AA117: 0 | AB117: 0 | AC117: 0 | AD117: 0 | AE117: 0 | AF117: 0 | AG117: 0 | AH117: 0 | AI117: 0 | AJ117: 0 | AK117: 0 | AL117: 0 | AM117: 0 | AN117: 0 | AO117: 0 | AP117: 0 | AQ117: 0 | AR117: 0 | AS117: 0 | AT117: 0 | AU117: 0 | AV117: 0 | AW117: 0 | AX117: 0 | AY117: 0 | AZ117: 0 | BA117: 0 | BB117: 0 | BC117: 0 | BD117: 0 | BE117: 0 | BF117: 0 | BG117: 0 | BH117: 0 | BI117: 0 | BJ117: 0 | BK117: 0 | BL117: 0 | BM117: 0 | BN117: 0 | BO117: 0 | BP117: 0 | BQ117: 0 | BR117: 0 | BS117: 0 | BT117: 0 | BU117: 0 | BV117: 0 | BW117: 0 | BX117: 0 | BY117: 0 | BZ117: 0 | CA117: 0 | CB117: 0 | CC117: 0 | CD117: 0 | CE117: 0 | CF117: 0 | CG117: 0 | CH117: 0
A118: 8715 | B118: Revenue Program 15 | C118: 0 | D118: 0 | E118: 0 | F118: 0 | G118: 0 | H118: 0 | I118: 0 | J118: 0 | K118: 0 | L118: 0 | M118: 0 | N118: 0 | O118: 0 | P118: 0 | Q118: 0 | R118: 0 | S118: 0 | T118: 0 | U118: 0 | V118: 0 | W118: 0 | X118: 0 | Y118: 0 | Z118: 0 | AA118: 0 | AB118: 0 | AC118: 0 | AD118: 0 | AE118: 0 | AF118: 0 | AG118: 0 | AH118: 0 | AI118: 0 | AJ118: 0 | AK118: 0 | AL118: 0 | AM118: 0 | AN118: 0 | AO118: 0 | AP118: 0 | AQ118: 0 | AR118: 0 | AS118: 0 | AT118: 0 | AU118: 0 | AV118: 0 | AW118: 0 | AX118: 0 | AY118: 0 | AZ118: 0 | BA118: 0 | BB118: 0 | BC118: 0 | BD118: 0 | BE118: 0 | BF118: 0 | BG118: 0 | BH118: 0 | BI118: 0 | BJ118: 0 | BK118: 0 | BL118: 0 | BM118: 0 | BN118: 0 | BO118: 0 | BP118: 0 | BQ118: 0 | BR118: 0 | BS118: 0 | BT118: 0 | BU118: 0 | BV118: 0 | BW118: 0 | BX118: 0 | BY118: 0 | BZ118: 0 | CA118: 0 | CB118: 0 | CC118: 0 | CD118: 0 | CE118: 0 | CF118: 0 | CG118: 0 | CH118: 0
A119: 8716 | B119: Revenue Program 16 | C119: 0 | D119: 0 | E119: 0 | F119: 0 | G119: 0 | H119: 0 | I119: 0 | J119: 0 | K119: 0 | L119: 0 | M119: 0 | N119: 0 | O119: 0 | P119: 0 | Q119: 0 | R119: 0 | S119: 0 | T119: 0 | U119: 0 | V119: 0 | W119: 0 | X119: 0 | Y119: 0 | Z119: 0 | AA119: 0 | AB119: 0 | AC119: 0 | AD119: 0 | AE119: 0 | AF119: 0 | AG119: 0 | AH119: 0 | AI119: 0 | AJ119: 0 | AK119: 0 | AL119: 0 | AM119: 0 | AN119: 0 | AO119: 0 | AP119: 0 | AQ119: 0 | AR119: 0 | AS119: 0 | AT119: 0 | AU119: 0 | AV119: 0 | AW119: 0 | AX119: 0 | AY119: 0 | AZ119: 0 | BA119: 0 | BB119: 0 | BC119: 0 | BD119: 0 | BE119: 0 | BF119: 0 | BG119: 0 | BH119: 0 | BI119: 0 | BJ119: 0 | BK119: 0 | BL119: 0 | BM119: 0 | BN119: 0 | BO119: 0 | BP119: 0 | BQ119: 0 | BR119: 0 | BS119: 0 | BT119: 0 | BU119: 0 | BV119: 0 | BW119: 0 | BX119: 0 | BY119: 0 | BZ119: 0 | CA119: 0 | CB119: 0 | CC119: 0 | CD119: 0 | CE119: 0 | CF119: 0 | CG119: 0 | CH119: 0
A120: 8717 | B120: Revenue Program 17 | C120: 0 | D120: 0 | E120: 0 | F120: 0 | G120: 0 | H120: 0 | I120: 0 | J120: 0 | K120: 0 | L120: 0 | M120: 0 | N120: 0 | O120: 0 | P120: 0 | Q120: 0 | R120: 0 | S120: 0 | T120: 0 | U120: 0 | V120: 0 | W120: 0 | X120: 0 | Y120: 0 | Z120: 0 | AA120: 0 | AB120: 0 | AC120: 0 | AD120: 0 | AE120: 0 | AF120: 0 | AG120: 0 | AH120: 0 | AI120: 0 | AJ120: 0 | AK120: 0 | AL120: 0 | AM120: 0 | AN120: 0 | AO120: 0 | AP120: 0 | AQ120: 0 | AR120: 0 | AS120: 0 | AT120: 0 | AU120: 0 | AV120: 0 | AW120: 0 | AX120: 0 | AY120: 0 | AZ120: 0 | BA120: 0 | BB120: 0 | BC120: 0 | BD120: 0 | BE120: 0 | BF120: 0 | BG120: 0 | BH120: 0 | BI120: 0 | BJ120: 0 | BK120: 0 | BL120: 0 | BM120: 0 | BN120: 0 | BO120: 0 | BP120: 0 | BQ120: 0 | BR120: 0 | BS120: 0 | BT120: 0 | BU120: 0 | BV120: 0 | BW120: 0 | BX120: 0 | BY120: 0 | BZ120: 0 | CA120: 0 | CB120: 0 | CC120: 0 | CD120: 0 | CE120: 0 | CF120: 0 | CG120: 0 | CH120: 0
A121: 8718 | B121: Revenue Program 18 | C121: 0 | D121: 0 | E121: 0 | F121: 0 | G121: 0 | H121: 0 | I121: 0 | J121: 0 | K121: 0 | L121: 0 | M121: 0 | N121: 0 | O121: 0 | P121: 0 | Q121: 0 | R121: 0 | S121: 0 | T121: 0 | U121: 0 | V121: 0 | W121: 0 | X121: 0 | Y121: 0 | Z121: 0 | AA121: 0 | AB121: 0 | AC121: 0 | AD121: 0 | AE121: 0 | AF121: 0 | AG121: 0 | AH121: 0 | AI121: 0 | AJ121: 0 | AK121: 0 | AL121: 0 | AM121: 0 | AN121: 0 | AO121: 0 | AP121: 0 | AQ121: 0 | AR121: 0 | AS121: 0 | AT121: 0 | AU121: 0 | AV121: 0 | AW121: 0 | AX121: 0 | AY121: 0 | AZ121: 0 | BA121: 0 | BB121: 0 | BC121: 0 | BD121: 0 | BE121: 0 | BF121: 0 | BG121: 0 | BH121: 0 | BI121: 0 | BJ121: 0 | BK121: 0 | BL121: 0 | BM121: 0 | BN121: 0 | BO121: 0 | BP121: 0 | BQ121: 0 | BR121: 0 | BS121: 0 | BT121: 0 | BU121: 0 | BV121: 0 | BW121: 0 | BX121: 0 | BY121: 0 | BZ121: 0 | CA121: 0 | CB121: 0 | CC121: 0 | CD121: 0 | CE121: 0 | CF121: 0 | CG121: 0 | CH121: 0
A122: 8719 | B122: Revenue Program 19 | C122: 0 | D122: 0 | E122: 0 | F122: 0 | G122: 0 | H122: 0 | I122: 0 | J122: 0 | K122: 0 | L122: 0 | M122: 0 | N122: 0 | O122: 0 | P122: 0 | Q122: 0 | R122: 0 | S122: 0 | T122: 0 | U122: 0 | V122: 0 | W122: 0 | X122: 0 | Y122: 0 | Z122: 0 | AA122: 0 | AB122: 0 | AC122: 0 | AD122: 0 | AE122: 0 | AF122: 0 | AG122: 0 | AH122: 0 | AI122: 0 | AJ122: 0 | AK122: 0 | AL122: 0 | AM122: 0 | AN122: 0 | AO122: 0 | AP122: 0 | AQ122: 0 | AR122: 0 | AS122: 0 | AT122: 0 | AU122: 0 | AV122: 0 | AW122: 0 | AX122: 0 | AY122: 0 | AZ122: 0 | BA122: 0 | BB122: 0 | BC122: 0 | BD122: 0 | BE122: 0 | BF122: 0 | BG122: 0 | BH122: 0 | BI122: 0 | BJ122: 0 | BK122: 0 | BL122: 0 | BM122: 0 | BN122: 0 | BO122: 0 | BP122: 0 | BQ122: 0 | BR122: 0 | BS122: 0 | BT122: 0 | BU122: 0 | BV122: 0 | BW122: 0 | BX122: 0 | BY122: 0 | BZ122: 0 | CA122: 0 | CB122: 0 | CC122: 0 | CD122: 0 | CE122: 0 | CF122: 0 | CG122: 0 | CH122: 0
A123: 8720 | B123: Revenue Program 20 | C123: 0 | D123: 0 | E123: 0 | F123: 0 | G123: 0 | H123: 0 | I123: 0 | J123: 0 | K123: 0 | L123: 0 | M123: 0 | N123: 0 | O123: 0 | P123: 0 | Q123: 0 | R123: 0 | S123: 0 | T123: 0 | U123: 0 | V123: 0 | W123: 0 | X123: 0 | Y123: 0 | Z123: 0 | AA123: 0 | AB123: 0 | AC123: 0 | AD123: 0 | AE123: 0 | AF123: 0 | AG123: 0 | AH123: 0 | AI123: 0 | AJ123: 0 | AK123: 0 | AL123: 0 | AM123: 0 | AN123: 0 | AO123: 0 | AP123: 0 | AQ123: 0 | AR123: 0 | AS123: 0 | AT123: 0 | AU123: 0 | AV123: 0 | AW123: 0 | AX123: 0 | AY123: 0 | AZ123: 0 | BA123: 0 | BB123: 0 | BC123: 0 | BD123: 0 | BE123: 0 | BF123: 0 | BG123: 0 | BH123: 0 | BI123: 0 | BJ123: 0 | BK123: 0 | BL123: 0 | BM123: 0 | BN123: 0 | BO123: 0 | BP123: 0 | BQ123: 0 | BR123: 0 | BS123: 0 | BT123: 0 | BU123: 0 | BV123: 0 | BW123: 0 | BX123: 0 | BY123: 0 | BZ123: 0 | CA123: 0 | CB123: 0 | CC123: 0 | CD123: 0 | CE123: 0 | CF123: 0 | CG123: 0 | CH123: 0
A124: 8721 | B124: CMO Fees Revenue | C124: 0 | D124: 0 | E124: 0 | F124: 0 | G124: 0 | H124: 0 | I124: 0 | J124: 0 | K124: 0 | L124: 0 | M124: 0 | N124: 0 | O124: 0 | P124: 0 | Q124: 0 | R124: 0 | S124: 0 | T124: 0 | U124: 0 | V124: 0 | W124: 0 | X124: 0 | Y124: 0 | Z124: 0 | AA124: 0 | AB124: 0 | AC124: 0 | AD124: 0 | AE124: 0 | AF124: 0 | AG124: 0 | AH124: 0 | AI124: 0 | AJ124: 0 | AK124: 0 | AL124: 0 | AM124: 0 | AN124: 0 | AO124: 0 | AP124: 0 | AQ124: 0 | AR124: 0 | AS124: 0 | AT124: 0 | AU124: 0 | AV124: 0 | AW124: 0 | AX124: 0 | AY124: 0 | AZ124: 0 | BA124: 0 | BB124: 0 | BC124: 0 | BD124: 0 | BE124: 0 | BF124: 0 | BG124: 0 | BH124: 0 | BI124: 0 | BJ124: 0 | BK124: 0 | BL124: 0 | BM124: 0 | BN124: 0 | BO124: 0 | BP124: 0 | BQ124: 0 | BR124: 0 | BS124: 0 | BT124: 0 | BU124: 0 | BV124: 0 | BW124: 0 | BX124: 0 | BY124: 0 | BZ124: 0 | CA124: 0 | CB124: 0 | CC124: 0 | CD124: 0 | CE124: 0 | CF124: 0 | CG124: 0 | CH124: 0
A125: 8722 | B125: Revenue Program 22 | C125: 0 | D125: 0 | E125: 0 | F125: 0 | G125: 0 | H125: 0 | I125: 0 | J125: 0 | K125: 0 | L125: 0 | M125: 0 | N125: 0 | O125: 0 | P125: 0 | Q125: 0 | R125: 0 | S125: 0 | T125: 0 | U125: 0 | V125: 0 | W125: 0 | X125: 0 | Y125: 0 | Z125: 0 | AA125: 0 | AB125: 0 | AC125: 0 | AD125: 0 | AE125: 0 | AF125: 0 | AG125: 0 | AH125: 0 | AI125: 0 | AJ125: 0 | AK125: 0 | AL125: 0 | AM125: 0 | AN125: 0 | AO125: 0 | AP125: 0 | AQ125: 0 | AR125: 0 | AS125: 0 | AT125: 0 | AU125: 0 | AV125: 0 | AW125: 0 | AX125: 0 | AY125: 0 | AZ125: 0 | BA125: 0 | BB125: 0 | BC125: 0 | BD125: 0 | BE125: 0 | BF125: 0 | BG125: 0 | BH125: 0 | BI125: 0 | BJ125: 0 | BK125: 0 | BL125: 0 | BM125: 0 | BN125: 0 | BO125: 0 | BP125: 0 | BQ125: 0 | BR125: 0 | BS125: 0 | BT125: 0 | BU125: 0 | BV125: 0 | BW125: 0 | BX125: 0 | BY125: 0 | BZ125: 0 | CA125: 0 | CB125: 0 | CC125: 0 | CD125: 0 | CE125: 0 | CF125: 0 | CG125: 0 | CH125: 0
A126: 8723 | B126: Revenue Program 23 | C126: 0 | D126: 0 | E126: 0 | F126: 0 | G126: 0 | H126: 0 | I126: 0 | J126: 0 | K126: 0 | L126: 0 | M126: 0 | N126: 0 | O126: 0 | P126: 0 | Q126: 0 | R126: 0 | S126: 0 | T126: 0 | U126: 0 | V126: 0 | W126: 0 | X126: 0 | Y126: 0 | Z126: 0 | AA126: 0 | AB126: 0 | AC126: 0 | AD126: 0 | AE126: 0 | AF126: 0 | AG126: 0 | AH126: 0 | AI126: 0 | AJ126: 0 | AK126: 0 | AL126: 0 | AM126: 0 | AN126: 0 | AO126: 0 | AP126: 0 | AQ126: 0 | AR126: 0 | AS126: 0 | AT126: 0 | AU126: 0 | AV126: 0 | AW126: 0 | AX126: 0 | AY126: 0 | AZ126: 0 | BA126: 0 | BB126: 0 | BC126: 0 | BD126: 0 | BE126: 0 | BF126: 0 | BG126: 0 | BH126: 0 | BI126: 0 | BJ126: 0 | BK126: 0 | BL126: 0 | BM126: 0 | BN126: 0 | BO126: 0 | BP126: 0 | BQ126: 0 | BR126: 0 | BS126: 0 | BT126: 0 | BU126: 0 | BV126: 0 | BW126: 0 | BX126: 0 | BY126: 0 | BZ126: 0 | CA126: 0 | CB126: 0 | CC126: 0 | CD126: 0 | CE126: 0 | CF126: 0 | CG126: 0 | CH126: 0
A127: 8724 | B127: Revenue Program 24 | C127: 0 | D127: 0 | E127: 0 | F127: 0 | G127: 0 | H127: 0 | I127: 0 | J127: 0 | K127: 0 | L127: 0 | M127: 0 | N127: 0 | O127: 0 | P127: 0 | Q127: 0 | R127: 0 | S127: 0 | T127: 0 | U127: 0 | V127: 0 | W127: 0 | X127: 0 | Y127: 0 | Z127: 0 | AA127: 0 | AB127: 0 | AC127: 0 | AD127: 0 | AE127: 0 | AF127: 0 | AG127: 0 | AH127: 0 | AI127: 0 | AJ127: 0 | AK127: 0 | AL127: 0 | AM127: 0 | AN127: 0 | AO127: 0 | AP127: 0 | AQ127: 0 | AR127: 0 | AS127: 0 | AT127: 0 | AU127: 0 | AV127: 0 | AW127: 0 | AX127: 0 | AY127: 0 | AZ127: 0 | BA127: 0 | BB127: 0 | BC127: 0 | BD127: 0 | BE127: 0 | BF127: 0 | BG127: 0 | BH127: 0 | BI127: 0 | BJ127: 0 | BK127: 0 | BL127: 0 | BM127: 0 | BN127: 0 | BO127: 0 | BP127: 0 | BQ127: 0 | BR127: 0 | BS127: 0 | BT127: 0 | BU127: 0 | BV127: 0 | BW127: 0 | BX127: 0 | BY127: 0 | BZ127: 0 | CA127: 0 | CB127: 0 | CC127: 0 | CD127: 0 | CE127: 0 | CF127: 0 | CG127: 0 | CH127: 0
A128: 8725 | B128: Revenue Program 25 | C128: 0 | D128: 0 | E128: 0 | F128: 0 | G128: 0 | H128: 0 | I128: 0 | J128: 0 | K128: 0 | L128: 0 | M128: 0 | N128: 0 | O128: 0 | P128: 0 | Q128: 0 | R128: 0 | S128: 0 | T128: 0 | U128: 0 | V128: 0 | W128: 0 | X128: 0 | Y128: 0 | Z128: 0 | AA128: 0 | AB128: 0 | AC128: 0 | AD128: 0 | AE128: 0 | AF128: 0 | AG128: 0 | AH128: 0 | AI128: 0 | AJ128: 0 | AK128: 0 | AL128: 0 | AM128: 0 | AN128: 0 | AO128: 0 | AP128: 0 | AQ128: 0 | AR128: 0 | AS128: 0 | AT128: 0 | AU128: 0 | AV128: 0 | AW128: 0 | AX128: 0 | AY128: 0 | AZ128: 0 | BA128: 0 | BB128: 0 | BC128: 0 | BD128: 0 | BE128: 0 | BF128: 0 | BG128: 0 | BH128: 0 | BI128: 0 | BJ128: 0 | BK128: 0 | BL128: 0 | BM128: 0 | BN128: 0 | BO128: 0 | BP128: 0 | BQ128: 0 | BR128: 0 | BS128: 0 | BT128: 0 | BU128: 0 | BV128: 0 | BW128: 0 | BX128: 0 | BY128: 0 | BZ128: 0 | CA128: 0 | CB128: 0 | CC128: 0 | CD128: 0 | CE128: 0 | CF128: 0 | CG128: 0 | CH128: 0
A129: 8726 | B129: Revenue Program 26 | C129: 0 | D129: 0 | E129: 0 | F129: 0 | G129: 0 | H129: 0 | I129: 0 | J129: 0 | K129: 0 | L129: 0 | M129: 0 | N129: 0 | O129: 0 | P129: 0 | Q129: 0 | R129: 0 | S129: 0 | T129: 0 | U129: 0 | V129: 0 | W129: 0 | X129: 0 | Y129: 0 | Z129: 0 | AA129: 0 | AB129: 0 | AC129: 0 | AD129: 0 | AE129: 0 | AF129: 0 | AG129: 0 | AH129: 0 | AI129: 0 | AJ129: 0 | AK129: 0 | AL129: 0 | AM129: 0 | AN129: 0 | AO129: 0 | AP129: 0 | AQ129: 0 | AR129: 0 | AS129: 0 | AT129: 0 | AU129: 0 | AV129: 0 | AW129: 0 | AX129: 0 | AY129: 0 | AZ129: 0 | BA129: 0 | BB129: 0 | BC129: 0 | BD129: 0 | BE129: 0 | BF129: 0 | BG129: 0 | BH129: 0 | BI129: 0 | BJ129: 0 | BK129: 0 | BL129: 0 | BM129: 0 | BN129: 0 | BO129: 0 | BP129: 0 | BQ129: 0 | BR129: 0 | BS129: 0 | BT129: 0 | BU129: 0 | BV129: 0 | BW129: 0 | BX129: 0 | BY129: 0 | BZ129: 0 | CA129: 0 | CB129: 0 | CC129: 0 | CD129: 0 | CE129: 0 | CF129: 0 | CG129: 0 | CH129: 0
A130: 8727 | B130: Revenue Program 27 | C130: 0 | D130: 0 | E130: 0 | F130: 0 | G130: 0 | H130: 0 | I130: 0 | J130: 0 | K130: 0 | L130: 0 | M130: 0 | N130: 0 | O130: 0 | P130: 0 | Q130: 0 | R130: 0 | S130: 0 | T130: 0 | U130: 0 | V130: 0 | W130: 0 | X130: 0 | Y130: 0 | Z130: 0 | AA130: 0 | AB130: 0 | AC130: 0 | AD130: 0 | AE130: 0 | AF130: 0 | AG130: 0 | AH130: 0 | AI130: 0 | AJ130: 0 | AK130: 0 | AL130: 0 | AM130: 0 | AN130: 0 | AO130: 0 | AP130: 0 | AQ130: 0 | AR130: 0 | AS130: 0 | AT130: 0 | AU130: 0 | AV130: 0 | AW130: 0 | AX130: 0 | AY130: 0 | AZ130: 0 | BA130: 0 | BB130: 0 | BC130: 0 | BD130: 0 | BE130: 0 | BF130: 0 | BG130: 0 | BH130: 0 | BI130: 0 | BJ130: 0 | BK130: 0 | BL130: 0 | BM130: 0 | BN130: 0 | BO130: 0 | BP130: 0 | BQ130: 0 | BR130: 0 | BS130: 0 | BT130: 0 | BU130: 0 | BV130: 0 | BW130: 0 | BX130: 0 | BY130: 0 | BZ130: 0 | CA130: 0 | CB130: 0 | CC130: 0 | CD130: 0 | CE130: 0 | CF130: 0 | CG130: 0 | CH130: 0
A131: 8728 | B131: Revenue Program 28 | C131: 0 | D131: 0 | E131: 0 | F131: 0 | G131: 0 | H131: 0 | I131: 0 | J131: 0 | K131: 0 | L131: 0 | M131: 0 | N131: 0 | O131: 0 | P131: 0 | Q131: 0 | R131: 0 | S131: 0 | T131: 0 | U131: 0 | V131: 0 | W131: 0 | X131: 0 | Y131: 0 | Z131: 0 | AA131: 0 | AB131: 0 | AC131: 0 | AD131: 0 | AE131: 0 | AF131: 0 | AG131: 0 | AH131: 0 | AI131: 0 | AJ131: 0 | AK131: 0 | AL131: 0 | AM131: 0 | AN131: 0 | AO131: 0 | AP131: 0 | AQ131: 0 | AR131: 0 | AS131: 0 | AT131: 0 | AU131: 0 | AV131: 0 | AW131: 0 | AX131: 0 | AY131: 0 | AZ131: 0 | BA131: 0 | BB131: 0 | BC131: 0 | BD131: 0 | BE131: 0 | BF131: 0 | BG131: 0 | BH131: 0 | BI131: 0 | BJ131: 0 | BK131: 0 | BL131: 0 | BM131: 0 | BN131: 0 | BO131: 0 | BP131: 0 | BQ131: 0 | BR131: 0 | BS131: 0 | BT131: 0 | BU131: 0 | BV131: 0 | BW131: 0 | BX131: 0 | BY131: 0 | BZ131: 0 | CA131: 0 | CB131: 0 | CC131: 0 | CD131: 0 | CE131: 0 | CF131: 0 | CG131: 0 | CH131: 0
A132: 8729 | B132: Revenue Program 29 | C132: 0 | D132: 0 | E132: 0 | F132: 0 | G132: 0 | H132: 0 | I132: 0 | J132: 0 | K132: 0 | L132: 0 | M132: 0 | N132: 0 | O132: 0 | P132: 0 | Q132: 0 | R132: 0 | S132: 0 | T132: 0 | U132: 0 | V132: 0 | W132: 0 | X132: 0 | Y132: 0 | Z132: 0 | AA132: 0 | AB132: 0 | AC132: 0 | AD132: 0 | AE132: 0 | AF132: 0 | AG132: 0 | AH132: 0 | AI132: 0 | AJ132: 0 | AK132: 0 | AL132: 0 | AM132: 0 | AN132: 0 | AO132: 0 | AP132: 0 | AQ132: 0 | AR132: 0 | AS132: 0 | AT132: 0 | AU132: 0 | AV132: 0 | AW132: 0 | AX132: 0 | AY132: 0 | AZ132: 0 | BA132: 0 | BB132: 0 | BC132: 0 | BD132: 0 | BE132: 0 | BF132: 0 | BG132: 0 | BH132: 0 | BI132: 0 | BJ132: 0 | BK132: 0 | BL132: 0 | BM132: 0 | BN132: 0 | BO132: 0 | BP132: 0 | BQ132: 0 | BR132: 0 | BS132: 0 | BT132: 0 | BU132: 0 | BV132: 0 | BW132: 0 | BX132: 0 | BY132: 0 | BZ132: 0 | CA132: 0 | CB132: 0 | CC132: 0 | CD132: 0 | CE132: 0 | CF132: 0 | CG132: 0 | CH132: 0
A133: 8730 | B133: Revenue Program 30 | C133: 0 | D133: 0 | E133: 0 | F133: 0 | G133: 0 | H133: 0 | I133: 0 | J133: 0 | K133: 0 | L133: 0 | M133: 0 | N133: 0 | O133: 0 | P133: 0 | Q133: 0 | R133: 0 | S133: 0 | T133: 0 | U133: 0 | V133: 0 | W133: 0 | X133: 0 | Y133: 0 | Z133: 0 | AA133: 0 | AB133: 0 | AC133: 0 | AD133: 0 | AE133: 0 | AF133: 0 | AG133: 0 | AH133: 0 | AI133: 0 | AJ133: 0 | AK133: 0 | AL133: 0 | AM133: 0 | AN133: 0 | AO133: 0 | AP133: 0 | AQ133: 0 | AR133: 0 | AS133: 0 | AT133: 0 | AU133: 0 | AV133: 0 | AW133: 0 | AX133: 0 | AY133: 0 | AZ133: 0 | BA133: 0 | BB133: 0 | BC133: 0 | BD133: 0 | BE133: 0 | BF133: 0 | BG133: 0 | BH133: 0 | BI133: 0 | BJ133: 0 | BK133: 0 | BL133: 0 | BM133: 0 | BN133: 0 | BO133: 0 | BP133: 0 | BQ133: 0 | BR133: 0 | BS133: 0 | BT133: 0 | BU133: 0 | BV133: 0 | BW133: 0 | BX133: 0 | BY133: 0 | BZ133: 0 | CA133: 0 | CB133: 0 | CC133: 0 | CD133: 0 | CE133: 0 | CF133: 0 | CG133: 0 | CH133: 0
A134: 8731 | B134: Revenue Program 31 | C134: 0 | D134: 0 | E134: 0 | F134: 0 | G134: 0 | H134: 0 | I134: 0 | J134: 0 | K134: 0 | L134: 0 | M134: 0 | N134: 0 | O134: 0 | P134: 0 | Q134: 0 | R134: 0 | S134: 0 | T134: 0 | U134: 0 | V134: 0 | W134: 0 | X134: 0 | Y134: 0 | Z134: 0 | AA134: 0 | AB134: 0 | AC134: 0 | AD134: 0 | AE134: 0 | AF134: 0 | AG134: 0 | AH134: 0 | AI134: 0 | AJ134: 0 | AK134: 0 | AL134: 0 | AM134: 0 | AN134: 0 | AO134: 0 | AP134: 0 | AQ134: 0 | AR134: 0 | AS134: 0 | AT134: 0 | AU134: 0 | AV134: 0 | AW134: 0 | AX134: 0 | AY134: 0 | AZ134: 0 | BA134: 0 | BB134: 0 | BC134: 0 | BD134: 0 | BE134: 0 | BF134: 0 | BG134: 0 | BH134: 0 | BI134: 0 | BJ134: 0 | BK134: 0 | BL134: 0 | BM134: 0 | BN134: 0 | BO134: 0 | BP134: 0 | BQ134: 0 | BR134: 0 | BS134: 0 | BT134: 0 | BU134: 0 | BV134: 0 | BW134: 0 | BX134: 0 | BY134: 0 | BZ134: 0 | CA134: 0 | CB134: 0 | CC134: 0 | CD134: 0 | CE134: 0 | CF134: 0 | CG134: 0 | CH134: 0
A135: 8732 | B135: Revenue Program 32 | C135: 0 | D135: 0 | E135: 0 | F135: 0 | G135: 0 | H135: 0 | I135: 0 | J135: 0 | K135: 0 | L135: 0 | M135: 0 | N135: 0 | O135: 0 | P135: 0 | Q135: 0 | R135: 0 | S135: 0 | T135: 0 | U135: 0 | V135: 0 | W135: 0 | X135: 0 | Y135: 0 | Z135: 0 | AA135: 0 | AB135: 0 | AC135: 0 | AD135: 0 | AE135: 0 | AF135: 0 | AG135: 0 | AH135: 0 | AI135: 0 | AJ135: 0 | AK135: 0 | AL135: 0 | AM135: 0 | AN135: 0 | AO135: 0 | AP135: 0 | AQ135: 0 | AR135: 0 | AS135: 0 | AT135: 0 | AU135: 0 | AV135: 0 | AW135: 0 | AX135: 0 | AY135: 0 | AZ135: 0 | BA135: 0 | BB135: 0 | BC135: 0 | BD135: 0 | BE135: 0 | BF135: 0 | BG135: 0 | BH135: 0 | BI135: 0 | BJ135: 0 | BK135: 0 | BL135: 0 | BM135: 0 | BN135: 0 | BO135: 0 | BP135: 0 | BQ135: 0 | BR135: 0 | BS135: 0 | BT135: 0 | BU135: 0 | BV135: 0 | BW135: 0 | BX135: 0 | BY135: 0 | BZ135: 0 | CA135: 0 | CB135: 0 | CC135: 0 | CD135: 0 | CE135: 0 | CF135: 0 | CG135: 0 | CH135: 0
A136: 8733 | B136: Revenue Program 33 | C136: 0 | D136: 0 | E136: 0 | F136: 0 | G136: 0 | H136: 0 | I136: 0 | J136: 0 | K136: 0 | L136: 0 | M136: 0 | N136: 0 | O136: 0 | P136: 0 | Q136: 0 | R136: 0 | S136: 0 | T136: 0 | U136: 0 | V136: 0 | W136: 0 | X136: 0 | Y136: 0 | Z136: 0 | AA136: 0 | AB136: 0 | AC136: 0 | AD136: 0 | AE136: 0 | AF136: 0 | AG136: 0 | AH136: 0 | AI136: 0 | AJ136: 0 | AK136: 0 | AL136: 0 | AM136: 0 | AN136: 0 | AO136: 0 | AP136: 0 | AQ136: 0 | AR136: 0 | AS136: 0 | AT136: 0 | AU136: 0 | AV136: 0 | AW136: 0 | AX136: 0 | AY136: 0 | AZ136: 0 | BA136: 0 | BB136: 0 | BC136: 0 | BD136: 0 | BE136: 0 | BF136: 0 | BG136: 0 | BH136: 0 | BI136: 0 | BJ136: 0 | BK136: 0 | BL136: 0 | BM136: 0 | BN136: 0 | BO136: 0 | BP136: 0 | BQ136: 0 | BR136: 0 | BS136: 0 | BT136: 0 | BU136: 0 | BV136: 0 | BW136: 0 | BX136: 0 | BY136: 0 | BZ136: 0 | CA136: 0 | CB136: 0 | CC136: 0 | CD136: 0 | CE136: 0 | CF136: 0 | CG136: 0 | CH136: 0
A137: 8734 | B137: Revenue Program 34 | C137: 0 | D137: 0 | E137: 0 | F137: 0 | G137: 0 | H137: 0 | I137: 0 | J137: 0 | K137: 0 | L137: 0 | M137: 0 | N137: 0 | O137: 0 | P137: 0 | Q137: 0 | R137: 0 | S137: 0 | T137: 0 | U137: 0 | V137: 0 | W137: 0 | X137: 0 | Y137: 0 | Z137: 0 | AA137: 0 | AB137: 0 | AC137: 0 | AD137: 0 | AE137: 0 | AF137: 0 | AG137: 0 | AH137: 0 | AI137: 0 | AJ137: 0 | AK137: 0 | AL137: 0 | AM137: 0 | AN137: 0 | AO137: 0 | AP137: 0 | AQ137: 0 | AR137: 0 | AS137: 0 | AT137: 0 | AU137: 0 | AV137: 0 | AW137: 0 | AX137: 0 | AY137: 0 | AZ137: 0 | BA137: 0 | BB137: 0 | BC137: 0 | BD137: 0 | BE137: 0 | BF137: 0 | BG137: 0 | BH137: 0 | BI137: 0 | BJ137: 0 | BK137: 0 | BL137: 0 | BM137: 0 | BN137: 0 | BO137: 0 | BP137: 0 | BQ137: 0 | BR137: 0 | BS137: 0 | BT137: 0 | BU137: 0 | BV137: 0 | BW137: 0 | BX137: 0 | BY137: 0 | BZ137: 0 | CA137: 0 | CB137: 0 | CC137: 0 | CD137: 0 | CE137: 0 | CF137: 0 | CG137: 0 | CH137: 0
A138: 8735 | B138: Revenue Program 35 | C138: 0 | D138: 0 | E138: 0 | F138: 0 | G138: 0 | H138: 0 | I138: 0 | J138: 0 | K138: 0 | L138: 0 | M138: 0 | N138: 0 | O138: 0 | P138: =O138-SUM(C138:N138) -> 0 | Q138: 0 | R138: 0 | S138: 0 | T138: 0 | U138: 0 | V138: 0 | W138: 0 | X138: 0 | Y138: 0 | Z138: 0 | AA138: 0 | AB138: 0 | AC138: 0 | AD138: =AC138-SUM(Q138:AB138) -> 0 | AE138: 0 | AF138: 0 | AG138: 0 | AH138: 0 | AI138: 0 | AJ138: 0 | AK138: 0 | AL138: 0 | AM138: 0 | AN138: 0 | AO138: 0 | AP138: 0 | AQ138: 0 | AR138: =AQ138-SUM(AE138:AP138) -> 0 | AS138: 0 | AT138: 0 | AU138: 0 | AV138: 0 | AW138: 0 | AX138: 0 | AY138: 0 | AZ138: 0 | BA138: 0 | BB138: 0 | BC138: 0 | BD138: 0 | BE138: 0 | BF138: =BE138-SUM(AS138:BD138) -> 0 | BG138: 0 | BH138: 0 | BI138: 0 | BJ138: 0 | BK138: 0 | BL138: 0 | BM138: 0 | BN138: 0 | BO138: 0 | BP138: 0 | BQ138: 0 | BR138: 0 | BS138: 0 | BT138: =BS138-SUM(BG138:BR138) -> 0 | BU138: 0 | BV138: 0 | BW138: 0 | BX138: 0 | BY138: 0 | BZ138: 0 | CA138: 0 | CB138: 0 | CC138: 0 | CD138: 0 | CE138: 0 | CF138: 0 | CG138: 0 | CH138: =CG138-SUM(BU138:CF138) -> 0
A139: 8736 | B139: Revenue Program 36 | C139: 0 | D139: 0 | E139: 0 | F139: 0 | G139: 0 | H139: 0 | I139: 0 | J139: 0 | K139: 0 | L139: 0 | M139: 0 | N139: 0 | O139: 0 | P139: 0 | Q139: 0 | R139: 0 | S139: 0 | T139: 0 | U139: 0 | V139: 0 | W139: 0 | X139: 0 | Y139: 0 | Z139: 0 | AA139: 0 | AB139: 0 | AC139: 0 | AD139: 0 | AE139: 0 | AF139: 0 | AG139: 0 | AH139: 0 | AI139: 0 | AJ139: 0 | AK139: 0 | AL139: 0 | AM139: 0 | AN139: 0 | AO139: 0 | AP139: 0 | AQ139: 0 | AR139: 0 | AS139: 0 | AT139: 0 | AU139: 0 | AV139: 0 | AW139: 0 | AX139: 0 | AY139: 0 | AZ139: 0 | BA139: 0 | BB139: 0 | BC139: 0 | BD139: 0 | BE139: 0 | BF139: 0 | BG139: 0 | BH139: 0 | BI139: 0 | BJ139: 0 | BK139: 0 | BL139: 0 | BM139: 0 | BN139: 0 | BO139: 0 | BP139: 0 | BQ139: 0 | BR139: 0 | BS139: 0 | BT139: 0 | BU139: 0 | BV139: 0 | BW139: 0 | BX139: 0 | BY139: 0 | BZ139: 0 | CA139: 0 | CB139: 0 | CC139: 0 | CD139: 0 | CE139: 0 | CF139: 0 | CG139: 0 | CH139: 0
A140: 8737 | B140: Revenue Program 37 | C140: 0 | D140: 0 | E140: 0 | F140: 0 | G140: 0 | H140: 0 | I140: 0 | J140: 0 | K140: 0 | L140: 0 | M140: 0 | N140: 0 | O140: 0 | P140: 0 | Q140: 0 | R140: 0 | S140: 0 | T140: 0 | U140: 0 | V140: 0 | W140: 0 | X140: 0 | Y140: 0 | Z140: 0 | AA140: 0 | AB140: 0 | AC140: 0 | AD140: 0 | AE140: 0 | AF140: 0 | AG140: 0 | AH140: 0 | AI140: 0 | AJ140: 0 | AK140: 0 | AL140: 0 | AM140: 0 | AN140: 0 | AO140: 0 | AP140: 0 | AQ140: 0 | AR140: 0 | AS140: 0 | AT140: 0 | AU140: 0 | AV140: 0 | AW140: 0 | AX140: 0 | AY140: 0 | AZ140: 0 | BA140: 0 | BB140: 0 | BC140: 0 | BD140: 0 | BE140: 0 | BF140: 0 | BG140: 0 | BH140: 0 | BI140: 0 | BJ140: 0 | BK140: 0 | BL140: 0 | BM140: 0 | BN140: 0 | BO140: 0 | BP140: 0 | BQ140: 0 | BR140: 0 | BS140: 0 | BT140: 0 | BU140: 0 | BV140: 0 | BW140: 0 | BX140: 0 | BY140: 0 | BZ140: 0 | CA140: 0 | CB140: 0 | CC140: 0 | CD140: 0 | CE140: 0 | CF140: 0 | CG140: 0 | CH140: 0
A141: 8738 | B141: Revenue Program 38 | C141: 0 | D141: 0 | E141: 0 | F141: 0 | G141: 0 | H141: 0 | I141: 0 | J141: 0 | K141: 0 | L141: 0 | M141: 0 | N141: 0 | O141: 0 | P141: 0 | Q141: 0 | R141: 0 | S141: 0 | T141: 0 | U141: 0 | V141: 0 | W141: 0 | X141: 0 | Y141: 0 | Z141: 0 | AA141: 0 | AB141: 0 | AC141: 0 | AD141: 0 | AE141: 0 | AF141: 0 | AG141: 0 | AH141: 0 | AI141: 0 | AJ141: 0 | AK141: 0 | AL141: 0 | AM141: 0 | AN141: 0 | AO141: 0 | AP141: 0 | AQ141: 0 | AR141: 0 | AS141: 0 | AT141: 0 | AU141: 0 | AV141: 0 | AW141: 0 | AX141: 0 | AY141: 0 | AZ141: 0 | BA141: 0 | BB141: 0 | BC141: 0 | BD141: 0 | BE141: 0 | BF141: 0 | BG141: 0 | BH141: 0 | BI141: 0 | BJ141: 0 | BK141: 0 | BL141: 0 | BM141: 0 | BN141: 0 | BO141: 0 | BP141: 0 | BQ141: 0 | BR141: 0 | BS141: 0 | BT141: 0 | BU141: 0 | BV141: 0 | BW141: 0 | BX141: 0 | BY141: 0 | BZ141: 0 | CA141: 0 | CB141: 0 | CC141: 0 | CD141: 0 | CE141: 0 | CF141: 0 | CG141: 0 | CH141: 0
A142: 8739 | B142: Revenue Program 39 | C142: 0 | D142: 0 | E142: 0 | F142: 0 | G142: 0 | H142: 0 | I142: 0 | J142: 0 | K142: 0 | L142: 0 | M142: 0 | N142: 0 | O142: 0 | P142: 0 | Q142: 0 | R142: 0 | S142: 0 | T142: 0 | U142: 0 | V142: 0 | W142: 0 | X142: 0 | Y142: 0 | Z142: 0 | AA142: 0 | AB142: 0 | AC142: 0 | AD142: 0 | AE142: 0 | AF142: 0 | AG142: 0 | AH142: 0 | AI142: 0 | AJ142: 0 | AK142: 0 | AL142: 0 | AM142: 0 | AN142: 0 | AO142: 0 | AP142: 0 | AQ142: 0 | AR142: 0 | AS142: 0 | AT142: 0 | AU142: 0 | AV142: 0 | AW142: 0 | AX142: 0 | AY142: 0 | AZ142: 0 | BA142: 0 | BB142: 0 | BC142: 0 | BD142: 0 | BE142: 0 | BF142: 0 | BG142: 0 | BH142: 0 | BI142: 0 | BJ142: 0 | BK142: 0 | BL142: 0 | BM142: 0 | BN142: 0 | BO142: 0 | BP142: 0 | BQ142: 0 | BR142: 0 | BS142: 0 | BT142: 0 | BU142: 0 | BV142: 0 | BW142: 0 | BX142: 0 | BY142: 0 | BZ142: 0 | CA142: 0 | CB142: 0 | CC142: 0 | CD142: 0 | CE142: 0 | CF142: 0 | CG142: 0 | CH142: 0
A143: 8740 | B143: Revenue Program 40 | C143: 0 | D143: 0 | E143: 0 | F143: 0 | G143: 0 | H143: 0 | I143: 0 | J143: 0 | K143: 0 | L143: 0 | M143: 0 | N143: 0 | O143: 0 | P143: 0 | Q143: 0 | R143: 0 | S143: 0 | T143: 0 | U143: 0 | V143: 0 | W143: 0 | X143: 0 | Y143: 0 | Z143: 0 | AA143: 0 | AB143: 0 | AC143: 0 | AD143: 0 | AE143: 0 | AF143: 0 | AG143: 0 | AH143: 0 | AI143: 0 | AJ143: 0 | AK143: 0 | AL143: 0 | AM143: 0 | AN143: 0 | AO143: 0 | AP143: 0 | AQ143: 0 | AR143: 0 | AS143: 0 | AT143: 0 | AU143: 0 | AV143: 0 | AW143: 0 | AX143: 0 | AY143: 0 | AZ143: 0 | BA143: 0 | BB143: 0 | BC143: 0 | BD143: 0 | BE143: 0 | BF143: 0 | BG143: 0 | BH143: 0 | BI143: 0 | BJ143: 0 | BK143: 0 | BL143: 0 | BM143: 0 | BN143: 0 | BO143: 0 | BP143: 0 | BQ143: 0 | BR143: 0 | BS143: 0 | BT143: 0 | BU143: 0 | BV143: 0 | BW143: 0 | BX143: 0 | BY143: 0 | BZ143: 0 | CA143: 0 | CB143: 0 | CC143: 0 | CD143: 0 | CE143: 0 | CF143: 0 | CG143: 0 | CH143: 0
A144: 8741 | B144: Revenue Program 41 | C144: 0 | D144: 0 | E144: 0 | F144: 0 | G144: 0 | H144: 0 | I144: 0 | J144: 0 | K144: 0 | L144: 0 | M144: 0 | N144: 0 | O144: 0 | P144: 0 | Q144: 0 | R144: 0 | S144: 0 | T144: 0 | U144: 0 | V144: 0 | W144: 0 | X144: 0 | Y144: 0 | Z144: 0 | AA144: 0 | AB144: 0 | AC144: 0 | AD144: 0 | AE144: 0 | AF144: 0 | AG144: 0 | AH144: 0 | AI144: 0 | AJ144: 0 | AK144: 0 | AL144: 0 | AM144: 0 | AN144: 0 | AO144: 0 | AP144: 0 | AQ144: 0 | AR144: 0 | AS144: 0 | AT144: 0 | AU144: 0 | AV144: 0 | AW144: 0 | AX144: 0 | AY144: 0 | AZ144: 0 | BA144: 0 | BB144: 0 | BC144: 0 | BD144: 0 | BE144: 0 | BF144: 0 | BG144: 0 | BH144: 0 | BI144: 0 | BJ144: 0 | BK144: 0 | BL144: 0 | BM144: 0 | BN144: 0 | BO144: 0 | BP144: 0 | BQ144: 0 | BR144: 0 | BS144: 0 | BT144: 0 | BU144: 0 | BV144: 0 | BW144: 0 | BX144: 0 | BY144: 0 | BZ144: 0 | CA144: 0 | CB144: 0 | CC144: 0 | CD144: 0 | CE144: 0 | CF144: 0 | CG144: 0 | CH144: 0
A145: 8781 | B145: All Other transfers from Districts or Charter Schools | C145: 0 | D145: 0 | E145: 0 | F145: 0 | G145: 0 | H145: 0 | I145: 0 | J145: 0 | K145: 0 | L145: 0 | M145: 0 | N145: 0 | O145: 0 | P145: 0 | Q145: 0 | R145: 0 | S145: 0 | T145: 0 | U145: 0 | V145: 0 | W145: 0 | X145: 0 | Y145: 0 | Z145: 0 | AA145: 0 | AB145: 0 | AC145: 0 | AD145: 0 | AE145: 0 | AF145: 0 | AG145: 0 | AH145: 0 | AI145: 0 | AJ145: 0 | AK145: 0 | AL145: 0 | AM145: 0 | AN145: 0 | AO145: 0 | AP145: 0 | AQ145: 0 | AR145: 0 | AS145: 0 | AT145: 0 | AU145: 0 | AV145: 0 | AW145: 0 | AX145: 0 | AY145: 0 | AZ145: 0 | BA145: 0 | BB145: 0 | BC145: 0 | BD145: 0 | BE145: 0 | BF145: 0 | BG145: 0 | BH145: 0 | BI145: 0 | BJ145: 0 | BK145: 0 | BL145: 0 | BM145: 0 | BN145: 0 | BO145: 0 | BP145: 0 | BQ145: 0 | BR145: 0 | BS145: 0 | BT145: 0 | BU145: 0 | BV145: 0 | BW145: 0 | BX145: 0 | BY145: 0 | BZ145: 0 | CA145: 0 | CB145: 0 | CC145: 0 | CD145: 0 | CE145: 0 | CF145: 0 | CG145: 0 | CH145: 0
A146: 8797 | B146: All Other Financing Sources | C146: 0 | D146: 0 | E146: 0 | F146: 0 | G146: 0 | H146: 0 | I146: 0 | J146: 0 | K146: 0 | L146: 0 | M146: 0 | N146: 0 | O146: 0 | P146: 0 | Q146: 0 | R146: 0 | S146: 0 | T146: 0 | U146: 0 | V146: 0 | W146: 0 | X146: 0 | Y146: 0 | Z146: 0 | AA146: 0 | AB146: 0 | AC146: 0 | AD146: 0 | AE146: 0 | AF146: 0 | AG146: 0 | AH146: 0 | AI146: 0 | AJ146: 0 | AK146: 0 | AL146: 0 | AM146: 0 | AN146: 0 | AO146: 0 | AP146: 0 | AQ146: 0 | AR146: 0 | AS146: 0 | AT146: 0 | AU146: 0 | AV146: 0 | AW146: 0 | AX146: 0 | AY146: 0 | AZ146: 0 | BA146: 0 | BB146: 0 | BC146: 0 | BD146: 0 | BE146: 0 | BF146: 0 | BG146: 0 | BH146: 0 | BI146: 0 | BJ146: 0 | BK146: 0 | BL146: 0 | BM146: 0 | BN146: 0 | BO146: 0 | BP146: 0 | BQ146: 0 | BR146: 0 | BS146: 0 | BT146: 0 | BU146: 0 | BV146: 0 | BW146: 0 | BX146: 0 | BY146: 0 | BZ146: 0 | CA146: 0 | CB146: 0 | CC146: 0 | CD146: 0 | CE146: 0 | CF146: 0 | CG146: 0 | CH146: 0
A147: 8910 | B147: Interfund Transfers In | C147: 0 | D147: 0 | E147: 0 | F147: 0 | G147: 0 | H147: 0 | I147: 0 | J147: 0 | K147: 0 | L147: 0 | M147: 0 | N147: 0 | O147: 0 | P147: 0 | Q147: 0 | R147: 0 | S147: 0 | T147: 0 | U147: 0 | V147: 0 | W147: 0 | X147: 0 | Y147: 0 | Z147: 0 | AA147: 0 | AB147: 0 | AC147: 0 | AD147: 0 | AE147: 0 | AF147: 0 | AG147: 0 | AH147: 0 | AI147: 0 | AJ147: 0 | AK147: 0 | AL147: 0 | AM147: 0 | AN147: 0 | AO147: 0 | AP147: 0 | AQ147: 0 | AR147: 0 | AS147: 0 | AT147: 0 | AU147: 0 | AV147: 0 | AW147: 0 | AX147: 0 | AY147: 0 | AZ147: 0 | BA147: 0 | BB147: 0 | BC147: 0 | BD147: 0 | BE147: 0 | BF147: 0 | BG147: 0 | BH147: 0 | BI147: 0 | BJ147: 0 | BK147: 0 | BL147: 0 | BM147: 0 | BN147: 0 | BO147: 0 | BP147: 0 | BQ147: 0 | BR147: 0 | BS147: 0 | BT147: 0 | BU147: 0 | BV147: 0 | BW147: 0 | BX147: 0 | BY147: 0 | BZ147: 0 | CA147: 0 | CB147: 0 | CC147: 0 | CD147: 0 | CE147: 0 | CF147: 0 | CG147: 0 | CH147: 0
A148: 8931 | B148: Emergency Apportionments | C148: 0 | D148: 0 | E148: 0 | F148: 0 | G148: 0 | H148: 0 | I148: 0 | J148: 0 | K148: 0 | L148: 0 | M148: 0 | N148: 0 | O148: 0 | P148: 0 | Q148: 0 | R148: 0 | S148: 0 | T148: 0 | U148: 0 | V148: 0 | W148: 0 | X148: 0 | Y148: 0 | Z148: 0 | AA148: 0 | AB148: 0 | AC148: 0 | AD148: 0 | AE148: 0 | AF148: 0 | AG148: 0 | AH148: 0 | AI148: 0 | AJ148: 0 | AK148: 0 | AL148: 0 | AM148: 0 | AN148: 0 | AO148: 0 | AP148: 0 | AQ148: 0 | AR148: 0 | AS148: 0 | AT148: 0 | AU148: 0 | AV148: 0 | AW148: 0 | AX148: 0 | AY148: 0 | AZ148: 0 | BA148: 0 | BB148: 0 | BC148: 0 | BD148: 0 | BE148: 0 | BF148: 0 | BG148: 0 | BH148: 0 | BI148: 0 | BJ148: 0 | BK148: 0 | BL148: 0 | BM148: 0 | BN148: 0 | BO148: 0 | BP148: 0 | BQ148: 0 | BR148: 0 | BS148: 0 | BT148: 0 | BU148: 0 | BV148: 0 | BW148: 0 | BX148: 0 | BY148: 0 | BZ148: 0 | CA148: 0 | CB148: 0 | CC148: 0 | CD148: 0 | CE148: 0 | CF148: 0 | CG148: 0 | CH148: 0
A149: 8953 | B149: Proceeds from Sale/Lease Purchase of Land and Buildings | C149: 0 | D149: 0 | E149: 0 | F149: 0 | G149: 0 | H149: 0 | I149: 0 | J149: 0 | K149: 0 | L149: 0 | M149: 0 | N149: 0 | O149: 0 | P149: 0 | Q149: 0 | R149: 0 | S149: 0 | T149: 0 | U149: 0 | V149: 0 | W149: 0 | X149: 0 | Y149: 0 | Z149: 0 | AA149: 0 | AB149: 0 | AC149: 0 | AD149: 0 | AE149: 0 | AF149: 0 | AG149: 0 | AH149: 0 | AI149: 0 | AJ149: 0 | AK149: 0 | AL149: 0 | AM149: 0 | AN149: 0 | AO149: 0 | AP149: 0 | AQ149: 0 | AR149: 0 | AS149: 0 | AT149: 0 | AU149: 0 | AV149: 0 | AW149: 0 | AX149: 0 | AY149: 0 | AZ149: 0 | BA149: 0 | BB149: 0 | BC149: 0 | BD149: 0 | BE149: 0 | BF149: 0 | BG149: 0 | BH149: 0 | BI149: 0 | BJ149: 0 | BK149: 0 | BL149: 0 | BM149: 0 | BN149: 0 | BO149: 0 | BP149: 0 | BQ149: 0 | BR149: 0 | BS149: 0 | BT149: 0 | BU149: 0 | BV149: 0 | BW149: 0 | BX149: 0 | BY149: 0 | BZ149: 0 | CA149: 0 | CB149: 0 | CC149: 0 | CD149: 0 | CE149: 0 | CF149: 0 | CG149: 0 | CH149: 0
A150: 8980 | B150: Contributions | C150: 0 | D150: 0 | E150: 0 | F150: 0 | G150: 0 | H150: 0 | I150: 0 | J150: 0 | K150: 0 | L150: 0 | M150: 0 | N150: 0 | O150: 0 | P150: 0 | Q150: 0 | R150: 0 | S150: 0 | T150: 0 | U150: 0 | V150: 0 | W150: 0 | X150: 0 | Y150: 0 | Z150: 0 | AA150: 0 | AB150: 0 | AC150: 0 | AD150: 0 | AE150: 0 | AF150: 0 | AG150: 0 | AH150: 0 | AI150: 0 | AJ150: 0 | AK150: 0 | AL150: 0 | AM150: 0 | AN150: 0 | AO150: 0 | AP150: 0 | AQ150: 0 | AR150: 0 | AS150: 0 | AT150: 0 | AU150: 0 | AV150: 0 | AW150: 0 | AX150: 0 | AY150: 0 | AZ150: 0 | BA150: 0 | BB150: 0 | BC150: 0 | BD150: 0 | BE150: 0 | BF150: 0 | BG150: 0 | BH150: 0 | BI150: 0 | BJ150: 0 | BK150: 0 | BL150: 0 | BM150: 0 | BN150: 0 | BO150: 0 | BP150: 0 | BQ150: 0 | BR150: 0 | BS150: 0 | BT150: 0 | BU150: 0 | BV150: 0 | BW150: 0 | BX150: 0 | BY150: 0 | BZ150: 0 | CA150: 0 | CB150: 0 | CC150: 0 | CD150: 0 | CE150: 0 | CF150: 0 | CG150: 0 | CH150: 0
A151: 8999 | B151: Uncategorized Revenue | C151: 10 | D151: 0 | E151: 1209.36 | F151: 5077.39 | G151: 4966.02 | H151: 5805.94 | I151: 1666.04 | J151: 7419.83 | K151: 0 | L151: 7538.18 | M151: 0 | N151: -33692.76 | O151: 0 | P151: 0 | AC151: 0 | AD151: 0 | AQ151: 0 | AR151: 0 | BE151: 0 | BF151: 0 | BS151: 0 | BT151: 0 | CG151: 0 | CH151: 0
B153: Other Local Revenue | C153: =SUM(C73:C152) -> 50.04 | D153: 0.05 | E153: 2489.27 | F153: 5117.44 | G153: 6505.98 | H153: 17885.44 | I153: 1666.77 | J153: 7420.49 | K153: 11794.02 | L153: 17776.79 | M153: 45632.147 | N153: 303605.5069 | O153: 504828.53 | P153: 84884.58613 | Q153: =SUM(Q73:Q152) -> 0 | R153: 0 | S153: 9184.5 | T153: 9184.5 | U153: 9184.5 | V153: 9184.5 | W153: 9184.5 | X153: 9184.5 | Y153: 9184.5 | Z153: 9184.5 | AA153: 9184.5 | AB153: 338299.9139 | AC153: 505881.02 | AD153: 84920.60613 | AE153: =SUM(AE73:AE152) -> 0 | AF153: 0 | AG153: 9186.5 | AH153: 9186.5 | AI153: 9186.5 | AJ153: 9186.5 | AK153: 9186.5 | AL153: 9186.5 | AM153: 9186.5 | AN153: 9186.5 | AO153: 9186.5 | AP153: 338301.9139 | AQ153: 505964.348 | AR153: 84983.93413 | AS153: =SUM(AS73:AS152) -> 0 | AT153: 0 | AU153: 9188.54 | AV153: 9188.54 | AW153: 9188.54 | AX153: 9188.54 | AY153: 9188.54 | AZ153: 9188.54 | BA153: 9188.54 | BB153: 9188.54 | BC153: 9188.54 | BD153: 338303.9539 | BE153: 505996.4107 | BF153: 84995.59681 | BG153: =SUM(BG73:BG152) -> 0 | BH153: 0 | BI153: 9190.6208 | BJ153: 9190.6208 | BK153: 9190.6208 | BL153: 9190.6208 | BM153: 9190.6208 | BN153: 9190.6208 | BO153: 9190.6208 | BP153: 9190.6208 | BQ153: 9190.6208 | BR153: 338306.0347 | BS153: 506019.4389 | BT153: 84997.81702 | BU153: =SUM(BU73:BU152) -> 0 | BV153: 0 | BW153: 9192.743216 | BX153: 9192.743216 | BY153: 9192.743216 | BZ153: 9192.743216 | CA153: 9192.743216 | CB153: 9192.743216 | CC153: 9192.743216 | CD153: 9192.743216 | CE153: 9192.743216 | CF153: 338308.1571 | CG153: 506042.9277 | CH153: 85000.08164
A155: Fundraising & Grants
P156: =O156-SUM(C156:N156) -> 0 | AD156: =AC156-SUM(Q156:AB156) -> 0 | AR156: =AQ156-SUM(AE156:AP156) -> 0 | BF156: =BE156-SUM(AS156:BD156) -> 0 | BT156: =BS156-SUM(BG156:BR156) -> 0 | CH156: =CG156-SUM(BU156:CF156) -> 0
A157: 8800 | B157: Donations/Fundraising | C157: 0 | D157: 0 | E157: 0 | F157: 0 | G157: 0 | H157: 0 | I157: 0 | J157: 0 | K157: 0 | L157: 0 | M157: 0 | N157: 0 | P157: =O157-SUM(C157:N157) -> 0 | AD157: =AC157-SUM(Q157:AB157) -> 0 | AR157: =AQ157-SUM(AE157:AP157) -> 0 | BF157: =BE157-SUM(AS157:BD157) -> 0 | BT157: =BS157-SUM(BG157:BR157) -> 0 | CH157: =CG157-SUM(BU157:CF157) -> 0
A158: 8801 | B158: Donations - Parents | C158: 1352.2 | D158: 10899.12 | E158: 2900 | F158: 1990 | G158: 2349.55 | H158: 0 | I158: 7458.1 | J158: 0 | K158: 7050.34 | L158: 48.38 | M158: -4881.023333 | N158: 2916.666667 | O158: 35000 | P158: 2916.666667 | Q158: 0 | R158: 2916.666667 | S158: 2916.666667 | T158: 2916.666667 | U158: 2916.666667 | V158: 2916.666667 | W158: 2916.666667 | X158: 2916.666667 | Y158: 2916.666667 | Z158: 2916.666667 | AA158: 2916.666667 | AB158: 2916.666667 | AC158: 35000 | AD158: 2916.666667 | AE158: 0 | AF158: 2916.666667 | AG158: 2916.666667 | AH158: 2916.666667 | AI158: 2916.666667 | AJ158: 2916.666667 | AK158: 2916.666667 | AL158: 2916.666667 | AM158: 2916.666667 | AN158: 2916.666667 | AO158: 2916.666667 | AP158: 2916.666667 | AQ158: 35000 | AR158: 2916.666667 | AS158: 0 | AT158: 2916.666667 | AU158: 2916.666667 | AV158: 2916.666667 | AW158: 2916.666667 | AX158: 2916.666667 | AY158: 2916.666667 | AZ158: 2916.666667 | BA158: 2916.666667 | BB158: 2916.666667 | BC158: 2916.666667 | BD158: 2916.666667 | BE158: 35000 | BF158: 2916.666667 | BG158: 0 | BH158: 2916.666667 | BI158: 2916.666667 | BJ158: 2916.666667 | BK158: 2916.666667 | BL158: 2916.666667 | BM158: 2916.666667 | BN158: 2916.666667 | BO158: 2916.666667 | BP158: 2916.666667 | BQ158: 2916.666667 | BR158: 2916.666667 | BS158: 35000 | BT158: 2916.666667 | BU158: 0 | BV158: 2916.666667 | BW158: 2916.666667 | BX158: 2916.666667 | BY158: 2916.666667 | BZ158: 2916.666667 | CA158: 2916.666667 | CB158: 2916.666667 | CC158: 2916.666667 | CD158: 2916.666667 | CE158: 2916.666667 | CF158: 2916.666667 | CG158: 35000 | CH158: 2916.666667
A159: 8802 | B159: Donations - Private | C159: 175 | D159: 175 | E159: 147.36 | F159: 0 | G159: 0 | H159: 0 | I159: 11500 | J159: 0 | K159: 40 | L159: 0 | M159: 12962.64 | N159: 0 | O159: 25000 | P159: 0 | Q159: 4166.666667 | R159: 2083.333333 | S159: 2083.333333 | T159: 2083.333333 | U159: 2083.333333 | V159: 2083.333333 | W159: 2083.333333 | X159: 2083.333333 | Y159: 2083.333333 | Z159: 2083.333333 | AA159: 2083.333333 | AB159: 0 | AC159: 25000 | AD159: 3.637978807e-11 | AE159: 4166.666667 | AF159: 2083.333333 | AG159: 2083.333333 | AH159: 2083.333333 | AI159: 2083.333333 | AJ159: 2083.333333 | AK159: 2083.333333 | AL159: 2083.333333 | AM159: 2083.333333 | AN159: 2083.333333 | AO159: 2083.333333 | AP159: 0 | AQ159: 25000 | AR159: 3.637978807e-11 | AS159: 4166.666667 | AT159: 2083.333333 | AU159: 2083.333333 | AV159: 2083.333333 | AW159: 2083.333333 | AX159: 2083.333333 | AY159: 2083.333333 | AZ159: 2083.333333 | BA159: 2083.333333 | BB159: 2083.333333 | BC159: 2083.333333 | BD159: 0 | BE159: 25000 | BF159: 3.637978807e-11 | BG159: 4166.666667 | BH159: 2083.333333 | BI159: 2083.333333 | BJ159: 2083.333333 | BK159: 2083.333333 | BL159: 2083.333333 | BM159: 2083.333333 | BN159: 2083.333333 | BO159: 2083.333333 | BP159: 2083.333333 | BQ159: 2083.333333 | BR159: 0 | BS159: 25000 | BT159: 3.637978807e-11 | BU159: 4166.666667 | BV159: 2083.333333 | BW159: 2083.333333 | BX159: 2083.333333 | BY159: 2083.333333 | BZ159: 2083.333333 | CA159: 2083.333333 | CB159: 2083.333333 | CC159: 2083.333333 | CD159: 2083.333333 | CE159: 2083.333333 | CF159: 0 | CG159: 25000 | CH159: 3.637978807e-11
A160: 8803 | B160: Fundraising | C160: 0 | D160: 0 | E160: 0 | F160: 3385 | G160: 307.5 | H160: 0 | I160: 0 | J160: 0 | K160: 1767 | L160: 2569 | M160: 10304.83333 | N160: 1666.666667 | O160: 20000 | P160: 2.910383046e-11 | Q160: 1666.666667 | R160: 1666.666667 | S160: 1666.666667 | T160: 1666.666667 | U160: 1666.666667 | V160: 1666.666667 | W160: 1666.666667 | X160: 1666.666667 | Y160: 1666.666667 | Z160: 1666.666667 | AA160: 1666.666667 | AB160: 1666.666667 | AC160: 20000 | AD160: -4.365574569e-11 | AE160: 1666.666667 | AF160: 1666.666667 | AG160: 1666.666667 | AH160: 1666.666667 | AI160: 1666.666667 | AJ160: 1666.666667 | AK160: 1666.666667 | AL160: 1666.666667 | AM160: 1666.666667 | AN160: 1666.666667 | AO160: 1666.666667 | AP160: 1666.666667 | AQ160: 20000 | AR160: -4.365574569e-11 | AS160: 1666.666667 | AT160: 1666.666667 | AU160: 1666.666667 | AV160: 1666.666667 | AW160: 1666.666667 | AX160: 1666.666667 | AY160: 1666.666667 | AZ160: 1666.666667 | BA160: 1666.666667 | BB160: 1666.666667 | BC160: 1666.666667 | BD160: 1666.666667 | BE160: 20000 | BF160: -4.365574569e-11 | BG160: 1666.666667 | BH160: 1666.666667 | BI160: 1666.666667 | BJ160: 1666.666667 | BK160: 1666.666667 | BL160: 1666.666667 | BM160: 1666.666667 | BN160: 1666.666667 | BO160: 1666.666667 | BP160: 1666.666667 | BQ160: 1666.666667 | BR160: 1666.666667 | BS160: 20000 | BT160: -4.365574569e-11 | BU160: 1666.666667 | BV160: 1666.666667 | BW160: 1666.666667 | BX160: 1666.666667 | BY160: 1666.666667 | BZ160: 1666.666667 | CA160: 1666.666667 | CB160: 1666.666667 | CC160: 1666.666667 | CD160: 1666.666667 | CE160: 1666.666667 | CF160: 1666.666667 | CG160: 20000 | CH160: -4.365574569e-11
A161: 8804 | B161: Fundraising - Fund Development | C161: 0 | D161: 0 | E161: 0 | F161: 0 | G161: 0 | H161: 0 | I161: 0 | J161: 0 | K161: 0 | L161: 0 | M161: 0 | N161: 0 | O161: 0 | P161: 0 | Q161: 0 | R161: 0 | S161: 0 | T161: 0 | U161: 0 | V161: 0 | W161: 0 | X161: 0 | Y161: 0 | Z161: 0 | AA161: 0 | AB161: 0 | AC161: 0 | AD161: 0 | AE161: 0 | AF161: 0 | AG161: 0 | AH161: 0 | AI161: 0 | AJ161: 0 | AK161: 0 | AL161: 0 | AM161: 0 | AN161: 0 | AO161: 0 | AP161: 0 | AQ161: 0 | AR161: 0 | AS161: 0 | AT161: 0 | AU161: 0 | AV161: 0 | AW161: 0 | AX161: 0 | AY161: 0 | AZ161: 0 | BA161: 0 | BB161: 0 | BC161: 0 | BD161: 0 | BE161: 0 | BF161: 0 | BG161: 0 | BH161: 0 | BI161: 0 | BJ161: 0 | BK161: 0 | BL161: 0 | BM161: 0 | BN161: 0 | BO161: 0 | BP161: 0 | BQ161: 0 | BR161: 0 | BS161: 0 | BT161: 0 | BU161: 0 | BV161: 0 | BW161: 0 | BX161: 0 | BY161: 0 | BZ161: 0 | CA161: 0 | CB161: 0 | CC161: 0 | CD161: 0 | CE161: 0 | CF161: 0 | CG161: 0 | CH161: 0
A162: 8811 | B162: School Defined Revenue 1 | C162: 0 | D162: 0 | E162: 0 | F162: 0 | G162: 0 | H162: 0 | I162: 0 | J162: 0 | K162: 0 | L162: 0 | M162: 0 | N162: 0 | O162: 0 | P162: 0 | Q162: 0 | R162: 0 | S162: 0 | T162: 0 | U162: 0 | V162: 0 | W162: 0 | X162: 0 | Y162: 0 | Z162: 0 | AA162: 0 | AB162: 0 | AC162: 0 | AD162: 0 | AE162: 0 | AF162: 0 | AG162: 0 | AH162: 0 | AI162: 0 | AJ162: 0 | AK162: 0 | AL162: 0 | AM162: 0 | AN162: 0 | AO162: 0 | AP162: 0 | AQ162: 0 | AR162: 0 | AS162: 0 | AT162: 0 | AU162: 0 | AV162: 0 | AW162: 0 | AX162: 0 | AY162: 0 | AZ162: 0 | BA162: 0 | BB162: 0 | BC162: 0 | BD162: 0 | BE162: 0 | BF162: 0 | BG162: 0 | BH162: 0 | BI162: 0 | BJ162: 0 | BK162: 0 | BL162: 0 | BM162: 0 | BN162: 0 | BO162: 0 | BP162: 0 | BQ162: 0 | BR162: 0 | BS162: 0 | BT162: 0 | BU162: 0 | BV162: 0 | BW162: 0 | BX162: 0 | BY162: 0 | BZ162: 0 | CA162: 0 | CB162: 0 | CC162: 0 | CD162: 0 | CE162: 0 | CF162: 0 | CG162: 0 | CH162: 0
A163: 8812 | B163: School Defined Revenue 2 | C163: 0 | D163: 0 | E163: 0 | F163: 0 | G163: 0 | H163: 0 | I163: 0 | J163: 0 | K163: 0 | L163: 0 | M163: 0 | N163: 0 | O163: 0 | P163: 0 | Q163: 0 | R163: 0 | S163: 0 | T163: 0 | U163: 0 | V163: 0 | W163: 0 | X163: 0 | Y163: 0 | Z163: 0 | AA163: 0 | AB163: 0 | AC163: 0 | AD163: 0 | AE163: 0 | AF163: 0 | AG163: 0 | AH163: 0 | AI163: 0 | AJ163: 0 | AK163: 0 | AL163: 0 | AM163: 0 | AN163: 0 | AO163: 0 | AP163: 0 | AQ163: 0 | AR163: 0 | AS163: 0 | AT163: 0 | AU163: 0 | AV163: 0 | AW163: 0 | AX163: 0 | AY163: 0 | AZ163: 0 | BA163: 0 | BB163: 0 | BC163: 0 | BD163: 0 | BE163: 0 | BF163: 0 | BG163: 0 | BH163: 0 | BI163: 0 | BJ163: 0 | BK163: 0 | BL163: 0 | BM163: 0 | BN163: 0 | BO163: 0 | BP163: 0 | BQ163: 0 | BR163: 0 | BS163: 0 | BT163: 0 | BU163: 0 | BV163: 0 | BW163: 0 | BX163: 0 | BY163: 0 | BZ163: 0 | CA163: 0 | CB163: 0 | CC163: 0 | CD163: 0 | CE163: 0 | CF163: 0 | CG163: 0 | CH163: 0
A164: 8813 | B164: School Defined Revenue 3 | C164: 0 | D164: 0 | E164: 0 | F164: 0 | G164: 0 | H164: 0 | I164: 0 | J164: 0 | K164: 0 | L164: 0 | M164: 0 | N164: 0 | O164: 0 | P164: 0 | Q164: 0 | R164: 0 | S164: 0 | T164: 0 | U164: 0 | V164: 0 | W164: 0 | X164: 0 | Y164: 0 | Z164: 0 | AA164: 0 | AB164: 0 | AC164: 0 | AD164: 0 | AE164: 0 | AF164: 0 | AG164: 0 | AH164: 0 | AI164: 0 | AJ164: 0 | AK164: 0 | AL164: 0 | AM164: 0 | AN164: 0 | AO164: 0 | AP164: 0 | AQ164: 0 | AR164: 0 | AS164: 0 | AT164: 0 | AU164: 0 | AV164: 0 | AW164: 0 | AX164: 0 | AY164: 0 | AZ164: 0 | BA164: 0 | BB164: 0 | BC164: 0 | BD164: 0 | BE164: 0 | BF164: 0 | BG164: 0 | BH164: 0 | BI164: 0 | BJ164: 0 | BK164: 0 | BL164: 0 | BM164: 0 | BN164: 0 | BO164: 0 | BP164: 0 | BQ164: 0 | BR164: 0 | BS164: 0 | BT164: 0 | BU164: 0 | BV164: 0 | BW164: 0 | BX164: 0 | BY164: 0 | BZ164: 0 | CA164: 0 | CB164: 0 | CC164: 0 | CD164: 0 | CE164: 0 | CF164: 0 | CG164: 0 | CH164: 0
A165: 8814 | B165: School Defined Revenue 4 | C165: 0 | D165: 0 | E165: 0 | F165: 0 | G165: 0 | H165: 0 | I165: 0 | J165: 0 | K165: 0 | L165: 0 | M165: 0 | N165: 0 | O165: 0 | P165: 0 | Q165: 0 | R165: 0 | S165: 0 | T165: 0 | U165: 0 | V165: 0 | W165: 0 | X165: 0 | Y165: 0 | Z165: 0 | AA165: 0 | AB165: 0 | AC165: 0 | AD165: 0 | AE165: 0 | AF165: 0 | AG165: 0 | AH165: 0 | AI165: 0 | AJ165: 0 | AK165: 0 | AL165: 0 | AM165: 0 | AN165: 0 | AO165: 0 | AP165: 0 | AQ165: 0 | AR165: 0 | AS165: 0 | AT165: 0 | AU165: 0 | AV165: 0 | AW165: 0 | AX165: 0 | AY165: 0 | AZ165: 0 | BA165: 0 | BB165: 0 | BC165: 0 | BD165: 0 | BE165: 0 | BF165: 0 | BG165: 0 | BH165: 0 | BI165: 0 | BJ165: 0 | BK165: 0 | BL165: 0 | BM165: 0 | BN165: 0 | BO165: 0 | BP165: 0 | BQ165: 0 | BR165: 0 | BS165: 0 | BT165: 0 | BU165: 0 | BV165: 0 | BW165: 0 | BX165: 0 | BY165: 0 | BZ165: 0 | CA165: 0 | CB165: 0 | CC165: 0 | CD165: 0 | CE165: 0 | CF165: 0 | CG165: 0 | CH165: 0
A166: 8815 | B166: School Defined Revenue 5 | C166: 0 | D166: 0 | E166: 0 | F166: 0 | G166: 0 | H166: 0 | I166: 0 | J166: 0 | K166: 0 | L166: 0 | M166: 0 | N166: 0 | O166: 0 | P166: 0 | Q166: 0 | R166: 0 | S166: 0 | T166: 0 | U166: 0 | V166: 0 | W166: 0 | X166: 0 | Y166: 0 | Z166: 0 | AA166: 0 | AB166: 0 | AC166: 0 | AD166: 0 | AE166: 0 | AF166: 0 | AG166: 0 | AH166: 0 | AI166: 0 | AJ166: 0 | AK166: 0 | AL166: 0 | AM166: 0 | AN166: 0 | AO166: 0 | AP166: 0 | AQ166: 0 | AR166: 0 | AS166: 0 | AT166: 0 | AU166: 0 | AV166: 0 | AW166: 0 | AX166: 0 | AY166: 0 | AZ166: 0 | BA166: 0 | BB166: 0 | BC166: 0 | BD166: 0 | BE166: 0 | BF166: 0 | BG166: 0 | BH166: 0 | BI166: 0 | BJ166: 0 | BK166: 0 | BL166: 0 | BM166: 0 | BN166: 0 | BO166: 0 | BP166: 0 | BQ166: 0 | BR166: 0 | BS166: 0 | BT166: 0 | BU166: 0 | BV166: 0 | BW166: 0 | BX166: 0 | BY166: 0 | BZ166: 0 | CA166: 0 | CB166: 0 | CC166: 0 | CD166: 0 | CE166: 0 | CF166: 0 | CG166: 0 | CH166: 0
A167: 8816 | B167: School Defined Revenue 6 | C167: 0 | D167: 0 | E167: 0 | F167: 0 | G167: 0 | H167: 0 | I167: 0 | J167: 0 | K167: 0 | L167: 0 | M167: 0 | N167: 0 | O167: 0 | P167: 0 | Q167: 0 | R167: 0 | S167: 0 | T167: 0 | U167: 0 | V167: 0 | W167: 0 | X167: 0 | Y167: 0 | Z167: 0 | AA167: 0 | AB167: 0 | AC167: 0 | AD167: 0 | AE167: 0 | AF167: 0 | AG167: 0 | AH167: 0 | AI167: 0 | AJ167: 0 | AK167: 0 | AL167: 0 | AM167: 0 | AN167: 0 | AO167: 0 | AP167: 0 | AQ167: 0 | AR167: 0 | AS167: 0 | AT167: 0 | AU167: 0 | AV167: 0 | AW167: 0 | AX167: 0 | AY167: 0 | AZ167: 0 | BA167: 0 | BB167: 0 | BC167: 0 | BD167: 0 | BE167: 0 | BF167: 0 | BG167: 0 | BH167: 0 | BI167: 0 | BJ167: 0 | BK167: 0 | BL167: 0 | BM167: 0 | BN167: 0 | BO167: 0 | BP167: 0 | BQ167: 0 | BR167: 0 | BS167: 0 | BT167: 0 | BU167: 0 | BV167: 0 | BW167: 0 | BX167: 0 | BY167: 0 | BZ167: 0 | CA167: 0 | CB167: 0 | CC167: 0 | CD167: 0 | CE167: 0 | CF167: 0 | CG167: 0 | CH167: 0
A168: 8817 | B168: School Defined Revenue 7 | C168: 0 | D168: 0 | E168: 0 | F168: 0 | G168: 0 | H168: 0 | I168: 0 | J168: 0 | K168: 0 | L168: 0 | M168: 0 | N168: 0 | O168: 0 | P168: 0 | Q168: 0 | R168: 0 | S168: 0 | T168: 0 | U168: 0 | V168: 0 | W168: 0 | X168: 0 | Y168: 0 | Z168: 0 | AA168: 0 | AB168: 0 | AC168: 0 | AD168: 0 | AE168: 0 | AF168: 0 | AG168: 0 | AH168: 0 | AI168: 0 | AJ168: 0 | AK168: 0 | AL168: 0 | AM168: 0 | AN168: 0 | AO168: 0 | AP168: 0 | AQ168: 0 | AR168: 0 | AS168: 0 | AT168: 0 | AU168: 0 | AV168: 0 | AW168: 0 | AX168: 0 | AY168: 0 | AZ168: 0 | BA168: 0 | BB168: 0 | BC168: 0 | BD168: 0 | BE168: 0 | BF168: 0 | BG168: 0 | BH168: 0 | BI168: 0 | BJ168: 0 | BK168: 0 | BL168: 0 | BM168: 0 | BN168: 0 | BO168: 0 | BP168: 0 | BQ168: 0 | BR168: 0 | BS168: 0 | BT168: 0 | BU168: 0 | BV168: 0 | BW168: 0 | BX168: 0 | BY168: 0 | BZ168: 0 | CA168: 0 | CB168: 0 | CC168: 0 | CD168: 0 | CE168: 0 | CF168: 0 | CG168: 0 | CH168: 0
A169: 8818 | B169: School Defined Revenue 8 | C169: 0 | D169: 0 | E169: 0 | F169: 0 | G169: 0 | H169: 0 | I169: 0 | J169: 0 | K169: 0 | L169: 0 | M169: 0 | N169: 0 | O169: 0 | P169: 0 | Q169: 0 | R169: 0 | S169: 0 | T169: 0 | U169: 0 | V169: 0 | W169: 0 | X169: 0 | Y169: 0 | Z169: 0 | AA169: 0 | AB169: 0 | AC169: 0 | AD169: 0 | AE169: 0 | AF169: 0 | AG169: 0 | AH169: 0 | AI169: 0 | AJ169: 0 | AK169: 0 | AL169: 0 | AM169: 0 | AN169: 0 | AO169: 0 | AP169: 0 | AQ169: 0 | AR169: 0 | AS169: 0 | AT169: 0 | AU169: 0 | AV169: 0 | AW169: 0 | AX169: 0 | AY169: 0 | AZ169: 0 | BA169: 0 | BB169: 0 | BC169: 0 | BD169: 0 | BE169: 0 | BF169: 0 | BG169: 0 | BH169: 0 | BI169: 0 | BJ169: 0 | BK169: 0 | BL169: 0 | BM169: 0 | BN169: 0 | BO169: 0 | BP169: 0 | BQ169: 0 | BR169: 0 | BS169: 0 | BT169: 0 | BU169: 0 | BV169: 0 | BW169: 0 | BX169: 0 | BY169: 0 | BZ169: 0 | CA169: 0 | CB169: 0 | CC169: 0 | CD169: 0 | CE169: 0 | CF169: 0 | CG169: 0 | CH169: 0
A170: 8819 | B170: School Defined Revenue 9 | C170: 0 | D170: 0 | E170: 0 | F170: 0 | G170: 0 | H170: 0 | I170: 0 | J170: 0 | K170: 0 | L170: 0 | M170: 0 | N170: 0 | O170: 0 | P170: 0 | Q170: 0 | R170: 0 | S170: 0 | T170: 0 | U170: 0 | V170: 0 | W170: 0 | X170: 0 | Y170: 0 | Z170: 0 | AA170: 0 | AB170: 0 | AC170: 0 | AD170: 0 | AE170: 0 | AF170: 0 | AG170: 0 | AH170: 0 | AI170: 0 | AJ170: 0 | AK170: 0 | AL170: 0 | AM170: 0 | AN170: 0 | AO170: 0 | AP170: 0 | AQ170: 0 | AR170: 0 | AS170: 0 | AT170: 0 | AU170: 0 | AV170: 0 | AW170: 0 | AX170: 0 | AY170: 0 | AZ170: 0 | BA170: 0 | BB170: 0 | BC170: 0 | BD170: 0 | BE170: 0 | BF170: 0 | BG170: 0 | BH170: 0 | BI170: 0 | BJ170: 0 | BK170: 0 | BL170: 0 | BM170: 0 | BN170: 0 | BO170: 0 | BP170: 0 | BQ170: 0 | BR170: 0 | BS170: 0 | BT170: 0 | BU170: 0 | BV170: 0 | BW170: 0 | BX170: 0 | BY170: 0 | BZ170: 0 | CA170: 0 | CB170: 0 | CC170: 0 | CD170: 0 | CE170: 0 | CF170: 0 | CG170: 0 | CH170: 0
A171: 8850 | B171: Donations - temporarily restricted | C171: 0 | D171: 0 | E171: 0 | F171: 0 | G171: 0 | H171: 0 | I171: 0 | J171: 0 | K171: 0 | L171: 0 | M171: 0 | N171: 0 | O171: 0 | P171: 0 | Q171: 0 | R171: 0 | S171: 0 | T171: 0 | U171: 0 | V171: 0 | W171: 0 | X171: 0 | Y171: 0 | Z171: 0 | AA171: 0 | AB171: 0 | AC171: 0 | AD171: 0 | AE171: 0 | AF171: 0 | AG171: 0 | AH171: 0 | AI171: 0 | AJ171: 0 | AK171: 0 | AL171: 0 | AM171: 0 | AN171: 0 | AO171: 0 | AP171: 0 | AQ171: 0 | AR171: 0 | AS171: 0 | AT171: 0 | AU171: 0 | AV171: 0 | AW171: 0 | AX171: 0 | AY171: 0 | AZ171: 0 | BA171: 0 | BB171: 0 | BC171: 0 | BD171: 0 | BE171: 0 | BF171: 0 | BG171: 0 | BH171: 0 | BI171: 0 | BJ171: 0 | BK171: 0 | BL171: 0 | BM171: 0 | BN171: 0 | BO171: 0 | BP171: 0 | BQ171: 0 | BR171: 0 | BS171: 0 | BT171: 0 | BU171: 0 | BV171: 0 | BW171: 0 | BX171: 0 | BY171: 0 | BZ171: 0 | CA171: 0 | CB171: 0 | CC171: 0 | CD171: 0 | CE171: 0 | CF171: 0 | CG171: 0 | CH171: 0
B173: Fundraising & Grants | C173: =SUM(C156:C172) -> 1527.2 | D173: 11074.12 | E173: 3047.36 | F173: 5375 | G173: 2657.05 | H173: 0 | I173: 18958.1 | J173: 0 | K173: 8857.34 | L173: 2617.38 | M173: 18386.45 | N173: 4583.333333 | O173: 80000 | P173: =O173-SUM(C173:N173) -> 2916.666667 | Q173: =SUM(Q156:Q172) -> 5833.333333 | R173: 6666.666667 | S173: 6666.666667 | T173: 6666.666667 | U173: 6666.666667 | V173: 6666.666667 | W173: 6666.666667 | X173: 6666.666667 | Y173: 6666.666667 | Z173: 6666.666667 | AA173: 6666.666667 | AB173: 4583.333333 | AC173: 80000 | AD173: =AC173-SUM(Q173:AB173) -> 2916.666667 | AE173: =SUM(AE156:AE172) -> 5833.333333 | AF173: 6666.666667 | AG173: 6666.666667 | AH173: 6666.666667 | AI173: 6666.666667 | AJ173: 6666.666667 | AK173: 6666.666667 | AL173: 6666.666667 | AM173: 6666.666667 | AN173: 6666.666667 | AO173: 6666.666667 | AP173: 4583.333333 | AQ173: 80000 | AR173: =AQ173-SUM(AE173:AP173) -> 2916.666667 | AS173: =SUM(AS156:AS172) -> 5833.333333 | AT173: 6666.666667 | AU173: 6666.666667 | AV173: 6666.666667 | AW173: 6666.666667 | AX173: 6666.666667 | AY173: 6666.666667 | AZ173: 6666.666667 | BA173: 6666.666667 | BB173: 6666.666667 | BC173: 6666.666667 | BD173: 4583.333333 | BE173: 80000 | BF173: =BE173-SUM(AS173:BD173) -> 2916.666667 | BG173: =SUM(BG156:BG172) -> 5833.333333 | BH173: 6666.666667 | BI173: 6666.666667 | BJ173: 6666.666667 | BK173: 6666.666667 | BL173: 6666.666667 | BM173: 6666.666667 | BN173: 6666.666667 | BO173: 6666.666667 | BP173: 6666.666667 | BQ173: 6666.666667 | BR173: 4583.333333 | BS173: 80000 | BT173: =BS173-SUM(BG173:BR173) -> 2916.666667 | BU173: =SUM(BU156:BU172) -> 5833.333333 | BV173: 6666.666667 | BW173: 6666.666667 | BX173: 6666.666667 | BY173: 6666.666667 | BZ173: 6666.666667 | CA173: 6666.666667 | CB173: 6666.666667 | CC173: 6666.666667 | CD173: 6666.666667 | CE173: 6666.666667 | CF173: 4583.333333 | CG173: 80000 | CH173: =CG173-SUM(BU173:CF173) -> 2916.666667
B175: TOTAL REVENUE | C175: =SUM(C173,C153,C70,C43,C24) -> 22205.24 | D175: 234059.17 | E175: 570288.85 | F175: 571794.54 | G175: 561615.03 | H175: 563493.44 | I175: 705407.78 | J175: 390436.49 | K175: 1051043.71 | L175: 1254463.18 | M175: 591322.1904 | N175: 736050.3285 | O175: 8309743.453 | P175: =O175-SUM(C175:N175) -> 1057563.504 | Q175: =SUM(Q173,Q153,Q70,Q43,Q24) -> 60844.91667 | R175: 278534.9794 | S175: 723887.2827 | T175: 675220.0097 | U175: 673562.0097 | V175: 683751.1708 | W175: 681886.6764 | X175: 527746.8712 | Y175: 1229477.495 | Z175: 753792.4499 | AA175: 899866.0668 | AB175: 878658.3661 | AC175: 8853368.225 | AD175: =AC175-SUM(Q175:AB175) -> 786139.9306 | AE175: =SUM(AE173,AE153,AE70,AE43,AE24) -> 16612.08333 | AF175: 253043.7772 | AG175: 714483.9075 | AH175: 672679.5869 | AI175: 670221.5869 | AJ175: 682296.4844 | AK175: 672679.5869 | AL175: 511647.3154 | AM175: 1257917.535 | AN175: 765008.6227 | AO175: 915306.588 | AP175: 881192.5152 | AQ175: 9096135.995 | AR175: =AQ175-SUM(AE175:AP175) -> 1083046.405 | AS175: =SUM(AS173,AS153,AS70,AS43,AS24) -> 12267.91667 | AT175: 268922.9029 | AU175: 730518.0732 | AV175: 705889.8865 | AW175: 702434.3865 | AX175: 717228.9165 | AY175: 705889.8865 | AZ175: 545094.7058 | BA175: 1258446.687 | BB175: 760560.3529 | BC175: 914866.7281 | BD175: 879120.8659 | BE175: 9324747.654 | BF175: =BE175-SUM(AS175:BD175) -> 1123506.345 | BG175: =SUM(BG173,BG153,BG70,BG43,BG24) -> 12267.91667 | BH175: 280254.6529 | BI175: 742007.964 | BJ175: 726445.1773 | BK175: 722989.6773 | BL175: 738505.1623 | BM175: 726445.1773 | BN175: 565649.9966 | BO175: 1281876.193 | BP175: 781115.6437 | BQ175: 936821.5559 | BR175: 900809.8835 | BS175: 9552751.155 | BT175: =BS175-SUM(BG175:BR175) -> 1137562.155 | BU175: =SUM(BU173,BU153,BU70,BU43,BU24) -> 12267.91667 | BV175: 288295.7303 | BW175: 750210.345 | BX175: 741080.4202 | BY175: 737624.9202 | BZ175: 753140.4052 | CA175: 741080.4202 | CB175: 580285.2395 | CC175: 1264347.127 | CD175: 763586.5771 | CE175: 919292.4893 | CF175: 883280.8168 | CG175: 9753170.627 | CH175: =CG175-SUM(BU175:CF175) -> 1318678.22
A177: EXPENSES
A179: Certificated Salaries
A181: 1000 | B181: Certificated Salaries | C181: 0 | D181: 0 | E181: 0 | F181: 0 | G181: 0 | H181: 0 | I181: 0 | J181: 0 | K181: 0 | L181: 0 | M181: 0 | N181: 0
A182: 1100 | B182: Teachers Salaries | C182: 50401.35 | D182: 198509.84 | E182: 190362.57 | F182: 194042.58 | G182: 188320.98 | H182: 205718.51 | I182: 184730.52 | J182: 186857.19 | K182: 183889.6 | L182: 181938.49 | M182: 114359.2065 | N182: 164359.2065 | O182: 2043490.043 | Q182: 189473.5642 | R182: 248882.6551 | S182: 191382.6551 | T182: 191382.6551 | U182: 191382.6551 | V182: 259382.6551 | W182: 184649.3217 | X182: 184649.3217 | Y182: 184649.3217 | Z182: 184649.3217 | AA182: 184649.3217 | AB182: 237149.3217 | AC182: 2593737.18 | AE182: 195157.7711 | AF182: 197124.1347 | AG182: 197124.1347 | AH182: 197124.1347 | AI182: 197124.1347 | AJ182: 207939.1347 | AK182: 190188.8014 | AL182: 190188.8014 | AM182: 190188.8014 | AN182: 190188.8014 | AO182: 190188.8014 | AP182: 244263.8014 | AQ182: 2568549.295 | AS182: 201012.5042 | AT182: 203037.8588 | AU182: 203037.8588 | AV182: 203037.8588 | AW182: 203037.8588 | AX182: 214177.3088 | AY182: 195894.4654 | AZ182: 195894.4654 | BA182: 195894.4654 | BB182: 195894.4654 | BC182: 195894.4654 | BD182: 251591.7154 | BE182: 2645605.774 | BG182: 207042.8794 | BH182: 209128.9945 | BI182: 209128.9945 | BJ182: 209128.9945 | BK182: 209128.9945 | BL182: 220602.628 | BM182: 201771.2994 | BN182: 201771.2994 | BO182: 201771.2994 | BP182: 201771.2994 | BQ182: 201771.2994 | BR182: 259139.4669 | BS182: 2724973.947 | BU182: 213254.1657 | BV182: 215402.8644 | BW182: 215402.8644 | BX182: 215402.8644 | BY182: 215402.8644 | BZ182: 227220.7069 | CA182: 207824.4384 | CB182: 207824.4384 | CC182: 207824.4384 | CD182: 207824.4384 | CE182: 207824.4384 | CF182: 266913.6509 | CG182: 2806723.166
A183: 1101 | B183: Teacher - Stipends | C183: 0 | D183: 0 | E183: 0 | F183: 0 | G183: 0 | H183: 0 | I183: 0 | J183: 0 | K183: 0 | L183: 0 | M183: 0 | N183: 0 | O183: 0 | Q183: 0 | R183: 0 | S183: 0 | T183: 0 | U183: 0 | V183: 0 | W183: 0 | X183: 0 | Y183: 0 | Z183: 0 | AA183: 0 | AB183: 0 | AC183: 0 | AE183: 0 | AF183: 0 | AG183: 0 | AH183: 0 | AI183: 0 | AJ183: 0 | AK183: 0 | AL183: 0 | AM183: 0 | AN183: 0 | AO183: 0 | AP183: 0 | AQ183: 0 | AS183: 0 | AT183: 0 | AU183: 0 | AV183: 0 | AW183: 0 | AX183: 0 | AY183: 0 | AZ183: 0 | BA183: 0 | BB183: 0 | BC183: 0 | BD183: 0 | BE183: 0 | BG183: 0 | BH183: 0 | BI183: 0 | BJ183: 0 | BK183: 0 | BL183: 0 | BM183: 0 | BN183: 0 | BO183: 0 | BP183: 0 | BQ183: 0 | BR183: 0 | BS183: 0 | BU183: 0 | BV183: 0 | BW183: 0 | BX183: 0 | BY183: 0 | BZ183: 0 | CA183: 0 | CB183: 0 | CC183: 0 | CD183: 0 | CE183: 0 | CF183: 0 | CG183: 0
A184: 1102 | B184: Teachers - Extra Duty Hours | C184: 0 | D184: 0 | E184: 0 | F184: 0 | G184: 0 | H184: 0 | I184: 0 | J184: 0 | K184: 0 | L184: 0 | M184: 0 | N184: 0 | O184: 0 | Q184: 0 | R184: 0 | S184: 0 | T184: 0 | U184: 0 | V184: 0 | W184: 0 | X184: 0 | Y184: 0 | Z184: 0 | AA184: 0 | AB184: 0 | AC184: 0 | AE184: 0 | AF184: 0 | AG184: 0 | AH184: 0 | AI184: 0 | AJ184: 0 | AK184: 0 | AL184: 0 | AM184: 0 | AN184: 0 | AO184: 0 | AP184: 0 | AQ184: 0 | AS184: 0 | AT184: 0 | AU184: 0 | AV184: 0 | AW184: 0 | AX184: 0 | AY184: 0 | AZ184: 0 | BA184: 0 | BB184: 0 | BC184: 0 | BD184: 0 | BE184: 0 | BG184: 0 | BH184: 0 | BI184: 0 | BJ184: 0 | BK184: 0 | BL184: 0 | BM184: 0 | BN184: 0 | BO184: 0 | BP184: 0 | BQ184: 0 | BR184: 0 | BS184: 0 | BU184: 0 | BV184: 0 | BW184: 0 | BX184: 0 | BY184: 0 | BZ184: 0 | CA184: 0 | CB184: 0 | CC184: 0 | CD184: 0 | CE184: 0 | CF184: 0 | CG184: 0
A185: 1103 | B185: Teacher - Substitute Pay | C185: 0 | D185: 5168 | E185: 10922.04 | F185: 12202.55 | G185: 10743.89 | H185: 27839.19 | I185: 15785.72 | J185: 11731.44 | K185: 15637 | L185: 14825.13 | M185: 6227.536129 | N185: 6227.536129 | O185: 137310.0323 | Q185: 9660 | R185: 9660 | S185: 9660 | T185: 9660 | U185: 9660 | V185: 9660 | W185: 9660 | X185: 9660 | Y185: 9660 | Z185: 9660 | AA185: 9660 | AB185: 9660 | AC185: 115920 | AE185: 9949.8 | AF185: 9949.8 | AG185: 9949.8 | AH185: 9949.8 | AI185: 9949.8 | AJ185: 9949.8 | AK185: 9949.8 | AL185: 9949.8 | AM185: 9949.8 | AN185: 9949.8 | AO185: 9949.8 | AP185: 9949.8 | AQ185: 119397.6 | AS185: 10248.294 | AT185: 10248.294 | AU185: 10248.294 | AV185: 10248.294 | AW185: 10248.294 | AX185: 10248.294 | AY185: 10248.294 | AZ185: 10248.294 | BA185: 10248.294 | BB185: 10248.294 | BC185: 10248.294 | BD185: 10248.294 | BE185: 122979.528 | BG185: 10555.74282 | BH185: 10555.74282 | BI185: 10555.74282 | BJ185: 10555.74282 | BK185: 10555.74282 | BL185: 10555.74282 | BM185: 10555.74282 | BN185: 10555.74282 | BO185: 10555.74282 | BP185: 10555.74282 | BQ185: 10555.74282 | BR185: 10555.74282 | BS185: 126668.9138 | BU185: 10872.4151 | BV185: 10872.4151 | BW185: 10872.4151 | BX185: 10872.4151 | BY185: 10872.4151 | BZ185: 10872.4151 | CA185: 10872.4151 | CB185: 10872.4151 | CC185: 10872.4151 | CD185: 10872.4151 | CE185: 10872.4151 | CF185: 10872.4151 | CG185: 130468.9813
A186: 1111 | B186: Teacher - Elective | C186: 0 | D186: 0 | E186: 0 | F186: 0 | G186: 0 | H186: 0 | I186: 0 | J186: 0 | K186: 0 | L186: 0 | M186: 0 | N186: 0 | O186: 0 | Q186: 0 | R186: 0 | S186: 0 | T186: 0 | U186: 0 | V186: 0 | W186: 0 | X186: 0 | Y186: 0 | Z186: 0 | AA186: 0 | AB186: 0 | AC186: 0 | AE186: 0 | AF186: 0 | AG186: 0 | AH186: 0 | AI186: 0 | AJ186: 0 | AK186: 0 | AL186: 0 | AM186: 0 | AN186: 0 | AO186: 0 | AP186: 0 | AQ186: 0 | AS186: 0 | AT186: 0 | AU186: 0 | AV186: 0 | AW186: 0 | AX186: 0 | AY186: 0 | AZ186: 0 | BA186: 0 | BB186: 0 | BC186: 0 | BD186: 0 | BE186: 0 | BG186: 0 | BH186: 0 | BI186: 0 | BJ186: 0 | BK186: 0 | BL186: 0 | BM186: 0 | BN186: 0 | BO186: 0 | BP186: 0 | BQ186: 0 | BR186: 0 | BS186: 0 | BU186: 0 | BV186: 0 | BW186: 0 | BX186: 0 | BY186: 0 | BZ186: 0 | CA186: 0 | CB186: 0 | CC186: 0 | CD186: 0 | CE186: 0 | CF186: 0 | CG186: 0
A187: 1145 | B187: Teacher - Independent Study | C187: 0 | D187: 0 | E187: 0 | F187: 0 | G187: 0 | H187: 0 | I187: 0 | J187: 0 | K187: 0 | L187: 0 | M187: 0 | N187: 0 | O187: 0 | Q187: 0 | R187: 0 | S187: 0 | T187: 0 | U187: 0 | V187: 0 | W187: 0 | X187: 0 | Y187: 0 | Z187: 0 | AA187: 0 | AB187: 0 | AC187: 0 | AE187: 0 | AF187: 0 | AG187: 0 | AH187: 0 | AI187: 0 | AJ187: 0 | AK187: 0 | AL187: 0 | AM187: 0 | AN187: 0 | AO187: 0 | AP187: 0 | AQ187: 0 | AS187: 0 | AT187: 0 | AU187: 0 | AV187: 0 | AW187: 0 | AX187: 0 | AY187: 0 | AZ187: 0 | BA187: 0 | BB187: 0 | BC187: 0 | BD187: 0 | BE187: 0 | BG187: 0 | BH187: 0 | BI187: 0 | BJ187: 0 | BK187: 0 | BL187: 0 | BM187: 0 | BN187: 0 | BO187: 0 | BP187: 0 | BQ187: 0 | BR187: 0 | BS187: 0 | BU187: 0 | BV187: 0 | BW187: 0 | BX187: 0 | BY187: 0 | BZ187: 0 | CA187: 0 | CB187: 0 | CC187: 0 | CD187: 0 | CE187: 0 | CF187: 0 | CG187: 0
A188: 1148 | B188: Teacher - Special Ed | C188: 5472.83 | D188: 27194.01 | E188: 25755.98 | F188: 26283.59 | G188: 26585.71 | H188: 27466.81 | I188: 26679.16 | J188: 26768.16 | K188: 26394.36 | L188: 26763.71 | M188: 12419.74 | N188: 12419.74 | O188: 270203.8 | Q188: 0 | R188: 25879.15691 | S188: 25879.15691 | T188: 25879.15691 | U188: 25879.15691 | V188: 25879.15691 | W188: 25879.15691 | X188: 25879.15691 | Y188: 25879.15691 | Z188: 25879.15691 | AA188: 25879.15691 | AB188: 25879.15691 | AC188: 317413.1 | AE188: 0 | AF188: 26655.53162 | AG188: 26655.53162 | AH188: 26655.53162 | AI188: 26655.53162 | AJ188: 26655.53162 | AK188: 26655.53162 | AL188: 26655.53162 | AM188: 26655.53162 | AN188: 26655.53162 | AO188: 26655.53162 | AP188: 26655.53162 | AQ188: 326935.493 | AS188: 0 | AT188: 27455.19756 | AU188: 27455.19756 | AV188: 27455.19756 | AW188: 27455.19756 | AX188: 27455.19756 | AY188: 27455.19756 | AZ188: 27455.19756 | BA188: 27455.19756 | BB188: 27455.19756 | BC188: 27455.19756 | BD188: 27455.19756 | BE188: 336743.5578 | BG188: 0 | BH188: 28278.85349 | BI188: 28278.85349 | BJ188: 28278.85349 | BK188: 28278.85349 | BL188: 28278.85349 | BM188: 28278.85349 | BN188: 28278.85349 | BO188: 28278.85349 | BP188: 28278.85349 | BQ188: 28278.85349 | BR188: 28278.85349 | BS188: 346845.8645 | BU188: 0 | BV188: 29127.2191 | BW188: 29127.2191 | BX188: 29127.2191 | BY188: 29127.2191 | BZ188: 29127.2191 | CA188: 29127.2191 | CB188: 29127.2191 | CC188: 29127.2191 | CD188: 29127.2191 | CE188: 29127.2191 | CF188: 29127.2191 | CG188: 357251.2405
A189: 1150 | B189: Teacher - Custom 1 | C189: 0 | D189: 0 | E189: 0 | F189: 0 | G189: 0 | H189: 0 | I189: 0 | J189: 0 | K189: 0 | L189: 0 | M189: 0 | N189: 0 | O189: 0 | Q189: 0 | R189: 0 | S189: 0 | T189: 0 | U189: 0 | V189: 0 | W189: 0 | X189: 0 | Y189: 0 | Z189: 0 | AA189: 0 | AB189: 0 | AC189: 0 | AE189: 0 | AF189: 0 | AG189: 0 | AH189: 0 | AI189: 0 | AJ189: 0 | AK189: 0 | AL189: 0 | AM189: 0 | AN189: 0 | AO189: 0 | AP189: 0 | AQ189: 0 | AS189: 0 | AT189: 0 | AU189: 0 | AV189: 0 | AW189: 0 | AX189: 0 | AY189: 0 | AZ189: 0 | BA189: 0 | BB189: 0 | BC189: 0 | BD189: 0 | BE189: 0 | BG189: 0 | BH189: 0 | BI189: 0 | BJ189: 0 | BK189: 0 | BL189: 0 | BM189: 0 | BN189: 0 | BO189: 0 | BP189: 0 | BQ189: 0 | BR189: 0 | BS189: 0 | BU189: 0 | BV189: 0 | BW189: 0 | BX189: 0 | BY189: 0 | BZ189: 0 | CA189: 0 | CB189: 0 | CC189: 0 | CD189: 0 | CE189: 0 | CF189: 0 | CG189: 0
A190: 1155 | B190: Teacher - Custom 1.5 | C190: 0 | D190: 0 | E190: 0 | F190: 0 | G190: 0 | H190: 0 | I190: 0 | J190: 0 | K190: 0 | L190: 0 | M190: 0 | N190: 0 | O190: 0 | Q190: 0 | R190: 0 | S190: 0 | T190: 0 | U190: 0 | V190: 0 | W190: 0 | X190: 0 | Y190: 0 | Z190: 0 | AA190: 0 | AB190: 0 | AC190: 0 | AE190: 0 | AF190: 0 | AG190: 0 | AH190: 0 | AI190: 0 | AJ190: 0 | AK190: 0 | AL190: 0 | AM190: 0 | AN190: 0 | AO190: 0 | AP190: 0 | AQ190: 0 | AS190: 0 | AT190: 0 | AU190: 0 | AV190: 0 | AW190: 0 | AX190: 0 | AY190: 0 | AZ190: 0 | BA190: 0 | BB190: 0 | BC190: 0 | BD190: 0 | BE190: 0 | BG190: 0 | BH190: 0 | BI190: 0 | BJ190: 0 | BK190: 0 | BL190: 0 | BM190: 0 | BN190: 0 | BO190: 0 | BP190: 0 | BQ190: 0 | BR190: 0 | BS190: 0 | BU190: 0 | BV190: 0 | BW190: 0 | BX190: 0 | BY190: 0 | BZ190: 0 | CA190: 0 | CB190: 0 | CC190: 0 | CD190: 0 | CE190: 0 | CF190: 0 | CG190: 0
A191: 1160 | B191: Counselor | C191: 0 | D191: 16478.53 | E191: 17324.26 | F191: 17009.2 | G191: 17009.2 | H191: 17009.2 | I191: 17009.2 | J191: 17009.2 | K191: 17009.2 | L191: 17009.2 | M191: 12864.405 | N191: 12864.405 | O191: 178596 | Q191: 15756.115 | R191: 15756.115 | S191: 15756.115 | T191: 15756.115 | U191: 15756.115 | V191: 15756.115 | W191: 15756.115 | X191: 15756.115 | Y191: 15756.115 | Z191: 15756.115 | AA191: 15756.115 | AB191: 15756.115 | AC191: 189073.38 | AE191: 16228.79845 | AF191: 16228.79845 | AG191: 16228.79845 | AH191: 16228.79845 | AI191: 16228.79845 | AJ191: 16228.79845 | AK191: 16228.79845 | AL191: 16228.79845 | AM191: 16228.79845 | AN191: 16228.79845 | AO191: 16228.79845 | AP191: 16228.79845 | AQ191: 194745.5814 | AS191: 16715.6624 | AT191: 16715.6624 | AU191: 16715.6624 | AV191: 16715.6624 | AW191: 16715.6624 | AX191: 16715.6624 | AY191: 16715.6624 | AZ191: 16715.6624 | BA191: 16715.6624 | BB191: 16715.6624 | BC191: 16715.6624 | BD191: 16715.6624 | BE191: 200587.9488 | BG191: 17217.13228 | BH191: 17217.13228 | BI191: 17217.13228 | BJ191: 17217.13228 | BK191: 17217.13228 | BL191: 17217.13228 | BM191: 17217.13228 | BN191: 17217.13228 | BO191: 17217.13228 | BP191: 17217.13228 | BQ191: 17217.13228 | BR191: 17217.13228 | BS191: 206605.5873 | BU191: 17733.64624 | BV191: 17733.64624 | BW191: 17733.64624 | BX191: 17733.64624 | BY191: 17733.64624 | BZ191: 17733.64624 | CA191: 17733.64624 | CB191: 17733.64624 | CC191: 17733.64624 | CD191: 17733.64624 | CE191: 17733.64624 | CF191: 17733.64624 | CG191: 212803.7549
A192: 1165 | B192: Teacher - Custom 2.5 | C192: 0 | D192: 0 | E192: 0 | F192: 0 | G192: 0 | H192: 0 | I192: 0 | J192: 0 | K192: 0 | L192: 0 | M192: 0 | N192: 0 | O192: 0 | Q192: 0 | R192: 0 | S192: 0 | T192: 0 | U192: 0 | V192: 0 | W192: 0 | X192: 0 | Y192: 0 | Z192: 0 | AA192: 0 | AB192: 0 | AC192: 0 | AE192: 0 | AF192: 0 | AG192: 0 | AH192: 0 | AI192: 0 | AJ192: 0 | AK192: 0 | AL192: 0 | AM192: 0 | AN192: 0 | AO192: 0 | AP192: 0 | AQ192: 0 | AS192: 0 | AT192: 0 | AU192: 0 | AV192: 0 | AW192: 0 | AX192: 0 | AY192: 0 | AZ192: 0 | BA192: 0 | BB192: 0 | BC192: 0 | BD192: 0 | BE192: 0 | BG192: 0 | BH192: 0 | BI192: 0 | BJ192: 0 | BK192: 0 | BL192: 0 | BM192: 0 | BN192: 0 | BO192: 0 | BP192: 0 | BQ192: 0 | BR192: 0 | BS192: 0 | BU192: 0 | BV192: 0 | BW192: 0 | BX192: 0 | BY192: 0 | BZ192: 0 | CA192: 0 | CB192: 0 | CC192: 0 | CD192: 0 | CE192: 0 | CF192: 0 | CG192: 0
A193: 1170 | B193: Teacher - Custom 3 | C193: 0 | D193: 0 | E193: 0 | F193: 0 | G193: 0 | H193: 0 | I193: 0 | J193: 0 | K193: 0 | L193: 0 | M193: 0 | N193: 0 | O193: 0 | Q193: 0 | R193: 0 | S193: 0 | T193: 0 | U193: 0 | V193: 0 | W193: 0 | X193: 0 | Y193: 0 | Z193: 0 | AA193: 0 | AB193: 0 | AC193: 0 | AE193: 0 | AF193: 0 | AG193: 0 | AH193: 0 | AI193: 0 | AJ193: 0 | AK193: 0 | AL193: 0 | AM193: 0 | AN193: 0 | AO193: 0 | AP193: 0 | AQ193: 0 | AS193: 0 | AT193: 0 | AU193: 0 | AV193: 0 | AW193: 0 | AX193: 0 | AY193: 0 | AZ193: 0 | BA193: 0 | BB193: 0 | BC193: 0 | BD193: 0 | BE193: 0 | BG193: 0 | BH193: 0 | BI193: 0 | BJ193: 0 | BK193: 0 | BL193: 0 | BM193: 0 | BN193: 0 | BO193: 0 | BP193: 0 | BQ193: 0 | BR193: 0 | BS193: 0 | BU193: 0 | BV193: 0 | BW193: 0 | BX193: 0 | BY193: 0 | BZ193: 0 | CA193: 0 | CB193: 0 | CC193: 0 | CD193: 0 | CE193: 0 | CF193: 0 | CG193: 0
A194: 1175 | B194: Teacher - Custom 3.5 | C194: 0 | D194: 0 | E194: 0 | F194: 0 | G194: 0 | H194: 0 | I194: 0 | J194: 0 | K194: 0 | L194: 0 | M194: 0 | N194: 0 | O194: 0 | Q194: 0 | R194: 0 | S194: 0 | T194: 0 | U194: 0 | V194: 0 | W194: 0 | X194: 0 | Y194: 0 | Z194: 0 | AA194: 0 | AB194: 0 | AC194: 0 | AE194: 0 | AF194: 0 | AG194: 0 | AH194: 0 | AI194: 0 | AJ194: 0 | AK194: 0 | AL194: 0 | AM194: 0 | AN194: 0 | AO194: 0 | AP194: 0 | AQ194: 0 | AS194: 0 | AT194: 0 | AU194: 0 | AV194: 0 | AW194: 0 | AX194: 0 | AY194: 0 | AZ194: 0 | BA194: 0 | BB194: 0 | BC194: 0 | BD194: 0 | BE194: 0 | BG194: 0 | BH194: 0 | BI194: 0 | BJ194: 0 | BK194: 0 | BL194: 0 | BM194: 0 | BN194: 0 | BO194: 0 | BP194: 0 | BQ194: 0 | BR194: 0 | BS194: 0 | BU194: 0 | BV194: 0 | BW194: 0 | BX194: 0 | BY194: 0 | BZ194: 0 | CA194: 0 | CB194: 0 | CC194: 0 | CD194: 0 | CE194: 0 | CF194: 0 | CG194: 0
A195: 1180 | B195: Teacher - Custom 4 | C195: 0 | D195: 0 | E195: 0 | F195: 0 | G195: 0 | H195: 0 | I195: 0 | J195: 0 | K195: 0 | L195: 0 | M195: 0 | N195: 0 | O195: 0 | Q195: 0 | R195: 0 | S195: 0 | T195: 0 | U195: 0 | V195: 0 | W195: 0 | X195: 0 | Y195: 0 | Z195: 0 | AA195: 0 | AB195: 0 | AC195: 0 | AE195: 0 | AF195: 0 | AG195: 0 | AH195: 0 | AI195: 0 | AJ195: 0 | AK195: 0 | AL195: 0 | AM195: 0 | AN195: 0 | AO195: 0 | AP195: 0 | AQ195: 0 | AS195: 0 | AT195: 0 | AU195: 0 | AV195: 0 | AW195: 0 | AX195: 0 | AY195: 0 | AZ195: 0 | BA195: 0 | BB195: 0 | BC195: 0 | BD195: 0 | BE195: 0 | BG195: 0 | BH195: 0 | BI195: 0 | BJ195: 0 | BK195: 0 | BL195: 0 | BM195: 0 | BN195: 0 | BO195: 0 | BP195: 0 | BQ195: 0 | BR195: 0 | BS195: 0 | BU195: 0 | BV195: 0 | BW195: 0 | BX195: 0 | BY195: 0 | BZ195: 0 | CA195: 0 | CB195: 0 | CC195: 0 | CD195: 0 | CE195: 0 | CF195: 0 | CG195: 0
A196: 1185 | B196: Teacher - Custom 4.5 | C196: 0 | D196: 0 | E196: 0 | F196: 0 | G196: 0 | H196: 0 | I196: 0 | J196: 0 | K196: 0 | L196: 0 | M196: 0 | N196: 0 | O196: 0 | Q196: 0 | R196: 0 | S196: 0 | T196: 0 | U196: 0 | V196: 0 | W196: 0 | X196: 0 | Y196: 0 | Z196: 0 | AA196: 0 | AB196: 0 | AC196: 0 | AE196: 0 | AF196: 0 | AG196: 0 | AH196: 0 | AI196: 0 | AJ196: 0 | AK196: 0 | AL196: 0 | AM196: 0 | AN196: 0 | AO196: 0 | AP196: 0 | AQ196: 0 | AS196: 0 | AT196: 0 | AU196: 0 | AV196: 0 | AW196: 0 | AX196: 0 | AY196: 0 | AZ196: 0 | BA196: 0 | BB196: 0 | BC196: 0 | BD196: 0 | BE196: 0 | BG196: 0 | BH196: 0 | BI196: 0 | BJ196: 0 | BK196: 0 | BL196: 0 | BM196: 0 | BN196: 0 | BO196: 0 | BP196: 0 | BQ196: 0 | BR196: 0 | BS196: 0 | BU196: 0 | BV196: 0 | BW196: 0 | BX196: 0 | BY196: 0 | BZ196: 0 | CA196: 0 | CB196: 0 | CC196: 0 | CD196: 0 | CE196: 0 | CF196: 0 | CG196: 0
A197: 1190 | B197: Teacher - Custom 5 | C197: 0 | D197: 0 | E197: 0 | F197: 0 | G197: 0 | H197: 0 | I197: 0 | J197: 0 | K197: 0 | L197: 0 | M197: 0 | N197: 0 | O197: 0 | Q197: 0 | R197: 0 | S197: 0 | T197: 0 | U197: 0 | V197: 0 | W197: 0 | X197: 0 | Y197: 0 | Z197: 0 | AA197: 0 | AB197: 0 | AC197: 0 | AE197: 0 | AF197: 0 | AG197: 0 | AH197: 0 | AI197: 0 | AJ197: 0 | AK197: 0 | AL197: 0 | AM197: 0 | AN197: 0 | AO197: 0 | AP197: 0 | AQ197: 0 | AS197: 0 | AT197: 0 | AU197: 0 | AV197: 0 | AW197: 0 | AX197: 0 | AY197: 0 | AZ197: 0 | BA197: 0 | BB197: 0 | BC197: 0 | BD197: 0 | BE197: 0 | BG197: 0 | BH197: 0 | BI197: 0 | BJ197: 0 | BK197: 0 | BL197: 0 | BM197: 0 | BN197: 0 | BO197: 0 | BP197: 0 | BQ197: 0 | BR197: 0 | BS197: 0 | BU197: 0 | BV197: 0 | BW197: 0 | BX197: 0 | BY197: 0 | BZ197: 0 | CA197: 0 | CB197: 0 | CC197: 0 | CD197: 0 | CE197: 0 | CF197: 0 | CG197: 0
A198: 1200 | B198: Certificated Pupil Support Salaries | C198: 0 | D198: 0 | E198: 0 | F198: 0 | G198: 0 | H198: 0 | I198: 0 | J198: 0 | K198: 0 | L198: 0 | M198: 0 | N198: 0 | O198: 0 | Q198: 0 | R198: 0 | S198: 0 | T198: 0 | U198: 0 | V198: 0 | W198: 0 | X198: 0 | Y198: 0 | Z198: 0 | AA198: 0 | AB198: 0 | AC198: 0 | AE198: 0 | AF198: 0 | AG198: 0 | AH198: 0 | AI198: 0 | AJ198: 0 | AK198: 0 | AL198: 0 | AM198: 0 | AN198: 0 | AO198: 0 | AP198: 0 | AQ198: 0 | AS198: 0 | AT198: 0 | AU198: 0 | AV198: 0 | AW198: 0 | AX198: 0 | AY198: 0 | AZ198: 0 | BA198: 0 | BB198: 0 | BC198: 0 | BD198: 0 | BE198: 0 | BG198: 0 | BH198: 0 | BI198: 0 | BJ198: 0 | BK198: 0 | BL198: 0 | BM198: 0 | BN198: 0 | BO198: 0 | BP198: 0 | BQ198: 0 | BR198: 0 | BS198: 0 | BU198: 0 | BV198: 0 | BW198: 0 | BX198: 0 | BY198: 0 | BZ198: 0 | CA198: 0 | CB198: 0 | CC198: 0 | CD198: 0 | CE198: 0 | CF198: 0 | CG198: 0
A199: 1201 | B199: Certificated Pupil Support Salaries - Custom 1 | C199: 0 | D199: 0 | E199: 0 | F199: 0 | G199: 0 | H199: 0 | I199: 0 | J199: 0 | K199: 0 | L199: 0 | M199: 0 | N199: 0 | O199: 0 | Q199: 0 | R199: 0 | S199: 0 | T199: 0 | U199: 0 | V199: 0 | W199: 0 | X199: 0 | Y199: 0 | Z199: 0 | AA199: 0 | AB199: 0 | AC199: 0 | AE199: 0 | AF199: 0 | AG199: 0 | AH199: 0 | AI199: 0 | AJ199: 0 | AK199: 0 | AL199: 0 | AM199: 0 | AN199: 0 | AO199: 0 | AP199: 0 | AQ199: 0 | AS199: 0 | AT199: 0 | AU199: 0 | AV199: 0 | AW199: 0 | AX199: 0 | AY199: 0 | AZ199: 0 | BA199: 0 | BB199: 0 | BC199: 0 | BD199: 0 | BE199: 0 | BG199: 0 | BH199: 0 | BI199: 0 | BJ199: 0 | BK199: 0 | BL199: 0 | BM199: 0 | BN199: 0 | BO199: 0 | BP199: 0 | BQ199: 0 | BR199: 0 | BS199: 0 | BU199: 0 | BV199: 0 | BW199: 0 | BX199: 0 | BY199: 0 | BZ199: 0 | CA199: 0 | CB199: 0 | CC199: 0 | CD199: 0 | CE199: 0 | CF199: 0 | CG199: 0
A200: 1202 | B200: Certificated Pupil Support Salaries - Custom 2 | C200: 0 | D200: 0 | E200: 0 | F200: 0 | G200: 0 | H200: 0 | I200: 0 | J200: 0 | K200: 0 | L200: 0 | M200: 0 | N200: 0 | O200: 0 | Q200: 0 | R200: 0 | S200: 0 | T200: 0 | U200: 0 | V200: 0 | W200: 0 | X200: 0 | Y200: 0 | Z200: 0 | AA200: 0 | AB200: 0 | AC200: 0 | AE200: 0 | AF200: 0 | AG200: 0 | AH200: 0 | AI200: 0 | AJ200: 0 | AK200: 0 | AL200: 0 | AM200: 0 | AN200: 0 | AO200: 0 | AP200: 0 | AQ200: 0 | AS200: 0 | AT200: 0 | AU200: 0 | AV200: 0 | AW200: 0 | AX200: 0 | AY200: 0 | AZ200: 0 | BA200: 0 | BB200: 0 | BC200: 0 | BD200: 0 | BE200: 0 | BG200: 0 | BH200: 0 | BI200: 0 | BJ200: 0 | BK200: 0 | BL200: 0 | BM200: 0 | BN200: 0 | BO200: 0 | BP200: 0 | BQ200: 0 | BR200: 0 | BS200: 0 | BU200: 0 | BV200: 0 | BW200: 0 | BX200: 0 | BY200: 0 | BZ200: 0 | CA200: 0 | CB200: 0 | CC200: 0 | CD200: 0 | CE200: 0 | CF200: 0 | CG200: 0
A201: 1203 | B201: Certificated Pupil Support Salaries - Custom 3 | C201: 0 | D201: 0 | E201: 0 | F201: 0 | G201: 0 | H201: 0 | I201: 0 | J201: 0 | K201: 0 | L201: 0 | M201: 0 | N201: 0 | O201: 0 | Q201: 0 | R201: 0 | S201: 0 | T201: 0 | U201: 0 | V201: 0 | W201: 0 | X201: 0 | Y201: 0 | Z201: 0 | AA201: 0 | AB201: 0 | AC201: 0 | AE201: 0 | AF201: 0 | AG201: 0 | AH201: 0 | AI201: 0 | AJ201: 0 | AK201: 0 | AL201: 0 | AM201: 0 | AN201: 0 | AO201: 0 | AP201: 0 | AQ201: 0 | AS201: 0 | AT201: 0 | AU201: 0 | AV201: 0 | AW201: 0 | AX201: 0 | AY201: 0 | AZ201: 0 | BA201: 0 | BB201: 0 | BC201: 0 | BD201: 0 | BE201: 0 | BG201: 0 | BH201: 0 | BI201: 0 | BJ201: 0 | BK201: 0 | BL201: 0 | BM201: 0 | BN201: 0 | BO201: 0 | BP201: 0 | BQ201: 0 | BR201: 0 | BS201: 0 | BU201: 0 | BV201: 0 | BW201: 0 | BX201: 0 | BY201: 0 | BZ201: 0 | CA201: 0 | CB201: 0 | CC201: 0 | CD201: 0 | CE201: 0 | CF201: 0 | CG201: 0
A202: 1204 | B202: Certificated Pupil Support Salaries - Custom 4 | C202: 0 | D202: 0 | E202: 0 | F202: 0 | G202: 0 | H202: 0 | I202: 0 | J202: 0 | K202: 0 | L202: 0 | M202: 0 | N202: 0 | O202: 0 | Q202: 0 | R202: 0 | S202: 0 | T202: 0 | U202: 0 | V202: 0 | W202: 0 | X202: 0 | Y202: 0 | Z202: 0 | AA202: 0 | AB202: 0 | AC202: 0 | AE202: 0 | AF202: 0 | AG202: 0 | AH202: 0 | AI202: 0 | AJ202: 0 | AK202: 0 | AL202: 0 | AM202: 0 | AN202: 0 | AO202: 0 | AP202: 0 | AQ202: 0 | AS202: 0 | AT202: 0 | AU202: 0 | AV202: 0 | AW202: 0 | AX202: 0 | AY202: 0 | AZ202: 0 | BA202: 0 | BB202: 0 | BC202: 0 | BD202: 0 | BE202: 0 | BG202: 0 | BH202: 0 | BI202: 0 | BJ202: 0 | BK202: 0 | BL202: 0 | BM202: 0 | BN202: 0 | BO202: 0 | BP202: 0 | BQ202: 0 | BR202: 0 | BS202: 0 | BU202: 0 | BV202: 0 | BW202: 0 | BX202: 0 | BY202: 0 | BZ202: 0 | CA202: 0 | CB202: 0 | CC202: 0 | CD202: 0 | CE202: 0 | CF202: 0 | CG202: 0
A203: 1205 | B203: Certificated Pupil Support Salaries - Custom 5 | C203: 0 | D203: 0 | E203: 0 | F203: 0 | G203: 0 | H203: 0 | I203: 0 | J203: 0 | K203: 0 | L203: 0 | M203: 0 | N203: 0 | O203: 0 | Q203: 0 | R203: 0 | S203: 0 | T203: 0 | U203: 0 | V203: 0 | W203: 0 | X203: 0 | Y203: 0 | Z203: 0 | AA203: 0 | AB203: 0 | AC203: 0 | AE203: 0 | AF203: 0 | AG203: 0 | AH203: 0 | AI203: 0 | AJ203: 0 | AK203: 0 | AL203: 0 | AM203: 0 | AN203: 0 | AO203: 0 | AP203: 0 | AQ203: 0 | AS203: 0 | AT203: 0 | AU203: 0 | AV203: 0 | AW203: 0 | AX203: 0 | AY203: 0 | AZ203: 0 | BA203: 0 | BB203: 0 | BC203: 0 | BD203: 0 | BE203: 0 | BG203: 0 | BH203: 0 | BI203: 0 | BJ203: 0 | BK203: 0 | BL203: 0 | BM203: 0 | BN203: 0 | BO203: 0 | BP203: 0 | BQ203: 0 | BR203: 0 | BS203: 0 | BU203: 0 | BV203: 0 | BW203: 0 | BX203: 0 | BY203: 0 | BZ203: 0 | CA203: 0 | CB203: 0 | CC203: 0 | CD203: 0 | CE203: 0 | CF203: 0 | CG203: 0
A204: 1300 | B204: Certificated Supervisor & Administrator Salaries | C204: 38655.84 | D204: 48475.32 | E204: 30291.66 | F204: 32791.64 | G204: 30291.64 | H204: 32541.66 | I204: 30291.66 | J204: 30291.66 | K204: 30291.66 | L204: 30291.66 | M204: 31812.21935 | N204: 44482.21935 | O204: 410508.8387 | Q204: 48056.25 | R204: 67149.45 | S204: 48056.25 | T204: 48056.25 | U204: 48056.25 | V204: 48056.25 | W204: 48056.25 | X204: 48056.25 | Y204: 48056.25 | Z204: 48056.25 | AA204: 48056.25 | AB204: 61359.75 | AC204: 587256 | AE204: 49497.9375 | AF204: 69163.9335 | AG204: 49497.9375 | AH204: 49497.9375 | AI204: 49497.9375 | AJ204: 49497.9375 | AK204: 49497.9375 | AL204: 49497.9375 | AM204: 49497.9375 | AN204: 49497.9375 | AO204: 49497.9375 | AP204: 63200.5425 | AQ204: 604873.68 | AS204: 50982.87563 | AT204: 71238.8515 | AU204: 50982.87563 | AV204: 50982.87563 | AW204: 50982.87563 | AX204: 50982.87563 | AY204: 50982.87563 | AZ204: 50982.87563 | BA204: 50982.87563 | BB204: 50982.87563 | BC204: 50982.87563 | BD204: 65096.55877 | BE204: 623019.8904 | BG204: 52512.36189 | BH204: 73376.01705 | BI204: 52512.36189 | BJ204: 52512.36189 | BK204: 52512.36189 | BL204: 52512.36189 | BM204: 52512.36189 | BN204: 52512.36189 | BO204: 52512.36189 | BP204: 52512.36189 | BQ204: 52512.36189 | BR204: 67049.45554 | BS204: 641710.4871 | BU204: 54087.73275 | BV204: 75577.29756 | BW204: 54087.73275 | BX204: 54087.73275 | BY204: 54087.73275 | BZ204: 54087.73275 | CA204: 54087.73275 | CB204: 54087.73275 | CC204: 54087.73275 | CD204: 54087.73275 | CE204: 54087.73275 | CF204: 69060.9392 | CG204: 660961.8017
A205: 1311 | B205: Certificated Principals & Directors | C205: 37368.33 | D205: 31083.32 | E205: 31083.32 | F205: 31083.32 | G205: 31083.32 | H205: 31083.32 | I205: 31083.32 | J205: 31083.32 | K205: 31083.32 | L205: 31083.32 | M205: 22048.45667 | N205: 40833.33333 | O205: 380000 | Q205: 20562.5 | R205: 20562.5 | S205: 20562.5 | T205: 20562.5 | U205: 20562.5 | V205: 20562.5 | W205: 20562.5 | X205: 20562.5 | Y205: 20562.5 | Z205: 20562.5 | AA205: 20562.5 | AB205: 31062.5 | AC205: 249025 | AE205: 21179.375 | AF205: 21179.375 | AG205: 21179.375 | AH205: 21179.375 | AI205: 21179.375 | AJ205: 21179.375 | AK205: 21179.375 | AL205: 21179.375 | AM205: 21179.375 | AN205: 21179.375 | AO205: 21179.375 | AP205: 31994.375 | AQ205: 256495.75 | AS205: 21814.75625 | AT205: 21814.75625 | AU205: 21814.75625 | AV205: 21814.75625 | AW205: 21814.75625 | AX205: 21814.75625 | AY205: 21814.75625 | AZ205: 21814.75625 | BA205: 21814.75625 | BB205: 21814.75625 | BC205: 21814.75625 | BD205: 32954.20625 | BE205: 264190.6225 | BG205: 22469.19894 | BH205: 22469.19894 | BI205: 22469.19894 | BJ205: 22469.19894 | BK205: 22469.19894 | BL205: 22469.19894 | BM205: 22469.19894 | BN205: 22469.19894 | BO205: 22469.19894 | BP205: 22469.19894 | BQ205: 22469.19894 | BR205: 33942.83244 | BS205: 272116.3412 | BU205: 23143.27491 | BV205: 23143.27491 | BW205: 23143.27491 | BX205: 23143.27491 | BY205: 23143.27491 | BZ205: 23143.27491 | CA205: 23143.27491 | CB205: 23143.27491 | CC205: 23143.27491 | CD205: 23143.27491 | CE205: 23143.27491 | CF205: 34961.11741 | CG205: 280279.8314
A206: 1322 | B206: Cert Admin - Custom 2 | C206: 0 | D206: 0 | E206: 0 | F206: 0 | G206: 0 | H206: 0 | I206: 0 | J206: 0 | K206: 0 | L206: 0 | M206: 0 | N206: 0 | O206: 0 | Q206: 0 | R206: 0 | S206: 0 | T206: 0 | U206: 0 | V206: 0 | W206: 0 | X206: 0 | Y206: 0 | Z206: 0 | AA206: 0 | AB206: 0 | AC206: 0 | AE206: 0 | AF206: 0 | AG206: 0 | AH206: 0 | AI206: 0 | AJ206: 0 | AK206: 0 | AL206: 0 | AM206: 0 | AN206: 0 | AO206: 0 | AP206: 0 | AQ206: 0 | AS206: 0 | AT206: 0 | AU206: 0 | AV206: 0 | AW206: 0 | AX206: 0 | AY206: 0 | AZ206: 0 | BA206: 0 | BB206: 0 | BC206: 0 | BD206: 0 | BE206: 0 | BG206: 0 | BH206: 0 | BI206: 0 | BJ206: 0 | BK206: 0 | BL206: 0 | BM206: 0 | BN206: 0 | BO206: 0 | BP206: 0 | BQ206: 0 | BR206: 0 | BS206: 0 | BU206: 0 | BV206: 0 | BW206: 0 | BX206: 0 | BY206: 0 | BZ206: 0 | CA206: 0 | CB206: 0 | CC206: 0 | CD206: 0 | CE206: 0 | CF206: 0 | CG206: 0
A207: 1333 | B207: Cert Admin - Custom 3 | C207: 0 | D207: 0 | E207: 0 | F207: 0 | G207: 0 | H207: 0 | I207: 0 | J207: 0 | K207: 0 | L207: 0 | M207: 0 | N207: 0 | O207: 0 | Q207: 0 | R207: 0 | S207: 0 | T207: 0 | U207: 0 | V207: 0 | W207: 0 | X207: 0 | Y207: 0 | Z207: 0 | AA207: 0 | AB207: 0 | AC207: 0 | AE207: 0 | AF207: 0 | AG207: 0 | AH207: 0 | AI207: 0 | AJ207: 0 | AK207: 0 | AL207: 0 | AM207: 0 | AN207: 0 | AO207: 0 | AP207: 0 | AQ207: 0 | AS207: 0 | AT207: 0 | AU207: 0 | AV207: 0 | AW207: 0 | AX207: 0 | AY207: 0 | AZ207: 0 | BA207: 0 | BB207: 0 | BC207: 0 | BD207: 0 | BE207: 0 | BG207: 0 | BH207: 0 | BI207: 0 | BJ207: 0 | BK207: 0 | BL207: 0 | BM207: 0 | BN207: 0 | BO207: 0 | BP207: 0 | BQ207: 0 | BR207: 0 | BS207: 0 | BU207: 0 | BV207: 0 | BW207: 0 | BX207: 0 | BY207: 0 | BZ207: 0 | CA207: 0 | CB207: 0 | CC207: 0 | CD207: 0 | CE207: 0 | CF207: 0 | CG207: 0
A208: 1340 | B208: Cert Admin - Custom 4 | C208: 0 | D208: 0 | E208: 0 | F208: 0 | G208: 0 | H208: 0 | I208: 0 | J208: 0 | K208: 0 | L208: 0 | M208: 0 | N208: 0 | O208: 0 | Q208: 0 | R208: 0 | S208: 0 | T208: 0 | U208: 0 | V208: 0 | W208: 0 | X208: 0 | Y208: 0 | Z208: 0 | AA208: 0 | AB208: 0 | AC208: 0 | AE208: 0 | AF208: 0 | AG208: 0 | AH208: 0 | AI208: 0 | AJ208: 0 | AK208: 0 | AL208: 0 | AM208: 0 | AN208: 0 | AO208: 0 | AP208: 0 | AQ208: 0 | AS208: 0 | AT208: 0 | AU208: 0 | AV208: 0 | AW208: 0 | AX208: 0 | AY208: 0 | AZ208: 0 | BA208: 0 | BB208: 0 | BC208: 0 | BD208: 0 | BE208: 0 | BG208: 0 | BH208: 0 | BI208: 0 | BJ208: 0 | BK208: 0 | BL208: 0 | BM208: 0 | BN208: 0 | BO208: 0 | BP208: 0 | BQ208: 0 | BR208: 0 | BS208: 0 | BU208: 0 | BV208: 0 | BW208: 0 | BX208: 0 | BY208: 0 | BZ208: 0 | CA208: 0 | CB208: 0 | CC208: 0 | CD208: 0 | CE208: 0 | CF208: 0 | CG208: 0
A209: 1350 | B209: Cert Admin - Custom 5 | C209: 0 | D209: 0 | E209: 0 | F209: 0 | G209: 0 | H209: 0 | I209: 0 | J209: 0 | K209: 0 | L209: 0 | M209: 0 | N209: 0 | O209: 0 | Q209: 0 | R209: 0 | S209: 0 | T209: 0 | U209: 0 | V209: 0 | W209: 0 | X209: 0 | Y209: 0 | Z209: 0 | AA209: 0 | AB209: 0 | AC209: 0 | AE209: 0 | AF209: 0 | AG209: 0 | AH209: 0 | AI209: 0 | AJ209: 0 | AK209: 0 | AL209: 0 | AM209: 0 | AN209: 0 | AO209: 0 | AP209: 0 | AQ209: 0 | AS209: 0 | AT209: 0 | AU209: 0 | AV209: 0 | AW209: 0 | AX209: 0 | AY209: 0 | AZ209: 0 | BA209: 0 | BB209: 0 | BC209: 0 | BD209: 0 | BE209: 0 | BG209: 0 | BH209: 0 | BI209: 0 | BJ209: 0 | BK209: 0 | BL209: 0 | BM209: 0 | BN209: 0 | BO209: 0 | BP209: 0 | BQ209: 0 | BR209: 0 | BS209: 0 | BU209: 0 | BV209: 0 | BW209: 0 | BX209: 0 | BY209: 0 | BZ209: 0 | CA209: 0 | CB209: 0 | CC209: 0 | CD209: 0 | CE209: 0 | CF209: 0 | CG209: 0
A210: 1400 | B210: Certificated Bonuses & Extra Pay | C210: 0 | D210: 0 | E210: 0 | F210: 0 | G210: 0 | H210: 0 | I210: 0 | J210: 0 | K210: 0 | L210: 0 | M210: 0 | N210: 0 | O210: 0 | Q210: 0 | R210: 0 | S210: 0 | T210: 0 | U210: 0 | V210: 0 | W210: 0 | X210: 0 | Y210: 0 | Z210: 0 | AA210: 0 | AB210: 0 | AC210: 0 | AE210: 0 | AF210: 0 | AG210: 0 | AH210: 0 | AI210: 0 | AJ210: 0 | AK210: 0 | AL210: 0 | AM210: 0 | AN210: 0 | AO210: 0 | AP210: 0 | AQ210: 0 | AS210: 0 | AT210: 0 | AU210: 0 | AV210: 0 | AW210: 0 | AX210: 0 | AY210: 0 | AZ210: 0 | BA210: 0 | BB210: 0 | BC210: 0 | BD210: 0 | BE210: 0 | BG210: 0 | BH210: 0 | BI210: 0 | BJ210: 0 | BK210: 0 | BL210: 0 | BM210: 0 | BN210: 0 | BO210: 0 | BP210: 0 | BQ210: 0 | BR210: 0 | BS210: 0 | BU210: 0 | BV210: 0 | BW210: 0 | BX210: 0 | BY210: 0 | BZ210: 0 | CA210: 0 | CB210: 0 | CC210: 0 | CD210: 0 | CE210: 0 | CF210: 0 | CG210: 0
A211: 1401 | B211: Certificated bonuses - Custom 1 | C211: 0 | D211: 0 | E211: 0 | F211: 0 | G211: 0 | H211: 0 | I211: 0 | J211: 0 | K211: 0 | L211: 0 | M211: 0 | N211: 0 | O211: 0 | Q211: 0 | R211: 0 | S211: 0 | T211: 0 | U211: 0 | V211: 0 | W211: 0 | X211: 0 | Y211: 0 | Z211: 0 | AA211: 0 | AB211: 0 | AC211: 0 | AE211: 0 | AF211: 0 | AG211: 0 | AH211: 0 | AI211: 0 | AJ211: 0 | AK211: 0 | AL211: 0 | AM211: 0 | AN211: 0 | AO211: 0 | AP211: 0 | AQ211: 0 | AS211: 0 | AT211: 0 | AU211: 0 | AV211: 0 | AW211: 0 | AX211: 0 | AY211: 0 | AZ211: 0 | BA211: 0 | BB211: 0 | BC211: 0 | BD211: 0 | BE211: 0 | BG211: 0 | BH211: 0 | BI211: 0 | BJ211: 0 | BK211: 0 | BL211: 0 | BM211: 0 | BN211: 0 | BO211: 0 | BP211: 0 | BQ211: 0 | BR211: 0 | BS211: 0 | BU211: 0 | BV211: 0 | BW211: 0 | BX211: 0 | BY211: 0 | BZ211: 0 | CA211: 0 | CB211: 0 | CC211: 0 | CD211: 0 | CE211: 0 | CF211: 0 | CG211: 0
A212: 1402 | B212: Certificated bonuses - Custom 2 | C212: 0 | D212: 0 | E212: 0 | F212: 0 | G212: 0 | H212: 0 | I212: 0 | J212: 0 | K212: 0 | L212: 0 | M212: 0 | N212: 0 | O212: 0 | Q212: 0 | R212: 0 | S212: 0 | T212: 0 | U212: 0 | V212: 0 | W212: 0 | X212: 0 | Y212: 0 | Z212: 0 | AA212: 0 | AB212: 0 | AC212: 0 | AE212: 0 | AF212: 0 | AG212: 0 | AH212: 0 | AI212: 0 | AJ212: 0 | AK212: 0 | AL212: 0 | AM212: 0 | AN212: 0 | AO212: 0 | AP212: 0 | AQ212: 0 | AS212: 0 | AT212: 0 | AU212: 0 | AV212: 0 | AW212: 0 | AX212: 0 | AY212: 0 | AZ212: 0 | BA212: 0 | BB212: 0 | BC212: 0 | BD212: 0 | BE212: 0 | BG212: 0 | BH212: 0 | BI212: 0 | BJ212: 0 | BK212: 0 | BL212: 0 | BM212: 0 | BN212: 0 | BO212: 0 | BP212: 0 | BQ212: 0 | BR212: 0 | BS212: 0 | BU212: 0 | BV212: 0 | BW212: 0 | BX212: 0 | BY212: 0 | BZ212: 0 | CA212: 0 | CB212: 0 | CC212: 0 | CD212: 0 | CE212: 0 | CF212: 0 | CG212: 0
A213: 1403 | B213: Certificated bonuses - Custom 3 | C213: 0 | D213: 0 | E213: 0 | F213: 0 | G213: 0 | H213: 0 | I213: 0 | J213: 0 | K213: 0 | L213: 0 | M213: 0 | N213: 0 | O213: 0 | Q213: 0 | R213: 0 | S213: 0 | T213: 0 | U213: 0 | V213: 0 | W213: 0 | X213: 0 | Y213: 0 | Z213: 0 | AA213: 0 | AB213: 0 | AC213: 0 | AE213: 0 | AF213: 0 | AG213: 0 | AH213: 0 | AI213: 0 | AJ213: 0 | AK213: 0 | AL213: 0 | AM213: 0 | AN213: 0 | AO213: 0 | AP213: 0 | AQ213: 0 | AS213: 0 | AT213: 0 | AU213: 0 | AV213: 0 | AW213: 0 | AX213: 0 | AY213: 0 | AZ213: 0 | BA213: 0 | BB213: 0 | BC213: 0 | BD213: 0 | BE213: 0 | BG213: 0 | BH213: 0 | BI213: 0 | BJ213: 0 | BK213: 0 | BL213: 0 | BM213: 0 | BN213: 0 | BO213: 0 | BP213: 0 | BQ213: 0 | BR213: 0 | BS213: 0 | BU213: 0 | BV213: 0 | BW213: 0 | BX213: 0 | BY213: 0 | BZ213: 0 | CA213: 0 | CB213: 0 | CC213: 0 | CD213: 0 | CE213: 0 | CF213: 0 | CG213: 0
A214: 1404 | B214: Certificated bonuses - Custom 4 | C214: 0 | D214: 0 | E214: 0 | F214: 0 | G214: 0 | H214: 0 | I214: 0 | J214: 0 | K214: 0 | L214: 0 | M214: 0 | N214: 0 | O214: 0 | Q214: 0 | R214: 0 | S214: 0 | T214: 0 | U214: 0 | V214: 0 | W214: 0 | X214: 0 | Y214: 0 | Z214: 0 | AA214: 0 | AB214: 0 | AC214: 0 | AE214: 0 | AF214: 0 | AG214: 0 | AH214: 0 | AI214: 0 | AJ214: 0 | AK214: 0 | AL214: 0 | AM214: 0 | AN214: 0 | AO214: 0 | AP214: 0 | AQ214: 0 | AS214: 0 | AT214: 0 | AU214: 0 | AV214: 0 | AW214: 0 | AX214: 0 | AY214: 0 | AZ214: 0 | BA214: 0 | BB214: 0 | BC214: 0 | BD214: 0 | BE214: 0 | BG214: 0 | BH214: 0 | BI214: 0 | BJ214: 0 | BK214: 0 | BL214: 0 | BM214: 0 | BN214: 0 | BO214: 0 | BP214: 0 | BQ214: 0 | BR214: 0 | BS214: 0 | BU214: 0 | BV214: 0 | BW214: 0 | BX214: 0 | BY214: 0 | BZ214: 0 | CA214: 0 | CB214: 0 | CC214: 0 | CD214: 0 | CE214: 0 | CF214: 0 | CG214: 0
A215: 1405 | B215: Certificated bonuses - Custom 5 | C215: 0 | D215: 0 | E215: 0 | F215: 0 | G215: 0 | H215: 0 | I215: 0 | J215: 0 | K215: 0 | L215: 0 | M215: 0 | N215: 0 | O215: 0 | Q215: 0 | R215: 0 | S215: 0 | T215: 0 | U215: 0 | V215: 0 | W215: 0 | X215: 0 | Y215: 0 | Z215: 0 | AA215: 0 | AB215: 0 | AC215: 0 | AE215: 0 | AF215: 0 | AG215: 0 | AH215: 0 | AI215: 0 | AJ215: 0 | AK215: 0 | AL215: 0 | AM215: 0 | AN215: 0 | AO215: 0 | AP215: 0 | AQ215: 0 | AS215: 0 | AT215: 0 | AU215: 0 | AV215: 0 | AW215: 0 | AX215: 0 | AY215: 0 | AZ215: 0 | BA215: 0 | BB215: 0 | BC215: 0 | BD215: 0 | BE215: 0 | BG215: 0 | BH215: 0 | BI215: 0 | BJ215: 0 | BK215: 0 | BL215: 0 | BM215: 0 | BN215: 0 | BO215: 0 | BP215: 0 | BQ215: 0 | BR215: 0 | BS215: 0 | BU215: 0 | BV215: 0 | BW215: 0 | BX215: 0 | BY215: 0 | BZ215: 0 | CA215: 0 | CB215: 0 | CC215: 0 | CD215: 0 | CE215: 0 | CF215: 0 | CG215: 0
A216: 1900 | B216: Certificated Other Salaries | C216: 0 | D216: 0 | E216: 0 | F216: 0 | G216: 0 | H216: 0 | I216: 0 | J216: 0 | K216: 0 | L216: 0 | M216: 0 | N216: 0 | O216: 0 | Q216: 0 | R216: 0 | S216: 0 | T216: 0 | U216: 0 | V216: 0 | W216: 0 | X216: 0 | Y216: 0 | Z216: 0 | AA216: 0 | AB216: 0 | AC216: 0 | AE216: 0 | AF216: 0 | AG216: 0 | AH216: 0 | AI216: 0 | AJ216: 0 | AK216: 0 | AL216: 0 | AM216: 0 | AN216: 0 | AO216: 0 | AP216: 0 | AQ216: 0 | AS216: 0 | AT216: 0 | AU216: 0 | AV216: 0 | AW216: 0 | AX216: 0 | AY216: 0 | AZ216: 0 | BA216: 0 | BB216: 0 | BC216: 0 | BD216: 0 | BE216: 0 | BG216: 0 | BH216: 0 | BI216: 0 | BJ216: 0 | BK216: 0 | BL216: 0 | BM216: 0 | BN216: 0 | BO216: 0 | BP216: 0 | BQ216: 0 | BR216: 0 | BS216: 0 | BU216: 0 | BV216: 0 | BW216: 0 | BX216: 0 | BY216: 0 | BZ216: 0 | CA216: 0 | CB216: 0 | CC216: 0 | CD216: 0 | CE216: 0 | CF216: 0 | CG216: 0
A217: 1904 | B217: Other Cert - After School | C217: 0 | D217: 0 | E217: 0 | F217: 0 | G217: 0 | H217: 0 | I217: 0 | J217: 0 | K217: 0 | L217: 0 | M217: 0 | N217: 0 | O217: 0 | Q217: 0 | R217: 0 | S217: 0 | T217: 0 | U217: 0 | V217: 0 | W217: 0 | X217: 0 | Y217: 0 | Z217: 0 | AA217: 0 | AB217: 0 | AC217: 0 | AE217: 0 | AF217: 0 | AG217: 0 | AH217: 0 | AI217: 0 | AJ217: 0 | AK217: 0 | AL217: 0 | AM217: 0 | AN217: 0 | AO217: 0 | AP217: 0 | AQ217: 0 | AS217: 0 | AT217: 0 | AU217: 0 | AV217: 0 | AW217: 0 | AX217: 0 | AY217: 0 | AZ217: 0 | BA217: 0 | BB217: 0 | BC217: 0 | BD217: 0 | BE217: 0 | BG217: 0 | BH217: 0 | BI217: 0 | BJ217: 0 | BK217: 0 | BL217: 0 | BM217: 0 | BN217: 0 | BO217: 0 | BP217: 0 | BQ217: 0 | BR217: 0 | BS217: 0 | BU217: 0 | BV217: 0 | BW217: 0 | BX217: 0 | BY217: 0 | BZ217: 0 | CA217: 0 | CB217: 0 | CC217: 0 | CD217: 0 | CE217: 0 | CF217: 0 | CG217: 0
... 341 more rows

Sheet Payroll
A1: East Bay Innovation Academy
A2: 2022-23
A3: As of May FY2023
A5: Payroll | G5: Year 1 | Q5: Year 2 | AA5: Year 3 | AK5: Year 4 | AU5: Year 5 | BE5: Year 6
G6: 2022-23 | Q6: 2023-24 | AA6: 2024-25 | AK6: 2025-26 | AU6: 2026-27 | BE6: 2027-28
G7: Total Paid | L7: FTE Count | Q7: Total Paid | V7: FTE Count | AA7: Total Paid | AF7: FTE Count | AK7: Total Paid | AP7: FTE Count | AU7: Total Paid | AZ7: FTE Count | BE7: Total Paid | BJ7: FTE Count
A8: Head Count | B8: Last Name | C8: First Name | D8: Position Name | E8: Budget Category | G8: Total Paid | H8: Total Paid | J8: Total | L8: FTE Count | M8: FTE Count | O8: Total | Q8: Total Paid | R8: Total Paid | T8: Total | V8: FTE Count | W8: FTE Count | Y8: Total | AA8: Total Paid | AB8: Total Paid | AD8: Total | AF8: FTE Count | AG8: FTE Count | AI8: Total | AK8: Total Paid | AL8: Total Paid | AN8: Total | AP8: FTE Count | AQ8: FTE Count | AS8: Total | AU8: Total Paid | AV8: Total Paid | AX8: Total | AZ8: FTE Count | BA8: FTE Count | BC8: Total | BE8: Total Paid | BF8: Total Paid | BH8: Total | BJ8: FTE Count | BK8: FTE Count | BM8: Total
A9: Click here and insert LID
A10: 1 | B10: Abarca | C10: Aylin | D10: Upper Ed Specialist 1 | E10: 1148 | H10: 57465 | J10: =SUM(G10:I10) -> 57465 | M10: 1 | O10: =SUM(L10:N10) -> 1 | R10: 68498 | T10: =SUM(Q10:S10) -> 68498 | W10: 1 | Y10: =SUM(V10:X10) -> 1 | AB10: 70552.94 | AD10: =SUM(AA10:AC10) -> 70552.94 | AG10: 1 | AI10: =SUM(AF10:AH10) -> 1 | AL10: 72669.5282 | AN10: =SUM(AK10:AM10) -> 72669.5282 | AQ10: 1 | AS10: =SUM(AP10:AR10) -> 1 | AV10: 74849.61405 | AX10: =SUM(AU10:AW10) -> 74849.61405 | BA10: 1 | BC10: =SUM(AZ10:BB10) -> 1 | BF10: 77095.10247 | BH10: =SUM(BE10:BG10) -> 77095.10247 | BK10: 1 | BM10: =SUM(BJ10:BL10) -> 1
A11: 1 | B11: Alvarado | C11: Esmeralda | D11: Instructional Aide | E11: 2104 | H11: 33196.8 | J11: 33196.8 | M11: 1 | O11: 1 | R11: 34192.704 | T11: 34192.704 | W11: 1 | Y11: 1 | AB11: 35218.48512 | AD11: 35218.48512 | AG11: 1 | AI11: 1 | AL11: 36275.03967 | AN11: 36275.03967 | AQ11: 1 | AS11: 1 | AV11: 37363.29086 | AX11: 37363.29086 | BA11: 1 | BC11: 1 | BF11: 38484.18959 | BH11: 38484.18959 | BK11: 1 | BM11: 1
A12: 1 | B12: Alvarado | C12: Gabby | D12: Lower Ed Specialist | E12: 1148 | H12: 47836.8 | J12: 47836.8 | M12: 0.8 | O12: 0.8 | R12: 75768 | T12: 75768 | W12: 1 | Y12: 1 | AB12: 78041.04 | AD12: 78041.04 | AG12: 1 | AI12: 1 | AL12: 80382.2712 | AN12: 80382.2712 | AQ12: 1 | AS12: 1 | AV12: 82793.73934 | AX12: 82793.73934 | BA12: 1 | BC12: 1 | BF12: 85277.55152 | BH12: 85277.55152 | BK12: 1 | BM12: 1
A13: 1 | B13: Ashley | C13: Christine | D13: History 6 | E13: 1100 | H13: 84624 | J13: 84624 | M13: 1 | O13: 1 | R13: 88855.2 | T13: 88855.2 | W13: 1 | Y13: 1 | AB13: 91520.856 | AD13: 91520.856 | AG13: 1 | AI13: 1 | AL13: 94266.48168 | AN13: 94266.48168 | AQ13: 1 | AS13: 1 | AV13: 97094.47613 | AX13: 97094.47613 | BA13: 1 | BC13: 1 | BF13: 100007.3104 | BH13: 100007.3104 | BK13: 1 | BM13: 1
A14: 1 | B14: Bazile | C14: Kennith | D14: LT Sub | E14: 1103 | H14: 54400 | J14: 54400 | M14: 1 | O14: 1 | R14: 57120 | T14: 57120 | W14: 1 | Y14: 1 | AB14: 58833.6 | AD14: 58833.6 | AG14: 1 | AI14: 1 | AL14: 60598.608 | AN14: 60598.608 | AQ14: 1 | AS14: 1 | AV14: 62416.56624 | AX14: 62416.56624 | BA14: 1 | BC14: 1 | BF14: 64289.06323 | BH14: 64289.06323 | BK14: 1 | BM14: 1
A15: 1 | B15: Bellamy | C15: Brandi | D15: LMFT Counselor | E15: 1160 | H15: 77379 | J15: 77379 | M15: 1 | O15: 1 | R15: 82795.53 | T15: 82795.53 | W15: 1 | Y15: 1 | AB15: 85279.3959 | AD15: 85279.3959 | AG15: 1 | AI15: 1 | AL15: 87837.77778 | AN15: 87837.77778 | AQ15: 1 | AS15: 1 | AV15: 90472.91111 | AX15: 90472.91111 | BA15: 1 | BC15: 1 | BF15: 93187.09844 | BH15: 93187.09844 | BK15: 1 | BM15: 1
A16: 1 | B16: Blair | C16: Sarah | D16: Science 7 | E16: 1100 | H16: 81390 | J16: 81390 | M16: 1 | O16: 1 | R16: 85459.5 | T16: 85459.5 | W16: 1 | Y16: 1 | AB16: 88023.285 | AD16: 88023.285 | AG16: 1 | AI16: 1 | AL16: 90663.98355 | AN16: 90663.98355 | AQ16: 1 | AS16: 1 | AV16: 93383.90306 | AX16: 93383.90306 | BA16: 1 | BC16: 1 | BF16: 96185.42015 | BH16: 96185.42015 | BK16: 1 | BM16: 1
A17: 1 | B17: Borcelis | C17: Judith | D17: Bio/Chem | E17: 1100 | H17: 81048 | J17: 81048 | M17: 1 | O17: 1 | R17: 85100.4 | T17: 85100.4 | W17: 1 | Y17: 1 | AB17: 87653.412 | AD17: 87653.412 | AG17: 1 | AI17: 1 | AL17: 90283.01436 | AN17: 90283.01436 | AQ17: 1 | AS17: 1 | AV17: 92991.50479 | AX17: 92991.50479 | BA17: 1 | BC17: 1 | BF17: 95781.24993 | BH17: 95781.24993 | BK17: 1 | BM17: 1
A18: 1 | B18: Brown | C18: Mason | D18: Physics | E18: 1100 | H18: 72957 | J18: 72957 | M18: 1 | O18: 1 | R18: 83340 | T18: 83340 | W18: 1 | Y18: 1 | AB18: 85840.2 | AD18: 85840.2 | AG18: 1 | AI18: 1 | AL18: 88415.406 | AN18: 88415.406 | AQ18: 1 | AS18: 1 | AV18: 91067.86818 | AX18: 91067.86818 | BA18: 1 | BC18: 1 | BF18: 93799.90423 | BH18: 93799.90423 | BK18: 1 | BM18: 1
A19: 1 | B19: Cafaro | C19: Giancarlo | D19: Geometry/stat | E19: 1100 | H19: 68632 | J19: 68632 | M19: 1 | O19: 1 | R19: 73436.24 | T19: 73436.24 | W19: 1 | Y19: 1 | AB19: 75639.3272 | AD19: 75639.3272 | AG19: 1 | AI19: 1 | AL19: 77908.50702 | AN19: 77908.50702 | AQ19: 1 | AS19: 1 | AV19: 80245.76223 | AX19: 80245.76223 | BA19: 1 | BC19: 1 | BF19: 82653.13509 | BH19: 82653.13509 | BK19: 1 | BM19: 1
A20: 1 | B20: Calhoun | C20: Michael | D20: Upper School Dean | E20: 2300 | H20: 80000 | J20: 80000 | M20: 1 | O20: 1 | R20: 94000 | T20: 94000 | W20: 1 | Y20: 1 | AB20: 96820 | AD20: 96820 | AG20: 1 | AI20: 1 | AL20: 99724.6 | AN20: 99724.6 | AQ20: 1 | AS20: 1 | AV20: 102716.338 | AX20: 102716.338 | BA20: 1 | BC20: 1 | BF20: 105797.8281 | BH20: 105797.8281 | BK20: 1 | BM20: 1
A21: 1 | B21: Cilono | C21: Stephen | D21: 6th ELA - FY24 | E21: 1100 | H21: 0 | J21: 0 | M21: 0 | O21: 0 | R21: 94477 | T21: 94477 | W21: 1 | Y21: 1 | AB21: 97311.31 | AD21: 97311.31 | AG21: 1 | AI21: 1 | AL21: 100230.6493 | AN21: 100230.6493 | AQ21: 1 | AS21: 1 | AV21: 103237.5688 | AX21: 103237.5688 | BA21: 1 | BC21: 1 | BF21: 106334.6958 | BH21: 106334.6958 | BK21: 1 | BM21: 1
A22: 1 | B22: Cervantes | C22: Johnathan | D22: Lower OA | E22: 2400 | H22: 52650 | J22: 52650 | M22: 1.125 | O22: 1.125 | R22: 54229.5 | T22: 54229.5 | W22: 1.125 | Y22: 1.125 | AB22: 55856.385 | AD22: 55856.385 | AG22: 1.125 | AI22: 1.125 | AL22: 57532.07655 | AN22: 57532.07655 | AQ22: 1.125 | AS22: 1.125 | AV22: 59258.03885 | AX22: 59258.03885 | BA22: 1.125 | BC22: 1.125 | BF22: 61035.78001 | BH22: 61035.78001 | BK22: 1.125 | BM22: 1.125
A23: 1 | B23: Cho | C23: Michelle | D23: Executive Director | E23: 1300 | H23: 16154.83871 | J23: 16154.83871 | M23: 0.1075268817 | O23: 0.1075268817 | R23: 0 | T23: 0 | W23: 0 | Y23: 0 | AB23: 0 | AD23: 0 | AG23: 0 | AI23: 0 | AL23: 0 | AN23: 0 | AQ23: 0 | AS23: 0 | AV23: 0 | AX23: 0 | BA23: 0 | BC23: 0 | BF23: 0 | BH23: 0 | BK23: 0 | BM23: 0
A24: 1 | B24: Cook | C24: Megan | D24: ELA9 | E24: 1100 | H24: 79722 | J24: 79722 | M24: 1 | O24: 1 | R24: 85302.54 | T24: 85302.54 | W24: 1 | Y24: 1 | AB24: 87861.6162 | AD24: 87861.6162 | AG24: 1 | AI24: 1 | AL24: 90497.46469 | AN24: 90497.46469 | AQ24: 1 | AS24: 1 | AV24: 93212.38863 | AX24: 93212.38863 | BA24: 1 | BC24: 1 | BF24: 96008.76029 | BH24: 96008.76029 | BK24: 1 | BM24: 1
A25: 1 | B25: Cortez | C25: Diego | D25: Quest Lower IA 2 | E25: 2104 | H25: 31449.6 | J25: 31449.6 | M25: 1 | O25: 1 | R25: 32393.088 | T25: 32393.088 | W25: 1 | Y25: 1 | AB25: 33364.88064 | AD25: 33364.88064 | AG25: 1 | AI25: 1 | AL25: 34365.82706 | AN25: 34365.82706 | AQ25: 1 | AS25: 1 | AV25: 35396.80187 | AX25: 35396.80187 | BA25: 1 | BC25: 1 | BF25: 36458.70593 | BH25: 36458.70593 | BK25: 1 | BM25: 1
A26: 1 | B26: Destouet | C26: Angelyca | D26: Lunch | E26: 2928 | H26: 14080 | J26: 14080 | M26: 0.55 | O26: 0.55 | R26: 14502.4 | T26: 14502.4 | W26: 0.55 | Y26: 0.55 | AB26: 14937.472 | AD26: 14937.472 | AG26: 0.55 | AI26: 0.55 | AL26: 15385.59616 | AN26: 15385.59616 | AQ26: 0.55 | AS26: 0.55 | AV26: 15847.16404 | AX26: 15847.16404 | BA26: 0.55 | BC26: 0.55 | BF26: 16322.57897 | BH26: 16322.57897 | BK26: 0.55 | BM26: 0.55
A27: 1 | B27: Diaz | C27: Ernesto | D27: Lower Dean of Students | E27: 2300 | H27: 43958.33333 | J27: 43958.33333 | M27: 0.6279761905 | O27: 0.6279761905 | R27: 0 | T27: 0 | W27: 0 | Y27: 0 | AB27: 0 | AD27: 0 | AG27: 0 | AI27: 0 | AL27: 0 | AN27: 0 | AQ27: 0 | AS27: 0 | AV27: 0 | AX27: 0 | BA27: 0 | BC27: 0 | BF27: 0 | BH27: 0 | BK27: 0 | BM27: 0
A28: 1 | B28: Diaz | C28: Ernesto | D28: Lower Dean of Students | E28: 2300 | H28: 29761.90476 | J28: 29761.90476 | M28: 0.3720238095 | O28: 0.3720238095 | R28: 92000 | T28: 92000 | W28: 1 | Y28: 1 | AB28: 94760 | AD28: 94760 | AG28: 1 | AI28: 1 | AL28: 97602.8 | AN28: 97602.8 | AQ28: 1 | AS28: 1 | AV28: 100530.884 | AX28: 100530.884 | BA28: 1 | BC28: 1 | BF28: 103546.8105 | BH28: 103546.8105 | BK28: 1 | BM28: 1
A29: 1 | B29: Dinh | C29: Thahn | D29: Chemistry | E29: 1100 | H29: 26595.33333 | J29: 26595.33333 | M29: 0.3333333333 | O29: 0.3333333333 | R29: 0 | T29: 0 | W29: 0 | Y29: 0 | AB29: 0 | AD29: 0 | AG29: 0 | AI29: 0 | AL29: 0 | AN29: 0 | AQ29: 0 | AS29: 0 | AV29: 0 | AX29: 0 | BA29: 0 | BC29: 0 | BF29: 0 | BH29: 0 | BK29: 0 | BM29: 0
A30: 1 | B30: Fay | C30: Francesca | D30: Director of Academic Programs | E30: 1300 | H30: 132500 | J30: 132500 | M30: 1 | O30: 1 | R30: 134487.5 | T30: 134487.5 | W30: 1 | Y30: 1 | AB30: 138522.125 | AD30: 138522.125 | AG30: 1 | AI30: 1 | AL30: 142677.7888 | AN30: 142677.7888 | AQ30: 1 | AS30: 1 | AV30: 146958.1224 | AX30: 146958.1224 | BA30: 1 | BC30: 1 | BF30: 151366.8661 | BH30: 151366.8661 | BK30: 1 | BM30: 1
A31: 1 | B31: Fitts | C31: Michelle | D31: Science 8 | E31: 1100 | H31: 94407 | J31: 94407 | M31: 1 | O31: 1 | R31: 99127.35 | T31: 99127.35 | W31: 1 | Y31: 1 | AB31: 102101.1705 | AD31: 102101.1705 | AG31: 1 | AI31: 1 | AL31: 105164.2056 | AN31: 105164.2056 | AQ31: 1 | AS31: 1 | AV31: 108319.1318 | AX31: 108319.1318 | BA31: 1 | BC31: 1 | BF31: 111568.7057 | BH31: 111568.7057 | BK31: 1 | BM31: 1
A32: 1 | B32: Foster | C32: Darius | D32: Fitness | E32: 1100 | H32: 72650 | J32: 72650 | M32: 1 | O32: 1 | R32: 77735.5 | T32: 77735.5 | W32: 1 | Y32: 1 | AB32: 80067.565 | AD32: 80067.565 | AG32: 1 | AI32: 1 | AL32: 82469.59195 | AN32: 82469.59195 | AQ32: 1 | AS32: 1 | AV32: 84943.67971 | AX32: 84943.67971 | BA32: 1 | BC32: 1 | BF32: 87491.9901 | BH32: 87491.9901 | BK32: 1 | BM32: 1
A33: 1 | B33: Geceweiz | C33: Grace | D33: ELA 7 | E33: 1100 | H33: 57464 | J33: 57464 | M33: 1 | O33: 1 | R33: 63349 | T33: 63349 | W33: 1 | Y33: 1 | AB33: 65249.47 | AD33: 65249.47 | AG33: 1 | AI33: 1 | AL33: 67206.9541 | AN33: 67206.9541 | AQ33: 1 | AS33: 1 | AV33: 69223.16272 | AX33: 69223.16272 | BA33: 1 | BC33: 1 | BF33: 71299.8576 | BH33: 71299.8576 | BK33: 1 | BM33: 1
A34: 1 | B34: Herrera | C34: Bonita | D34: Senior Director of Operations | E34: 2402 | H34: 125000 | J34: 125000 | M34: 1 | O34: 1 | R34: 126875 | T34: 126875 | W34: 1 | Y34: 1 | AB34: 130681.25 | AD34: 130681.25 | AG34: 1 | AI34: 1 | AL34: 134601.6875 | AN34: 134601.6875 | AQ34: 1 | AS34: 1 | AV34: 138639.7381 | AX34: 138639.7381 | BA34: 1 | BC34: 1 | BF34: 142798.9303 | BH34: 142798.9303 | BK34: 1 | BM34: 1
A35: 1 | B35: Hudson | C35: Anne | D35: In-house Sub | E35: 1103 | H35: 15129.03226 | J35: 15129.03226 | M35: 0.5403225806 | O35: 0.5403225806 | R35: 0 | T35: 0 | W35: 0 | Y35: 0 | AB35: 0 | AD35: 0 | AG35: 0 | AI35: 0 | AL35: 0 | AN35: 0 | AQ35: 0 | AS35: 0 | AV35: 0 | AX35: 0 | BA35: 0 | BC35: 0 | BF35: 0 | BH35: 0 | BK35: 0 | BM35: 0
A36: 1 | B36: Jabson | C36: Jordan | D36: Behavioral Support Specialist | E36: 2104 | H36: 48921.6 | J36: 48921.6 | M36: 1 | O36: 1 | R36: 50389.248 | T36: 50389.248 | W36: 1 | Y36: 1 | AB36: 51900.92544 | AD36: 51900.92544 | AG36: 1 | AI36: 1 | AL36: 53457.9532 | AN36: 53457.9532 | AQ36: 1 | AS36: 1 | AV36: 55061.6918 | AX36: 55061.6918 | BA36: 1 | BC36: 1 | BF36: 56713.54255 | BH36: 56713.54255 | BK36: 1 | BM36: 1
A37: 1 | B37: Klein | C37: Aislinn | D37: Spanish 8 | E37: 1100 | H37: 64017 | J37: 64017 | M37: 1 | O37: 1 | R37: 68498.19 | T37: 68498.19 | W37: 1 | Y37: 1 | AB37: 70553.1357 | AD37: 70553.1357 | AG37: 1 | AI37: 1 | AL37: 72669.72977 | AN37: 72669.72977 | AQ37: 1 | AS37: 1 | AV37: 74849.82166 | AX37: 74849.82166 | BA37: 1 | BC37: 1 | BF37: 77095.31631 | BH37: 77095.31631 | BK37: 1 | BM37: 1
A38: 1 | B38: Layson | C38: Gerald | D38: Upper IA2 | E38: 2104 | H38: 31449.6 | J38: 31449.6 | M38: 1 | O38: 1 | R38: 32393.088 | T38: 32393.088 | W38: 1 | Y38: 1 | AB38: 33364.88064 | AD38: 33364.88064 | AG38: 1 | AI38: 1 | AL38: 34365.82706 | AN38: 34365.82706 | AQ38: 1 | AS38: 1 | AV38: 35396.80187 | AX38: 35396.80187 | BA38: 1 | BC38: 1 | BF38: 36458.70593 | BH38: 36458.70593 | BK38: 1 | BM38: 1
A39: 1 | B39: Mandilag | C39: Christine | D39: Assistant Director of Academic | E39: 1300 | H39: 131000 | J39: 131000 | M39: 1 | O39: 1 | R39: 132965 | T39: 132965 | W39: 1 | Y39: 1 | AB39: 136953.95 | AD39: 136953.95 | AG39: 1 | AI39: 1 | AL39: 141062.5685 | AN39: 141062.5685 | AQ39: 1 | AS39: 1 | AV39: 145294.4456 | AX39: 145294.4456 | BA39: 1 | BC39: 1 | BF39: 149653.2789 | BH39: 149653.2789 | BK39: 1 | BM39: 1
A40: 1 | B40: Marley | C40: Terrence | D40: Behavioral Support Specialist | E40: 2104 | H40: 21000 | J40: 21000 | M40: 0.5 | O40: 0.5 | R40: 43260 | T40: 43260 | W40: 1 | Y40: 1 | AB40: 44557.8 | AD40: 44557.8 | AG40: 1 | AI40: 1 | AL40: 45894.534 | AN40: 45894.534 | AQ40: 1 | AS40: 1 | AV40: 47271.37002 | AX40: 47271.37002 | BA40: 1 | BC40: 1 | BF40: 48689.51112 | BH40: 48689.51112 | BK40: 1 | BM40: 1
A41: 1 | B41: Marzec | C41: Michael | D41: LS Computer Science | E41: 1100 | H41: 75807 | J41: 75807 | M41: 1 | O41: 1 | R41: 81113.49 | T41: 81113.49 | W41: 1 | Y41: 1 | AB41: 83546.8947 | AD41: 83546.8947 | AG41: 1 | AI41: 1 | AL41: 86053.30154 | AN41: 86053.30154 | AQ41: 1 | AS41: 1 | AV41: 88634.90059 | AX41: 88634.90059 | BA41: 1 | BC41: 1 | BF41: 91293.9476 | BH41: 91293.9476 | BK41: 1 | BM41: 1
A42: 1 | B42: Moore | C42: Bo | D42: Director of Student Support Services | E42: 1311 | H42: 110000 | J42: 110000 | M42: 1 | O42: 1 | R42: 111650 | T42: 111650 | W42: 1 | Y42: 1 | AB42: 114999.5 | AD42: 114999.5 | AG42: 1 | AI42: 1 | AL42: 118449.485 | AN42: 118449.485 | AQ42: 1 | AS42: 1 | AV42: 122002.9695 | AX42: 122002.9695 | BA42: 1 | BC42: 1 | BF42: 125663.0586 | BH42: 125663.0586 | BK42: 1 | BM42: 1
A43: 1 | B43: Morgan | C43: Kathleen | D43: Lunch | E43: 2928 | H43: 14080 | J43: 14080 | M43: 0.55 | O43: 0.55 | R43: 14502.4 | T43: 14502.4 | W43: 0.55 | Y43: 0.55 | AB43: 14937.472 | AD43: 14937.472 | AG43: 0.55 | AI43: 0.55 | AL43: 15385.59616 | AN43: 15385.59616 | AQ43: 0.55 | AS43: 0.55 | AV43: 15847.16404 | AX43: 15847.16404 | BA43: 0.55 | BC43: 0.55 | BF43: 16322.57897 | BH43: 16322.57897 | BK43: 0.55 | BM43: 0.55
A44: 1 | B44: Morton | C44: Jamia | D44: Director of College Readiness | E44: 1300 | H44: 100000 | J44: 100000 | M44: 1 | O44: 1 | R44: 100000 | T44: 100000 | W44: 1 | Y44: 1 | AB44: 103000 | AD44: 103000 | AG44: 1 | AI44: 1 | AL44: 106090 | AN44: 106090 | AQ44: 1 | AS44: 1 | AV44: 109272.7 | AX44: 109272.7 | BA44: 1 | BC44: 1 | BF44: 112550.881 | BH44: 112550.881 | BK44: 1 | BM44: 1
A45: 1 | B45: Noel | C45: Charles | D45: Director of Operations | E45: 2300 | H45: 115000 | J45: 115000 | M45: 1 | O45: 1 | R45: 116725 | T45: 116725 | W45: 1 | Y45: 1 | AB45: 120226.75 | AD45: 120226.75 | AG45: 1 | AI45: 1 | AL45: 123833.5525 | AN45: 123833.5525 | AQ45: 1 | AS45: 1 | AV45: 127548.5591 | AX45: 127548.5591 | BA45: 1 | BC45: 1 | BF45: 131375.0158 | BH45: 131375.0158 | BK45: 1 | BM45: 1
A46: 1 | B46: O'Brien | C46: Samantha | D46: Chem/APES | E46: 1100 | H46: 63209 | J46: 63209 | M46: 1 | O46: 1 | R46: 80362 | T46: 80362 | W46: 1 | Y46: 1 | AB46: 82772.86 | AD46: 82772.86 | AG46: 1 | AI46: 1 | AL46: 85256.0458 | AN46: 85256.0458 | AQ46: 1 | AS46: 1 | AV46: 87813.72717 | AX46: 87813.72717 | BA46: 1 | BC46: 1 | BF46: 90448.13899 | BH46: 90448.13899 | BK46: 1 | BM46: 1
A47: 1 | B47: Oh | C47: Joseph | D47: Math 6 | E47: 1100 | H47: 83854 | J47: 83854 | M47: 1 | O47: 1 | R47: 88046.7 | T47: 88046.7 | W47: 1 | Y47: 1 | AB47: 90688.101 | AD47: 90688.101 | AG47: 1 | AI47: 1 | AL47: 93408.74403 | AN47: 93408.74403 | AQ47: 1 | AS47: 1 | AV47: 96211.00635 | AX47: 96211.00635 | BA47: 1 | BC47: 1 | BF47: 99097.33654 | BH47: 99097.33654 | BK47: 1 | BM47: 1
A48: 1 | B48: Oh | C48: Erin | D48: Education & Behavioral Specialist | E48: 1148 | H48: 83854 | J48: 83854 | M48: 1 | O48: 1 | R48: 88046.7 | T48: 88046.7 | W48: 1 | Y48: 1 | AB48: 90688.101 | AD48: 90688.101 | AG48: 1 | AI48: 1 | AL48: 93408.74403 | AN48: 93408.74403 | AQ48: 1 | AS48: 1 | AV48: 96211.00635 | AX48: 96211.00635 | BA48: 1 | BC48: 1 | BF48: 99097.33654 | BH48: 99097.33654 | BK48: 1 | BM48: 1
A49: 1 | B49: Ornelas | C49: Rodolfo | D49: Principal - Upper | E49: 1311 | H49: 135000 | J49: 135000 | M49: 1 | O49: 1 | R49: 0 | T49: 0 | W49: 0 | Y49: 0 | AB49: 0 | AD49: 0 | AG49: 0 | AI49: 0 | AL49: 0 | AN49: 0 | AQ49: 0 | AS49: 0 | AV49: 0 | AX49: 0 | BA49: 0 | BC49: 0 | BF49: 0 | BH49: 0 | BK49: 0 | BM49: 0
A50: 1 | B50: Pancak | C50: Jack | D50: History 8 | E50: 1100 | H50: 58537 | J50: 58537 | M50: 1 | O50: 1 | R50: 0 | T50: 0 | W50: 0 | Y50: 0 | AB50: 0 | AD50: 0 | AG50: 0 | AI50: 0 | AL50: 0 | AN50: 0 | AQ50: 0 | AS50: 0 | AV50: 0 | AX50: 0 | BA50: 0 | BC50: 0 | BF50: 0 | BH50: 0 | BK50: 0 | BM50: 0
A51: 1 | B51: Pantazes | C51: Edra | D51: Upper Ed Specialist 2 | E51: 1148 | H51: 81048 | J51: 81048 | M51: 1 | O51: 1 | R51: 85100.4 | T51: 85100.4 | W51: 1 | Y51: 1 | AB51: 87653.412 | AD51: 87653.412 | AG51: 1 | AI51: 1 | AL51: 90283.01436 | AN51: 90283.01436 | AQ51: 1 | AS51: 1 | AV51: 92991.50479 | AX51: 92991.50479 | BA51: 1 | BC51: 1 | BF51: 95781.24993 | BH51: 95781.24993 | BK51: 1 | BM51: 1
A52: 1 | B52: Patterson | C52: Tiara | D52: Math 7 | E52: 1100 | H52: 70010 | J52: 70010 | M52: 1 | O52: 1 | R52: 74910.7 | T52: 74910.7 | W52: 1 | Y52: 1 | AB52: 77158.021 | AD52: 77158.021 | AG52: 1 | AI52: 1 | AL52: 79472.76163 | AN52: 79472.76163 | AQ52: 1 | AS52: 1 | AV52: 81856.94448 | AX52: 81856.94448 | BA52: 1 | BC52: 1 | BF52: 84312.65281 | BH52: 84312.65281 | BK52: 1 | BM52: 1
A53: 1 | B53: Pope | C53: Kathrine | D53: Alumni Counselor | E53: 2400 | H53: 4800 | J53: 4800 | M53: 1 | O53: 1 | R53: 4944 | T53: 4944 | W53: 1 | Y53: 1 | AB53: 5092.32 | AD53: 5092.32 | AG53: 1 | AI53: 1 | AL53: 5245.0896 | AN53: 5245.0896 | AQ53: 1 | AS53: 1 | AV53: 5402.442288 | AX53: 5402.442288 | BA53: 1 | BC53: 1 | BF53: 5564.515557 | BH53: 5564.515557 | BK53: 1 | BM53: 1
A54: 1 | B54: Rangel Flores | C54: Jessica | D54: Back Office Admin | E54: 2300 | H54: 8161.290323 | J54: 8161.290323 | M54: 0.123655914 | O54: 0.123655914 | R54: 0 | T54: 0 | W54: 0 | Y54: 0 | AB54: 0 | AD54: 0 | AG54: 0 | AI54: 0 | AL54: 0 | AN54: 0 | AQ54: 0 | AS54: 0 | AV54: 0 | AX54: 0 | BA54: 0 | BC54: 0 | BF54: 0 | BH54: 0 | BK54: 0 | BM54: 0
A55: 1 | B55: Reynaga | C55: Jose | D55: Spanish Upper | E55: 1100 | H55: 67377 | J55: 67377 | M55: 1 | O55: 1 | R55: 72093.39 | T55: 72093.39 | W55: 1 | Y55: 1 | AB55: 74256.1917 | AD55: 74256.1917 | AG55: 1 | AI55: 1 | AL55: 76483.87745 | AN55: 76483.87745 | AQ55: 1 | AS55: 1 | AV55: 78778.39377 | AX55: 78778.39377 | BA55: 1 | BC55: 1 | BF55: 81141.74559 | BH55: 81141.74559 | BK55: 1 | BM55: 1
A56: 1 | B56: Romero | C56: Daisy | D56: Upper OA | E56: 2300 | H56: 49140 | J56: 49140 | M56: 1.05 | O56: 1.05 | R56: 50614.2 | T56: 50614.2 | W56: 1.05 | Y56: 1.05 | AB56: 52132.626 | AD56: 52132.626 | AG56: 1.05 | AI56: 1.05 | AL56: 53696.60478 | AN56: 53696.60478 | AQ56: 1.05 | AS56: 1.05 | AV56: 55307.50292 | AX56: 55307.50292 | BA56: 1.05 | BC56: 1.05 | BF56: 56966.72801 | BH56: 56966.72801 | BK56: 1.05 | BM56: 1.05
A57: 1 | B57: Sanchez | C57: Jasmine | D57: Back Office Admin | E57: 2300 | H57: 66000 | J57: 66000 | M57: 1 | O57: 1 | R57: 66990 | T57: 66990 | W57: 1 | Y57: 1 | AB57: 68999.7 | AD57: 68999.7 | AG57: 1 | AI57: 1 | AL57: 71069.691 | AN57: 71069.691 | AQ57: 1 | AS57: 1 | AV57: 73201.78173 | AX57: 73201.78173 | BA57: 1 | BC57: 1 | BF57: 75397.83518 | BH57: 75397.83518 | BK57: 1 | BM57: 1
A58: 1 | B58: Sheth | C58: Prernaben | D58: CSDI | E58: 1100 | H58: 78666 | J58: 78666 | M58: 1 | O58: 1 | R58: 84172.62 | T58: 84172.62 | W58: 1 | Y58: 1 | AB58: 86697.7986 | AD58: 86697.7986 | AG58: 1 | AI58: 1 | AL58: 89298.73256 | AN58: 89298.73256 | AQ58: 1 | AS58: 1 | AV58: 91977.69453 | AX58: 91977.69453 | BA58: 1 | BC58: 1 | BF58: 94737.02537 | BH58: 94737.02537 | BK58: 1 | BM58: 1
A59: 1 | B59: Smith | C59: Nicole | D59: Psychologist | E59: 1160 | H59: 101217 | J59: 101217 | M59: 1 | O59: 1 | R59: 106277.85 | T59: 106277.85 | W59: 1 | Y59: 1 | AB59: 109466.1855 | AD59: 109466.1855 | AG59: 1 | AI59: 1 | AL59: 112750.1711 | AN59: 112750.1711 | AQ59: 1 | AS59: 1 | AV59: 116132.6762 | AX59: 116132.6762 | BA59: 1 | BC59: 1 | BF59: 119616.6565 | BH59: 119616.6565 | BK59: 1 | BM59: 1
A60: 1 | B60: Sparks | C60: Sarah | D60: LT Sub | E60: 1103 | H60: 56000 | J60: 56000 | M60: 1 | O60: 1 | R60: 58800 | T60: 58800 | W60: 1 | Y60: 1 | AB60: 60564 | AD60: 60564 | AG60: 1 | AI60: 1 | AL60: 62380.92 | AN60: 62380.92 | AQ60: 1 | AS60: 1 | AV60: 64252.3476 | AX60: 64252.3476 | BA60: 1 | BC60: 1 | BF60: 66179.91803 | BH60: 66179.91803 | BK60: 1 | BM60: 1
A61: 1 | B61: Terrizzi | C61: Mick | D61: Principal - Lower | E61: 1311 | H61: 125000 | J61: 125000 | M61: 1 | O61: 1 | R61: 126875 | T61: 126875 | W61: 1 | Y61: 1 | AB61: 130681.25 | AD61: 130681.25 | AG61: 1 | AI61: 1 | AL61: 134601.6875 | AN61: 134601.6875 | AQ61: 1 | AS61: 1 | AV61: 138639.7381 | AX61: 138639.7381 | BA61: 1 | BC61: 1 | BF61: 142798.9303 | BH61: 142798.9303 | BK61: 1 | BM61: 1
A62: 1 | B62: Throman | C62: Miranda | D62: Executive Director - FY24 | E62: 1300 | H62: 0 | J62: 0 | M62: 0 | O62: 0 | R62: 194000 | T62: 194000 | W62: 1 | Y62: 1 | AB62: 199820 | AD62: 199820 | AG62: 1 | AI62: 1 | AL62: 205814.6 | AN62: 205814.6 | AQ62: 1 | AS62: 1 | AV62: 211989.038 | AX62: 211989.038 | BA62: 1 | BC62: 1 | BF62: 218348.7091 | BH62: 218348.7091 | BK62: 1 | BM62: 1
A63: 1 | B63: Tomajan | C63: Ashley | D63: Instructional Aide | E63: 2104 | H63: 36960 | J63: 36960 | M63: 1 | O63: 1 | R63: 38068.8 | T63: 38068.8 | W63: 1 | Y63: 1 | AB63: 39210.864 | AD63: 39210.864 | AG63: 1 | AI63: 1 | AL63: 40387.18992 | AN63: 40387.18992 | AQ63: 1 | AS63: 1 | AV63: 41598.80562 | AX63: 41598.80562 | BA63: 1 | BC63: 1 | BF63: 42846.76979 | BH63: 42846.76979 | BK63: 1 | BM63: 1
